Workbook

Sheet 10W
A1: 10W/cm2 | B1: mSG | C1: Frame | D1: Time (sec) | E1: 1st | F1: 2nd | G1: 3rd | H1: BG | I1: 1st - BG | J1: 2nd - BG | K1: 3rd - BG | L1: % 1st | M1: % 2nd | N1: % 3rd | O1: average | Q1: mSG2 | R1: Frame | S1: Time (sec) | T1: 1st | U1: 2nd | V1: 3rd | W1: BG | X1: 1st - BG | Y1: 2nd - BG | Z1: 3rd - BG | AA1: % 1st | AB1: % 2nd | AC1: % 3rd | AD1: average | AF1: mEGFP | AG1: Frame | AH1: Time (sec) | AI1: 1st | AJ1: 2nd | AK1: 3rd | AL1: BG | AM1: 1st - BG | AN1: 2nd - BG | AO1: 3rd - BG | AP1: % 1st | AQ1: % 2nd | AR1: % 3rd | AS1: average | AU1: mNG | AV1: Frame | AW1: Time (sec) | AX1: 1st | AY1: 2nd | AZ1: 3rd | BA1: BG | BB1: 1st - BG | BC1: 2nd - BG | BD1: 3rd - BG | BE1: % 1st | BF1: % 2nd | BG1: % 3rd | BH1: average | BJ1: mCl3 | BK1: Frame | BL1: Time (sec) | BM1: 1st | BN1: 2nd | BO1: 3rd | BP1: BG | BQ1: 1st - BG | BR1: 2nd - BG | BS1: 3rd - BG | BT1: % 1st | BU1: % 2nd | BV1: % 3rd | BW1: average | BY1: mGL | BZ1: Frame | CA1: Time (sec) | CB1: 1st | CC1: 2nd | CD1: 3rd | CE1: BG | CF1: 1st - BG | CG1: 2nd - BG | CH1: 3rd - BG | CI1: % 1st | CJ1: % 2nd | CK1: % 3rd | CL1: average | CN1: SG | CO1: Frame | CP1: Time (sec) | CQ1: 1st | CR1: 2nd | CS1: 3rd | CT1: BG | CU1: 1st - BG | CV1: 2nd - BG | CW1: 3rd - BG | CX1: % 1st | CY1: % 2nd | CZ1: % 3rd | DA1: average | DC1: td8ox2SG | DD1: Frame | DE1: Time (sec) | DF1: 1st | DG1: 2nd | DH1: 3rd | DI1: BG | DJ1: 1st - BG | DK1: 2nd - BG | DL1: 3rd - BG | DM1: % 1st | DN1: % 2nd | DO1: % 3rd | DP1: average
C2: 0 | D2: 0 | E2: 1201.609 | F2: 1070.844 | G2: 1169.93 | H2: 37.81528 | I2: =E2-H2 -> 1163.79372 | J2: =F2-H2 -> 1033.02872 | K2: =G2-H2 -> 1132.11472 | L2: =I2/($I$2)*100 -> 100 | M2: =J2/($J$2)*100 -> 100 | N2: =K2/($K$2)*100 -> 100 | O2: =AVERAGE(L2:N2) -> 100 | R2: 0 | S2: 0 | T2: 729.013 | U2: 950.023 | V2: 1032.934 | W2: 37.81528 | X2: =T2-W2 -> 691.19772 | Y2: =U2-W2 -> 912.20772 | Z2: =V2-W2 -> 995.11872 | AA2: =X2/($X$2)*100 -> 100 | AB2: =Y2/($Y$2)*100 -> 100 | AC2: =Z2/($Z$2)*100 -> 100 | AD2: =AVERAGE(AA2:AC2) -> 100 | AG2: 0 | AH2: 0 | AI2: 1446.023 | AJ2: 1193.461 | AK2: 1341.338 | AL2: 37.81528 | AM2: =AI2-AL2 -> 1408.20772 | AN2: =AJ2-AL2 -> 1155.64572 | AO2: =AK2-AL2 -> 1303.52272 | AP2: =AM2/($AM$2)*100 -> 100 | AQ2: =AN2/($AN$2)*100 -> 100 | AR2: =AO2/($AO$2)*100 -> 100 | AS2: =AVERAGE(AP2:AR2) -> 100 | AV2: 0 | AW2: 0 | AX2: 1064.193 | AY2: 898.504 | AZ2: 1240.354 | BA2: 37.81528 | BB2: =AX2-BA2 -> 1026.37772 | BC2: =AY2-BA2 -> 860.68872 | BD2: =AZ2-BA2 -> 1202.53872 | BE2: =BB2/($BB$2)*100 -> 100 | BF2: =BC2/($BC$2)*100 -> 100 | BG2: =BD2/($BD$2)*100 -> 100 | BH2: =AVERAGE(BE2:BG2) -> 100 | BK2: 0 | BL2: 0 | BM2: 1173.957 | BN2: 1101.967 | BO2: 1056.418 | BP2: 37.81528 | BQ2: =BM2-BP2 -> 1136.14172 | BR2: =BN2-BP2 -> 1064.15172 | BS2: =BO2-BP2 -> 1018.60272 | BT2: =BQ2/($BQ$2)*100 -> 100 | BU2: =BR2/($BR$2)*100 -> 100 | BV2: =BS2/($BS$2)*100 -> 100 | BW2: =AVERAGE(BT2:BV2) -> 100 | BZ2: 0 | CA2: 0 | CB2: 2115.251 | CC2: 1693.433 | CD2: 2060.641 | CE2: 37.81528 | CF2: =CB2-CE2 -> 2077.43572 | CG2: =CC2-CE2 -> 1655.61772 | CH2: =CD2-CE2 -> 2022.82572 | CI2: =CF2/($CF$2)*100 -> 100 | CJ2: =CG2/($CG$2)*100 -> 100 | CK2: =CH2/($CH$2)*100 -> 100 | CL2: =AVERAGE(CI2:CK2) -> 100 | CO2: 0 | CP2: 0 | CQ2: 1035.325 | CR2: 968.899 | CS2: 737.321 | CT2: 37.81528 | CU2: =CQ2-CT2 -> 997.50972 | CV2: =CR2-CT2 -> 931.08372 | CW2: =CS2-CT2 -> 699.50572 | CX2: =CU2/($CU$2)*100 -> 100 | CY2: =CV2/($CV$2)*100 -> 100 | CZ2: =CW2/($CW$2)*100 -> 100 | DA2: =AVERAGE(CX2:CZ2) -> 100 | DD2: 0 | DE2: 0 | DF2: 1105.752 | DG2: 996.346 | DH2: 851.342 | DI2: 37.81528 | DJ2: =DF2-DI2 -> 1067.93672 | DK2: =DG2-DI2 -> 958.53072 | DL2: =DH2-DI2 -> 813.52672 | DM2: =DJ2/($DJ$2)*100 -> 100 | DN2: =DK2/($DK$2)*100 -> 100 | DO2: =DL2/($DL$2)*100 -> 100 | DP2: =AVERAGE(DM2:DO2) -> 100
C3: 1 | D3: 0.3333333333 | E3: 1168.386 | F3: 1033.74 | G3: 1153.365 | H3: 36.78022333 | I3: 1131.605777 | J3: 996.9597767 | K3: 1116.584777 | L3: =I3/($I$2)*100 -> 97.23422263 | M3: 96.50842783 | N3: 98.6282359 | O3: 97.45696212 | R3: 1 | S3: 0.3333333333 | T3: 692.225 | U3: 972.395 | V3: 1014.148 | W3: 36.78022333 | X3: 655.4447767 | Y3: 935.6147767 | Z3: 977.3677767 | AA3: 94.82739276 | AB3: 102.5659788 | AC3: 98.21619843 | AD3: 98.53652333 | AG3: 1 | AH3: 0.3333333333 | AI3: 1263.672 | AJ3: 1058.084 | AK3: 1189.392 | AL3: 36.78022333 | AM3: 1226.891777 | AN3: 1021.303777 | AO3: 1152.611777 | AP3: 87.12434673 | AQ3: 88.37516195 | AR3: 88.42283751 | AS3: 87.9741154 | AV3: 1 | AW3: 0.3333333333 | AX3: 1034.282 | AY3: 869.835 | AZ3: 1190.58 | BA3: 36.78022333 | BB3: 997.5017767 | BC3: 833.0547767 | BD3: 1153.799777 | BE3: 97.18661631 | BF3: 96.78932201 | BG3: 95.94699592 | BH3: 96.64097808 | BK3: 1 | BL3: 0.3333333333 | BM3: 1104.324 | BN3: 1038.136 | BO3: 957.201 | BP3: 36.78022333 | BQ3: 1067.543777 | BR3: 1001.355777 | BS3: 920.4207767 | BT3: 93.96220189 | BU3: 94.09896708 | BV3: 90.36111514 | BW3: 92.80742804 | BZ3: 1 | CA3: 0.3333333333 | CB3: 1258.435 | CC3: 1221.518 | CD3: 1318.636 | CE3: 36.78022333 | CF3: 1221.654777 | CG3: 1184.737777 | CH3: 1281.855777 | CI3: 58.80590022 | CJ3: 71.55865526 | CK3: 63.36956091 | CL3: 64.5780388 | CO3: 1 | CP3: 0.3333333333 | CQ3: 980.244 | CR3: 967.003 | CS3: 709.01 | CT3: 36.78022333 | CU3: 943.4637767 | CV3: 930.2227767 | CW3: 672.2297767 | CX3: 94.58191311 | CY3: 99.9075332 | CZ3: 96.1006833 | DA3: 96.86337654 | DD3: 1 | DE3: 0.3333333333 | DF3: 1084.371 | DG3: 974.496 | DH3: 824.995 | DI3: 36.78022333 | DJ3: 1047.590777 | DK3: 937.7157767 | DL3: 788.2147767 | DM3: 98.09483624 | DN3: 97.82845318 | DO3: 96.88861562 | DP3: 97.60396835
C4: 2 | D4: 0.6666666667 | E4: 1164.17 | F4: 1031.118 | G4: 1166.188 | H4: 36.86351333 | I4: 1127.306487 | J4: 994.2544867 | K4: 1129.324487 | L4: 96.86480235 | M4: 96.24654837 | N4: 99.75353793 | O4: 97.62162955 | R4: 2 | S4: 0.6666666667 | T4: 694.31 | U4: 907.657 | V4: 997.706 | W4: 36.86351333 | X4: 657.4464867 | Y4: 870.7934867 | Z4: 960.8424867 | AA4: 95.11699296 | AB4: 95.45999969 | AC4: 96.55556341 | AD4: 95.71085202 | AG4: 2 | AH4: 0.6666666667 | AI4: 1177.356 | AJ4: 1038.922 | AK4: 1153.252 | AL4: 36.86351333 | AM4: 1140.492487 | AN4: 1002.058487 | AO4: 1116.388487 | AP4: 80.98893867 | AQ4: 86.70983411 | AR4: 85.64396075 | AS4: 84.44757784 | AV4: 2 | AW4: 0.6666666667 | AX4: 1042.137 | AY4: 851.999 | AZ4: 1179.456 | BA4: 36.86351333 | BB4: 1005.273487 | BC4: 815.1354867 | BD4: 1142.592487 | BE4: 97.94381416 | BF4: 94.70735095 | BG4: 95.01502676 | BH4: 95.88873063 | BK4: 2 | BL4: 0.6666666667 | BM4: 1094.241 | BN4: 964.503 | BO4: 930.12 | BP4: 36.86351333 | BQ4: 1057.377487 | BR4: 927.6394867 | BS4: 893.2564867 | BT4: 93.06739362 | BU4: 87.17173212 | BV4: 87.69429623 | BW4: 89.31114066 | BZ4: 2 | CA4: 0.6666666667 | CB4: 1135.013 | CC4: 1079.662 | CD4: 1173.724 | CE4: 36.86351333 | CF4: 1098.149487 | CG4: 1042.798487 | CH4: 1136.860487 | CI4: 52.86081664 | CJ4: 62.98546301 | CK4: 56.2016033 | CL4: 57.34929432 | CO4: 2 | CP4: 0.6666666667 | CQ4: 1007.381 | CR4: 949.309 | CS4: 694.79 | CT4: 36.86351333 | CU4: 970.5174867 | CV4: 912.4454867 | CW4: 657.9264867 | CX4: 97.29403806 | CY4: 97.99822154 | CZ4: 94.05591232 | DA4: 96.44939064 | DD4: 2 | DE4: 0.6666666667 | DF4: 1073.277 | DG4: 969.714 | DH4: 821.497 | DI4: 36.86351333 | DJ4: 1036.413487 | DK4: 932.8504867 | DL4: 784.6334867 | DM4: 97.0482115 | DN4: 97.32087529 | DO4: 96.44839774 | DP4: 96.93916151
C5: 3 | D5: 1 | E5: 1075.415 | F5: 1028.214 | G5: 1121.122 | H5: 37.36282333 | I5: 1038.052177 | J5: 990.8511767 | K5: 1083.759177 | L5: 89.19554719 | M5: 95.91709867 | N5: 95.72874175 | O5: 93.61379587 | R5: 3 | S5: 1 | T5: 668.486 | U5: 966.828 | V5: 1006.068 | W5: 37.36282333 | X5: 631.1231767 | Y5: 929.4651767 | Z5: 968.7051767 | AA5: 91.30863115 | AB5: 101.8918341 | AC5: 97.34568923 | AD5: 96.84871816 | AG5: 3 | AH5: 1 | AI5: 1203.264 | AJ5: 1056.447 | AK5: 1144.841 | AL5: 37.36282333 | AM5: 1165.901177 | AN5: 1019.084177 | AO5: 1107.478177 | AP5: 82.79326694 | AQ5: 88.18309617 | AR5: 84.96040458 | AS5: 85.3122559 | AV5: 3 | AW5: 1 | AX5: 1029.014 | AY5: 871.09 | AZ5: 1161.265 | BA5: 37.36282333 | BB5: 991.6511767 | BC5: 833.7271767 | BD5: 1123.902177 | BE5: 96.61659225 | BF5: 96.86744549 | BG5: 93.46078908 | BH5: 95.6482756 | BK5: 3 | BL5: 1 | BM5: 1147.652 | BN5: 1012.806 | BO5: 915.96 | BP5: 37.36282333 | BQ5: 1110.289177 | BR5: 975.4431767 | BS5: 878.5971767 | BT5: 97.72453182 | BU5: 91.66391956 | BV5: 86.2551375 | BW5: 91.88119629 | BZ5: 3 | CA5: 1 | CB5: 1081.989 | CC5: 915.196 | CD5: 1066.47 | CE5: 37.36282333 | CF5: 1044.626177 | CG5: 877.8331767 | CH5: 1029.107177 | CI5: 50.28440431 | CJ5: 53.02148957 | CK5: 50.87473263 | CL5: 51.39354217 | CO5: 3 | CP5: 1 | CQ5: 1023.487 | CR5: 970.164 | CS5: 706.004 | CT5: 37.36282333 | CU5: 986.1241767 | CV5: 932.8011767 | CW5: 668.6411767 | CX5: 98.85860327 | CY5: 100.1844578 | CZ5: 95.58766391 | DA5: 98.21024166 | DD5: 3 | DE5: 1 | DF5: 1096.526 | DG5: 995.164 | DH5: 805.357 | DI5: 37.36282333 | DJ5: 1059.163177 | DK5: 957.8011767 | DL5: 767.9941767 | DM5: 99.1784585 | DN5: 99.92388942 | DO5: 94.40306726 | DP5: 97.83513839
C6: 4 | D6: 1.333333333 | E6: 1124.815 | F6: 1028.424 | G6: 1106.971 | H6: 37.45711667 | I6: 1087.357883 | J6: 990.9668833 | K6: 1069.513883 | L6: 93.43218344 | M6: 95.92829939 | N6: 94.47045113 | O6: 94.61031132 | R6: 4 | S6: 1.333333333 | T6: 647.884 | U6: 903.771 | V6: 970.569 | W6: 37.45711667 | X6: 610.4268833 | Y6: 866.3138833 | Z6: 933.1118833 | AA6: 88.31436587 | AB6: 94.96892696 | AC6: 93.76890059 | AD6: 92.35073114 | AG6: 4 | AH6: 1.333333333 | AI6: 1173.305 | AJ6: 1048.778 | AK6: 1167.684 | AL6: 37.45711667 | AM6: 1135.847883 | AN6: 1011.320883 | AO6: 1130.226883 | AP6: 80.65911493 | AQ6: 87.51132513 | AR6: 86.70557605 | AS6: 84.95867204 | AV6: 4 | AW6: 1.333333333 | AX6: 1033.507 | AY6: 843.595 | AZ6: 1164.168 | BA6: 37.45711667 | BB6: 996.0498833 | BC6: 806.1378833 | BD6: 1126.710883 | BE6: 97.04515832 | BF6: 93.6619552 | BG6: 93.69435384 | BH6: 94.80048912 | BK6: 4 | BL6: 1.333333333 | BM6: 1012.417 | BN6: 980.531 | BO6: 915.703 | BP6: 37.45711667 | BQ6: 974.9598833 | BR6: 943.0738833 | BS6: 878.2458833 | BT6: 85.81322789 | BU6: 88.62212649 | BV6: 86.22064973 | BW6: 86.8853347 | BZ6: 4 | CA6: 1.333333333 | CB6: 992.038 | CC6: 874.102 | CD6: 993.143 | CE6: 37.45711667 | CF6: 954.5808833 | CG6: 836.6448833 | CH6: 955.6858833 | CI6: 45.94996005 | CJ6: 50.53369949 | CK6: 47.24509254 | CL6: 47.90958403 | CO6: 4 | CP6: 1.333333333 | CQ6: 1012.594 | CR6: 909.124 | CS6: 709.619 | CT6: 37.45711667 | CU6: 975.1368833 | CV6: 871.6668833 | CW6: 672.1618833 | CX6: 97.75713096 | CY6: 93.6185291 | CZ6: 96.0909774 | DA6: 95.82221249 | DD6: 4 | DE6: 1.333333333 | DF6: 1097.501 | DG6: 983.074 | DH6: 833.665 | DI6: 37.45711667 | DJ6: 1060.043883 | DK6: 945.6168833 | DL6: 796.2078833 | DM6: 99.26092656 | DN6: 98.65274671 | DO6: 97.87114102 | DP6: 98.59493809
C7: 5 | D7: 1.666666667 | E7: 1132.143 | F7: 1026.03 | G7: 1144.153 | H7: 37.03277 | I7: 1095.11023 | J7: 988.99723 | K7: 1107.12023 | L7: 94.09831065 | M7: 95.73763157 | N7: 97.79222993 | O7: 95.87605738 | R7: 5 | S7: 1.666666667 | T7: 643.867 | U7: 922.186 | V7: 984.284 | W7: 37.03277 | X7: 606.83423 | Y7: 885.15323 | Z7: 947.25123 | AA7: 87.79459371 | AB7: 97.03417441 | AC7: 95.18977093 | AD7: 93.33951301 | AG7: 5 | AH7: 1.666666667 | AI7: 1246.94 | AJ7: 1033.813 | AK7: 1145.793 | AL7: 37.03277 | AM7: 1209.90723 | AN7: 996.78023 | AO7: 1108.76023 | AP7: 85.91823584 | AQ7: 86.25309753 | AR7: 85.05875755 | AS7: 85.74336364 | AV7: 5 | AW7: 1.666666667 | AX7: 1022.369 | AY7: 849.842 | AZ7: 1183.558 | BA7: 37.03277 | BB7: 985.33623 | BC7: 812.80923 | BD7: 1146.52523 | BE7: 96.00132688 | BF7: 94.43707244 | BG7: 95.3420635 | BH7: 95.26015427 | BK7: 5 | BL7: 1.666666667 | BM7: 1015.321 | BN7: 979.322 | BO7: 906.49 | BP7: 37.03277 | BQ7: 978.28823 | BR7: 942.28923 | BS7: 869.45723 | BT7: 86.10617961 | BU7: 88.54839139 | BV7: 85.35783509 | BW7: 86.67080203 | BZ7: 5 | CA7: 1.666666667 | CB7: 935.171 | CC7: 816.862 | CD7: 946.143 | CE7: 37.03277 | CF7: 898.13823 | CG7: 779.82923 | CH7: 909.11023 | CI7: 43.23302143 | CJ7: 47.10201036 | CK7: 44.94258803 | CL7: 45.09253994 | CO7: 5 | CP7: 1.666666667 | CQ7: 1003.675 | CR7: 901.669 | CS7: 708.211 | CT7: 37.03277 | CU7: 966.64223 | CV7: 864.63623 | CW7: 671.17823 | CX7: 96.90554494 | CY7: 92.86342478 | CZ7: 95.9503562 | DA7: 95.23977531 | DD7: 5 | DE7: 1.666666667 | DF7: 1103.082 | DG7: 980.553 | DH7: 833.334 | DI7: 37.03277 | DJ7: 1066.04923 | DK7: 943.52023 | DL7: 796.30123 | DM7: 99.82325825 | DN7: 98.43401054 | DO7: 97.88261534 | DP7: 98.71329471
C8: 6 | D8: 2 | E8: 1076.27 | F8: 1031.37 | G8: 1144.941 | H8: 37.50367333 | I8: 1038.766327 | J8: 993.8663267 | K8: 1107.437327 | L8: 89.25691115 | M8: 96.20897342 | N8: 97.82023916 | O8: 94.42870791 | R8: 6 | S8: 2 | T8: 656.549 | U8: 940.759 | V8: 972.229 | W8: 37.50367333 | X8: 619.0453267 | Y8: 903.2553267 | Z8: 934.7253267 | AA8: 89.56125125 | AB8: 99.01860145 | AC8: 93.93103636 | AD8: 94.17029635 | AG8: 6 | AH8: 2 | AI8: 1203.284 | AJ8: 1055.817 | AK8: 1162.706 | AL8: 37.50367333 | AM8: 1165.780327 | AN8: 1018.313327 | AO8: 1125.202327 | AP8: 82.78468511 | AQ8: 88.1163932 | AR8: 86.32011621 | AS8: 85.74039817 | AV8: 6 | AW8: 2 | AX8: 1028.146 | AY8: 847.176 | AZ8: 1170.032 | BA8: 37.50367333 | BB8: 990.6423267 | BC8: 809.6723267 | BD8: 1132.528327 | BE8: 96.51829998 | BF8: 94.07260812 | BG8: 94.17811733 | BH8: 94.92300847 | BK8: 6 | BL8: 2 | BM8: 1016.307 | BN8: 987.274 | BO8: 912.001 | BP8: 37.50367333 | BQ8: 978.8033267 | BR8: 949.7703267 | BS8: 874.4973267 | BT8: 86.15151697 | BU8: 89.25140173 | BV8: 85.85264004 | BW8: 87.08518625 | BZ8: 6 | CA8: 2 | CB8: 913.395 | CC8: 788.194 | CD8: 889.664 | CE8: 37.50367333 | CF8: 875.8913267 | CG8: 750.6903267 | CH8: 852.1603267 | CI8: 42.16213856 | CJ8: 45.34200846 | CK8: 42.12722422 | CL8: 43.21045708 | CO8: 6 | CP8: 2 | CQ8: 1014.385 | CR8: 959.31 | CS8: 698.445 | CT8: 37.50367333 | CU8: 976.8813267 | CV8: 921.8063267 | CW8: 660.9413267 | CX8: 97.93201079 | CY8: 99.00359193 | CZ8: 94.48690808 | DA8: 97.14083693 | DD8: 6 | DE8: 2 | DF8: 1099.664 | DG8: 966.302 | DH8: 810.991 | DI8: 37.50367333 | DJ8: 1062.160327 | DK8: 928.7983267 | DL8: 773.4873267 | DM8: 99.45910715 | DN8: 96.89812828 | DO8: 95.07829401 | DP8: 97.14517648
C9: 7 | D9: 2.333333333 | E9: 1150.152 | F9: 1022.65 | G9: 1150.293 | H9: 37.66320667 | I9: 1112.488793 | J9: 984.9867933 | K9: 1112.629793 | L9: 95.59157901 | M9: 95.34941036 | N9: 98.27889115 | O9: 96.40662684 | R9: 7 | S9: 2.333333333 | T9: 694.097 | U9: 896.607 | V9: 1009.795 | W9: 37.66320667 | X9: 656.4337933 | Y9: 858.9437933 | Z9: 972.1317933 | AA9: 94.97048013 | AB9: 94.16098708 | AC9: 97.69003173 | AD9: 95.60716631 | AG9: 7 | AH9: 2.333333333 | AI9: 1218.064 | AJ9: 1013.466 | AK9: 1177.478 | AL9: 37.66320667 | AM9: 1180.400793 | AN9: 975.8027933 | AO9: 1139.814793 | AP9: 83.82291736 | AQ9: 84.43788407 | AR9: 87.44111444 | AS9: 85.23397196 | AV9: 7 | AW9: 2.333333333 | AX9: 1026.913 | AY9: 855.257 | AZ9: 1158.315 | BA9: 37.66320667 | BB9: 989.2497933 | BC9: 817.5937933 | BD9: 1120.651793 | BE9: 96.38262543 | BF9: 94.99297183 | BG9: 93.19049563 | BH9: 94.8553643 | BK9: 7 | BL9: 2.333333333 | BM9: 974.482 | BN9: 942.145 | BO9: 849.69 | BP9: 37.66320667 | BQ9: 936.8187933 | BR9: 904.4817933 | BS9: 812.0267933 | BT9: 82.45615638 | BU9: 84.99556749 | BV9: 79.71967651 | BW9: 82.39046679 | BZ9: 7 | CA9: 2.333333333 | CB9: 854.586 | CC9: 757.733 | CD9: 863.475 | CE9: 37.66320667 | CF9: 816.9227933 | CG9: 720.0697933 | CH9: 825.8117933 | CI9: 39.3236135 | CJ9: 43.49251549 | CK9: 40.8246635 | CL9: 41.2135975 | CO9: 7 | CP9: 2.333333333 | CQ9: 1028.976 | CR9: 906.965 | CS9: 688.148 | CT9: 37.66320667 | CU9: 991.3127933 | CV9: 869.3017933 | CW9: 650.4847933 | CX9: 99.37876027 | CY9: 93.36451435 | CZ9: 92.99206207 | DA9: 95.24511223 | DD9: 7 | DE9: 2.333333333 | DF9: 1109.792 | DG9: 977.537 | DH9: 853.226 | DI9: 37.66320667 | DJ9: 1072.128793 | DK9: 939.8737933 | DL9: 815.5627933 | DM9: 100.3925395 | DN9: 98.05359116 | DO9: 100.2502774 | DP9: 99.56546934
C10: 8 | D10: 2.666666667 | E10: 1089.134 | F10: 1023.725 | G10: 1136.291 | H10: 37.21736667 | I10: 1051.916633 | J10: 986.5076333 | K10: 1099.073633 | L10: 90.38686283 | M10: 95.49663182 | N10: 97.08147186 | O10: 94.3216555 | R10: 8 | S10: 2.666666667 | T10: 732.368 | U10: 907.894 | V10: 989.135 | W10: 37.21736667 | X10: 695.1506333 | Y10: 870.6766333 | Z10: 951.9176333 | AA10: 100.5718933 | AB10: 95.44718974 | AC10: 95.65870023 | AD10: 97.22592775 | AG10: 8 | AH10: 2.666666667 | AI10: 1182.672 | AJ10: 1052.226 | AK10: 1156.331 | AL10: 37.21736667 | AM10: 1145.454633 | AN10: 1015.008633 | AO10: 1119.113633 | AP10: 81.34131187 | AQ10: 87.83043244 | AR10: 85.85302091 | AS10: 85.00825507 | AV10: 8 | AW10: 2.666666667 | AX10: 1029.358 | AY10: 821.231 | AZ10: 1173.681 | BA10: 37.21736667 | BB10: 992.1406333 | BC10: 784.0136333 | BD10: 1136.463633 | BE10: 96.66428002 | BF10: 91.09142657 | BG10: 94.50536722 | BH10: 94.0870246 | BK10: 8 | BL10: 2.666666667 | BM10: 1000.316 | BN10: 975.093 | BO10: 908.819 | BP10: 37.21736667 | BQ10: 963.0986333 | BR10: 937.8756333 | BS10: 871.6016333 | BT10: 84.76923401 | BU10: 88.13363881 | BV10: 85.56835911 | BW10: 86.15707731 | BZ10: 8 | CA10: 2.666666667 | CB10: 848.703 | CC10: 709.611 | CD10: 834.147 | CE10: 37.21736667 | CF10: 811.4856333 | CG10: 672.3936333 | CH10: 796.9296333 | CI10: 39.06188892 | CJ10: 40.61285557 | CK10: 39.39685092 | CL10: 39.6905318 | CO10: 8 | CP10: 2.666666667 | CQ10: 1040.109 | CR10: 919.582 | CS10: 693.558 | CT10: 37.21736667 | CU10: 1002.891633 | CV10: 882.3646333 | CW10: 656.3406333 | CX10: 100.5395349 | CY10: 94.76748593 | CZ10: 93.82920176 | DA10: 96.37874087 | DD10: 8 | DE10: 2.666666667 | DF10: 1124.27 | DG10: 970.668 | DH10: 807.4 | DI10: 37.21736667 | DJ10: 1087.052633 | DK10: 933.4506333 | DL10: 770.1826333 | DM10: 101.7899856 | DN10: 97.3834864 | DO10: 94.67207584 | DP10: 97.94851594
C11: 9 | D11: 3 | E11: 1089.951 | F11: 1026.321 | G11: 1144.043 | H11: 37.5347 | I11: 1052.4163 | J11: 988.7863 | K11: 1106.5083 | L11: 90.42979713 | M11: 95.71721297 | N11: 97.73817798 | O11: 94.62839603 | R11: 9 | S11: 3 | T11: 755.704 | U11: 906.24 | V11: 979.2 | W11: 37.5347 | X11: 718.1693 | Y11: 868.7053 | Z11: 941.6653 | AA11: 103.9021512 | AB11: 95.23108399 | AC11: 94.6284379 | AD11: 97.92055769 | AG11: 9 | AH11: 3 | AI11: 1250.025 | AJ11: 1030.642 | AK11: 1166.677 | AL11: 37.5347 | AM11: 1212.4903 | AN11: 993.1073 | AO11: 1129.1423 | AP11: 86.10166546 | AQ11: 85.93527262 | AR11: 86.62237203 | AS11: 86.21977003 | AV11: 9 | AW11: 3 | AX11: 1029.013 | AY11: 850.667 | AZ11: 1170.331 | BA11: 37.5347 | BB11: 991.4783 | BC11: 813.1323 | BD11: 1132.7963 | BE11: 96.59974887 | BF11: 94.47460866 | BG11: 94.2004013 | BH11: 95.09158628 | BK11: 9 | BL11: 3 | BM11: 970.975 | BN11: 926.292 | BO11: 898.578 | BP11: 37.5347 | BQ11: 933.4403 | BR11: 888.7573 | BS11: 861.0433 | BT11: 82.15879089 | BU11: 83.51791228 | BV11: 84.53180844 | BW11: 83.4028372 | BZ11: 9 | CA11: 3 | CB11: 812.463 | CC11: 680.931 | CD11: 801.029 | CE11: 37.5347 | CF11: 774.9283 | CG11: 643.3963 | CH11: 763.4943 | CI11: 37.30215537 | CJ11: 38.86140455 | CK11: 37.7439486 | CL11: 37.96916951 | CO11: 9 | CP11: 3 | CQ11: 972.154 | CR11: 933.493 | CS11: 699.014 | CT11: 37.5347 | CU11: 934.6193 | CV11: 895.9583 | CW11: 661.4793 | CX11: 93.69525743 | CY11: 96.22746921 | CZ11: 94.56381572 | DA11: 94.82884745 | DD11: 9 | DE11: 3 | DF11: 1118.46 | DG11: 975.236 | DH11: 815.596 | DI11: 37.5347 | DJ11: 1080.9253 | DK11: 937.7013 | DL11: 778.0613 | DM11: 101.2162312 | DN11: 97.82694289 | DO11: 95.64053409 | DP11: 98.22790274
C12: 10 | D12: 3.333333333 | E12: 1150.625 | F12: 1028.31 | G12: 1149.749 | H12: 37.74123667 | I12: 1112.883763 | J12: 990.5687633 | K12: 1112.007763 | L12: 95.62551715 | M12: 95.88976029 | N12: 98.22394707 | O12: 96.5797415 | R12: 10 | S12: 3.333333333 | T12: 764.224 | U12: 1017.722 | V12: 988.998 | W12: 37.74123667 | X12: 726.4827633 | Y12: 979.9807633 | Z12: 951.2567633 | AA12: 105.1049132 | AB12: 107.4295626 | AC12: 95.59228906 | AD12: 102.7089216 | AG12: 10 | AH12: 3.333333333 | AI12: 1163.727 | AJ12: 1042.089 | AK12: 1147.583 | AL12: 37.74123667 | AM12: 1125.985763 | AN12: 1004.347763 | AO12: 1109.841763 | AP12: 79.95878359 | AQ12: 86.90792913 | AR12: 85.14172759 | AS12: 84.00281344 | AV12: 10 | AW12: 3.333333333 | AX12: 1020.145 | AY12: 878.26 | AZ12: 1139.561 | BA12: 37.74123667 | BB12: 982.4037633 | BC12: 840.5187633 | BD12: 1101.819763 | BE12: 95.7156166 | BF12: 97.65653294 | BG12: 91.62447288 | BH12: 94.99887414 | BK12: 10 | BL12: 3.333333333 | BM12: 941.677 | BN12: 953.29 | BO12: 882.545 | BP12: 37.74123667 | BQ12: 903.9357633 | BR12: 915.5487633 | BS12: 844.8037633 | BT12: 79.56188453 | BU12: 86.03554795 | BV12: 82.937513 | BW12: 82.84498183 | BZ12: 10 | CA12: 3.333333333 | CB12: 757.458 | CC12: 667.102 | CD12: 777.226 | CE12: 37.74123667 | CF12: 719.7167633 | CG12: 629.3607633 | CH12: 739.4847633 | CI12: 34.64447811 | CJ12: 38.01365229 | CK12: 36.55701804 | CL12: 36.40504948 | CO12: 10 | CP12: 3.333333333 | CQ12: 1009.627 | CR12: 903.84 | CS12: 691.463 | CT12: 37.74123667 | CU12: 971.8857633 | CV12: 866.0987633 | CW12: 653.7217633 | CX12: 97.43120732 | CY12: 93.02050339 | CZ12: 93.45481311 | DA12: 94.63550794 | DD12: 10 | DE12: 3.333333333 | DF12: 1123.097 | DG12: 989.064 | DH12: 820.206 | DI12: 37.74123667 | DJ12: 1085.355763 | DK12: 951.3227633 | DL12: 782.4647633 | DM12: 101.6310932 | DN12: 99.24802028 | DO12: 96.18181482 | DP12: 99.02030944
C13: 11 | D13: 3.666666667 | E13: 1077.157 | F13: 1023.415 | G13: 1144.437 | H13: 38.02621667 | I13: 1039.130783 | J13: 985.3887833 | K13: 1106.410783 | L13: 89.28822741 | M13: 95.38832409 | N13: 97.72956431 | O13: 94.13537194 | R13: 11 | S13: 3.666666667 | T13: 753.364 | U13: 904.083 | V13: 987.994 | W13: 38.02621667 | X13: 715.3377833 | Y13: 866.0567833 | Z13: 949.9677833 | AA13: 103.4924975 | AB13: 94.94074259 | AC13: 95.46275879 | AD13: 97.96533297 | AG13: 11 | AH13: 3.666666667 | AI13: 1187.598 | AJ13: 1036.683 | AK13: 1160.293 | AL13: 38.02621667 | AM13: 1149.571783 | AN13: 998.6567833 | AO13: 1122.266783 | AP13: 81.63367996 | AQ13: 86.4154789 | AR13: 86.09491543 | AS13: 84.71469143 | AV13: 11 | AW13: 3.666666667 | AX13: 1025.076 | AY13: 802.634 | AZ13: 1145.292 | BA13: 38.02621667 | BB13: 987.0497833 | BC13: 764.6077833 | BD13: 1107.265783 | BE13: 96.16827841 | BF13: 88.83673802 | BG13: 92.07734977 | BH13: 92.36078873 | BK13: 11 | BL13: 3.666666667 | BM13: 1044.919 | BN13: 949.944 | BO13: 816.155 | BP13: 38.02621667 | BQ13: 1006.892783 | BR13: 911.9177833 | BS13: 778.1287833 | BT13: 88.62387197 | BU13: 85.69433909 | BV13: 76.39178338 | BW13: 83.56999814 | BZ13: 11 | CA13: 3.666666667 | CB13: 748.83 | CC13: 648.273 | CD13: 752.084 | CE13: 38.02621667 | CF13: 710.8037833 | CG13: 610.2467833 | CH13: 714.0577833 | CI13: 34.21544053 | CJ13: 36.85915994 | CK13: 35.30001504 | CL13: 35.45820517 | CO13: 11 | CP13: 3.666666667 | CQ13: 1032.248 | CR13: 925.296 | CS13: 701.346 | CT13: 38.02621667 | CU13: 994.2217833 | CV13: 887.2697833 | CW13: 663.3197833 | CX13: 99.6703855 | CY13: 95.29430751 | CZ13: 94.8269277 | DA13: 96.5972069 | DD13: 11 | DE13: 3.666666667 | DF13: 1140.709 | DG13: 959.662 | DH13: 808.571 | DI13: 38.02621667 | DJ13: 1102.682783 | DK13: 921.6357833 | DL13: 770.5447833 | DM13: 103.2535695 | DN13: 96.15088636 | DO13: 94.71659189 | DP13: 98.04034925
C14: 12 | D14: 4 | E14: 1126.387 | F14: 1031.974 | G14: 1128.498 | H14: 37.30051333 | I14: 1089.086487 | J14: 994.6734867 | K14: 1091.197487 | L14: 93.5807152 | M14: 96.28710871 | N14: 96.38576969 | O14: 95.41786454 | R14: 12 | S14: 4 | T14: 716.658 | U14: 887.354 | V14: 982.828 | W14: 37.30051333 | X14: 679.3574867 | Y14: 850.0534867 | Z14: 945.5274867 | AA14: 98.28699763 | AB14: 93.18639472 | AC14: 95.01655106 | AD14: 95.4966478 | AG14: 12 | AH14: 4 | AI14: 1226.976 | AJ14: 1026.194 | AK14: 1138.114 | AL14: 37.30051333 | AM14: 1189.675487 | AN14: 988.8934867 | AO14: 1100.813487 | AP14: 84.48153421 | AQ14: 85.57064415 | AR14: 84.44912158 | AS14: 84.83376665 | AV14: 12 | AW14: 4 | AX14: 1025.58 | AY14: 835.767 | AZ14: 1142.564 | BA14: 37.30051333 | BB14: 988.2794867 | BC14: 798.4664867 | BD14: 1105.263487 | BE14: 96.28808843 | BF14: 92.77064612 | BG14: 91.91084397 | BH14: 93.65652618 | BK14: 12 | BL14: 4 | BM14: 980.166 | BN14: 930.703 | BO14: 871.072 | BP14: 37.30051333 | BQ14: 942.8654867 | BR14: 893.4024867 | BS14: 833.7714867 | BT14: 82.98836933 | BU14: 83.95442773 | BV14: 81.85443356 | BW14: 82.9324102 | BZ14: 12 | CA14: 4 | CB14: 724.568 | CC14: 629.145 | CD14: 743.49 | CE14: 37.30051333 | CF14: 687.2674867 | CG14: 591.8444867 | CH14: 706.1894867 | CI14: 33.08249108 | CJ14: 35.74765355 | CK14: 34.91103953 | CL14: 34.58039472 | CO14: 12 | CP14: 4 | CQ14: 1019.346 | CR14: 916.721 | CS14: 706.65 | CT14: 37.30051333 | CU14: 982.0454867 | CV14: 879.4204867 | CW14: 669.3494867 | CX14: 98.44971603 | CY14: 94.45127949 | CZ14: 95.68892255 | DA14: 96.19663936 | DD14: 12 | DE14: 4 | DF14: 1138.533 | DG14: 963.718 | DH14: 812.662 | DI14: 37.30051333 | DJ14: 1101.232487 | DK14: 926.4174867 | DL14: 775.3614867 | DM14: 103.1177659 | DN14: 96.64974396 | DO14: 95.30866874 | DP14: 98.35872619
C15: 13 | D15: 4.333333333 | E15: 1098.216 | F15: 1024.889 | G15: 1120.077 | H15: 37.55232667 | I15: 1060.663673 | J15: 987.3366733 | K15: 1082.524673 | L15: 91.13845994 | M15: 95.57688516 | N15: 95.61969774 | O15: 94.11168095 | R15: 13 | S15: 4.333333333 | T15: 701.826 | U15: 963.467 | V15: 1001.849 | W15: 37.55232667 | X15: 664.2736733 | Y15: 925.9146733 | Z15: 964.2966733 | AA15: 96.10472577 | AB15: 101.5026132 | AC15: 96.90267643 | AD15: 98.17000512 | AG15: 13 | AH15: 4.333333333 | AI15: 1203.494 | AJ15: 1033.395 | AK15: 1163.04 | AL15: 37.55232667 | AM15: 1165.941673 | AN15: 995.8426733 | AO15: 1125.487673 | AP15: 82.7961427 | AQ15: 86.17196915 | AR15: 86.34200663 | AS15: 85.10337283 | AV15: 13 | AW15: 4.333333333 | AX15: 1026.193 | AY15: 792.263 | AZ15: 1129.856 | BA15: 37.55232667 | BB15: 988.6406733 | BC15: 754.7106733 | BD15: 1092.303673 | BE15: 96.32327885 | BF15: 87.68683216 | BG15: 90.83313952 | BH15: 91.61441685 | BK15: 13 | BL15: 4.333333333 | BM15: 1006.544 | BN15: 912.11 | BO15: 857.414 | BP15: 37.55232667 | BQ15: 968.9916733 | BR15: 874.5576733 | BS15: 819.8616733 | BT15: 85.28792282 | BU15: 82.18355117 | BV15: 80.48885569 | BW15: 82.65344323 | BZ15: 13 | CA15: 4.333333333 | CB15: 717.162 | CC15: 600.33 | CD15: 717.699 | CE15: 37.55232667 | CF15: 679.6096733 | CG15: 562.7776733 | CH15: 680.1466733 | CI15: 32.71387253 | CJ15: 33.99200592 | CK15: 33.62359231 | CL15: 33.44315692 | CO15: 13 | CP15: 4.333333333 | CQ15: 1008.765 | CR15: 927.505 | CS15: 695.331 | CT15: 37.55232667 | CU15: 971.2126733 | CV15: 889.9526733 | CW15: 657.7786733 | CX15: 97.36373028 | CY15: 95.58245453 | CZ15: 94.03478121 | DA15: 95.66032201 | DD15: 13 | DE15: 4.333333333 | DF15: 1154.67 | DG15: 963.099 | DH15: 828.371 | DI15: 37.55232667 | DJ15: 1117.117673 | DK15: 925.5466733 | DL15: 790.8186733 | DM15: 104.605231 | DN15: 96.55889519 | DO15: 97.20869074 | DP15: 99.45760566
C16: 14 | D16: 4.666666667 | E16: 1122.633 | F16: 1027.895 | G16: 1141.051 | H16: 37.41230667 | I16: 1085.220693 | J16: 990.4826933 | K16: 1103.638693 | L16: 93.24854351 | M16: 95.88142848 | N16: 97.48470485 | O16: 95.53822561 | R16: 14 | S16: 4.666666667 | T16: 696.893 | U16: 1005.509 | V16: 988.264 | W16: 37.41230667 | X16: 659.4806933 | Y16: 968.0966933 | Z16: 950.8516933 | AA16: 95.41129466 | AB16: 106.1267814 | AC16: 95.55158337 | AD16: 99.02988649 | AG16: 14 | AH16: 4.666666667 | AI16: 1209.899 | AJ16: 1042.499 | AK16: 1132.639 | AL16: 37.41230667 | AM16: 1172.486693 | AN16: 1005.086693 | AO16: 1095.226693 | AP16: 83.2609193 | AQ16: 86.97187001 | AR16: 84.02052964 | AS16: 84.75110632 | AV16: 14 | AW16: 4.666666667 | AX16: 1020.005 | AY16: 859.385 | AZ16: 1130.807 | BA16: 37.41230667 | BB16: 982.5926933 | BC16: 821.9726933 | BD16: 1093.394693 | BE16: 95.73402405 | BF16: 95.50173881 | BG16: 90.92386591 | BH16: 94.05320959 | BK16: 14 | BL16: 4.666666667 | BM16: 954.013 | BN16: 840.684 | BO16: 862.02 | BP16: 37.41230667 | BQ16: 916.6006933 | BR16: 803.2716933 | BS16: 824.6076933 | BT16: 80.67661606 | BU16: 75.48469624 | BV16: 80.95479004 | BW16: 79.03870078 | BZ16: 14 | CA16: 4.666666667 | CB16: 696.229 | CC16: 559.309 | CD16: 695.099 | CE16: 37.41230667 | CF16: 658.8166933 | CG16: 521.8966933 | CH16: 657.6866933 | CI16: 31.7129761 | CJ16: 31.52277769 | CK16: 32.51326532 | CL16: 31.9163397 | CO16: 14 | CP16: 4.666666667 | CQ16: 1023.905 | CR16: 914.969 | CS16: 705.643 | CT16: 37.41230667 | CU16: 986.4926933 | CV16: 877.5566933 | CW16: 668.2306933 | CX16: 98.89554694 | CY16: 94.25110487 | CZ16: 95.528982 | DA16: 96.22521127 | DD16: 14 | DE16: 4.666666667 | DF16: 1155.373 | DG16: 964.877 | DH16: 811.214 | DI16: 37.41230667 | DJ16: 1117.960693 | DK16: 927.4646933 | DL16: 773.8016933 | DM16: 104.6841702 | DN16: 96.7589952 | DO16: 95.11693646 | DP16: 98.85336728
C17: 15 | D17: 5 | E17: 1119.02 | F17: 1030.438 | G17: 1107.1 | H17: 37.25761667 | I17: 1081.762383 | J17: 993.1803833 | K17: 1069.842383 | L17: 92.95138518 | M17: 96.14257223 | N17: 94.49946763 | O17: 94.53114168 | R17: 15 | S17: 5 | T17: 735.291 | U17: 902.264 | V17: 1001.386 | W17: 37.25761667 | X17: 698.0333833 | Y17: 865.0063833 | Z17: 964.1283833 | AA17: 100.9889592 | AB17: 94.82559338 | AC17: 96.88576488 | AD17: 97.56677248 | AG17: 15 | AH17: 5 | AI17: 1191.358 | AJ17: 1037.959 | AK17: 1137.045 | AL17: 37.25761667 | AM17: 1154.100383 | AN17: 1000.701383 | AO17: 1099.787383 | AP17: 81.95526604 | AQ17: 86.59240163 | AR17: 84.37040386 | AS17: 84.30602385 | AV17: 15 | AW17: 5 | AX17: 1018.711 | AY17: 817.707 | AZ17: 1104.922 | BA17: 37.25761667 | BB17: 981.4533833 | BC17: 780.4493833 | BD17: 1067.664383 | BE17: 95.62302106 | BF17: 90.67731053 | BG17: 88.78420009 | BH17: 91.69484389 | BK17: 15 | BL17: 5 | BM17: 936.938 | BN17: 881.707 | BO17: 830.742 | BP17: 37.25761667 | BQ17: 899.6803833 | BR17: 844.4493833 | BS17: 793.4843833 | BT17: 79.18733794 | BU17: 79.35422811 | BV17: 77.89929948 | BW17: 78.81362184 | BZ17: 15 | CA17: 5 | CB17: 676.311 | CC17: 585.816 | CD17: 673.015 | CE17: 37.25761667 | CF17: 639.0533833 | CG17: 548.5583833 | CH17: 635.7573833 | CI17: 30.76164414 | CJ17: 33.13315488 | CK17: 31.42917242 | CL17: 31.77465714 | CO17: 15 | CP17: 5 | CQ17: 992.167 | CR17: 899.469 | CS17: 693.405 | CT17: 37.25761667 | CU17: 954.9093833 | CV17: 862.2113833 | CW17: 656.1473833 | CX17: 95.72933117 | CY17: 92.60299206 | CZ17: 93.80157511 | DA17: 94.04463278 | DD17: 15 | DE17: 5 | DF17: 1119.644 | DG17: 963.758 | DH17: 818.832 | DI17: 37.25761667 | DJ17: 1082.386383 | DK17: 926.5003833 | DL17: 781.5743833 | DM17: 101.3530449 | DN17: 96.65839227 | DO17: 96.07236789 | DP17: 98.02793502
C18: 16 | D18: 5.333333333 | E18: 1127.139 | F18: 1024.514 | G18: 1179.72 | H18: 37.07273 | I18: 1090.06627 | J18: 987.44127 | K18: 1142.64727 | L18: 93.66490395 | M18: 95.5870104 | N18: 100.930343 | O18: 96.72741911 | R18: 16 | S18: 5.333333333 | T18: 743.586 | U18: 943.763 | V18: 1022.983 | W18: 37.07273 | X18: 706.51327 | Y18: 906.69027 | Z18: 985.91027 | AA18: 102.2157987 | AB18: 99.39515421 | AC18: 99.07463805 | AD18: 100.2285303 | AG18: 16 | AH18: 5.333333333 | AI18: 1199.189 | AJ18: 1034.62 | AK18: 1146.963 | AL18: 37.07273 | AM18: 1162.11627 | AN18: 997.54727 | AO18: 1109.89027 | AP18: 82.5244922 | AQ18: 86.31947081 | AR18: 85.14544879 | AS18: 84.66313727 | AV18: 16 | AW18: 5.333333333 | AX18: 1016.607 | AY18: 795.122 | AZ18: 1135.282 | BA18: 37.07273 | BB18: 979.53427 | BC18: 758.04927 | BD18: 1098.20927 | BE18: 95.43604181 | BF18: 88.07473043 | BG18: 91.32423362 | BH18: 91.61166862 | BK18: 16 | BL18: 5.333333333 | BM18: 937.195 | BN18: 905.435 | BO18: 823.641 | BP18: 37.07273 | BQ18: 900.12227 | BR18: 868.36227 | BS18: 786.56827 | BT18: 79.22623157 | BU18: 81.60135944 | BV18: 77.22031903 | BW18: 79.34930334 | BZ18: 16 | CA18: 5.333333333 | CB18: 659.131 | CC18: 532.427 | CD18: 670.749 | CE18: 37.07273 | CF18: 622.05827 | CG18: 495.35427 | CH18: 633.67627 | CI18: 29.94356283 | CJ18: 29.91960427 | CK18: 31.32629093 | CL18: 30.39648601 | CO18: 16 | CP18: 5.333333333 | CQ18: 1042.812 | CR18: 906.007 | CS18: 699.027 | CT18: 37.07273 | CU18: 1005.73927 | CV18: 868.93427 | CW18: 661.95427 | CX18: 100.8250095 | CY18: 93.32504171 | CZ18: 94.63171652 | DA18: 96.26058924 | DD18: 16 | DE18: 5.333333333 | DF18: 1153.579 | DG18: 968.394 | DH18: 823.741 | DI18: 37.07273 | DJ18: 1116.50627 | DK18: 931.32127 | DL18: 786.66827 | DM18: 104.5479801 | DN18: 97.16133772 | DO18: 96.69851655 | DP18: 99.46927814
C19: 17 | D19: 5.666666667 | E19: 1128.965 | F19: 1028.149 | G19: 1158.292 | H19: 37.74012333 | I19: 1091.224877 | J19: 990.4088767 | K19: 1120.551877 | L19: 93.76445825 | M19: 95.87428282 | N19: 98.97865092 | O19: 96.20579733 | R19: 17 | S19: 5.666666667 | T19: 736.676 | U19: 914.62 | V19: 1007.177 | W19: 37.74012333 | X19: 698.9358767 | Y19: 876.8798767 | Z19: 969.4368767 | AA19: 101.1195287 | AB19: 96.12721505 | AC19: 97.41921815 | AD19: 98.22198729 | AG19: 17 | AH19: 5.666666667 | AI19: 1210.345 | AJ19: 1023.882 | AK19: 1143.865 | AL19: 37.74012333 | AM19: 1172.604877 | AN19: 986.1418767 | AO19: 1106.124877 | AP19: 83.26931177 | AQ19: 85.33254263 | AR19: 84.8565859 | AS19: 84.48614677 | AV19: 17 | AW19: 5.666666667 | AX19: 1013.399 | AY19: 800.212 | AZ19: 1128.924 | BA19: 37.74012333 | BB19: 975.6588767 | BC19: 762.4718767 | BD19: 1091.183877 | BE19: 95.05846217 | BF19: 88.58857552 | BG19: 90.74002014 | BH19: 91.46235261 | BK19: 17 | BL19: 5.666666667 | BM19: 893.735 | BN19: 899.337 | BO19: 838.274 | BP19: 37.74012333 | BQ19: 855.9948767 | BR19: 861.5968767 | BS19: 800.5338767 | BT19: 75.34226247 | BU19: 80.96560485 | BV19: 78.59137434 | BW19: 78.29974722 | BZ19: 17 | CA19: 5.666666667 | CB19: 656.587 | CC19: 556.082 | CD19: 644.366 | CE19: 37.74012333 | CF19: 618.8468767 | CG19: 518.3418767 | CH19: 606.6258767 | CI19: 29.78897834 | CJ19: 31.30806529 | CK19: 29.9890332 | CL19: 30.36202561 | CO19: 17 | CP19: 5.666666667 | CQ19: 1021.91 | CR19: 941.47 | CS19: 708.818 | CT19: 37.74012333 | CU19: 984.1698767 | CV19: 903.7298767 | CW19: 671.0778767 | CX19: 98.66268538 | CY19: 97.06214997 | CZ19: 95.93600988 | DA19: 97.22028174 | DD19: 17 | DE19: 5.666666667 | DF19: 1159.807 | DG19: 967.74 | DH19: 818.765 | DI19: 37.74012333 | DJ19: 1122.066877 | DK19: 929.9998767 | DL19: 781.0248767 | DM19: 105.0686671 | DN19: 97.02348159 | DO19: 96.00482166 | DP19: 99.36565677
C20: 18 | D20: 6 | E20: 1112.647 | F20: 1033.467 | G20: 1182.776 | H20: 36.71119667 | I20: 1075.935803 | J20: 996.7558033 | K20: 1146.064803 | L20: 92.45073116 | M20: 96.48868265 | N20: 101.2322146 | O20: 96.72387615 | R20: 18 | S20: 6 | T20: 693.598 | U20: 1000.973 | V20: 1012.554 | W20: 36.71119667 | X20: 656.8868033 | Y20: 964.2618033 | Z20: 975.8428033 | AA20: 95.03601999 | AB20: 105.7063849 | AC20: 98.06295306 | AD20: 99.60178597 | AG20: 18 | AH20: 6 | AI20: 1197.054 | AJ20: 1029.044 | AK20: 1154.45 | AL20: 36.71119667 | AM20: 1160.342803 | AN20: 992.3328033 | AO20: 1117.738803 | AP20: 82.39855434 | AQ20: 85.8682541 | AR20: 85.74755056 | AS20: 84.671453 | AV20: 18 | AW20: 6 | AX20: 1013.381 | AY20: 809.614 | AZ20: 1109.999 | BA20: 36.71119667 | BB20: 976.6698033 | BC20: 772.9028033 | BD20: 1073.287803 | BE20: 95.15695677 | BF20: 89.80050341 | BG20: 89.25182911 | BH20: 91.40309643 | BK20: 18 | BL20: 6 | BM20: 919.212 | BN20: 872.373 | BO20: 822.431 | BP20: 36.71119667 | BQ20: 882.5008033 | BR20: 835.6618033 | BS20: 785.7198033 | BT20: 77.67523961 | BU20: 78.52844549 | BV20: 77.13702191 | BW20: 77.78023567 | BZ20: 18 | CA20: 6 | CB20: 635.467 | CC20: 523.357 | CD20: 638.191 | CE20: 36.71119667 | CF20: 598.7558033 | CG20: 486.6458033 | CH20: 601.4798033 | CI20: 28.82186907 | CJ20: 29.39360925 | CK20: 29.73463296 | CL20: 29.31670376 | CO20: 18 | CP20: 6 | CQ20: 992.624 | CR20: 900.308 | CS20: 708.924 | CT20: 36.71119667 | CU20: 955.9128033 | CV20: 863.5968033 | CW20: 672.2128033 | CX20: 95.82992368 | CY20: 92.75178856 | CZ20: 96.09825683 | DA20: 94.89332302 | DD20: 18 | DE20: 6 | DF20: 1160.216 | DG20: 971.534 | DH20: 812.04 | DI20: 36.71119667 | DJ20: 1123.504803 | DK20: 934.8228033 | DL20: 775.3288033 | DM20: 105.2033124 | DN20: 97.52663987 | DO20: 95.30465125 | DP20: 99.34486783
C21: 19 | D21: 6.333333333 | E21: 1138.688 | F21: 1024.542 | G21: 1165.866 | H21: 37.48657667 | I21: 1101.201423 | J21: 987.0554233 | K21: 1128.379423 | L21: 94.6217018 | M21: 95.54965939 | N21: 99.67006023 | O21: 96.61380714 | R21: 19 | S21: 6.333333333 | T21: 721.17 | U21: 931.373 | V21: 1014.696 | W21: 37.48657667 | X21: 683.6834233 | Y21: 893.8864233 | Z21: 977.2094233 | AA21: 98.91285859 | AB21: 97.99154334 | AC21: 98.20028542 | AD21: 98.36822912 | AG21: 19 | AH21: 6.333333333 | AI21: 1164.921 | AJ21: 1034.449 | AK21: 1161.256 | AL21: 37.48657667 | AM21: 1127.434423 | AN21: 996.9624233 | AO21: 1123.769423 | AP21: 80.0616562 | AQ21: 86.26886303 | AR21: 86.21019075 | AS21: 84.18023666 | AV21: 19 | AW21: 6.333333333 | AX21: 1021.069 | AY21: 807.337 | AZ21: 1130.015 | BA21: 37.48657667 | BB21: 983.5824233 | BC21: 769.8504233 | BD21: 1092.528423 | BE21: 95.83045346 | BF21: 89.44585951 | BG21: 90.85182915 | BH21: 92.04271404 | BK21: 19 | BL21: 6.333333333 | BM21: 872.07 | BN21: 872.795 | BO21: 826.581 | BP21: 37.48657667 | BQ21: 834.5834233 | BR21: 835.3084233 | BS21: 789.0944233 | BT21: 73.45768654 | BU21: 78.49523782 | BV21: 77.46832085 | BW21: 76.4737484 | BZ21: 19 | CA21: 6.333333333 | CB21: 631.716 | CC21: 506.401 | CD21: 620.254 | CE21: 37.48657667 | CF21: 594.2294233 | CG21: 468.9144233 | CH21: 582.7674233 | CI21: 28.60398604 | CJ21: 28.32262651 | CK21: 28.80957156 | CL21: 28.57872804 | CO21: 19 | CP21: 6.333333333 | CQ21: 1000.738 | CR21: 906.034 | CS21: 715.84 | CT21: 37.48657667 | CU21: 963.2514233 | CV21: 868.5474233 | CW21: 678.3534233 | CX21: 96.56561776 | CY21: 93.2834937 | CZ21: 96.97610812 | DA21: 95.60840653 | DD21: 19 | DE21: 6.333333333 | DF21: 1169.873 | DG21: 964.827 | DH21: 823.671 | DI21: 37.48657667 | DJ21: 1132.386423 | DK21: 927.3404233 | DL21: 786.1844233 | DM21: 106.034974 | DN21: 96.74603056 | DO21: 96.63904135 | DP21: 99.80668197
C22: 20 | D22: 6.666666667 | E22: 1120.65 | F22: 1036.554 | G22: 1190.497 | H22: 37.20132 | I22: 1083.44868 | J22: 999.35268 | K22: 1153.29568 | L22: 93.0962817 | M22: 96.7400674 | N22: 101.8709199 | O22: 97.23575635 | R22: 20 | S22: 6.666666667 | T22: 669.192 | U22: 943.511 | V22: 1021.427 | W22: 37.20132 | X22: 631.99068 | Y22: 906.30968 | Z22: 984.22568 | AA22: 91.43413841 | AB22: 99.35343235 | AC22: 98.90535272 | AD22: 96.56430783 | AG22: 20 | AH22: 6.666666667 | AI22: 1217.161 | AJ22: 1026.213 | AK22: 1139.942 | AL22: 37.20132 | AM22: 1179.95968 | AN22: 989.01168 | AO22: 1102.74068 | AP22: 83.79159291 | AQ22: 85.58087162 | AR22: 84.5969666 | AS22: 84.65647704 | AV22: 20 | AW22: 6.666666667 | AX22: 1013.768 | AY22: 813.101 | AZ22: 1108.383 | BA22: 37.20132 | BB22: 976.56668 | BC22: 775.89968 | BD22: 1071.18168 | BE22: 95.14690946 | BF22: 90.14869859 | BG22: 89.07668936 | BH22: 91.45743247 | BK22: 20 | BL22: 6.666666667 | BM22: 942.273 | BN22: 873.544 | BO22: 818.023 | BP22: 37.20132 | BQ22: 905.07168 | BR22: 836.34268 | BS22: 780.82168 | BT22: 79.66186472 | BU22: 78.59242853 | BV22: 76.65615501 | BW22: 78.30348275 | BZ22: 20 | CA22: 6.666666667 | CB22: 600.497 | CC22: 492.605 | CD22: 604.597 | CE22: 37.20132 | CF22: 563.29568 | CG22: 455.40368 | CH22: 567.39568 | CI22: 27.11495112 | CJ22: 27.50657199 | CK22: 28.04965719 | CL22: 27.5570601 | CO22: 20 | CP22: 6.666666667 | CQ22: 1050.721 | CR22: 913.648 | CS22: 711.318 | CT22: 37.20132 | CU22: 1013.51968 | CV22: 876.44668 | CW22: 674.11668 | CX22: 101.6049929 | CY22: 94.13188752 | CZ22: 96.3704314 | DA22: 97.36910393 | DD22: 20 | DE22: 6.666666667 | DF22: 1165.765 | DG22: 960.605 | DH22: 808.536 | DI22: 37.20132 | DJ22: 1128.56368 | DK22: 923.40368 | DL22: 771.33468 | DM22: 105.677018 | DN22: 96.33532455 | DO22: 94.81368725 | DP22: 98.94200994
C23: 21 | D23: 7 | E23: 1100.669 | F23: 1034.144 | G23: 1172.082 | H23: 36.92657667 | I23: 1063.742423 | J23: 997.2174233 | K23: 1135.155423 | L23: 91.40300425 | M23: 96.53336873 | N23: 100.2685861 | O23: 96.06831971 | R23: 21 | S23: 7 | T23: 631.192 | U23: 956.647 | V23: 1016.912 | W23: 36.92657667 | X23: 594.2654233 | Y23: 919.7204233 | Z23: 979.9854233 | AA23: 85.97618397 | AB23: 100.8235738 | AC23: 98.47924711 | AD23: 95.09300161 | AG23: 21 | AH23: 7 | AI23: 1181.025 | AJ23: 1029.227 | AK23: 1144.32 | AL23: 36.92657667 | AM23: 1144.098423 | AN23: 992.3004233 | AO23: 1107.393423 | AP23: 81.24500435 | AQ23: 85.8654522 | AR23: 84.95390271 | AS23: 84.02145309 | AV23: 21 | AW23: 7 | AX23: 1015.422 | AY23: 835.401 | AZ23: 1127.909 | BA23: 36.92657667 | BB23: 978.4954233 | BC23: 798.4744233 | BD23: 1090.982423 | BE23: 95.33482696 | BF23: 92.77156825 | BG23: 90.7232678 | BH23: 92.94322101 | BK23: 21 | BL23: 7 | BM23: 866.418 | BN23: 863.673 | BO23: 815.653 | BP23: 36.92657667 | BQ23: 829.4914233 | BR23: 826.7464233 | BS23: 778.7264233 | BT23: 73.00950302 | BU23: 77.6906533 | BV23: 76.45045591 | BW23: 75.71687074 | BZ23: 21 | CA23: 7 | CB23: 604.332 | CC23: 473.844 | CD23: 591.619 | CE23: 36.92657667 | CF23: 567.4054233 | CG23: 436.9174233 | CH23: 554.6924233 | CI23: 27.31277882 | CJ23: 26.38999438 | CK23: 27.42166158 | CL23: 27.04147826 | CO23: 21 | CP23: 7 | CQ23: 1047.284 | CR23: 911.791 | CS23: 707.691 | CT23: 36.92657667 | CU23: 1010.357423 | CV23: 874.8644233 | CW23: 670.7644233 | CX23: 101.2879778 | CY23: 93.96195042 | CZ23: 95.89119919 | DA23: 97.04704246 | DD23: 21 | DE23: 7 | DF23: 1177.299 | DG23: 972.201 | DH23: 812.406 | DI23: 36.92657667 | DJ23: 1140.372423 | DK23: 935.2744233 | DL23: 775.4794233 | DM23: 106.7827711 | DN23: 97.57375573 | DO23: 95.3231657 | DP23: 99.89323085
C24: 22 | D24: 7.333333333 | E24: 1120.487 | F24: 1034.541 | G24: 1164.195 | H24: 36.92167 | I24: 1083.56533 | J24: 997.61933 | K24: 1127.27333 | L24: 93.10630496 | M24: 96.57227439 | N24: 99.57235871 | O24: 96.41697935 | R24: 22 | S24: 7.333333333 | T24: 633.466 | U24: 946.114 | V24: 1020.306 | W24: 36.92167 | X24: 596.54433 | Y24: 909.19233 | Z24: 983.38433 | AA24: 86.30588799 | AB24: 99.66944042 | AC24: 98.82080502 | AD24: 94.93204448 | AG24: 22 | AH24: 7.333333333 | AI24: 1169.372 | AJ24: 1022.087 | AK24: 1128.989 | AL24: 36.92167 | AM24: 1132.45033 | AN24: 985.16533 | AO24: 1092.06733 | AP24: 80.41784702 | AQ24: 85.24804038 | AR24: 83.77815847 | AS24: 83.14801529 | AV24: 22 | AW24: 7.333333333 | AX24: 1013.035 | AY24: 787.897 | AZ24: 1132.512 | BA24: 36.92167 | BB24: 976.11333 | BC24: 750.97533 | BD24: 1095.59033 | BE24: 95.10273956 | BF24: 87.25283747 | BG24: 91.10644936 | BH24: 91.1540088 | BK24: 22 | BL24: 7.333333333 | BM24: 866.546 | BN24: 837.569 | BO24: 751.98 | BP24: 36.92167 | BQ24: 829.62433 | BR24: 800.64733 | BS24: 715.05833 | BT24: 73.02120109 | BU24: 75.23808071 | BV24: 70.19992348 | BW24: 72.81973509 | BZ24: 22 | CA24: 7.333333333 | CB24: 582.031 | CC24: 467.714 | CD24: 574.366 | CE24: 36.92167 | CF24: 545.10933 | CG24: 430.79233 | CH24: 537.44433 | CI24: 26.23952812 | CJ24: 26.0200362 | CK24: 26.56898836 | CL24: 26.27618422 | CO24: 22 | CP24: 7.333333333 | CQ24: 1024.607 | CR24: 913.598 | CS24: 713.748 | CT24: 36.92167 | CU24: 987.68533 | CV24: 876.67633 | CW24: 676.82633 | CX24: 99.01510834 | CY24: 94.15655232 | CZ24: 96.75779778 | DA24: 96.64315282 | DD24: 22 | DE24: 7.333333333 | DF24: 1172.511 | DG24: 964.318 | DH24: 810.163 | DI24: 36.92167 | DJ24: 1135.58933 | DK24: 927.39633 | DL24: 773.24133 | DM24: 106.3348894 | DN24: 96.7518631 | DO24: 95.0480557 | DP24: 99.3782694
C25: 23 | D25: 7.666666667 | E25: 1120.298 | F25: 1027.472 | G25: 1167.099 | H25: 37.02138 | I25: 1083.27662 | J25: 990.45062 | K25: 1130.07762 | L25: 93.08149729 | M25: 95.87832369 | N25: 99.8200624 | O25: 96.25996113 | R25: 23 | S25: 7.666666667 | T25: 659.217 | U25: 947.572 | V25: 1028.679 | W25: 37.02138 | X25: 622.19562 | Y25: 910.55062 | Z25: 991.65762 | AA25: 90.01702436 | AB25: 99.81834181 | AC25: 99.65219225 | AD25: 96.49585281 | AG25: 23 | AH25: 7.666666667 | AI25: 1214.028 | AJ25: 1026.577 | AK25: 1154.538 | AL25: 37.02138 | AM25: 1177.00662 | AN25: 989.55562 | AO25: 1117.51662 | AP25: 83.58188947 | AQ25: 85.62793968 | AR25: 85.73050572 | AS25: 84.98011162 | AV25: 23 | AW25: 7.666666667 | AX25: 1018.711 | AY25: 835.799 | AZ25: 1116.112 | BA25: 37.02138 | BB25: 981.68962 | BC25: 798.77762 | BD25: 1079.09062 | BE25: 95.6460376 | BF25: 92.80679547 | BG25: 89.73437629 | BH25: 92.72906979 | BK25: 23 | BL25: 7.666666667 | BM25: 859.304 | BN25: 825.192 | BO25: 801.591 | BP25: 37.02138 | BQ25: 822.28262 | BR25: 788.17062 | BS25: 764.56962 | BT25: 72.37500441 | BU25: 74.06562478 | BV25: 75.06063011 | BW25: 73.8337531 | BZ25: 23 | CA25: 7.666666667 | CB25: 576.209 | CC25: 454.891 | CD25: 563.075 | CE25: 37.02138 | CF25: 539.18762 | CG25: 417.86962 | CH25: 526.05362 | CI25: 25.95447911 | CJ25: 25.23949913 | CK25: 26.00587954 | CL25: 25.73328593 | CO25: 23 | CP25: 7.666666667 | CQ25: 1030.588 | CR25: 919.28 | CS25: 714.28 | CT25: 37.02138 | CU25: 993.56662 | CV25: 882.25862 | CW25: 677.25862 | CX25: 99.60470561 | CY25: 94.75609991 | CZ25: 96.81959713 | DA25: 97.06013422 | DD25: 23 | DE25: 7.666666667 | DF25: 1169.256 | DG25: 959.375 | DH25: 814.915 | DI25: 37.02138 | DJ25: 1132.23462 | DK25: 922.35362 | DL25: 777.89362 | DM25: 106.0207594 | DN25: 96.22577563 | DO25: 95.6199226 | DP25: 99.2888192
C26: 24 | D26: 8 | E26: 1102.353 | F26: 1032.271 | G26: 1174.046 | H26: 37.67395333 | I26: 1064.679047 | J26: 994.5970467 | K26: 1136.372047 | L26: 91.48348443 | M26: 96.27970911 | N26: 100.3760508 | O26: 96.04641479 | R26: 24 | S26: 8 | T26: 685.858 | U26: 948.867 | V26: 1037.239 | W26: 37.67395333 | X26: 648.1840467 | Y26: 911.1930467 | Z26: 999.5650467 | AA26: 93.77693646 | AB26: 99.88876729 | AC26: 100.4468137 | AD26: 98.03750581 | AG26: 24 | AH26: 8 | AI26: 1222.9 | AJ26: 1018.549 | AK26: 1152.457 | AL26: 37.67395333 | AM26: 1185.226047 | AN26: 980.8750467 | AO26: 1114.783047 | AP26: 84.16556946 | AQ26: 84.87679482 | AR26: 85.52079911 | AS26: 84.8543878 | AV26: 24 | AW26: 8 | AX26: 1011.143 | AY26: 764.959 | AZ26: 1118.782 | BA26: 37.67395333 | BB26: 973.4690467 | BC26: 727.2850467 | BD26: 1081.108047 | BE26: 94.84510699 | BF26: 84.50035765 | BG26: 89.90214025 | BH26: 89.74920163 | BK26: 24 | BL26: 8 | BM26: 854.148 | BN26: 833.546 | BO26: 791.349 | BP26: 37.67395333 | BQ26: 816.4740467 | BR26: 795.8720467 | BS26: 753.6750467 | BT26: 71.86375012 | BU26: 74.78933988 | BV26: 73.99106952 | BW26: 73.54805317 | BZ26: 24 | CA26: 8 | CB26: 562.256 | CC26: 442.153 | CD26: 550.735 | CE26: 37.67395333 | CF26: 524.5820467 | CG26: 404.4790467 | CH26: 513.0610467 | CI26: 25.25142134 | CJ26: 24.43070292 | CK26: 25.36358133 | CL26: 25.0152352 | CO26: 24 | CP26: 8 | CQ26: 1019.042 | CR26: 895.893 | CS26: 710.934 | CT26: 37.67395333 | CU26: 981.3680467 | CV26: 858.2190467 | CW26: 673.2600467 | CX26: 98.3818029 | CY26: 92.17420821 | CZ26: 96.24796873 | DA26: 95.60132661 | DD26: 24 | DE26: 8 | DF26: 1178.778 | DG26: 946.072 | DH26: 818.779 | DI26: 37.67395333 | DJ26: 1141.104047 | DK26: 908.3980467 | DL26: 781.1050467 | DM26: 106.8512792 | DN26: 94.76984177 | DO26: 96.01467628 | DP26: 99.21193243
C27: 25 | D27: 8.333333333 | E27: 1130.394 | F27: 1042.656 | G27: 1195.672 | H27: 37.77371333 | I27: 1092.620287 | J27: 1004.882287 | K27: 1157.898287 | L27: 93.88436008 | M27: 97.27534842 | N27: 102.2774694 | O27: 97.81239264 | R27: 25 | S27: 8.333333333 | T27: 705.257 | U27: 965.826 | V27: 1025.887 | W27: 37.77371333 | X27: 667.4832867 | Y27: 928.0522867 | Z27: 988.1132867 | AA27: 96.56908108 | AB27: 101.7369472 | AC27: 99.29602034 | AD27: 99.20068288 | AG27: 25 | AH27: 8.333333333 | AI27: 1194.749 | AJ27: 1016.108 | AK27: 1134.838 | AL27: 37.77371333 | AM27: 1156.975287 | AN27: 978.3342867 | AO27: 1097.064287 | AP27: 82.1594194 | AQ27: 84.65693852 | AR27: 84.16150097 | AS27: 83.6592863 | AV27: 25 | AW27: 8.333333333 | AX27: 1014.253 | AY27: 790.5 | AZ27: 1110.938 | BA27: 37.77371333 | BB27: 976.4792867 | BC27: 752.7262867 | BD27: 1073.164287 | BE27: 95.13839473 | BF27: 87.45627416 | BG27: 89.24155778 | BH27: 90.61207556 | BK27: 25 | BL27: 8.333333333 | BM27: 893.107 | BN27: 821.923 | BO27: 783.004 | BP27: 37.77371333 | BQ27: 855.3332867 | BR27: 784.1492867 | BS27: 745.2302867 | BT27: 75.28403117 | BU27: 73.6877338 | BV27: 73.16201617 | BW27: 74.04459371 | BZ27: 25 | CA27: 8.333333333 | CB27: 552.422 | CC27: 430.342 | CD27: 539.286 | CE27: 37.77371333 | CF27: 514.6482867 | CG27: 392.5682867 | CH27: 501.5122867 | CI27: 24.77324722 | CJ27: 23.71128805 | CK27: 24.79265919 | CL27: 24.42573149 | CO27: 25 | CP27: 8.333333333 | CQ27: 1054.818 | CR27: 903.163 | CS27: 712.535 | CT27: 37.77371333 | CU27: 1017.044287 | CV27: 865.3892867 | CW27: 674.7612867 | CX27: 101.9583335 | CY27: 92.94430437 | CZ27: 96.46258313 | DA27: 97.12174032 | DD27: 25 | DE27: 8.333333333 | DF27: 1179.357 | DG27: 952.987 | DH27: 820.655 | DI27: 37.77371333 | DJ27: 1141.583287 | DK27: 915.2132867 | DL27: 782.8812867 | DM27: 106.8961545 | DN27: 95.4808508 | DO27: 96.23301453 | DP27: 99.53667329
C28: 26 | D28: 8.666666667 | E28: 1091.806 | F28: 1054.994 | G28: 1206.515 | H28: 37.48011667 | I28: 1054.325883 | J28: 1017.513883 | K28: 1169.034883 | L28: 90.59387976 | M28: 98.49812146 | N28: 103.261168 | O28: 97.45105642 | R28: 26 | S28: 8.666666667 | T28: 728.145 | U28: 962.783 | V28: 1040.259 | W28: 37.48011667 | X28: 690.6648833 | Y28: 925.3028833 | Z28: 1002.778883 | AA28: 99.92291111 | AB28: 101.4355462 | AC28: 100.7697738 | AD28: 100.7094104 | AG28: 26 | AH28: 8.666666667 | AI28: 1183.231 | AJ28: 1022.518 | AK28: 1139.082 | AL28: 37.48011667 | AM28: 1145.750883 | AN28: 985.0378833 | AO28: 1101.601883 | AP28: 81.36234925 | AQ28: 85.2370122 | AR28: 84.50960359 | AS28: 83.70298835 | AV28: 26 | AW28: 8.666666667 | AX28: 1009.247 | AY28: 816.427 | AZ28: 1104.587 | BA28: 37.48011667 | BB28: 971.7668833 | BC28: 778.9468833 | BD28: 1067.106883 | BE28: 94.67926519 | BF28: 90.50274103 | BG28: 88.73783984 | BH28: 91.30661535 | BK28: 26 | BL28: 8.666666667 | BM28: 852.467 | BN28: 825.346 | BO28: 775.325 | BP28: 37.48011667 | BQ28: 814.9868833 | BR28: 787.8658833 | BS28: 737.8448833 | BT28: 71.73285418 | BU28: 74.0369882 | BV28: 72.43696378 | BW28: 72.73560205 | BZ28: 26 | CA28: 8.666666667 | CB28: 551.555 | CC28: 421.69 | CD28: 531.541 | CE28: 37.48011667 | CF28: 514.0748833 | CG28: 384.2098833 | CH28: 494.0608833 | CI28: 24.74564572 | CJ28: 23.20643701 | CK28: 24.42429313 | CL28: 24.12545862 | CO28: 26 | CP28: 8.666666667 | CQ28: 1011.961 | CR28: 917.369 | CS28: 718.28 | CT28: 37.48011667 | CU28: 974.4808833 | CV28: 879.8888833 | CW28: 680.7998833 | CX28: 97.69136719 | CY28: 94.5015861 | CZ28: 97.32584936 | DA28: 96.50626755 | DD28: 26 | DE28: 8.666666667 | DF28: 1184.08 | DG28: 944.663 | DH28: 814.142 | DI28: 37.48011667 | DJ28: 1146.599883 | DK28: 907.1828833 | DL28: 776.6618833 | DM28: 107.3659012 | DN28: 94.64306823 | DO28: 95.46851557 | DP28: 99.15916166
C29: 27 | D29: 9 | E29: 1129.183 | F29: 1044.441 | G29: 1174.987 | H29: 37.36110333 | I29: 1091.821897 | J29: 1007.079897 | K29: 1137.625897 | L29: 93.81575772 | M29: 97.48808307 | N29: 100.4868037 | O29: 97.26354817 | R29: 27 | S29: 9 | T29: 729.089 | U29: 973.635 | V29: 1020.527 | W29: 37.36110333 | X29: 691.7278967 | Y29: 936.2738967 | Z29: 983.1658967 | AA29: 100.0767041 | AB29: 102.6382343 | AC29: 98.79885454 | AD29: 100.5045976 | AG29: 27 | AH29: 9 | AI29: 1193.346 | AJ29: 1016.15 | AK29: 1156.264 | AL29: 37.36110333 | AM29: 1155.984897 | AN29: 978.7888967 | AO29: 1118.902897 | AP29: 82.08908957 | AQ29: 84.6962767 | AR29: 85.8368542 | AS29: 84.20740683 | AV29: 27 | AW29: 9 | AX29: 1012.426 | AY29: 741.803 | AZ29: 1097.466 | BA29: 37.36110333 | BB29: 975.0648967 | BC29: 704.4418967 | BD29: 1060.104897 | BE29: 95.00059069 | BF29: 81.84630288 | BG29: 88.15557279 | BH29: 88.33415545 | BK29: 27 | BL29: 9 | BM29: 861.719 | BN29: 820.927 | BO29: 758.759 | BP29: 37.36110333 | BQ29: 824.3578967 | BR29: 783.5658967 | BS29: 721.3978967 | BT29: 72.55766443 | BU29: 73.63291173 | BV29: 70.82230221 | BW29: 72.33762612 | BZ29: 27 | CA29: 9 | CB29: 535.271 | CC29: 411.912 | CD29: 518.521 | CE29: 37.36110333 | CF29: 497.9098967 | CG29: 374.5508967 | CH29: 481.1598967 | CI29: 23.96752361 | CJ29: 22.62303019 | CK29: 23.78652258 | CL29: 23.45902546 | CO29: 27 | CP29: 9 | CQ29: 1020.694 | CR29: 907.908 | CS29: 710.866 | CT29: 37.36110333 | CU29: 983.3328967 | CV29: 870.5468967 | CW29: 673.5048967 | CX29: 98.57877843 | CY29: 93.4982406 | CZ29: 96.28297202 | DA29: 96.11999701 | DD29: 27 | DE29: 9 | DF29: 1190.47 | DG29: 945.682 | DH29: 816.16 | DI29: 37.36110333 | DJ29: 1153.108897 | DK29: 908.3208967 | DL29: 778.7988967 | DM29: 107.9753955 | DN29: 94.76179299 | DO29: 95.73120065 | DP29: 99.48946303
C30: 28 | D30: 9.333333333 | E30: 1119.909 | F30: 1051.801 | G30: 1185.631 | H30: 37.46567667 | I30: 1082.443323 | J30: 1014.335323 | K30: 1148.165323 | L30: 93.00989555 | M30: 98.19042817 | N30: 101.4177541 | O30: 97.53935929 | R30: 28 | S30: 9.333333333 | T30: 716.522 | U30: 982.694 | V30: 1028.069 | W30: 37.46567667 | X30: 679.0563233 | Y30: 945.2283233 | Z30: 990.6033233 | AA30: 98.2434264 | AB30: 103.6198557 | AC30: 99.54624543 | AD30: 100.4698425 | AG30: 28 | AH30: 9.333333333 | AI30: 1149.12 | AJ30: 1021.204 | AK30: 1135.069 | AL30: 37.46567667 | AM30: 1111.654323 | AN30: 983.7383233 | AO30: 1097.603323 | AP30: 78.94107578 | AQ30: 85.12455905 | AR30: 84.20285328 | AS30: 82.7561627 | AV30: 28 | AW30: 9.333333333 | AX30: 1008.415 | AY30: 773.5 | AZ30: 1112.521 | BA30: 37.46567667 | BB30: 970.9493233 | BC30: 736.0343233 | BD30: 1075.055323 | BE30: 94.5996103 | BF30: 85.51690132 | BG30: 89.39881149 | BH30: 89.83844103 | BK30: 28 | BL30: 9.333333333 | BM30: 878.026 | BN30: 787.305 | BO30: 755.666 | BP30: 37.46567667 | BQ30: 840.5603233 | BR30: 749.8393233 | BS30: 718.2003233 | BT30: 73.98375647 | BU30: 70.46357293 | BV30: 70.5083846 | BW30: 71.65190467 | BZ30: 28 | CA30: 9.333333333 | CB30: 526.876 | CC30: 400.105 | CD30: 510.569 | CE30: 37.46567667 | CF30: 489.4103233 | CG30: 362.6393233 | CH30: 473.1033233 | CI30: 23.55838588 | CJ30: 21.9035662 | CK30: 23.38823946 | CL30: 22.95006385 | CO30: 28 | CP30: 9.333333333 | CQ30: 1035.144 | CR30: 907.632 | CS30: 709.028 | CT30: 37.46567667 | CU30: 997.6783233 | CV30: 870.1663233 | CW30: 671.5623233 | CX30: 100.0169024 | CY30: 93.45736636 | CZ30: 96.00526545 | DA30: 96.49317808 | DD30: 28 | DE30: 9.333333333 | DF30: 1196.293 | DG30: 954.637 | DH30: 818.182 | DI30: 37.46567667 | DJ30: 1158.827323 | DK30: 917.1713233 | DL30: 780.7163233 | DM30: 108.5108604 | DN30: 95.6851256 | DO30: 95.96689379 | DP30: 100.0542933
C31: 29 | D31: 9.666666667 | E31: 1110.669 | F31: 1048.566 | G31: 1203.635 | H31: 37.48022333 | I31: 1073.188777 | J31: 1011.085777 | K31: 1166.154777 | L31: 92.21469048 | M31: 97.87586319 | N31: 103.0067674 | O31: 97.69910703 | R31: 29 | S31: 9.666666667 | T31: 706.569 | U31: 1003.161 | V31: 1028.154 | W31: 37.48022333 | X31: 669.0887767 | Y31: 965.6807767 | Z31: 990.6737767 | AA31: 96.8013576 | AB31: 105.8619386 | AC31: 99.55332532 | AD31: 100.7388738 | AG31: 29 | AH31: 9.666666667 | AI31: 1152.925 | AJ31: 1009.753 | AK31: 1151.98 | AL31: 37.48022333 | AM31: 1115.444777 | AN31: 972.2727767 | AO31: 1114.499777 | AP31: 79.2102444 | AQ31: 84.13242569 | AR31: 85.49906799 | AS31: 82.94724603 | AV31: 29 | AW31: 9.666666667 | AX31: 1002.263 | AY31: 785.694 | AZ31: 1116.242 | BA31: 37.48022333 | BB31: 964.7827767 | BC31: 748.2137767 | BD31: 1078.761777 | BE31: 93.99880355 | BF31: 86.93198357 | BG31: 89.70703053 | BH31: 90.21260588 | BK31: 29 | BL31: 9.666666667 | BM31: 871.103 | BN31: 801.498 | BO31: 742.5 | BP31: 37.48022333 | BQ31: 833.6227767 | BR31: 764.0177767 | BS31: 705.0197767 | BT31: 73.37313312 | BU31: 71.79594435 | BV31: 69.21440153 | BW31: 71.46115967 | BZ31: 29 | CA31: 9.666666667 | CB31: 514.736 | CC31: 395.616 | CD31: 498.494 | CE31: 37.48022333 | CF31: 477.2557767 | CG31: 358.1357767 | CH31: 461.0137767 | CI31: 22.97331138 | CJ31: 21.63155011 | CK31: 22.7905831 | CL31: 22.46514819 | CO31: 29 | CP31: 9.666666667 | CQ31: 1015.086 | CR31: 904.797 | CS31: 714.557 | CT31: 37.48022333 | CU31: 977.6057767 | CV31: 867.3167767 | CW31: 677.0767767 | CX31: 98.00463665 | CY31: 93.15132013 | CZ31: 96.79360115 | DA31: 95.98318598 | DD31: 29 | DE31: 9.666666667 | DF31: 1198.575 | DG31: 954.57 | DH31: 815.935 | DI31: 37.48022333 | DJ31: 1161.094777 | DK31: 917.0897767 | DL31: 778.4547767 | DM31: 108.7231813 | DN31: 95.67661813 | DO31: 95.68890087 | DP31: 100.0295668
C32: 30 | D32: 10 | E32: 1114.418 | F32: 1049.68 | G32: 1212.912 | H32: 37.30868 | I32: 1077.10932 | J32: 1012.37132 | K32: 1175.60332 | L32: 92.55156661 | M32: 98.00030729 | N32: 103.8413598 | O32: 98.13107791 | R32: 30 | S32: 10 | T32: 697.755 | U32: 988.452 | V32: 1039.16 | W32: 37.30868 | X32: 660.44632 | Y32: 951.14332 | Z32: 1001.85132 | AA32: 95.55099806 | AB32: 104.2682822 | AC32: 100.6765625 | AD32: 100.1652809 | AG32: 30 | AH32: 10 | AI32: 1156.779 | AJ32: 995.837 | AK32: 1175.099 | AL32: 37.30868 | AM32: 1119.47032 | AN32: 958.52832 | AO32: 1137.79032 | AP32: 79.49610729 | AQ32: 82.94309436 | AR32: 87.28580657 | AS32: 83.24166941 | AV32: 30 | AW32: 10 | AX32: 1005.29 | AY32: 765.301 | AZ32: 1111.365 | BA32: 37.30868 | BB32: 967.98132 | BC32: 727.99232 | BD32: 1074.05632 | BE32: 94.31043768 | BF32: 84.58253293 | BG32: 89.31573696 | BH32: 89.40290252 | BK32: 30 | BL32: 10 | BM32: 795.379 | BN32: 792.684 | BO32: 738.144 | BP32: 37.30868 | BQ32: 758.07032 | BR32: 755.37532 | BS32: 700.83532 | BT32: 66.7232183 | BU32: 70.98379919 | BV32: 68.80359793 | BW32: 68.83687181 | BZ32: 30 | CA32: 10 | CB32: 520.028 | CC32: 369.276 | CD32: 491.049 | CE32: 37.30868 | CF32: 482.71932 | CG32: 331.96732 | CH32: 453.74032 | CI32: 23.23630596 | CJ32: 20.05096442 | CK32: 22.43101398 | CL32: 21.90609479 | CO32: 30 | CP32: 10 | CQ32: 1023.951 | CR32: 903.118 | CS32: 715.906 | CT32: 37.30868 | CU32: 986.64232 | CV32: 865.80932 | CW32: 678.59732 | CX32: 98.91054696 | CY32: 92.98941668 | CZ32: 97.01097512 | DA32: 96.30364625 | DD32: 30 | DE32: 10 | DF32: 1203.612 | DG32: 954.571 | DH32: 815.117 | DI32: 37.30868 | DJ32: 1166.30332 | DK32: 917.26232 | DL32: 777.80832 | DM32: 109.2109016 | DN32: 95.69461895 | DO32: 95.60943739 | DP32: 100.1716526
C33: 31 | D33: 10.33333333 | E33: 1098.298 | F33: 1058.936 | G33: 1202.718 | H33: 36.96647 | I33: 1061.33153 | J33: 1021.96953 | K33: 1165.75153 | L33: 91.19584612 | M33: 98.92944022 | N33: 102.9711485 | O33: 97.69881163 | R33: 31 | S33: 10.33333333 | T33: 704.837 | U33: 1017.561 | V33: 1030.385 | W33: 36.96647 | X33: 667.87053 | Y33: 980.59453 | Z33: 993.41853 | AA33: 96.62510606 | AB33: 107.4968462 | AC33: 99.82914702 | AD33: 101.3170331 | AG33: 31 | AH33: 10.33333333 | AI33: 1176.602 | AJ33: 1012.619 | AK33: 1143.38 | AL33: 36.96647 | AM33: 1139.63553 | AN33: 975.65253 | AO33: 1106.41353 | AP33: 80.92808425 | AQ33: 84.42488153 | AR33: 84.87873 | AS33: 83.41056526 | AV33: 31 | AW33: 10.33333333 | AX33: 1007.946 | AY33: 782.849 | AZ33: 1107.764 | BA33: 36.96647 | BB33: 970.97953 | BC33: 745.88253 | BD33: 1070.79753 | BE33: 94.60255334 | BF33: 86.66112529 | BG33: 89.04474444 | BH33: 90.10280769 | BK33: 31 | BL33: 10.33333333 | BM33: 802.763 | BN33: 786.818 | BO33: 760.985 | BP33: 36.96647 | BQ33: 765.79653 | BR33: 749.85153 | BS33: 724.01853 | BT33: 67.40325758 | BU33: 70.46472001 | BV33: 71.07957949 | BW33: 69.64918569 | BZ33: 31 | CA33: 10.33333333 | CB33: 495.697 | CC33: 388.752 | CD33: 482.832 | CE33: 36.96647 | CF33: 458.73053 | CG33: 351.78553 | CH33: 445.86553 | CI33: 22.08157516 | CJ33: 21.24799256 | CK33: 22.04171746 | CL33: 21.7904284 | CO33: 31 | CP33: 10.33333333 | CQ33: 1025.203 | CR33: 921.005 | CS33: 721.685 | CT33: 36.96647 | CU33: 988.23653 | CV33: 884.03853 | CW33: 684.71853 | CX33: 99.07036595 | CY33: 94.94726532 | CZ33: 97.8860516 | DA33: 97.30122762 | DD33: 31 | DE33: 10.33333333 | DF33: 1202.966 | DG33: 958.738 | DH33: 814.929 | DI33: 36.96647 | DJ33: 1165.99953 | DK33: 921.77153 | DL33: 777.96253 | DM33: 109.1824551 | DN33: 96.16504831 | DO33: 95.62839313 | DP33: 100.3252989
C34: 32 | D34: 10.66666667 | E34: 1106.471 | F34: 1063.44 | G34: 1210.165 | H34: 37.55033667 | I34: 1068.920663 | J34: 1025.889663 | K34: 1172.614663 | L34: 91.84794908 | M34: 99.30891983 | N34: 103.577371 | O34: 98.24474663 | R34: 32 | S34: 10.66666667 | T34: 747.304 | U34: 1013.494 | V34: 1033.758 | W34: 37.55033667 | X34: 709.7536633 | Y34: 975.9436633 | Z34: 996.2076633 | AA34: 102.6846071 | AB34: 106.9869989 | AC34: 100.1094285 | AD34: 103.2603448 | AG34: 32 | AH34: 10.66666667 | AI34: 1193.793 | AJ34: 1016.205 | AK34: 1131.927 | AL34: 37.55033667 | AM34: 1156.242663 | AN34: 978.6546633 | AO34: 1094.376663 | AP34: 82.10739417 | AQ34: 84.68466126 | AR34: 83.95531942 | AS34: 83.58245828 | AV34: 32 | AW34: 10.66666667 | AX34: 1008.764 | AY34: 739.691 | AZ34: 1088.334 | BA34: 37.55033667 | BB34: 971.2136633 | BC34: 702.1406633 | BD34: 1050.783663 | BE34: 94.62536495 | BF34: 81.57893173 | BG34: 87.38044321 | BH34: 87.86157997 | BK34: 32 | BL34: 10.66666667 | BM34: 772.115 | BN34: 783.372 | BO34: 755.421 | BP34: 37.55033667 | BQ34: 734.5646633 | BR34: 745.8216633 | BS34: 717.8706633 | BT34: 64.65431648 | BU34: 70.08602714 | BV34: 70.47602065 | BW34: 68.40545476 | BZ34: 32 | CA34: 10.66666667 | CB34: 495.804 | CC34: 372.698 | CD34: 477.012 | CE34: 37.55033667 | CF34: 458.2536633 | CG34: 335.1476633 | CH34: 439.4616633 | CI34: 22.05862058 | CJ34: 20.24305848 | CK34: 21.72513722 | CL34: 21.34227209 | CO34: 32 | CP34: 10.66666667 | CQ34: 1046.195 | CR34: 930.094 | CS34: 712.043 | CT34: 37.55033667 | CU34: 1008.644663 | CV34: 892.5436633 | CW34: 674.4926633 | CX34: 101.1162742 | CY34: 95.86073134 | CZ34: 96.42418125 | DA34: 97.80039559 | DD34: 32 | DE34: 10.66666667 | DF34: 1207.243 | DG34: 968.177 | DH34: 816.101 | DI34: 37.55033667 | DJ34: 1169.692663 | DK34: 930.6266633 | DL34: 778.5506633 | DM34: 109.5282746 | DN34: 97.08887195 | DO34: 95.70068741 | DP34: 100.7726113
C35: 33 | D35: 11 | E35: 1116.926 | F35: 1048.948 | G35: 1204.767 | H35: 36.88276667 | I35: 1080.043233 | J35: 1012.065233 | K35: 1167.884233 | L35: 92.8036657 | M35: 97.97067727 | N35: 103.1595308 | O35: 97.97795792 | R35: 33 | S35: 11 | T35: 762.421 | U35: 1002.208 | V35: 1040.127 | W35: 36.88276667 | X35: 725.5382333 | Y35: 965.3252333 | Z35: 1003.244233 | AA35: 104.968262 | AB35: 105.8229625 | AC35: 100.8165371 | AD35: 103.8692538 | AG35: 33 | AH35: 11 | AI35: 1168.927 | AJ35: 989.203 | AK35: 1174.079 | AL35: 36.88276667 | AM35: 1132.044233 | AN35: 952.3202333 | AO35: 1137.196233 | AP35: 80.38900918 | AQ35: 82.40589801 | AR35: 87.2402311 | AS35: 83.3450461 | AV35: 33 | AW35: 11 | AX35: 1002.69 | AY35: 771.811 | AZ35: 1127.372 | BA35: 36.88276667 | BB35: 965.8072333 | BC35: 734.9282333 | BD35: 1090.489233 | BE35: 94.09861638 | BF35: 85.38838912 | BG35: 90.6822554 | BH35: 90.0564203 | BK35: 33 | BL35: 11 | BM35: 771.981 | BN35: 726.894 | BO35: 742.434 | BP35: 36.88276667 | BQ35: 735.0982333 | BR35: 690.0112333 | BS35: 705.5512333 | BT35: 64.70127981 | BU35: 64.84143383 | BV35: 69.2665766 | BW35: 66.26976341 | BZ35: 33 | CA35: 11 | CB35: 485.502 | CC35: 351.711 | CD35: 466.423 | CE35: 36.88276667 | CF35: 448.6192333 | CG35: 314.8282333 | CH35: 429.5402333 | CI35: 21.59485509 | CJ35: 19.01575645 | CK35: 21.23466343 | CL35: 20.61509165 | CO35: 33 | CP35: 11 | CQ35: 1040.24 | CR35: 899.135 | CS35: 713.12 | CT35: 36.88276667 | CU35: 1003.357233 | CV35: 862.2522333 | CW35: 676.2372333 | CX35: 100.5862112 | CY35: 92.60737942 | CZ35: 96.67358164 | DA35: 96.62239074 | DD35: 33 | DE35: 11 | DF35: 1203.913 | DG35: 974.418 | DH35: 817.326 | DI35: 36.88276667 | DJ35: 1167.030233 | DK35: 937.5352333 | DL35: 780.4432333 | DM35: 109.2789686 | DN35: 97.80961776 | DO35: 95.93332513 | DP35: 101.0073038
C36: 34 | D36: 11.33333333 | E36: 1107.278 | F36: 1060.322 | G36: 1204.56 | H36: 36.53031333 | I36: 1070.747687 | J36: 1023.791687 | K36: 1168.029687 | L36: 92.00493767 | M36: 99.10582996 | N36: 103.1723787 | O36: 98.09438212 | R36: 34 | S36: 11.33333333 | T36: 796.028 | U36: 1012.336 | V36: 1036.532 | W36: 36.53031333 | X36: 759.4976867 | Y36: 975.8056867 | Z36: 1000.001687 | AA36: 109.8813935 | AB36: 106.9718733 | AC36: 100.4906919 | AD36: 105.7813196 | AG36: 34 | AH36: 11.33333333 | AI36: 1197.989 | AJ36: 1001.551 | AK36: 1159.792 | AL36: 36.53031333 | AM36: 1161.458687 | AN36: 965.0206867 | AO36: 1123.261687 | AP36: 82.47779572 | AQ36: 83.50488995 | AR36: 86.17123963 | AS36: 84.05130843 | AV36: 34 | AW36: 11.33333333 | AX36: 993.312 | AY36: 746.616 | AZ36: 1086.679 | BA36: 36.53031333 | BB36: 956.7816867 | BC36: 710.0856867 | BD36: 1050.148687 | BE36: 93.2192572 | BF36: 82.5020324 | BG36: 87.3276402 | BH36: 87.6829766 | BK36: 34 | BL36: 11.33333333 | BM36: 783.673 | BN36: 760.259 | BO36: 716.507 | BP36: 36.53031333 | BQ36: 747.1426867 | BR36: 723.7286867 | BS36: 679.9766867 | BT36: 65.76139873 | BU36: 68.0099156 | BV36: 66.75582868 | BW36: 66.842381 | BZ36: 34 | CA36: 11.33333333 | CB36: 482.997 | CC36: 352.816 | CD36: 462.727 | CE36: 36.53031333 | CF36: 446.4666867 | CG36: 316.2856867 | CH36: 426.1966867 | CI36: 21.49123953 | CJ36: 19.10378724 | CK36: 21.06937253 | CL36: 20.55479977 | CO36: 34 | CP36: 11.33333333 | CQ36: 1070.649 | CR36: 926.256 | CS36: 702.163 | CT36: 36.53031333 | CU36: 1034.118687 | CV36: 889.7256867 | CW36: 665.6326867 | CX36: 103.6700361 | CY36: 95.55807577 | CZ36: 95.15757593 | DA36: 98.1285626 | DD36: 34 | DE36: 11.33333333 | DF36: 1211.343 | DG36: 941.273 | DH36: 808.853 | DI36: 36.53031333 | DJ36: 1174.812687 | DK36: 904.7426867 | DL36: 772.3226867 | DM36: 110.0077059 | DN36: 94.38849145 | DO36: 94.9351346 | DP36: 99.77711067
C37: 35 | D37: 11.66666667 | E37: 1131.594 | F37: 1059.558 | G37: 1201.733 | H37: 36.68270667 | I37: 1094.911293 | J37: 1022.875293 | K37: 1165.050293 | L37: 94.08121684 | M37: 99.01712058 | N37: 102.9092081 | O37: 98.66918185 | R37: 35 | S37: 11.66666667 | T37: 796.578 | U37: 1037.25 | V37: 1027.904 | W37: 36.68270667 | X37: 759.8952933 | Y37: 1000.567293 | Z37: 991.2212933 | AA37: 109.9389178 | AB37: 109.6863435 | AC37: 99.60834556 | AD37: 106.4112023 | AG37: 35 | AH37: 11.66666667 | AI37: 1179.189 | AJ37: 996.892 | AK37: 1166.671 | AL37: 36.68270667 | AM37: 1142.506293 | AN37: 960.2092933 | AO37: 1129.988293 | AP37: 81.13194361 | AQ37: 83.08855186 | AR37: 86.68727257 | AS37: 83.63592268 | AV37: 35 | AW37: 11.66666667 | AX37: 999.452 | AY37: 795.898 | AZ37: 1093.188 | BA37: 36.68270667 | BB37: 962.7692933 | BC37: 759.2152933 | BD37: 1056.505293 | BE37: 93.80262983 | BF37: 88.21020605 | BG37: 87.85623912 | BH37: 89.95635833 | BK37: 35 | BL37: 11.66666667 | BM37: 757.503 | BN37: 715.353 | BO37: 729.402 | BP37: 36.68270667 | BQ37: 720.8202933 | BR37: 678.6702933 | BS37: 692.7192933 | BT37: 63.44457568 | BU37: 63.77570797 | BV37: 68.00681755 | BW37: 65.0757004 | BZ37: 35 | CA37: 11.66666667 | CB37: 472.001 | CC37: 341.428 | CD37: 450.189 | CE37: 36.68270667 | CF37: 435.3182933 | CG37: 304.7452933 | CH37: 413.5062933 | CI37: 20.95459749 | CJ37: 18.40674267 | CK37: 20.44201284 | CL37: 19.934451 | CO37: 35 | CP37: 11.66666667 | CQ37: 1026.949 | CR37: 899.067 | CS37: 713.403 | CT37: 36.68270667 | CU37: 990.2662933 | CV37: 862.3842933 | CW37: 676.7202933 | CX37: 99.27384901 | CY37: 92.6215629 | CZ37: 96.74263898 | DA37: 96.21268363 | DD37: 35 | DE37: 11.66666667 | DF37: 1210.269 | DG37: 962.688 | DH37: 819.739 | DI37: 36.68270667 | DJ37: 1173.586293 | DK37: 926.0052933 | DL37: 783.0562933 | DM37: 109.8928683 | DN37: 96.60674134 | DO37: 96.25452663 | DP37: 100.9180454
C38: 36 | D38: 12 | E38: 1102.314 | F38: 1063.209 | G38: 1209.123 | H38: 36.12148 | I38: 1066.19252 | J38: 1027.08752 | K38: 1173.00152 | L38: 91.61353096 | M38: 99.42487562 | N38: 103.6115421 | O38: 98.21664957 | R38: 36 | S38: 12 | T38: 775.053 | U38: 1038.671 | V38: 1034.462 | W38: 36.12148 | X38: 738.93152 | Y38: 1002.54952 | Z38: 998.34052 | AA38: 106.9059545 | AB38: 109.9036434 | AC38: 100.3237604 | AD38: 105.7111194 | AG38: 36 | AH38: 12 | AI38: 1167.205 | AJ38: 996.744 | AK38: 1170.19 | AL38: 36.12148 | AM38: 1131.08352 | AN38: 960.62252 | AO38: 1134.06852 | AP38: 80.32078677 | AQ38: 83.12430907 | AR38: 87.00028796 | AS38: 83.4817946 | AV38: 36 | AW38: 12 | AX38: 987.802 | AY38: 722.109 | AZ38: 1083.915 | BA38: 36.12148 | BB38: 951.68052 | BC38: 685.98752 | BD38: 1047.79352 | BE38: 92.72225044 | BF38: 79.70216224 | BG38: 87.13179065 | BH38: 86.51873444 | BK38: 36 | BL38: 12 | BM38: 805.177 | BN38: 746.19 | BO38: 725.218 | BP38: 36.12148 | BQ38: 769.05552 | BR38: 710.06852 | BS38: 689.09652 | BT38: 67.69010472 | BU38: 66.7262484 | BV38: 67.65115648 | BW38: 67.35583653 | BZ38: 36 | CA38: 12 | CB38: 467.263 | CC38: 332.431 | CD38: 449.686 | CE38: 36.12148 | CF38: 431.14152 | CG38: 296.30952 | CH38: 413.56452 | CI38: 20.75354322 | CJ38: 17.89721845 | CK38: 20.44489132 | CL38: 19.69855099 | CO38: 36 | CP38: 12 | CQ38: 1063.465 | CR38: 928.672 | CS38: 721.479 | CT38: 36.12148 | CU38: 1027.34352 | CV38: 892.55052 | CW38: 685.35752 | CX38: 102.990828 | CY38: 95.86146775 | CZ38: 97.97740038 | DA38: 98.94323205 | DD38: 36 | DE38: 12 | DF38: 1210.657 | DG38: 949.975 | DH38: 818.157 | DI38: 36.12148 | DJ38: 1174.53552 | DK38: 913.85352 | DL38: 782.03552 | DM38: 109.9817525 | DN38: 95.33899133 | DO38: 96.12905154 | DP38: 100.4832651
C39: 37 | D39: 12.33333333 | E39: 1107.504 | F39: 1062.604 | G39: 1206.145 | H39: 36.95817667 | I39: 1070.545823 | J39: 1025.645823 | K39: 1169.186823 | L39: 91.98759238 | M39: 99.28531545 | N39: 103.2745889 | O39: 98.18249892 | R39: 37 | S39: 12.33333333 | T39: 769.333 | U39: 1045.604 | V39: 1042.665 | W39: 36.95817667 | X39: 732.3748233 | Y39: 1008.645823 | Z39: 1005.706823 | AA39: 105.9573552 | AB39: 110.5719455 | AC39: 101.064004 | AD39: 105.8644349 | AG39: 37 | AH39: 12.33333333 | AI39: 1178.136 | AJ39: 990.117 | AK39: 1162.485 | AL39: 36.95817667 | AM39: 1141.177823 | AN39: 953.1588233 | AO39: 1125.526823 | AP39: 81.03760597 | AQ39: 82.47846263 | AR39: 86.34501003 | AS39: 83.28702621 | AV39: 37 | AW39: 12.33333333 | AX39: 996.86 | AY39: 738.996 | AZ39: 1069.622 | BA39: 36.95817667 | BB39: 959.9018233 | BC39: 702.0378233 | BD39: 1032.663823 | BE39: 93.52325217 | BF39: 81.56698316 | BG39: 85.87364433 | BH39: 86.98795989 | BK39: 37 | BL39: 12.33333333 | BM39: 730.946 | BN39: 672.372 | BO39: 711.202 | BP39: 36.95817667 | BQ39: 693.9878233 | BR39: 635.4138233 | BS39: 674.2438233 | BT39: 61.0828571 | BU39: 59.71082989 | BV39: 66.19301226 | BW39: 62.32889975 | BZ39: 37 | CA39: 12.33333333 | CB39: 466.969 | CC39: 327.624 | CD39: 443.562 | CE39: 36.95817667 | CF39: 430.0108233 | CG39: 290.6658233 | CH39: 406.6038233 | CI39: 20.6991157 | CJ39: 17.55633682 | CK39: 20.10078374 | CL39: 19.45207875 | CO39: 37 | CP39: 12.33333333 | CQ39: 1072.377 | CR39: 897.082 | CS39: 716.911 | CT39: 36.95817667 | CU39: 1035.418823 | CV39: 860.1238233 | CW39: 679.9528233 | CX39: 103.8003743 | CY39: 92.37878451 | CZ39: 97.20475529 | DA39: 97.79463804 | DD39: 37 | DE39: 12.33333333 | DF39: 1213.629 | DG39: 962.577 | DH39: 818.107 | DI39: 36.95817667 | DJ39: 1176.670823 | DK39: 925.6188233 | DL39: 781.1488233 | DM39: 110.1816991 | DN39: 96.56642234 | DO39: 96.02005738 | DP39: 100.9227263
C40: 38 | D40: 12.66666667 | E40: 1108.808 | F40: 1064.793 | G40: 1200.474 | H40: 37.41581667 | I40: 1071.392183 | J40: 1027.377183 | K40: 1163.058183 | L40: 92.06031661 | M40: 99.45291582 | N40: 102.7332445 | O40: 98.08215898 | R40: 38 | S40: 12.66666667 | T40: 715.607 | U40: 1036.822 | V40: 1037.601 | W40: 37.41581667 | X40: 678.1911833 | Y40: 999.4061833 | Z40: 1000.185183 | AA40: 98.11826106 | AB40: 109.5590578 | AC40: 100.5091315 | AD40: 102.7288168 | AG40: 38 | AH40: 12.66666667 | AI40: 1165.35 | AJ40: 996.668 | AK40: 1165.882 | AL40: 37.41581667 | AM40: 1127.934183 | AN40: 959.2521833 | AO40: 1128.466183 | AP40: 80.09714528 | AQ40: 83.00573149 | AR40: 86.57050361 | AS40: 83.22446013 | AV40: 38 | AW40: 12.66666667 | AX40: 990.723 | AY40: 739.579 | AZ40: 1075.583 | BA40: 37.41581667 | BB40: 953.3071833 | BC40: 702.1631833 | BD40: 1038.167183 | BE40: 92.88073628 | BF40: 81.58154824 | BG40: 86.33128947 | BH40: 86.93119133 | BK40: 38 | BL40: 12.66666667 | BM40: 766.695 | BN40: 698.103 | BO40: 727.228 | BP40: 37.41581667 | BQ40: 729.2791833 | BR40: 660.6871833 | BS40: 689.8121833 | BT40: 64.18910339 | BU40: 62.08580703 | BV40: 67.7214158 | BW40: 64.66544207 | BZ40: 38 | CA40: 12.66666667 | CB40: 449.266 | CC40: 327.436 | CD40: 430.851 | CE40: 37.41581667 | CF40: 411.8501833 | CG40: 290.0201833 | CH40: 393.4351833 | CI40: 19.82493029 | CJ40: 17.51733989 | CK40: 19.44978153 | CL40: 18.93068391 | CO40: 38 | CP40: 12.66666667 | CQ40: 1049.896 | CR40: 903.146 | CS40: 710.256 | CT40: 37.41581667 | CU40: 1012.480183 | CV40: 865.7301833 | CW40: 672.8401833 | CX40: 101.5007837 | CY40: 92.98091726 | CZ40: 96.18794587 | DA40: 96.88988228 | DD40: 38 | DE40: 12.66666667 | DF40: 1206.441 | DG40: 960.439 | DH40: 825.162 | DI40: 37.41581667 | DJ40: 1169.025183 | DK40: 923.0231833 | DL40: 787.7461833 | DM40: 109.4657728 | DN40: 96.29562872 | DO40: 96.83101538 | DP40: 100.864139
C41: 39 | D41: 13 | E41: 1102.431 | F41: 1065.966 | G41: 1213.931 | H41: 36.83762333 | I41: 1065.593377 | J41: 1029.128377 | K41: 1177.093377 | L41: 91.56204904 | M41: 99.62243612 | N41: 103.9729769 | O41: 98.3858207 | R41: 39 | S41: 13 | T41: 712.09 | U41: 1055.691 | V41: 1043.025 | W41: 36.83762333 | X41: 675.2523767 | Y41: 1018.853377 | Z41: 1006.187377 | AA41: 97.69308508 | AB41: 111.6909399 | AC41: 101.1122951 | AD41: 103.4987734 | AG41: 39 | AH41: 13 | AI41: 1192.809 | AJ41: 986.672 | AK41: 1156.876 | AL41: 36.83762333 | AM41: 1155.971377 | AN41: 949.8343767 | AO41: 1120.038377 | AP41: 82.08812949 | AQ41: 82.19079258 | AR41: 85.92396277 | AS41: 83.40096161 | AV41: 39 | AW41: 13 | AX41: 993.324 | AY41: 720.631 | AZ41: 1074.777 | BA41: 36.83762333 | BB41: 956.4863767 | BC41: 683.7933767 | BD41: 1037.939377 | BE41: 93.19048514 | BF41: 79.44723345 | BG41: 86.31234566 | BH41: 86.31668808 | BK41: 39 | BL41: 13 | BM41: 740.687 | BN41: 679.808 | BO41: 707.106 | BP41: 36.83762333 | BQ41: 703.8493767 | BR41: 642.9703767 | BS41: 670.2683767 | BT41: 61.9508433 | BU41: 60.42093102 | BV41: 65.80272794 | BW41: 62.72483409 | BZ41: 39 | CA41: 13 | CB41: 444.973 | CC41: 320.808 | CD41: 435.05 | CE41: 36.83762333 | CF41: 408.1353767 | CG41: 283.9703767 | CH41: 398.2123767 | CI41: 19.64611337 | CJ41: 17.15192905 | CK41: 19.68594589 | CL41: 18.8279961 | CO41: 39 | CP41: 13 | CQ41: 1055.72 | CR41: 900.673 | CS41: 721.321 | CT41: 36.83762333 | CU41: 1018.882377 | CV41: 863.8353767 | CW41: 684.4833767 | CX41: 102.1426013 | CY41: 92.77741175 | CZ41: 97.85243453 | DA41: 97.59081587 | DD41: 39 | DE41: 13 | DF41: 1214.824 | DG41: 960.305 | DH41: 813.082 | DI41: 36.83762333 | DJ41: 1177.986377 | DK41: 923.4673767 | DL41: 776.2443767 | DM41: 110.3048855 | DN41: 96.34196979 | DO41: 95.41719498 | DP41: 100.6880168
C42: 40 | D42: 13.33333333 | E42: 1107.754 | F42: 1083.179 | G42: 1202.471 | H42: 36.65902333 | I42: 1071.094977 | J42: 1046.519977 | K42: 1165.811977 | L42: 92.03477887 | M42: 101.3059905 | N42: 102.9764878 | O42: 98.77241905 | R42: 40 | S42: 13.33333333 | T42: 677.829 | U42: 1055.428 | V42: 1037.922 | W42: 36.65902333 | X42: 641.1699767 | Y42: 1018.768977 | Z42: 1001.262977 | AA42: 92.76216604 | AB42: 111.6816877 | AC42: 100.6174396 | AD42: 101.6870978 | AG42: 40 | AH42: 13.33333333 | AI42: 1182.328 | AJ42: 975.37 | AK42: 1158.35 | AL42: 36.65902333 | AM42: 1145.668977 | AN42: 938.7109767 | AO42: 1121.690977 | AP42: 81.35653287 | AQ42: 81.22826576 | AR42: 86.0507423 | AS42: 82.87851365 | AV42: 40 | AW42: 13.33333333 | AX42: 982.924 | AY42: 724.869 | AZ42: 1060.883 | BA42: 36.65902333 | BB42: 946.2649767 | BC42: 688.2099767 | BD42: 1024.223977 | BE42: 92.19461395 | BF42: 79.96038064 | BG42: 85.17180858 | BH42: 85.77560106 | BK42: 40 | BL42: 13.33333333 | BM42: 754.34 | BN42: 715.242 | BO42: 696.431 | BP42: 36.65902333 | BQ42: 717.6809767 | BR42: 678.5829767 | BS42: 659.7719767 | BT42: 63.16826185 | BU42: 63.76750269 | BV42: 64.7722575 | BW42: 63.90267401 | BZ42: 40 | CA42: 13.33333333 | CB42: 444.824 | CC42: 312.569 | CD42: 423.853 | CE42: 36.65902333 | CF42: 408.1649767 | CG42: 275.9099767 | CH42: 387.1939767 | CI42: 19.6475382 | CJ42: 16.66507753 | CK42: 19.14124251 | CL42: 18.48461941 | CO42: 40 | CP42: 13.33333333 | CQ42: 1080.156 | CR42: 895.202 | CS42: 706.931 | CT42: 36.65902333 | CU42: 1043.496977 | CV42: 858.5429767 | CW42: 670.2719767 | CX42: 104.6102064 | CY42: 92.20899885 | CZ42: 95.82079996 | DA42: 97.54666839 | DD42: 40 | DE42: 13.33333333 | DF42: 1208.658 | DG42: 960.223 | DH42: 815.349 | DI42: 36.65902333 | DJ42: 1171.998977 | DK42: 923.5639767 | DL42: 778.6899767 | DM42: 109.7442343 | DN42: 96.35204771 | DO42: 95.71781203 | DP42: 100.604698
C43: 41 | D43: 13.66666667 | E43: 1100.376 | F43: 1067.781 | G43: 1199.299 | H43: 37.52841 | I43: 1062.84759 | J43: 1030.25259 | K43: 1161.77059 | L43: 91.32611491 | M43: 99.73126304 | N43: 102.619511 | O43: 97.89229633 | R43: 41 | S43: 13.66666667 | T43: 678.247 | U43: 1062.489 | V43: 1036.316 | W43: 37.52841 | X43: 640.71859 | Y43: 1024.96059 | Z43: 998.78759 | AA43: 92.69686104 | AB43: 112.360438 | AC43: 100.3686867 | AD43: 101.8086619 | AG43: 41 | AH43: 13.66666667 | AI43: 1180.689 | AJ43: 989.799 | AK43: 1140.806 | AL43: 37.52841 | AM43: 1143.16059 | AN43: 952.27059 | AO43: 1103.27759 | AP43: 81.17840669 | AQ43: 82.40160228 | AR43: 84.63815575 | AS43: 82.73938824 | AV43: 41 | AW43: 13.66666667 | AX43: 973.271 | AY43: 716.735 | AZ43: 1066.335 | BA43: 37.52841 | BB43: 935.74259 | BC43: 679.20659 | BD43: 1028.80659 | BE43: 91.16941763 | BF43: 78.91431295 | BG43: 85.55288681 | BH43: 85.2122058 | BK43: 41 | BL43: 13.66666667 | BM43: 729.263 | BN43: 665.464 | BO43: 688.107 | BP43: 37.52841 | BQ43: 691.73459 | BR43: 627.93559 | BS43: 650.57859 | BT43: 60.88453384 | BU43: 59.00808862 | BV43: 63.86970869 | BW43: 61.25411039 | BZ43: 41 | CA43: 13.66666667 | CB43: 433.899 | CC43: 307.049 | CD43: 417.537 | CE43: 37.52841 | CF43: 396.37059 | CG43: 269.52059 | CH43: 380.00859 | CI43: 19.07980046 | CJ43: 16.27915592 | CK43: 18.7860272 | CL43: 18.04832786 | CO43: 41 | CP43: 13.66666667 | CQ43: 1059.262 | CR43: 927.761 | CS43: 711.795 | CT43: 37.52841 | CU43: 1021.73359 | CV43: 890.23259 | CW43: 674.26659 | CX43: 102.4284345 | CY43: 95.61251807 | CZ43: 96.39186224 | DA43: 98.1442716 | DD43: 41 | DE43: 13.66666667 | DF43: 1199.205 | DG43: 961.109 | DH43: 808.627 | DI43: 37.52841 | DJ43: 1161.67659 | DK43: 923.58059 | DL43: 771.09859 | DM43: 108.7776615 | DN43: 96.35378092 | DO43: 94.78466669 | DP43: 99.97203636
C44: 42 | D44: 14 | E44: 1095.236 | F44: 1080.751 | G44: 1200.744 | H44: 36.76406 | I44: 1058.47194 | J44: 1043.98694 | K44: 1163.97994 | L44: 90.95013333 | M44: 101.0607856 | N44: 102.8146635 | O44: 98.27519415 | R44: 42 | S44: 14 | T44: 709.175 | U44: 1053.447 | V44: 1032.088 | W44: 36.76406 | X44: 672.41094 | Y44: 1016.68294 | Z44: 995.32394 | AA44: 97.28199624 | AB44: 111.4530077 | AC44: 100.0206227 | AD44: 102.9185422 | AG44: 42 | AH44: 14 | AI44: 1170.932 | AJ44: 987.667 | AK44: 1148.956 | AL44: 36.76406 | AM44: 1134.16794 | AN44: 950.90294 | AO44: 1112.19194 | AP44: 80.53981837 | AQ44: 82.28325719 | AR44: 85.32202185 | AS44: 82.71503247 | AV44: 42 | AW44: 14 | AX44: 973.254 | AY44: 730.599 | AZ44: 1061.455 | BA44: 36.76406 | BB44: 936.48994 | BC44: 693.83494 | BD44: 1024.69094 | BE44: 91.24223195 | BF44: 80.61392277 | BG44: 85.21064004 | BH44: 85.68893159 | BK44: 42 | BL44: 14 | BM44: 732.226 | BN44: 690.224 | BO44: 669.091 | BP44: 36.76406 | BQ44: 695.46194 | BR44: 653.45994 | BS44: 632.32694 | BT44: 61.21260471 | BU44: 61.40665168 | BV44: 62.07787664 | BW44: 61.56571101 | BZ44: 42 | CA44: 14 | CB44: 427.992 | CC44: 301.332 | CD44: 414.406 | CE44: 36.76406 | CF44: 391.22794 | CG44: 264.56794 | CH44: 377.64194 | CI44: 18.83225248 | CJ44: 15.98001379 | CK44: 18.66902997 | CL44: 17.82709875 | CO44: 42 | CP44: 14 | CQ44: 1084.355 | CR44: 897.624 | CS44: 708.868 | CT44: 36.76406 | CU44: 1047.59094 | CV44: 860.85994 | CW44: 672.10394 | CX44: 105.0206248 | CY44: 92.45784471 | CZ44: 96.08269393 | DA44: 97.85372114 | DD44: 42 | DE44: 14 | DF44: 1207.667 | DG44: 943.656 | DH44: 803.954 | DI44: 36.76406 | DJ44: 1170.90294 | DK44: 906.89194 | DL44: 767.18994 | DM44: 109.6416031 | DN44: 94.61271518 | DO44: 94.30420921 | DP44: 99.51950917
C45: 43 | D45: 14.33333333 | E45: 1098.924 | F45: 1074.239 | G45: 1192.341 | H45: 37.47124333 | I45: 1061.452757 | J45: 1036.767757 | K45: 1154.869757 | L45: 91.20626262 | M45: 100.361949 | N45: 102.0099586 | O45: 97.85939005 | R45: 43 | S45: 14.33333333 | T45: 714.342 | U45: 1053.995 | V45: 1033.621 | W45: 37.47124333 | X45: 676.8707567 | Y45: 1016.523757 | Z45: 996.1497567 | AA45: 97.92722648 | AB45: 111.4355573 | AC45: 100.1036094 | AD45: 103.1554644 | AG45: 43 | AH45: 14.33333333 | AI45: 1150.193 | AJ45: 985.984 | AK45: 1150.367 | AL45: 37.47124333 | AM45: 1112.721757 | AN45: 948.5127567 | AO45: 1112.895757 | AP45: 79.01687662 | AQ45: 82.07643054 | AR45: 85.37601528 | AS45: 82.15644081 | AV45: 43 | AW45: 14.33333333 | AX45: 979.928 | AY45: 711.555 | AZ45: 1044.889 | BA45: 37.47124333 | BB45: 942.4567567 | BC45: 674.0837567 | BD45: 1007.417757 | BE45: 91.82357901 | BF45: 78.31911131 | BG45: 83.77424693 | BH45: 84.63897908 | BK45: 43 | BL45: 14.33333333 | BM45: 747.156 | BN45: 700.48 | BO45: 661.024 | BP45: 37.47124333 | BQ45: 709.6847567 | BR45: 663.0087567 | BS45: 623.5527567 | BT45: 62.46445705 | BU45: 62.3039689 | BV45: 61.21648258 | BW45: 61.99496951 | BZ45: 43 | CA45: 14.33333333 | CB45: 427.8 | CC45: 298.919 | CD45: 403.64 | CE45: 37.47124333 | CF45: 390.3287567 | CG45: 261.4477567 | CH45: 366.1687567 | CI45: 18.78896916 | CJ45: 15.79155342 | CK45: 18.10184402 | CL45: 17.56078887 | CO45: 43 | CP45: 14.33333333 | CQ45: 1052.253 | CR45: 911.831 | CS45: 716.201 | CT45: 37.47124333 | CU45: 1014.781757 | CV45: 874.3597567 | CW45: 678.7297567 | CX45: 101.7315156 | CY45: 93.90774835 | CZ45: 97.02990801 | DA45: 97.55639066 | DD45: 43 | DE45: 14.33333333 | DF45: 1209.033 | DG45: 945.297 | DH45: 811.215 | DI45: 37.47124333 | DJ45: 1171.561757 | DK45: 907.8257567 | DL45: 773.7437567 | DM45: 109.7032937 | DN45: 94.71013685 | DO45: 95.10981479 | DP45: 99.84108179
C46: 44 | D46: 14.66666667 | E46: 1103.249 | F46: 1089.138 | G46: 1197.009 | H46: 37.35157667 | I46: 1065.897423 | J46: 1051.786423 | K46: 1159.657423 | L46: 91.58817452 | M46: 101.8157969 | N46: 102.4328544 | O46: 98.61227529 | R46: 44 | S46: 14.66666667 | T46: 732.476 | U46: 1057.81 | V46: 1028.689 | W46: 37.35157667 | X46: 695.1244233 | Y46: 1020.458423 | Z46: 991.3374233 | AA46: 100.5681013 | AB46: 111.8668918 | AC46: 99.62001552 | AD46: 104.0183362 | AG46: 44 | AH46: 14.66666667 | AI46: 1165.556 | AJ46: 985.789 | AK46: 1148.621 | AL46: 37.35157667 | AM46: 1128.204423 | AN46: 948.4374233 | AO46: 1111.269423 | AP46: 80.11633563 | AQ46: 82.06991182 | AR46: 85.25125081 | AS46: 82.47916608 | AV46: 44 | AW46: 14.66666667 | AX46: 982.924 | AY46: 718.039 | AZ46: 1058.196 | BA46: 37.35157667 | BB46: 945.5724233 | BC46: 680.6874233 | BD46: 1020.844423 | BE46: 92.12713847 | BF46: 79.08636508 | BG46: 84.89077369 | BH46: 85.36809241 | BK46: 44 | BL46: 14.66666667 | BM46: 709.841 | BN46: 667.785 | BO46: 669.444 | BP46: 37.35157667 | BQ46: 672.4894233 | BR46: 630.4334233 | BS46: 632.0924233 | BT46: 59.19062838 | BU46: 59.24281392 | BV46: 62.05485327 | BW46: 60.16276519 | BZ46: 44 | CA46: 14.66666667 | CB46: 415.112 | CC46: 294.428 | CD46: 397.707 | CE46: 37.35157667 | CF46: 377.7604233 | CG46: 257.0764233 | CH46: 360.3554233 | CI46: 18.18397651 | CJ46: 15.52752306 | CK46: 17.81445726 | CL46: 17.17531894 | CO46: 44 | CP46: 14.66666667 | CQ46: 1064.465 | CR46: 911.745 | CS46: 710.982 | CT46: 37.35157667 | CU46: 1027.113423 | CV46: 874.3934233 | CW46: 673.6304233 | CX46: 102.9677609 | CY46: 93.9113642 | CZ46: 96.30091707 | DA46: 97.72668072 | DD46: 44 | DE46: 14.66666667 | DF46: 1206.358 | DG46: 948.633 | DH46: 816.011 | DI46: 37.35157667 | DJ46: 1169.006423 | DK46: 911.2814233 | DL46: 778.6594233 | DM46: 109.4640161 | DN46: 95.0706539 | DO46: 95.71405637 | DP46: 100.0829088
C47: 45 | D47: 15 | E47: 1100.156 | F47: 1093.781 | G47: 1191.925 | H47: 36.94798667 | I47: 1063.208013 | J47: 1056.833013 | K47: 1154.977013 | L47: 91.3570846 | M47: 102.3043206 | N47: 102.0194326 | O47: 98.56027925 | R47: 45 | S47: 15 | T47: 744.938 | U47: 1060.505 | V47: 1037.371 | W47: 36.94798667 | X47: 707.9900133 | Y47: 1023.557013 | Z47: 1000.423013 | AA47: 102.4294486 | AB47: 112.2065721 | AC47: 100.5330312 | AD47: 105.0563506 | AG47: 45 | AH47: 15 | AI47: 1134.845 | AJ47: 973.71 | AK47: 1138.119 | AL47: 36.94798667 | AM47: 1097.897013 | AN47: 936.7620133 | AO47: 1101.171013 | AP47: 77.96413823 | AQ47: 81.05961863 | AR47: 84.47654931 | AS47: 81.16676872 | AV47: 45 | AW47: 15 | AX47: 972.089 | AY47: 738.774 | AZ47: 1045.483 | BA47: 36.94798667 | BB47: 935.1410133 | BC47: 701.8260133 | BD47: 1008.535013 | BE47: 91.110806 | BF47: 81.5423738 | BG47: 83.86715509 | BH47: 85.5067783 | BK47: 45 | BL47: 15 | BM47: 699.165 | BN47: 682.138 | BO47: 637.314 | BP47: 36.94798667 | BQ47: 662.2170133 | BR47: 645.1900133 | BS47: 600.3660133 | BT47: 58.28647973 | BU47: 60.62951374 | BV47: 58.94015415 | BW47: 59.28538254 | BZ47: 45 | CA47: 15 | CB47: 415.275 | CC47: 295.217 | CD47: 398.195 | CE47: 36.94798667 | CF47: 378.3270133 | CG47: 258.2690133 | CH47: 361.2470133 | CI47: 18.21125004 | CJ47: 15.599556 | CK47: 17.85853372 | CL47: 17.22311325 | CO47: 45 | CP47: 15 | CQ47: 1067.051 | CR47: 900.016 | CS47: 706.775 | CT47: 36.94798667 | CU47: 1030.103013 | CV47: 863.0680133 | CW47: 669.8270133 | CX47: 103.2674662 | CY47: 92.69499561 | CZ47: 95.75718885 | DA47: 97.23988357 | DD47: 45 | DE47: 15 | DF47: 1215.258 | DG47: 951.117 | DH47: 807.18 | DI47: 36.94798667 | DJ47: 1178.310013 | DK47: 914.1690133 | DL47: 770.2320133 | DM47: 110.3351904 | DN47: 95.37190559 | DO47: 94.67814571 | DP47: 100.1284139
C48: 46 | D48: 15.33333333 | E48: 1092.565 | F48: 1080.086 | G48: 1196.099 | H48: 36.84779 | I48: 1055.71721 | J48: 1043.23821 | K48: 1159.25121 | L48: 90.71343073 | M48: 100.9883065 | N48: 102.3969735 | O48: 98.03290358 | R48: 46 | S48: 15.33333333 | T48: 710.876 | U48: 1059.954 | V48: 1029.975 | W48: 36.84779 | X48: 674.02821 | Y48: 1023.10621 | Z48: 993.12721 | AA48: 97.51597705 | AB48: 112.1571532 | AC48: 99.79987212 | AD48: 103.1576675 | AG48: 46 | AH48: 15.33333333 | AI48: 1139.881 | AJ48: 966.912 | AK48: 1149.557 | AL48: 36.84779 | AM48: 1103.03321 | AN48: 930.06421 | AO48: 1112.70921 | AP48: 78.32887111 | AQ48: 80.48004626 | AR48: 85.36170432 | AS48: 81.39020723 | AV48: 46 | AW48: 15.33333333 | AX48: 968.745 | AY48: 701.611 | AZ48: 1039.758 | BA48: 36.84779 | BB48: 931.89721 | BC48: 664.76321 | BD48: 1002.91021 | BE48: 90.79476219 | BF48: 77.23619406 | BG48: 83.39941104 | BH48: 83.81012243 | BK48: 46 | BL48: 15.33333333 | BM48: 711.352 | BN48: 665.62 | BO48: 631.053 | BP48: 36.84779 | BQ48: 674.50421 | BR48: 628.77221 | BS48: 594.20521 | BT48: 59.36796424 | BU48: 59.08670711 | BV48: 58.33532528 | BW48: 58.92999887 | BZ48: 46 | CA48: 15.33333333 | CB48: 407.537 | CC48: 290.054 | CD48: 387.749 | CE48: 36.84779 | CF48: 370.68921 | CG48: 253.20621 | CH48: 350.90121 | CI48: 17.8435947 | CJ48: 15.29376057 | CK48: 17.3470807 | CL48: 16.82814532 | CO48: 46 | CP48: 15.33333333 | CQ48: 1079.66 | CR48: 929.935 | CS48: 707.488 | CT48: 36.84779 | CU48: 1042.81221 | CV48: 893.08721 | CW48: 670.64021 | CX48: 104.5415588 | CY48: 95.91910919 | CZ48: 95.87344189 | DA48: 98.77803661 | DD48: 46 | DE48: 15.33333333 | DF48: 1215.561 | DG48: 937.634 | DH48: 814.846 | DI48: 36.84779 | DJ48: 1178.71321 | DK48: 900.78621 | DL48: 777.99821 | DM48: 110.3729451 | DN48: 93.97572672 | DO48: 95.63277897 | DP48: 99.99381694
C49: 47 | D49: 15.66666667 | E49: 1109.195 | F49: 1089.973 | G49: 1207.652 | H49: 37.28607 | I49: 1071.90893 | J49: 1052.68693 | K49: 1170.36593 | L49: 92.10471852 | M49: 101.9029684 | N49: 103.3787397 | O49: 99.12880889 | R49: 47 | S49: 15.66666667 | T49: 697.708 | U49: 1058.896 | V49: 1031.542 | W49: 37.28607 | X49: 660.42193 | Y49: 1021.60993 | Z49: 994.25593 | AA49: 95.5474694 | AB49: 111.9931248 | AC49: 99.91329778 | AD49: 102.4846306 | AG49: 47 | AH49: 15.66666667 | AI49: 1148.806 | AJ49: 964.083 | AK49: 1146.625 | AL49: 37.28607 | AM49: 1111.51993 | AN49: 926.79693 | AO49: 1109.33893 | AP49: 78.9315322 | AQ49: 80.19732293 | AR49: 85.10315263 | AS49: 81.41066926 | AV49: 47 | AW49: 15.66666667 | AX49: 961.348 | AY49: 720.682 | AZ49: 1033.265 | BA49: 37.28607 | BB49: 924.06193 | BC49: 683.39593 | BD49: 995.97893 | BE49: 90.03137071 | BF49: 79.4010557 | BG49: 82.82302378 | BH49: 84.08515006 | BK49: 47 | BL49: 15.66666667 | BM49: 681.612 | BN49: 653.228 | BO49: 652.157 | BP49: 37.28607 | BQ49: 644.32593 | BR49: 615.94193 | BS49: 614.87093 | BT49: 56.71175687 | BU49: 57.88102565 | BV49: 60.36415552 | BW49: 58.31897935 | BZ49: 47 | CA49: 15.66666667 | CB49: 401.214 | CC49: 294.233 | CD49: 388.989 | CE49: 37.28607 | CF49: 363.92793 | CG49: 256.94693 | CH49: 351.70293 | CI49: 17.51813192 | CJ49: 15.51970161 | CK49: 17.38671436 | CL49: 16.80818263 | CO49: 47 | CP49: 15.66666667 | CQ49: 1079.077 | CR49: 912.169 | CS49: 707.24 | CT49: 37.28607 | CU49: 1041.79093 | CV49: 874.88293 | CW49: 669.95393 | CX49: 104.4391758 | CY49: 93.96393807 | CZ49: 95.77533262 | DA49: 98.05948216 | DD49: 47 | DE49: 15.66666667 | DF49: 1217.606 | DG49: 958.257 | DH49: 818.898 | DI49: 37.28607 | DJ49: 1180.31993 | DK49: 920.97093 | DL49: 781.61193 | DM49: 110.523396 | DN49: 96.08152465 | DO49: 96.07698319 | DP49: 100.8939679
C50: 48 | D50: 16 | E50: 1097.326 | F50: 1082.661 | G50: 1165.816 | H50: 37.0476 | I50: 1060.2784 | J50: 1045.6134 | K50: 1128.7684 | L50: 91.10535499 | M50: 101.2182314 | N50: 99.70441865 | O50: 97.34266834 | R50: 48 | S50: 16 | T50: 643.838 | U50: 1044.535 | V50: 1033.321 | W50: 37.0476 | X50: 606.7904 | Y50: 1007.4874 | Z50: 996.2734 | AA50: 87.78825254 | AB50: 110.4449544 | AC50: 100.1160344 | AD50: 99.4497471 | AG50: 48 | AH50: 16 | AI50: 1166.926 | AJ50: 970.801 | AK50: 1142.224 | AL50: 37.0476 | AM50: 1129.8784 | AN50: 933.7534 | AO50: 1105.1764 | AP50: 80.23520848 | AQ50: 80.79927817 | AR50: 84.78382333 | AS50: 81.93943666 | AV50: 48 | AW50: 16 | AX50: 960.185 | AY50: 696.809 | AZ50: 1030.121 | BA50: 37.0476 | BB50: 923.1374 | BC50: 659.7614 | BD50: 993.0734 | BE50: 89.94129374 | BF50: 76.65505364 | BG50: 82.58140744 | BH50: 83.05925161 | BK50: 48 | BL50: 16 | BM50: 698.327 | BN50: 641.996 | BO50: 635.145 | BP50: 37.0476 | BQ50: 661.2794 | BR50: 604.9484 | BS50: 598.0974 | BT50: 58.20395364 | BU50: 56.84794646 | BV50: 58.71743598 | BW50: 57.92311203 | BZ50: 48 | CA50: 16 | CB50: 399.407 | CC50: 278.513 | CD50: 382.155 | CE50: 37.0476 | CF50: 362.3594 | CG50: 241.4654 | CH50: 345.1074 | CI50: 17.44262874 | CJ50: 14.58461075 | CK50: 17.06065909 | CL50: 16.36263286 | CO50: 48 | CP50: 16 | CQ50: 1065.98 | CR50: 909.443 | CS50: 707.624 | CT50: 37.0476 | CU50: 1028.9324 | CV50: 872.3954 | CW50: 670.5764 | CX50: 103.1501127 | CY50: 93.69677305 | CZ50: 95.86431974 | DA50: 97.57040182 | DD50: 48 | DE50: 16 | DF50: 1216.028 | DG50: 934.718 | DH50: 816.216 | DI50: 37.0476 | DJ50: 1178.9804 | DK50: 897.6704 | DL50: 779.1684 | DM50: 110.3979644 | DN50: 93.65066568 | DO50: 95.77662059 | DP50: 99.94175022
C51: 49 | D51: 16.33333333 | E51: 1094.637 | F51: 1084.894 | G51: 1179.928 | H51: 37.97888333 | I51: 1056.658117 | J51: 1046.915117 | K51: 1141.949117 | L51: 90.79427896 | M51: 101.3442411 | N51: 100.8686749 | O51: 97.669065 | R51: 49 | S51: 16.33333333 | T51: 649.772 | U51: 1054.243 | V51: 1022.417 | W51: 37.97888333 | X51: 611.7931167 | Y51: 1016.264117 | Z51: 984.4381167 | AA51: 88.5120276 | AB51: 111.4070945 | AC51: 98.92670059 | AD51: 99.61527423 | AG51: 49 | AH51: 16.33333333 | AI51: 1154.182 | AJ51: 975.699 | AK51: 1140.557 | AL51: 37.97888333 | AM51: 1116.203117 | AN51: 937.7201167 | AO51: 1102.578117 | AP51: 79.26409583 | AQ51: 81.14252495 | AR51: 84.58449552 | AS51: 81.66370543 | AV51: 49 | AW51: 16.33333333 | AX51: 972.217 | AY51: 700.059 | AZ51: 1018.363 | BA51: 37.97888333 | BB51: 934.2381167 | BC51: 662.0801167 | BD51: 980.3841167 | BE51: 91.02283676 | BF51: 76.92445611 | BG51: 81.52619956 | BH51: 83.15783081 | BK51: 49 | BL51: 16.33333333 | BM51: 669.495 | BN51: 639.568 | BO51: 641.542 | BP51: 37.97888333 | BQ51: 631.5161167 | BR51: 601.5891167 | BS51: 603.5631167 | BT51: 55.58427312 | BU51: 56.53226935 | BV51: 59.25402562 | BW51: 57.1235227 | BZ51: 49 | CA51: 16.33333333 | CB51: 400.773 | CC51: 273.403 | CD51: 381.513 | CE51: 37.97888333 | CF51: 362.7941167 | CG51: 235.4241167 | CH51: 343.5341167 | CI51: 17.46355438 | CJ51: 14.21971472 | CK51: 16.98288257 | CL51: 16.22205056 | CO51: 49 | CP51: 16.33333333 | CQ51: 1057.574 | CR51: 915.211 | CS51: 711.612 | CT51: 37.97888333 | CU51: 1019.595117 | CV51: 877.2321167 | CW51: 673.6331167 | CX51: 102.2140533 | CY51: 94.21624477 | CZ51: 96.30130211 | DA51: 97.57720005 | DD51: 49 | DE51: 16.33333333 | DF51: 1216.124 | DG51: 931.23 | DH51: 820.726 | DI51: 37.97888333 | DJ51: 1178.145117 | DK51: 893.2511167 | DL51: 782.7471167 | DM51: 110.3197497 | DN51: 93.18961803 | DO51: 96.21652214 | DP51: 99.90862996
C52: 50 | D52: 16.66666667 | E52: 1105.313 | F52: 1079.809 | G52: 1186.919 | H52: 36.91542667 | I52: 1068.397573 | J52: 1042.893573 | K52: 1150.003573 | L52: 91.80300211 | M52: 100.9549447 | N52: 101.5801273 | O52: 98.11269137 | R52: 50 | S52: 16.66666667 | T52: 654.014 | U52: 1047.597 | V52: 1028.73 | W52: 36.91542667 | X52: 617.0985733 | Y52: 1010.681573 | Z52: 991.8145733 | AA52: 89.27960198 | AB52: 110.7951129 | AC52: 99.66796458 | AD52: 99.91422649 | AG52: 50 | AH52: 16.66666667 | AI52: 1154.531 | AJ52: 971.35 | AK52: 1141.608 | AL52: 36.91542667 | AM52: 1117.615573 | AN52: 934.4345733 | AO52: 1104.692573 | AP52: 79.36439756 | AQ52: 80.85822127 | AR52: 84.74670647 | AS52: 81.65644177 | AV52: 50 | AW52: 16.66666667 | AX52: 961.844 | AY52: 711.393 | AZ52: 1019.888 | BA52: 36.91542667 | BB52: 924.9285733 | BC52: 674.4775733 | BD52: 982.9725733 | BE52: 90.11580779 | BF52: 78.3648673 | BG52: 81.7414489 | BH52: 83.40737466 | BK52: 50 | BL52: 16.66666667 | BM52: 677.825 | BN52: 630.007 | BO52: 625.44 | BP52: 36.91542667 | BQ52: 640.9095733 | BR52: 593.0915733 | BS52: 588.5245733 | BT52: 56.41105877 | BU52: 55.73374193 | BV52: 57.77763615 | BW52: 56.64081228 | BZ52: 50 | CA52: 16.66666667 | CB52: 388.881 | CC52: 270.818 | CD52: 385.018 | CE52: 36.91542667 | CF52: 351.9655733 | CG52: 233.9025733 | CH52: 348.1025733 | CI52: 16.94230873 | CJ52: 14.12781287 | CK52: 17.20872786 | CL52: 16.09294982 | CO52: 50 | CP52: 16.66666667 | CQ52: 1075.001 | CR52: 909.68 | CS52: 713.26 | CT52: 36.91542667 | CU52: 1038.085573 | CV52: 872.7645733 | CW52: 676.3445733 | CX52: 104.0677151 | CY52: 93.7364229 | CZ52: 96.68892677 | DA52: 98.16435492 | DD52: 50 | DE52: 16.66666667 | DF52: 1217.213 | DG52: 942.331 | DH52: 813.061 | DI52: 36.91542667 | DJ52: 1180.297573 | DK52: 905.4155733 | DL52: 776.1455733 | DM52: 110.5213025 | DN52: 94.45869125 | DO52: 95.40504992 | DP52: 100.1283479
C53: 51 | D53: 17 | E53: 1116.005 | F53: 1076.969 | G53: 1190.279 | H53: 36.92276 | I53: 1079.08224 | J53: 1040.04624 | K53: 1153.35624 | L53: 92.7210915 | M53: 100.6793151 | N53: 101.8762692 | O53: 98.4255586 | R53: 51 | S53: 17 | T53: 663.156 | U53: 1057.367 | V53: 1031.015 | W53: 36.92276 | X53: 626.23324 | Y53: 1020.44424 | Z53: 994.09224 | AA53: 90.6011727 | AB53: 111.865337 | AC53: 99.89684849 | AD53: 100.7877861 | AG53: 51 | AH53: 17 | AI53: 1148.202 | AJ53: 969.223 | AK53: 1151.125 | AL53: 36.92276 | AM53: 1111.27924 | AN53: 932.30024 | AO53: 1114.20224 | AP53: 78.91444026 | AQ53: 80.67353375 | AR53: 85.47624241 | AS53: 81.68807214 | AV53: 51 | AW53: 17 | AX53: 961.494 | AY53: 694.995 | AZ53: 1020.431 | BA53: 36.92276 | BB53: 924.57124 | BC53: 658.07224 | BD53: 983.50824 | BE53: 90.08099279 | BF53: 76.45879686 | BG53: 81.78599355 | BH53: 82.77526107 | BK53: 51 | BL53: 17 | BM53: 656.849 | BN53: 621.528 | BO53: 633.661 | BP53: 36.92276 | BQ53: 619.92624 | BR53: 584.60524 | BS53: 596.73824 | BT53: 54.56416476 | BU53: 54.93626792 | BV53: 58.58400221 | BW53: 56.02814496 | BZ53: 51 | CA53: 17 | CB53: 388.89 | CC53: 264.86 | CD53: 365.95 | CE53: 36.92276 | CF53: 351.96724 | CG53: 227.93724 | CH53: 329.02724 | CI53: 16.94238896 | CJ53: 13.76750425 | CK53: 16.26572357 | CL53: 15.65853893 | CO53: 51 | CP53: 17 | CQ53: 1093.769 | CR53: 902.192 | CS53: 705.528 | CT53: 36.92276 | CU53: 1056.84624 | CV53: 865.26924 | CW53: 668.60524 | CX53: 105.9484653 | CY53: 92.93141115 | CZ53: 95.58252647 | DA53: 98.15413432 | DD53: 51 | DE53: 17 | DF53: 1221.17 | DG53: 940.872 | DH53: 820.408 | DI53: 36.92276 | DJ53: 1184.24724 | DK53: 903.94924 | DL53: 783.48524 | DM53: 110.8911434 | DN53: 94.30571406 | DO53: 96.30725344 | DP53: 100.5013703
C54: 52 | D54: 17.33333333 | E54: 1096.776 | F54: 1088.356 | G54: 1195.741 | H54: 36.91702667 | I54: 1059.858973 | J54: 1051.438973 | K54: 1158.823973 | L54: 91.06931539 | M54: 101.7821628 | N54: 102.3592356 | O54: 98.40357125 | R54: 52 | S54: 17.33333333 | T54: 729.486 | U54: 1050.307 | V54: 994.71 | W54: 36.91702667 | X54: 692.5689733 | Y54: 1013.389973 | Z54: 957.7929733 | AA54: 100.198388 | AB54: 111.092019 | AC54: 96.24911622 | AD54: 102.5131744 | AG54: 52 | AH54: 17.33333333 | AI54: 1149.099 | AJ54: 971.212 | AK54: 1141.498 | AL54: 36.91702667 | AM54: 1112.181973 | AN54: 934.2949733 | AO54: 1104.580973 | AP54: 78.97854539 | AQ54: 80.84614144 | AR54: 84.73814506 | AS54: 81.52094396 | AV54: 52 | AW54: 17.33333333 | AX54: 941.541 | AY54: 739.327 | AZ54: 1019.784 | BA54: 36.91702667 | BB54: 904.6239733 | BC54: 702.4099733 | BD54: 982.8669733 | BE54: 88.13753024 | BF54: 81.61022179 | BG54: 81.73266748 | BH54: 83.8268065 | BK54: 52 | BL54: 17.33333333 | BM54: 674.124 | BN54: 596.202 | BO54: 618.268 | BP54: 36.91702667 | BQ54: 637.2069733 | BR54: 559.2849733 | BS54: 581.3509733 | BT54: 56.08516632 | BU54: 52.5568829 | BV54: 57.07337728 | BW54: 55.2384755 | BZ54: 52 | CA54: 17.33333333 | CB54: 385.949 | CC54: 266.631 | CD54: 370.824 | CE54: 36.91702667 | CF54: 349.0319733 | CG54: 229.7139733 | CH54: 333.9069733 | CI54: 16.80109618 | CJ54: 13.87481969 | CK54: 16.50695708 | CL54: 15.72762431 | CO54: 52 | CP54: 17.33333333 | CQ54: 1060.931 | CR54: 929.555 | CS54: 705.612 | CT54: 36.91702667 | CU54: 1024.013973 | CV54: 892.6379733 | CW54: 668.6949733 | CX54: 102.6570421 | CY54: 95.87086039 | CZ54: 95.59535458 | DA54: 98.04108569 | DD54: 52 | DE54: 17.33333333 | DF54: 1211.791 | DG54: 935.964 | DH54: 822.894 | DI54: 36.91702667 | DJ54: 1174.873973 | DK54: 899.0469733 | DL54: 785.9769733 | DM54: 110.0134447 | DN54: 93.79427853 | DO54: 96.61354127 | DP54: 100.1404215
C55: 53 | D55: 17.66666667 | E55: 1096.215 | F55: 1075.826 | G55: 1168.041 | H55: 37.18144333 | I55: 1059.033557 | J55: 1038.644557 | K55: 1130.859557 | L55: 90.99839073 | M55: 100.5436283 | N55: 99.88913108 | O55: 97.14371671 | R55: 53 | S55: 17.66666667 | T55: 713.365 | U55: 1054.202 | V55: 1030.117 | W55: 37.18144333 | X55: 676.1835567 | Y55: 1017.020557 | Z55: 992.9355567 | AA55: 97.82780485 | AB55: 111.4900186 | AC55: 99.78061278 | AD55: 103.0328121 | AG55: 53 | AH55: 17.66666667 | AI55: 1136.561 | AJ55: 975.817 | AK55: 1148.262 | AL55: 37.18144333 | AM55: 1099.379557 | AN55: 938.6355567 | AO55: 1111.080557 | AP55: 78.06941697 | AQ55: 81.22173954 | AR55: 85.23676186 | AS55: 81.50930612 | AV55: 53 | AW55: 17.66666667 | AX55: 960.475 | AY55: 714.511 | AZ55: 1017.384 | BA55: 37.18144333 | BB55: 923.2935567 | BC55: 677.3295567 | BD55: 980.2025567 | BE55: 89.95650808 | BF55: 78.69622791 | BG55: 81.5111015 | BH55: 83.38794583 | BK55: 53 | BL55: 17.66666667 | BM55: 627.952 | BN55: 625.437 | BO55: 601.762 | BP55: 37.18144333 | BQ55: 590.7705567 | BR55: 588.2555567 | BS55: 564.5805567 | BT55: 51.99796348 | BU55: 55.27929388 | BV55: 55.42696339 | BW55: 54.23474025 | BZ55: 53 | CA55: 17.66666667 | CB55: 383.375 | CC55: 259.514 | CD55: 373.483 | CE55: 37.18144333 | CF55: 346.1935567 | CG55: 222.3325567 | CH55: 336.3015567 | CI55: 16.6644654 | CJ55: 13.42897904 | CK55: 16.62533521 | CL55: 15.57292655 | CO55: 53 | CP55: 17.66666667 | CQ55: 1083.455 | CR55: 925.19 | CS55: 698.798 | CT55: 37.18144333 | CU55: 1046.273557 | CV55: 888.0085567 | CW55: 661.6165567 | CX55: 104.8885575 | CY55: 95.37365304 | CZ55: 94.58343767 | DA55: 98.28188275 | DD55: 53 | DE55: 17.66666667 | DF55: 1224.936 | DG55: 960.223 | DH55: 825.528 | DI55: 37.18144333 | DJ55: 1187.754557 | DK55: 923.0415567 | DL55: 788.3465567 | DM55: 111.2195633 | DN55: 96.29754555 | DO55: 96.90481422 | DP55: 101.4739744
C56: 54 | D56: 18 | E56: 1097.86 | F56: 1085.545 | G56: 1174.177 | H56: 37.18112333 | I56: 1060.678877 | J56: 1048.363877 | K56: 1136.995877 | L56: 91.1397663 | M56: 101.484485 | N56: 100.4311539 | O56: 97.68513507 | R56: 54 | S56: 18 | T56: 757.148 | U56: 1058.707 | V56: 1028.349 | W56: 37.18112333 | X56: 719.9668767 | Y56: 1021.525877 | Z56: 991.1678767 | AA56: 104.1622181 | AB56: 111.9839105 | AC56: 99.60297769 | AD56: 105.2497021 | AG56: 54 | AH56: 18 | AI56: 1125.61 | AJ56: 963.68 | AK56: 1140.078 | AL56: 37.18112333 | AM56: 1088.428877 | AN56: 926.4988767 | AO56: 1102.896877 | AP56: 77.29178453 | AQ56: 80.17153187 | AR56: 84.60894925 | AS56: 80.69075522 | AV56: 54 | AW56: 18 | AX56: 962.239 | AY56: 688.507 | AZ56: 1008.881 | BA56: 37.18112333 | BB56: 925.0578767 | BC56: 651.3258767 | BD56: 971.6998767 | BE56: 90.12840581 | BF56: 75.67496373 | BG56: 80.80404069 | BH56: 82.20247008 | BK56: 54 | BL56: 18 | BM56: 649.462 | BN56: 593.247 | BO56: 583.254 | BP56: 37.18112333 | BQ56: 612.2808767 | BR56: 556.0658767 | BS56: 546.0728767 | BT56: 53.89124137 | BU56: 52.25437935 | BV56: 53.60999592 | BW56: 53.25187222 | BZ56: 54 | CA56: 18 | CB56: 374.877 | CC56: 263.858 | CD56: 365.649 | CE56: 37.18112333 | CF56: 337.6958767 | CG56: 226.6768767 | CH56: 328.4678767 | CI56: 16.2554188 | CJ56: 13.69137778 | CK56: 16.238071 | CL56: 15.39495586 | CO56: 54 | CP56: 18 | CQ56: 1082.306 | CR56: 913.433 | CS56: 712.236 | CT56: 37.18112333 | CU56: 1045.124877 | CV56: 876.2518767 | CW56: 675.0548767 | CX56: 104.7734028 | CY56: 94.1109653 | CZ56: 96.5045542 | DA56: 98.46297409 | DD56: 54 | DE56: 18 | DF56: 1227.84 | DG56: 956.569 | DH56: 831.729 | DI56: 37.18112333 | DJ56: 1190.658877 | DK56: 919.3878767 | DL56: 794.5478767 | DM56: 111.4915195 | DN56: 95.91637049 | DO56: 97.66709035 | DP56: 101.6916601
C57: 55 | D57: 18.33333333 | E57: 1095.609 | F57: 1083.937 | G57: 1184.268 | H57: 37.27900333 | I57: 1058.329997 | J57: 1046.657997 | K57: 1146.988997 | L57: 90.93793672 | M57: 101.3193512 | N57: 101.3138489 | O57: 97.8570456 | R57: 55 | S57: 18.33333333 | T57: 774.013 | U57: 1060.191 | V57: 1024.127 | W57: 37.27900333 | X57: 736.7339967 | Y57: 1022.911997 | Z57: 986.8479967 | AA57: 106.5880247 | AB57: 112.1358627 | AC57: 99.16887069 | AD57: 105.9642527 | AG57: 55 | AH57: 18.33333333 | AI57: 1161.741 | AJ57: 953.65 | AK57: 1144.934 | AL57: 37.27900333 | AM57: 1124.461997 | AN57: 916.3709967 | AO57: 1107.654997 | AP57: 79.85057749 | AQ57: 79.29514909 | AR57: 84.97396936 | AS57: 81.37323198 | AV57: 55 | AW57: 18.33333333 | AX57: 964.912 | AY57: 722.716 | AZ57: 1012.663 | BA57: 37.27900333 | BB57: 927.6329967 | BC57: 685.4369967 | BD57: 975.3839967 | BE57: 90.3792998 | BF57: 79.63819912 | BG57: 81.11040255 | BH57: 83.70930049 | BK57: 55 | BL57: 18.33333333 | BM57: 628.226 | BN57: 593.948 | BO57: 599.217 | BP57: 37.27900333 | BQ57: 590.9469967 | BR57: 556.6689967 | BS57: 561.9379967 | BT57: 52.01349323 | BU57: 52.31105548 | BV57: 55.16753349 | BW57: 53.1640274 | BZ57: 55 | CA57: 18.33333333 | CB57: 373.835 | CC57: 255.691 | CD57: 361.034 | CE57: 37.27900333 | CF57: 336.5559967 | CG57: 218.4119967 | CH57: 323.7549967 | CI57: 16.20054924 | CJ57: 13.19217559 | CK57: 16.00508603 | CL57: 15.13260362 | CO57: 55 | CP57: 18.33333333 | CQ57: 1072.138 | CR57: 921.4 | CS57: 704.059 | CT57: 37.27900333 | CU57: 1034.858997 | CV57: 884.1209967 | CW57: 666.7799967 | CX57: 103.7442519 | CY57: 94.95612238 | CZ57: 95.32159318 | DA57: 98.00732249 | DD57: 55 | DE57: 18.33333333 | DF57: 1225.356 | DG57: 966.873 | DH57: 835.721 | DI57: 37.27900333 | DJ57: 1188.076997 | DK57: 929.5939967 | DL57: 798.4419967 | DM57: 111.2497561 | DN57: 96.98113762 | DO57: 98.14576178 | DP57: 102.1255518
C58: 56 | D58: 18.66666667 | E58: 1096.789 | F58: 1089.19 | G58: 1160.81 | H58: 37.33561 | I58: 1059.45339 | J58: 1051.85439 | K58: 1123.47439 | L58: 91.03446528 | M58: 101.8223762 | N58: 99.23679731 | O58: 97.36454628 | R58: 56 | S58: 18.66666667 | T58: 759.392 | U58: 1068.762 | V58: 1024.053 | W58: 37.33561 | X58: 722.05639 | Y58: 1031.42639 | Z58: 986.71739 | AA58: 104.4645214 | AB58: 113.0692459 | AC58: 99.15574596 | AD58: 105.5631711 | AG58: 56 | AH58: 18.66666667 | AI58: 1113.937 | AJ58: 968.478 | AK58: 1143.59 | AL58: 37.33561 | AM58: 1076.60139 | AN58: 931.14239 | AO58: 1106.25439 | AP58: 76.45188808 | AQ58: 80.57334301 | AR58: 84.86652154 | AS58: 80.63058421 | AV58: 56 | AW58: 18.66666667 | AX58: 962.701 | AY58: 698.821 | AZ58: 1011.983 | BA58: 37.33561 | BB58: 925.36539 | BC58: 661.48539 | BD58: 974.64739 | BE58: 90.15836684 | BF58: 76.85535718 | BG58: 81.04914826 | BH58: 82.68762409 | BK58: 56 | BL58: 18.66666667 | BM58: 630.759 | BN58: 586.22 | BO58: 582.05 | BP58: 37.33561 | BQ58: 593.42339 | BR58: 548.88439 | BS58: 544.71439 | BT58: 52.23145841 | BU58: 51.57952383 | BV58: 53.47662826 | BW58: 52.4292035 | BZ58: 56 | CA58: 18.66666667 | CB58: 383.051 | CC58: 254.46 | CD58: 364.281 | CE58: 37.33561 | CF58: 345.71539 | CG58: 217.12439 | CH58: 326.94539 | CI58: 16.64144824 | CJ58: 13.11440361 | CK58: 16.16280566 | CL58: 15.30621917 | CO58: 56 | CP58: 18.66666667 | CQ58: 1067.86 | CR58: 912.72 | CS58: 703.824 | CT58: 37.33561 | CU58: 1030.52439 | CV58: 875.38439 | CW58: 666.48839 | CX58: 103.3097091 | CY58: 94.01779574 | CZ58: 95.27990565 | DA58: 97.53580349 | DD58: 56 | DE58: 18.66666667 | DF58: 1232.288 | DG58: 953.064 | DH58: 826.2 | DI58: 37.33561 | DJ58: 1194.95239 | DK58: 915.72839 | DL58: 788.86439 | DM58: 111.8935577 | DN58: 95.53458965 | DO58: 96.96846712 | DP58: 101.4655382
C59: 57 | D59: 19 | E59: 1099.027 | F59: 1079.991 | G59: 1161.861 | H59: 37.43851667 | I59: 1061.588483 | J59: 1042.552483 | K59: 1124.422483 | L59: 91.21792506 | M59: 100.9219263 | N59: 99.32054265 | O59: 97.15346467 | R59: 57 | S59: 19 | T59: 757.399 | U59: 1063.452 | V59: 1023.102 | W59: 37.43851667 | X59: 719.9604833 | Y59: 1026.013483 | Z59: 985.6634833 | AA59: 104.1612931 | AB59: 112.4758606 | AC59: 99.04983833 | AD59: 105.2289974 | AG59: 57 | AH59: 19 | AI59: 1130.468 | AJ59: 959.143 | AK59: 1140.304 | AL59: 37.43851667 | AM59: 1093.029483 | AN59: 921.7044833 | AO59: 1102.865483 | AP59: 77.61848396 | AQ59: 79.75666481 | AR59: 84.60654091 | AS59: 80.66056323 | AV59: 57 | AW59: 19 | AX59: 944.755 | AY59: 709.845 | AZ59: 1008.354 | BA59: 37.43851667 | BB59: 907.3164833 | BC59: 672.4064833 | BD59: 970.9154833 | BE59: 88.39986154 | BF59: 78.12423559 | BG59: 80.73881258 | BH59: 82.4209699 | BK59: 57 | BL59: 19 | BM59: 631.998 | BN59: 581.281 | BO59: 588.713 | BP59: 37.43851667 | BQ59: 594.5594833 | BR59: 543.8424833 | BS59: 551.2744833 | BT59: 52.33145415 | BU59: 51.10572798 | BV59: 54.12065691 | BW59: 52.51927968 | BZ59: 57 | CA59: 19 | CB59: 375.123 | CC59: 253.677 | CD59: 354.796 | CE59: 37.43851667 | CF59: 337.6844833 | CG59: 216.2384833 | CH59: 317.3574833 | CI59: 16.25487037 | CJ59: 13.06089448 | CK59: 15.68881986 | CL59: 15.00152824 | CO59: 57 | CP59: 19 | CQ59: 1051.563 | CR59: 921.759 | CS59: 710.623 | CT59: 37.43851667 | CU59: 1014.124483 | CV59: 884.3204833 | CW59: 673.1844833 | CX59: 101.6656242 | CY59: 94.9775476 | CZ59: 96.23716634 | DA59: 97.62677938 | DD59: 57 | DE59: 19 | DF59: 1229.097 | DG59: 965.838 | DH59: 839.268 | DI59: 37.43851667 | DJ59: 1191.658483 | DK59: 928.3994833 | DL59: 801.8294833 | DM59: 111.5851212 | DN59: 96.85651842 | DO59: 98.56215704 | DP59: 102.3345989
C60: 58 | D60: 19.33333333 | E60: 1104.266 | F60: 1083.251 | G60: 1216.831 | H60: 37.01902667 | I60: 1067.246973 | J60: 1046.231973 | K60: 1179.811973 | L60: 91.70413579 | M60: 101.278111 | N60: 104.2131113 | O60: 99.06511936 | R60: 58 | S60: 19.33333333 | T60: 714.677 | U60: 1060.434 | V60: 1001.105 | W60: 37.01902667 | X60: 677.6579733 | Y60: 1023.414973 | Z60: 964.0859733 | AA60: 98.04111815 | AB60: 112.1910011 | AC60: 96.88150308 | AD60: 102.3712074 | AG60: 58 | AH60: 19.33333333 | AI60: 1140.463 | AJ60: 949.379 | AK60: 1134.52 | AL60: 37.01902667 | AM60: 1103.443973 | AN60: 912.3599733 | AO60: 1097.500973 | AP60: 78.35804034 | AQ60: 78.94806839 | AR60: 84.19500148 | AS60: 80.50037007 | AV60: 58 | AW60: 19.33333333 | AX60: 943.068 | AY60: 713.1 | AZ60: 1014.55 | BA60: 37.01902667 | BB60: 906.0489733 | BC60: 676.0809733 | BD60: 977.5309733 | BE60: 88.27636802 | BF60: 78.55115997 | BG60: 81.28893956 | BH60: 82.70548918 | BK60: 58 | BL60: 19.33333333 | BM60: 624.483 | BN60: 566.988 | BO60: 585.413 | BP60: 37.01902667 | BQ60: 587.4639733 | BR60: 529.9689733 | BS60: 548.3939733 | BT60: 51.70692731 | BU60: 49.80201257 | BV60: 53.83786658 | BW60: 51.78226882 | BZ60: 58 | CA60: 19.33333333 | CB60: 366.007 | CC60: 247.517 | CD60: 343.342 | CE60: 37.01902667 | CF60: 328.9879733 | CG60: 210.4979733 | CH60: 306.3229733 | CI60: 15.83625285 | CJ60: 12.71416528 | CK60: 15.14332007 | CL60: 14.5645794 | CO60: 58 | CP60: 19.33333333 | CQ60: 1074.071 | CR60: 921.614 | CS60: 705.785 | CT60: 37.01902667 | CU60: 1037.051973 | CV60: 884.5949733 | CW60: 668.7659733 | CX60: 103.964097 | CY60: 95.0070283 | CZ60: 95.6055046 | DA60: 98.19220998 | DD60: 58 | DE60: 19.33333333 | DF60: 1230.782 | DG60: 962.082 | DH60: 832.122 | DI60: 37.01902667 | DJ60: 1193.762973 | DK60: 925.0629733 | DL60: 795.1029733 | DM60: 111.7821825 | DN60: 96.50843254 | DO60: 97.73532372 | DP60: 102.0086463
C61: 59 | D61: 19.66666667 | E61: 1106.776 | F61: 1071.147 | G61: 1196.687 | H61: 36.77037 | I61: 1070.00563 | J61: 1034.37663 | K61: 1159.91663 | L61: 91.9411758 | M61: 100.1304814 | N61: 102.4557502 | O61: 98.17580247 | R61: 59 | S61: 19.66666667 | T61: 709.017 | U61: 1064.275 | V61: 1024.873 | W61: 36.77037 | X61: 672.24663 | Y61: 1027.50463 | Z61: 988.10263 | AA61: 97.25822446 | AB61: 112.6393263 | AC61: 99.29494945 | AD61: 103.0641667 | AG61: 59 | AH61: 19.66666667 | AI61: 1112.366 | AJ61: 959.681 | AK61: 1130.437 | AL61: 36.77037 | AM61: 1075.59563 | AN61: 922.91063 | AO61: 1093.66663 | AP61: 76.3804668 | AQ61: 79.86103475 | AR61: 83.90084908 | AS61: 80.04745021 | AV61: 59 | AW61: 19.66666667 | AX61: 943.116 | AY61: 685.182 | AZ61: 1013.057 | BA61: 36.77037 | BB61: 906.34563 | BC61: 648.41163 | BD61: 976.28663 | BE61: 88.30527128 | BF61: 75.336369 | BG61: 81.1854632 | BH61: 81.60903449 | BK61: 59 | BL61: 19.66666667 | BM61: 603.994 | BN61: 570.761 | BO61: 579.65 | BP61: 36.77037 | BQ61: 567.22363 | BR61: 533.99063 | BS61: 542.87963 | BT61: 49.9254292 | BU61: 50.17993393 | BV61: 53.29650308 | BW61: 51.1339554 | BZ61: 59 | CA61: 19.66666667 | CB61: 377.99 | CC61: 254.467 | CD61: 351.764 | CE61: 36.77037 | CF61: 341.21963 | CG61: 217.69663 | CH61: 314.99363 | CI61: 16.42503913 | CJ61: 13.14896714 | CK61: 15.57196089 | CL61: 15.04865572 | CO61: 59 | CP61: 19.66666667 | CQ61: 1054.037 | CR61: 906.18 | CS61: 705.907 | CT61: 36.77037 | CU61: 1017.26663 | CV61: 869.40963 | CW61: 669.13663 | CX61: 101.9806233 | CY61: 93.37609619 | CZ61: 95.65849297 | DA61: 97.00507082 | DD61: 59 | DE61: 19.66666667 | DF61: 1234.864 | DG61: 979.772 | DH61: 821.59 | DI61: 36.77037 | DJ61: 1198.09363 | DK61: 943.00163 | DL61: 784.81963 | DM61: 112.1876987 | DN61: 98.37990691 | DO61: 96.47127878 | DP61: 102.3462948
C62: 60 | D62: 20 | E62: 1108.538 | F62: 1079.764 | G62: 1167.358 | H62: 37.62295 | I62: 1070.91505 | J62: 1042.14105 | K62: 1129.73505 | L62: 92.01931851 | M62: 100.8820984 | N62: 99.7898031 | O62: 97.56374001 | R62: 60 | S62: 20 | T62: 722.369 | U62: 1064.156 | V62: 1021.134 | W62: 37.62295 | X62: 684.74605 | Y62: 1026.53305 | Z62: 983.51105 | AA62: 99.06659559 | AB62: 112.5328176 | AC62: 98.83353918 | AD62: 103.4776508 | AG62: 60 | AH62: 20 | AI62: 1115.301 | AJ62: 953.633 | AK62: 1118.573 | AL62: 37.62295 | AM62: 1077.67805 | AN62: 916.01005 | AO62: 1080.95005 | AP62: 76.52834413 | AQ62: 79.26391576 | AR62: 82.92529416 | AS62: 79.57251802 | AV62: 60 | AW62: 20 | AX62: 941.233 | AY62: 674.005 | AZ62: 1010.926 | BA62: 37.62295 | BB62: 903.61005 | BC62: 636.38205 | BD62: 973.30305 | BE62: 88.03874367 | BF62: 73.93869993 | BG62: 80.93735643 | BH62: 80.97160001 | BK62: 60 | BL62: 20 | BM62: 616.852 | BN62: 558.851 | BO62: 579.029 | BP62: 37.62295 | BQ62: 579.22905 | BR62: 521.22805 | BS62: 541.40605 | BT62: 50.98211251 | BU62: 48.98061434 | BV62: 53.15183627 | BW62: 51.03818771 | BZ62: 60 | CA62: 20 | CB62: 366.78 | CC62: 230.252 | CD62: 343.587 | CE62: 37.62295 | CF62: 329.15705 | CG62: 192.62905 | CH62: 305.96405 | CI62: 15.84439157 | CJ62: 11.63487487 | CK62: 15.12557641 | CL62: 14.20161428 | CO62: 60 | CP62: 20 | CQ62: 1059.945 | CR62: 913.211 | CS62: 711.029 | CT62: 37.62295 | CU62: 1022.32205 | CV62: 875.58805 | CW62: 673.40605 | CX62: 102.4874274 | CY62: 94.03966917 | CZ62: 96.26884109 | DA62: 97.59864588 | DD62: 60 | DE62: 20 | DF62: 1239.498 | DG62: 966.942 | DH62: 834.741 | DI62: 37.62295 | DJ62: 1201.87505 | DK62: 929.31905 | DL62: 797.11805 | DM62: 112.5417852 | DN62: 96.95245344 | DO62: 97.98302015 | DP62: 102.4924196
C63: 61 | D63: 20.33333333 | E63: 1104.222 | F63: 1069.006 | G63: 1174.442 | H63: 36.988 | I63: 1067.234 | J63: 1032.018 | K63: 1137.454 | L63: 91.70302105 | M63: 99.90215954 | N63: 100.47162 | O63: 97.35893355 | R63: 61 | S63: 20.33333333 | T63: 732.227 | U63: 1054.18 | V63: 997.305 | W63: 36.988 | X63: 695.239 | Y63: 1017.192 | Z63: 960.317 | AA63: 100.5846779 | AB63: 111.5088129 | AC63: 96.50275698 | AD63: 102.8654159 | AG63: 61 | AH63: 20.33333333 | AI63: 1134.076 | AJ63: 954.118 | AK63: 1119.521 | AL63: 36.988 | AM63: 1097.088 | AN63: 917.13 | AO63: 1082.533 | AP63: 77.90668837 | AQ63: 79.36082695 | AR63: 83.04673048 | AS63: 80.1047486 | AV63: 61 | AW63: 20.33333333 | AX63: 935.79 | AY63: 676.093 | AZ63: 1009.567 | BA63: 36.988 | BB63: 898.802 | BC63: 639.105 | BD63: 972.579 | BE63: 87.57029527 | BF63: 74.25506866 | BG63: 80.87714631 | BH63: 80.90083675 | BK63: 61 | BL63: 20.33333333 | BM63: 603.632 | BN63: 555.429 | BO63: 574.221 | BP63: 36.988 | BQ63: 566.644 | BR63: 518.441 | BS63: 537.233 | BT63: 49.87441179 | BU63: 48.7187109 | BV63: 52.7421525 | BW63: 50.44509173 | BZ63: 61 | CA63: 20.33333333 | CB63: 370.197 | CC63: 239.512 | CD63: 347.339 | CE63: 36.988 | CF63: 333.209 | CG63: 202.524 | CH63: 310.351 | CI63: 16.03943731 | CJ63: 12.23253397 | CK63: 15.34244878 | CL63: 14.53814002 | CO63: 61 | CP63: 20.33333333 | CQ63: 1052.229 | CR63: 913.727 | CS63: 711.901 | CT63: 36.988 | CU63: 1015.241 | CV63: 876.739 | CW63: 674.913 | CX63: 101.7775546 | CY63: 94.16328319 | CZ63: 96.48427178 | DA63: 97.47503653 | DD63: 61 | DE63: 20.33333333 | DF63: 1231.343 | DG63: 988.77 | DH63: 832.362 | DI63: 36.988 | DJ63: 1194.355 | DK63: 951.782 | DL63: 795.374 | DM63: 111.837619 | DN63: 99.29593076 | DO63: 97.76863875 | DP63: 102.9673962
C64: 62 | D64: 20.66666667 | E64: 1105.014 | F64: 1080.091 | G64: 1192.171 | H64: 37.10555 | I64: 1067.90845 | J64: 1042.98545 | K64: 1155.06545 | L64: 91.76097376 | M64: 100.9638386 | N64: 102.0272442 | O64: 98.25068553 | R64: 62 | S64: 20.66666667 | T64: 784.139 | U64: 1058.642 | V64: 1013.322 | W64: 37.10555 | X64: 747.03345 | Y64: 1021.53645 | Z64: 976.21645 | AA64: 108.0781126 | AB64: 111.9850696 | AC64: 98.10050101 | AD64: 106.0545611 | AG64: 62 | AH64: 20.66666667 | AI64: 1132.117 | AJ64: 954.873 | AK64: 1126.969 | AL64: 37.10555 | AM64: 1095.01145 | AN64: 917.76745 | AO64: 1089.86345 | AP64: 77.75922788 | AQ64: 79.41598659 | AR64: 83.60908738 | AS64: 80.26143395 | AV64: 62 | AW64: 20.66666667 | AX64: 936.883 | AY64: 688.668 | AZ64: 996.111 | BA64: 37.10555 | BB64: 899.77745 | BC64: 651.56245 | BD64: 959.00545 | BE64: 87.66533338 | BF64: 75.70245024 | BG64: 79.74840511 | BH64: 81.03872958 | BK64: 62 | BL64: 20.66666667 | BM64: 601.798 | BN64: 547.814 | BO64: 554.215 | BP64: 37.10555 | BQ64: 564.69245 | BR64: 510.70845 | BS64: 517.10945 | BT64: 49.70264185 | BU64: 47.99207109 | BV64: 50.7665491 | BW64: 49.48708735 | BZ64: 62 | CA64: 20.66666667 | CB64: 360.161 | CC64: 237.673 | CD64: 327.492 | CE64: 37.10555 | CF64: 323.05545 | CG64: 200.56745 | CH64: 290.38645 | CI64: 15.55068332 | CJ64: 12.11435753 | CK64: 14.35548536 | CL64: 14.00684207 | CO64: 62 | CP64: 20.66666667 | CQ64: 1078.72 | CR64: 912.371 | CS64: 704.984 | CT64: 37.10555 | CU64: 1041.61445 | CV64: 875.26545 | CW64: 667.87845 | CX64: 104.4214837 | CY64: 94.00502137 | CZ64: 95.47862596 | DA64: 97.96837702 | DD64: 62 | DE64: 20.66666667 | DF64: 1234.032 | DG64: 1004.786 | DH64: 834.571 | DI64: 37.10555 | DJ64: 1196.92645 | DK64: 967.68045 | DL64: 797.46545 | DM64: 112.0784057 | DN64: 100.9545578 | DO64: 98.02572311 | DP64: 103.6862289
C65: 63 | D65: 21 | E65: 1096.633 | F65: 1080.604 | G65: 1153.383 | H65: 37.68135333 | I65: 1058.951647 | J65: 1042.922647 | K65: 1115.701647 | L65: 90.99135255 | M65: 100.9577591 | N65: 98.55022878 | O65: 96.83311348 | R65: 63 | S65: 21 | T65: 766.977 | U65: 1052.369 | V65: 1027.546 | W65: 37.68135333 | X65: 729.2956467 | Y65: 1014.687647 | Z65: 989.8646467 | AA65: 105.511871 | AB65: 111.2342753 | AC65: 99.47201543 | AD65: 105.4060539 | AG65: 63 | AH65: 21 | AI65: 1128.125 | AJ65: 949.776 | AK65: 1118.986 | AL65: 37.68135333 | AM65: 1090.443647 | AN65: 912.0946467 | AO65: 1081.304647 | AP65: 77.43485788 | AQ65: 78.92510922 | AR65: 82.95249711 | AS65: 79.7708214 | AV65: 63 | AW65: 21 | AX65: 934.673 | AY65: 684.855 | AZ65: 1009.268 | BA65: 37.68135333 | BB65: 896.9916467 | BC65: 647.1736467 | BD65: 971.5866467 | BE65: 87.39391251 | BF65: 75.19253263 | BG65: 80.79462478 | BH65: 81.12702331 | BK65: 63 | BL65: 21 | BM65: 584.454 | BN65: 545.656 | BO65: 548.422 | BP65: 37.68135333 | BQ65: 546.7726467 | BR65: 507.9746467 | BS65: 510.7406467 | BT65: 48.12539114 | BU65: 47.73517132 | BV65: 50.1413001 | BW65: 48.66728752 | BZ65: 63 | CA65: 21 | CB65: 362.091 | CC65: 231 | CD65: 342.99 | CE65: 37.68135333 | CF65: 324.4096467 | CG65: 193.3186467 | CH65: 305.3086467 | CI65: 15.61586929 | CJ65: 11.67652679 | CK65: 15.09317603 | CL65: 14.12852404 | CO65: 63 | CP65: 21 | CQ65: 1044.826 | CR65: 900.884 | CS65: 711.101 | CT65: 37.68135333 | CU65: 1007.144647 | CV65: 863.2026467 | CW65: 673.4196467 | CX65: 100.965898 | CY65: 92.70945546 | CZ65: 96.27078484 | DA65: 96.64871277 | DD65: 63 | DE65: 21 | DF65: 1232.619 | DG65: 996.969 | DH65: 827.888 | DI65: 37.68135333 | DJ65: 1194.937647 | DK65: 959.2876467 | DL65: 790.2066467 | DM65: 111.8921772 | DN65: 100.0789674 | DO65: 97.13345945 | DP65: 103.034868
C66: 64 | D66: 21.33333333 | E66: 1097.562 | F66: 1076.325 | G66: 1166.701 | H66: 36.83789333 | I66: =E66-H66 -> 1060.724107 | J66: =F66-H66 -> 1039.487107 | K66: =G66-H66 -> 1129.863107 | L66: =I66/($I$2)*100 -> 91.14365273 | M66: =J66/($J$2)*100 -> 100.6251895 | N66: =K66/($K$2)*100 -> 99.80111438 | O66: =AVERAGE(L66:N66) -> 97.18998552 | R66: 64 | S66: 21.33333333 | T66: 792.676 | U66: 1055.471 | V66: 1003.239 | W66: 36.83789333 | X66: =T66-W66 -> 755.8381067 | Y66: =U66-W66 -> 1018.633107 | Z66: =V66-W66 -> 966.4011067 | AA66: =X66/($X$2)*100 -> 109.3519386 | AB66: =Y66/($Y$2)*100 -> 111.666793 | AC66: =Z66/($Z$2)*100 -> 97.11415203 | AD66: =AVERAGE(AA66:AC66) -> 106.0442946 | AG66: 64 | AH66: 21.33333333 | AI66: 1119.887 | AJ66: 941.102 | AK66: 1117.236 | AL66: 36.83789333 | AM66: =AI66-AL66 -> 1083.049107 | AN66: =AJ66-AL66 -> 904.2641067 | AO66: =AK66-AL66 -> 1080.398107 | AP66: =AM66/($AM$2)*100 -> 76.90975495 | AQ66: =AN66/($AN$2)*100 -> 78.2475192 | AR66: =AO66/($AO$2)*100 -> 82.88295172 | AS66: =AVERAGE(AP66:AR66) -> 79.34674196 | AV66: 64 | AW66: 21.33333333 | AX66: 929.442 | AY66: 682.944 | AZ66: 994.601 | BA66: 36.83789333 | BB66: =AX66-BA66 -> 892.6041067 | BC66: =AY66-BA66 -> 646.1061067 | BD66: =AZ66-BA66 -> 957.7631067 | BE66: =BB66/($BB$2)*100 -> 86.96643441 | BF66: =BC66/($BC$2)*100 -> 75.06849941 | BG66: =BD66/($BD$2)*100 -> 79.64509506 | BH66: =AVERAGE(BE66:BG66) -> 80.56000963 | BK66: 64 | BL66: 21.33333333 | BM66: 587.402 | BN66: 524.298 | BO66: 543.003 | BP66: 36.83789333 | BQ66: =BM66-BP66 -> 550.5641067 | BR66: =BN66-BP66 -> 487.4601067 | BS66: =BO66-BP66 -> 506.1651067 | BT66: =BQ66/($BQ$2)*100 -> 48.45910479 | BU66: =BR66/($BR$2)*100 -> 45.80738794 | BV66: =BS66/($BS$2)*100 -> 49.6921024 | BW66: =AVERAGE(BT66:BV66) -> 47.98619838 | BZ66: 64 | CA66: 21.33333333 | CB66: 355.009 | CC66: 233.986 | CD66: 322.926 | CE66: 36.83789333 | CF66: =CB66-CE66 -> 318.1711067 | CG66: =CC66-CE66 -> 197.1481067 | CH66: =CD66-CE66 -> 286.0881067 | CI66: =CF66/($CF$2)*100 -> 15.31556927 | CJ66: =CG66/($CG$2)*100 -> 11.90782777 | CK66: =CH66/($CH$2)*100 -> 14.14299333 | CL66: =AVERAGE(CI66:CK66) -> 13.78879679 | CO66: 64 | CP66: 21.33333333 | CQ66: 1067.29 | CR66: 909.429 | CS66: 710.503 | CT66: 36.83789333 | CU66: =CQ66-CT66 -> 1030.452107 | CV66: =CR66-CT66 -> 872.5911067 | CW66: =CS66-CT66 -> 673.6651067 | CX66: =CU66/($CU$2)*100 -> 103.3024627 | CY66: =CV66/($CV$2)*100 -> 93.71779228 | CZ66: =CW66/($CW$2)*100 -> 96.30587534 | DA66: =AVERAGE(CX66:CZ66) -> 97.77537678 | DD66: 64 | DE66: 21.33333333 | DF66: 1224.511 | DG66: 1001.761 | DH66: 833.506 | DI66: 36.83789333 | DJ66: =DF66-DI66 -> 1187.673107 | DK66: =DG66-DI66 -> 964.9231067 | DL66: =DH66-DI66 -> 796.6681067 | DM66: =DJ66/($DJ$2)*100 -> 111.2119365 | DN66: =DK66/($DK$2)*100 -> 100.6668943 | DO66: =DL66/($DL$2)*100 -> 97.9277124 | DP66: =AVERAGE(DM66:DO66) -> 103.2688477
C67: 65 | D67: 21.66666667 | E67: 1094.304 | F67: 1076.162 | G67: 1140.425 | H67: 36.95491 | I67: 1057.34909 | J67: 1039.20709 | K67: 1103.47009 | L67: 90.85365145 | M67: 100.5980831 | N67: 97.46981207 | O67: 96.3071822 | R67: 65 | S67: 21.66666667 | T67: 787.083 | U67: 1053.62 | V67: 1012.442 | W67: 36.95491 | X67: 750.12809 | Y67: 1016.66509 | Z67: 975.48709 | AA67: 108.525834 | AB67: 111.4510509 | AC67: 98.02720725 | AD67: 106.001364 | AG67: 65 | AH67: 21.66666667 | AI67: 1106.502 | AJ67: 946.726 | AK67: 1116.944 | AL67: 36.95491 | AM67: 1069.54709 | AN67: 909.77109 | AO67: 1079.98909 | AP67: 75.95094636 | AQ67: 78.72404789 | AR67: 82.85157393 | AS67: 79.17552272 | AV67: 65 | AW67: 21.66666667 | AX67: 933.409 | AY67: 673.644 | AZ67: 1005.616 | BA67: 36.95491 | BB67: 896.45409 | BC67: 636.68909 | BD67: 968.66109 | BE67: 87.34153836 | BF67: 73.97437369 | BG67: 80.55134308 | BH67: 80.62241837 | BK67: 65 | BL67: 21.66666667 | BM67: 554.384 | BN67: 534.206 | BO67: 543.721 | BP67: 36.95491 | BQ67: 517.42909 | BR67: 497.25109 | BS67: 506.76609 | BT67: 45.54265378 | BU67: 46.72746194 | BV67: 49.75110316 | BW67: 47.34040629 | BZ67: 65 | CA67: 21.66666667 | CB67: 351.303 | CC67: 229.809 | CD67: 336.065 | CE67: 36.95491 | CF67: 314.34809 | CG67: 192.85409 | CH67: 299.11009 | CI67: 15.13154352 | CJ67: 11.64846738 | CK67: 14.78674544 | CL67: 13.85558545 | CO67: 65 | CP67: 21.66666667 | CQ67: 1055.956 | CR67: 912.611 | CS67: 711.34 | CT67: 36.95491 | CU67: 1019.00109 | CV67: 875.65609 | CW67: 674.38509 | CX67: 102.1545023 | CY67: 94.04697679 | CZ67: 96.40880278 | DA67: 97.53676063 | DD67: 65 | DE67: 21.66666667 | DF67: 1231.628 | DG67: 1022.529 | DH67: 816.505 | DI67: 36.95491 | DJ67: 1194.67309 | DK67: 985.57409 | DL67: 779.55009 | DM67: 111.8674045 | DN67: 102.8213358 | DO67: 95.82353853 | DP67: 103.5040929
C68: 66 | D68: 22 | E68: 1111.346 | F68: 1076.546 | G68: 1190.032 | H68: 37.62055 | I68: 1073.72545 | J68: 1038.92545 | K68: 1152.41145 | L68: 92.2608046 | M68: 100.5708196 | N68: 101.7928157 | O68: 98.20814661 | R68: 66 | S68: 22 | T68: 776.564 | U68: 1048.537 | V68: 999.315 | W68: 37.62055 | X68: 738.94345 | Y68: 1010.91645 | Z68: 961.69445 | AA68: 106.9076805 | AB68: 110.8208611 | AC68: 96.64117765 | AD68: 104.7899064 | AG68: 66 | AH68: 22 | AI68: 1100.879 | AJ68: 941.579 | AK68: 1118.827 | AL68: 37.62055 | AM68: 1063.25845 | AN68: 903.95845 | AO68: 1081.20645 | AP68: 75.50437587 | AQ68: 78.22107021 | AR68: 82.94496394 | AS68: 78.89013667 | AV68: 66 | AW68: 22 | AX68: 935.412 | AY68: 667.167 | AZ68: 1010.57 | BA68: 37.62055 | BB68: 897.79145 | BC68: 629.54645 | BD68: 972.94945 | BE68: 87.47183737 | BF68: 73.14449875 | BG68: 80.90795197 | BH68: 80.50809603 | BK68: 66 | BL68: 22 | BM68: 575.225 | BN68: 520.153 | BO68: 545.267 | BP68: 37.62055 | BQ68: 537.60445 | BR68: 482.53245 | BS68: 507.64645 | BT68: 47.31843225 | BU68: 45.34432834 | BV68: 49.83753136 | BW68: 47.50009732 | BZ68: 66 | CA68: 22 | CB68: 344.778 | CC68: 234.479 | CD68: 332.609 | CE68: 37.62055 | CF68: 307.15745 | CG68: 196.85845 | CH68: 294.98845 | CI68: 14.78541295 | CJ68: 11.89033239 | CK68: 14.58298889 | CL68: 13.75291141 | CO68: 66 | CP68: 22 | CQ68: 1054.547 | CR68: 910.808 | CS68: 716.157 | CT68: 37.62055 | CU68: 1016.92645 | CV68: 873.18745 | CW68: 678.53645 | CX68: 101.9465204 | CY68: 93.78184058 | CZ68: 97.00227326 | DA68: 97.57687808 | DD68: 66 | DE68: 22 | DF68: 1238.104 | DG68: 1004.734 | DH68: 833.993 | DI68: 37.62055 | DJ68: 1200.48345 | DK68: 967.11345 | DL68: 796.37245 | DM68: 112.4114779 | DN68: 100.8954048 | DO68: 97.89136981 | DP68: 103.7327508
C69: 67 | D69: 22.33333333 | E69: 1113.181 | F69: 1081.648 | G69: 1141.836 | H69: 37.76451 | I69: 1075.41649 | J69: 1043.88349 | K69: 1104.07149 | L69: 92.4061087 | M69: 101.0507714 | N69: 97.52293389 | O69: 96.99327132 | R69: 67 | S69: 22.33333333 | T69: 770.962 | U69: 1066.266 | V69: 998.061 | W69: 37.76451 | X69: 733.19749 | Y69: 1028.50149 | Z69: 960.29649 | AA69: 106.0763757 | AB69: 112.7486062 | AC69: 96.50069592 | AD69: 105.1085593 | AG69: 67 | AH69: 22.33333333 | AI69: 1130.078 | AJ69: 934.284 | AK69: 1118.29 | AL69: 37.76451 | AM69: 1092.31349 | AN69: 896.51949 | AO69: 1080.52549 | AP69: 77.56763967 | AQ69: 77.57736428 | AR69: 82.89272396 | AS69: 79.3459093 | AV69: 67 | AW69: 22.33333333 | AX69: 928.72 | AY69: 659.204 | AZ69: 994.819 | BA69: 37.76451 | BB69: 890.95549 | BC69: 621.43949 | BD69: 957.05449 | BE69: 86.80580966 | BF69: 72.2025833 | BG69: 79.58616834 | BH69: 79.53152043 | BK69: 67 | BL69: 22.33333333 | BM69: 567.394 | BN69: 523.577 | BO69: 540.533 | BP69: 37.76451 | BQ69: 529.62949 | BR69: 485.81249 | BS69: 502.76849 | BT69: 46.61649869 | BU69: 45.65255883 | BV69: 49.35864397 | BW69: 47.20923383 | BZ69: 67 | CA69: 22.33333333 | CB69: 350.069 | CC69: 225.641 | CD69: 324.162 | CE69: 37.76451 | CF69: 312.30449 | CG69: 187.87649 | CH69: 286.39749 | CI69: 15.03317224 | CJ69: 11.34781826 | CK69: 14.15828794 | CL69: 13.51309282 | CO69: 67 | CP69: 22.33333333 | CQ69: 1076.573 | CR69: 915.718 | CS69: 710.077 | CT69: 37.76451 | CU69: 1038.80849 | CV69: 877.95349 | CW69: 672.31249 | CX69: 104.1401872 | CY69: 94.29372151 | CZ69: 96.11250784 | DA69: 98.18213886 | DD69: 67 | DE69: 22.33333333 | DF69: 1207.666 | DG69: 1035.688 | DH69: 832.158 | DI69: 37.76451 | DJ69: 1169.90149 | DK69: 997.92349 | DL69: 794.39349 | DM69: 109.5478288 | DN69: 104.1097034 | DO69: 97.6481129 | DP69: 103.7685484
C70: 68 | D70: 22.66666667 | E70: 1112.538 | F70: 1081.029 | G70: 1164.286 | H70: 37.30606667 | I70: 1075.231933 | J70: 1043.722933 | K70: 1126.979933 | L70: 92.39025051 | M70: 101.035229 | N70: 99.5464429 | O70: 97.65730749 | R70: 68 | S70: 22.66666667 | T70: 728.782 | U70: 1055.753 | V70: 1003.291 | W70: 37.30606667 | X70: 691.4759333 | Y70: 1018.446933 | Z70: 965.9849333 | AA70: 100.0402509 | AB70: 111.6463839 | AC70: 97.07233056 | AD70: 102.9196551 | AG70: 68 | AH70: 22.66666667 | AI70: 1108.766 | AJ70: 933.87 | AK70: 1092.352 | AL70: 37.30606667 | AM70: 1071.459933 | AN70: 896.5639333 | AO70: 1055.045933 | AP70: 76.08678167 | AQ70: 77.58121004 | AR70: 80.93805479 | AS70: 78.2020155 | AV70: 68 | AW70: 22.66666667 | AX70: 924.029 | AY70: 672.013 | AZ70: 996.596 | BA70: 37.30606667 | BB70: 886.7229333 | BC70: 634.7069333 | BD70: 959.2899333 | BE70: 86.39343159 | BF70: 73.74407478 | BG70: 79.772062 | BH70: 79.96985612 | BK70: 68 | BL70: 22.66666667 | BM70: 548.522 | BN70: 512.115 | BO70: 543.182 | BP70: 37.30606667 | BQ70: 511.2159333 | BR70: 474.8089333 | BS70: 505.8759333 | BT70: 44.9957892 | BU70: 44.61853741 | BV70: 49.66371318 | BW70: 46.42601327 | BZ70: 68 | CA70: 22.66666667 | CB70: 344.81 | CC70: 224.074 | CD70: 325.537 | CE70: 37.30606667 | CF70: 307.5039333 | CG70: 186.7679333 | CH70: 288.2309333 | CI70: 14.80209137 | CJ70: 11.28086098 | CK70: 14.24892567 | CL70: 13.44395934 | CO70: 68 | CP70: 22.66666667 | CQ70: 1053.311 | CR70: 918.98 | CS70: 717.755 | CT70: 37.30606667 | CU70: 1016.004933 | CV70: 881.6739333 | CW70: 680.4489333 | CX70: 101.8541387 | CY70: 94.69330356 | CZ70: 97.27567822 | DA70: 97.94104015 | DD70: 68 | DE70: 22.66666667 | DF70: 1230.99 | DG70: 991.938 | DH70: 833.628 | DI70: 37.30606667 | DJ70: 1193.683933 | DK70: 954.6319333 | DL70: 796.3219333 | DM70: 111.7747813 | DN70: 99.59325386 | DO70: 97.88516022 | DP70: 103.0843985
C71: 69 | D71: 23 | E71: 1115.381 | F71: 1088.927 | G71: 1157.703 | H71: 36.96689333 | I71: 1078.414107 | J71: 1051.960107 | K71: 1120.736107 | L71: 92.66368156 | M71: 101.8326099 | N71: 98.994924 | O71: 97.83040515 | R71: 69 | S71: 23 | T71: 719.222 | U71: 1035.12 | V71: 996.999 | W71: 36.96689333 | X71: 682.2551067 | Y71: 998.1531067 | Z71: 960.0321067 | AA71: 98.70621487 | AB71: 109.4216903 | AC71: 96.4741279 | AD71: 101.534011 | AG71: 69 | AH71: 23 | AI71: 1114.534 | AJ71: 936.652 | AK71: 1116.537 | AL71: 36.96689333 | AM71: 1077.567107 | AN71: 899.6851067 | AO71: 1079.570107 | AP71: 76.52046579 | AQ71: 77.8512905 | AR71: 82.81943154 | AS71: 79.06372928 | AV71: 69 | AW71: 23 | AX71: 922.964 | AY71: 664.62 | AZ71: 988.211 | BA71: 36.96689333 | BB71: 885.9971067 | BC71: 627.6531067 | BD71: 951.2441067 | BE71: 86.32271428 | BF71: 72.92451871 | BG71: 79.10299193 | BH71: 79.45007497 | BK71: 69 | BL71: 23 | BM71: 561.297 | BN71: 510.311 | BO71: 521.8 | BP71: 36.96689333 | BQ71: 524.3301067 | BR71: 473.3441067 | BS71: 484.8331067 | BT71: 46.15006187 | BU71: 44.48088536 | BV71: 47.59786099 | BW71: 46.07626941 | BZ71: 69 | CA71: 23 | CB71: 351.562 | CC71: 225.486 | CD71: 322.905 | CE71: 36.96689333 | CF71: 314.5951067 | CG71: 188.5191067 | CH71: 285.9381067 | CI71: 15.14343398 | CJ71: 11.38663258 | CK71: 14.13557796 | CL71: 13.55521484 | CO71: 69 | CP71: 23 | CQ71: 1065.5 | CR71: 909.926 | CS71: 713.743 | CT71: 36.96689333 | CU71: 1028.533107 | CV71: 872.9591067 | CW71: 676.7761067 | CX71: 103.1100836 | CY71: 93.75731612 | CZ71: 96.75061795 | DA71: 97.87267257 | DD71: 69 | DE71: 23 | DF71: 1220.535 | DG71: 1019.971 | DH71: 833.723 | DI71: 36.96689333 | DJ71: 1183.568107 | DK71: 983.0041067 | DL71: 796.7561067 | DM71: 110.8275504 | DN71: 102.5532188 | DO71: 97.9385295 | DP71: 103.7730996
C72: 70 | D72: 23.33333333 | E72: 1107.696 | F72: 1088.804 | G72: 1162.108 | H72: 37.31139333 | I72: 1070.384607 | J72: 1051.492607 | K72: 1124.796607 | L72: 91.9737397 | M72: 101.7873546 | N72: 99.35358907 | O72: 97.70489447 | R72: 70 | S72: 23.33333333 | T72: 672.138 | U72: 1046.09 | V72: 991.448 | W72: 37.31139333 | X72: 634.8266067 | Y72: 1008.778607 | Z72: 954.1366067 | AA72: 91.84443008 | AB72: 110.5865018 | AC72: 95.88168602 | AD72: 99.4375393 | AG72: 70 | AH72: 23.33333333 | AI72: 1094.636 | AJ72: 933.655 | AK72: 1107.754 | AL72: 37.31139333 | AM72: 1057.324607 | AN72: 896.3436067 | AO72: 1070.442607 | AP72: 75.0830003 | AQ72: 77.5621448 | AR72: 82.11921359 | AS72: 78.25478623 | AV72: 70 | AW72: 23.33333333 | AX72: 924.557 | AY72: 666.151 | AZ72: 994.783 | BA72: 37.31139333 | BB72: 887.2456067 | BC72: 628.8396067 | BD72: 957.4716067 | BE72: 86.44435566 | BF72: 73.06237343 | BG72: 79.62085468 | BH72: 79.70919459 | BK72: 70 | BL72: 23.33333333 | BM72: 559.436 | BN72: 502.503 | BO72: 516.767 | BP72: 37.31139333 | BQ72: 522.1246067 | BR72: 465.1916067 | BS72: 479.4556067 | BT72: 45.95593996 | BU72: 43.7147822 | BV72: 47.0699319 | BW72: 45.58021802 | BZ72: 70 | CA72: 23.33333333 | CB72: 349.477 | CC72: 219.169 | CD72: 317.828 | CE72: 37.31139333 | CF72: 312.1656067 | CG72: 181.8576067 | CH72: 280.5166067 | CI72: 15.02648692 | CJ72: 10.9842752 | CK72: 13.86756179 | CL72: 13.29277464 | CO72: 70 | CP72: 23.33333333 | CQ72: 1093.71 | CR72: 916.188 | CS72: 709.943 | CT72: 37.31139333 | CU72: 1056.398607 | CV72: 878.8766067 | CW72: 672.6316067 | CX72: 105.9035903 | CY72: 94.39286584 | CZ72: 96.15812815 | DA72: 98.81819475 | DD72: 70 | DE72: 23.33333333 | DF72: 1222.43 | DG72: 1014.913 | DH72: 831.902 | DI72: 37.31139333 | DJ72: 1185.118607 | DK72: 977.6016067 | DL72: 794.5906067 | DM72: 110.9727369 | DN72: 101.9895958 | DO72: 97.67234279 | DP72: 103.5448918
C73: 71 | D73: 23.66666667 | E73: 1112.306 | F73: 1093.614 | G73: 1142.322 | H73: 37.222 | I73: 1075.084 | J73: 1056.392 | K73: 1105.1 | L73: 92.37753921 | M73: 102.2616293 | N73: 97.61378246 | O73: 97.41765032 | R73: 71 | S73: 23.66666667 | T73: 667.631 | U73: 1024.517 | V73: 1006.79 | W73: 37.222 | X73: 630.409 | Y73: 987.295 | Z73: 969.568 | AA73: 91.20530664 | AB73: 108.2313796 | AC73: 97.4323948 | AD73: 98.95636034 | AG73: 71 | AH73: 23.66666667 | AI73: 1085.297 | AJ73: 929.885 | AK73: 1099.989 | AL73: 37.222 | AM73: 1048.075 | AN73: 892.663 | AO73: 1062.767 | AP73: 74.42616491 | AQ73: 77.24365561 | AR73: 81.53037793 | AS73: 77.73339948 | AV73: 71 | AW73: 23.66666667 | AX73: 918.596 | AY73: 658.952 | AZ73: 990.552 | BA73: 37.222 | BB73: 881.374 | BC73: 621.73 | BD73: 953.33 | BE73: 85.87228491 | BF73: 72.2363365 | BG73: 79.27644941 | BH73: 79.12835694 | BK73: 71 | BL73: 23.66666667 | BM73: 538.531 | BN73: 498.314 | BO73: 523.181 | BP73: 37.222 | BQ73: 501.309 | BR73: 461.092 | BS73: 485.959 | BT73: 44.12380878 | BU73: 43.32953575 | BV73: 47.7083941 | BW73: 45.05391288 | BZ73: 71 | CA73: 23.66666667 | CB73: 346.808 | CC73: 213.152 | CD73: 319.035 | CE73: 37.222 | CF73: 309.586 | CG73: 175.93 | CH73: 281.813 | CI73: 14.90231428 | CJ73: 10.62624529 | CK73: 13.93165003 | CL73: 13.1534032 | CO73: 71 | CP73: 23.66666667 | CQ73: 1043.593 | CR73: 928.126 | CS73: 720.989 | CT73: 37.222 | CU73: 1006.371 | CV73: 890.904 | CW73: 683.767 | CX73: 100.8883402 | CY73: 95.68462866 | CZ73: 97.75002269 | DA73: 98.10766385 | DD73: 71 | DE73: 23.66666667 | DF73: 1237.194 | DG73: 1023.698 | DH73: 833.589 | DI73: 37.222 | DJ73: 1199.972 | DK73: 986.476 | DL73: 796.367 | DM73: 112.3635865 | DN73: 102.9154287 | DO73: 97.89069989 | DP73: 104.389905
C74: 72 | D74: 24 | E74: 1120.231 | F74: 1092.906 | G74: 1146.947 | H74: 37.63009333 | I74: 1082.600907 | J74: 1055.275907 | K74: 1109.316907 | L74: 93.02343603 | M74: 102.1535884 | N74: 97.98626297 | O74: 97.7210958 | R74: 72 | S74: 24 | T74: 665.33 | U74: 1036.102 | V74: 980.327 | W74: 37.63009333 | X74: 627.6999067 | Y74: 998.4719067 | Z74: 942.6969067 | AA74: 90.81336476 | AB74: 109.4566385 | AC74: 94.73210459 | AD74: 98.33403596 | AG74: 72 | AH74: 24 | AI74: 1099.643 | AJ74: 932.944 | AK74: 1108.206 | AL74: 37.63009333 | AM74: 1062.012907 | AN74: 895.3139067 | AO74: 1070.575907 | AP74: 75.41592704 | AQ74: 77.47304309 | AR74: 82.12943973 | AS74: 78.33946995 | AV74: 72 | AW74: 24 | AX74: 913.909 | AY74: 660.913 | AZ74: 991.822 | BA74: 37.63009333 | BB74: 876.2789067 | BC74: 623.2829067 | BD74: 954.1919067 | BE74: 85.37586988 | BF74: 72.41676255 | BG74: 79.34812333 | BH74: 79.04691859 | BK74: 72 | BL74: 24 | BM74: 544.594 | BN74: 490.919 | BO74: 520.564 | BP74: 37.63009333 | BQ74: 506.9639067 | BR74: 453.2889067 | BS74: 482.9339067 | BT74: 44.62153777 | BU74: 42.59626688 | BV74: 47.41140949 | BW74: 44.87640471 | BZ74: 72 | CA74: 24 | CB74: 346.481 | CC74: 218.47 | CD74: 317.513 | CE74: 37.63009333 | CF74: 308.8509067 | CG74: 180.8399067 | CH74: 279.8829067 | CI74: 14.86692963 | CJ74: 10.9228057 | CK74: 13.83623433 | CL74: 13.20865655 | CO74: 72 | CP74: 24 | CQ74: 1067.073 | CR74: 903.955 | CS74: 708.024 | CT74: 37.63009333 | CU74: 1029.442907 | CV74: 866.3249067 | CW74: 670.3939067 | CX74: 103.2012908 | CY74: 93.04479158 | CZ74: 95.83823084 | DA74: 97.36143773 | DD74: 72 | DE74: 24 | DF74: 1235.455 | DG74: 1043.363 | DH74: 826.969 | DI74: 37.63009333 | DJ74: 1197.824907 | DK74: 1005.732907 | DL74: 789.3389067 | DM74: 112.1625359 | DN74: 104.9244313 | DO74: 97.02679546 | DP74: 104.7045875
C75: 73 | D75: 24.33333333 | E75: 1112.611 | F75: 1087.182 | G75: 1127.602 | H75: 37.21084667 | I75: 1075.400153 | J75: 1049.971153 | K75: 1090.391153 | L75: 92.40470496 | M75: 101.6400738 | N75: 96.31454605 | O75: 96.7864416 | R75: 73 | S75: 24.33333333 | T75: 669.769 | U75: 1071.494 | V75: 991.242 | W75: 37.21084667 | X75: 632.5581533 | Y75: 1034.283153 | Z75: 954.0311533 | AA75: 91.51623841 | AB75: 113.3824162 | AC75: 95.87108896 | AD75: 100.2565812 | AG75: 73 | AH75: 24.33333333 | AI75: 1080.457 | AJ75: 928.063 | AK75: 1093.376 | AL75: 37.21084667 | AM75: 1043.246153 | AN75: 890.8521533 | AO75: 1056.165153 | AP75: 74.08325764 | AQ75: 77.08695995 | AR75: 81.02391597 | AS75: 77.39804452 | AV75: 73 | AW75: 24.33333333 | AX75: 910.006 | AY75: 657.69 | AZ75: 984.045 | BA75: 37.21084667 | BB75: 872.7951533 | BC75: 620.4791533 | BD75: 946.8341533 | BE75: 85.03644773 | BF75: 72.0910056 | BG75: 78.73627165 | BH75: 78.62124166 | BK75: 73 | BL75: 24.33333333 | BM75: 535.525 | BN75: 489.726 | BO75: 510.77 | BP75: 37.21084667 | BQ75: 498.3141533 | BR75: 452.5151533 | BS75: 473.5591533 | BT75: 43.8602108 | BU75: 42.52355607 | BV75: 46.49105525 | BW75: 44.29160737 | BZ75: 73 | CA75: 24.33333333 | CB75: 331.699 | CC75: 212.047 | CD75: 320.047 | CE75: 37.21084667 | CF75: 294.4881533 | CG75: 174.8361533 | CH75: 282.8361533 | CI75: 14.17556031 | CJ75: 10.5601765 | CK75: 13.98223043 | CL75: 12.90598908 | CO75: 73 | CP75: 24.33333333 | CQ75: 1036.778 | CR75: 920.633 | CS75: 719.36 | CT75: 37.21084667 | CU75: 999.5671533 | CV75: 883.4221533 | CW75: 682.1491533 | CX75: 100.206257 | CY75: 94.8810654 | CZ75: 97.51873842 | DA75: 97.5353536 | DD75: 73 | DE75: 24.33333333 | DF75: 1200.893 | DG75: 1013.342 | DH75: 835.052 | DI75: 37.21084667 | DJ75: 1163.682153 | DK75: 976.1311533 | DL75: 797.8411533 | DM75: 108.9654594 | DN75: 101.8361888 | DO75: 98.07190517 | DP75: 102.9578511
C76: 74 | D76: 24.66666667 | E76: 1132.876 | F76: 1088.231 | G76: 1147.774 | H76: 37.44881333 | I76: 1095.427187 | J76: 1050.782187 | K76: 1110.325187 | L76: 94.12554543 | M76: 101.718584 | N76: 98.07532462 | O76: 97.97315136 | R76: 74 | S76: 24.66666667 | T76: 692.966 | U76: 1001.478 | V76: 989.936 | W76: 37.44881333 | X76: 655.5171867 | Y76: 964.0291867 | Z76: 952.4871867 | AA76: 94.83786877 | AB76: 105.6808845 | AC76: 95.71593495 | AD76: 98.74489606 | AG76: 74 | AH76: 24.66666667 | AI76: 1086.75 | AJ76: 913.203 | AK76: 1087.074 | AL76: 37.44881333 | AM76: 1049.301187 | AN76: 875.7541867 | AO76: 1049.625187 | AP76: 74.51323919 | AQ76: 75.78050708 | AR76: 80.52220115 | AS76: 76.93864914 | AV76: 74 | AW76: 24.66666667 | AX76: 908.02 | AY76: 652.263 | AZ76: 983.727 | BA76: 37.44881333 | BB76: 870.5711867 | BC76: 614.8141867 | BD76: 946.2781867 | BE76: 84.81976661 | BF76: 71.43281565 | BG76: 78.69003891 | BH76: 78.31420706 | BK76: 74 | BL76: 24.66666667 | BM76: 533.519 | BN76: 486.19 | BO76: 512.48 | BP76: 37.44881333 | BQ76: 496.0701867 | BR76: 448.7411867 | BS76: 475.0311867 | BT76: 43.66270316 | BU76: 42.16891053 | BV76: 46.63557021 | BW76: 44.15572797 | BZ76: 74 | CA76: 24.66666667 | CB76: 338.231 | CC76: 219.527 | CD76: 313.635 | CE76: 37.44881333 | CF76: 300.7821867 | CG76: 182.0781867 | CH76: 276.1861867 | CI76: 14.47853157 | CJ76: 10.99759833 | CK76: 13.65348403 | CL76: 13.04320464 | CO76: 74 | CP76: 24.66666667 | CQ76: 1062.752 | CR76: 914.523 | CS76: 719.955 | CT76: 37.44881333 | CU76: 1025.303187 | CV76: 877.0741867 | CW76: 682.5061867 | CX76: 102.7862853 | CY76: 94.19928282 | CZ76: 97.56977922 | DA76: 98.18511578 | DD76: 74 | DE76: 24.66666667 | DF76: 1235.982 | DG76: 1054.492 | DH76: 825.919 | DI76: 37.44881333 | DJ76: 1198.533187 | DK76: 1017.043187 | DL76: 788.4701867 | DM76: 112.2288582 | DN76: 106.1043914 | DO76: 96.92001102 | DP76: 105.0844202
C77: 75 | D77: 25 | E77: 1121.036 | F77: 1088.442 | G77: 1120.498 | H77: 37.55119667 | I77: 1083.484803 | J77: 1050.890803 | K77: 1082.946803 | L77: 93.09938563 | M77: 101.7290984 | N77: 95.6569846 | O77: 96.82848955 | R77: 75 | S77: 25 | T77: 707.889 | U77: 1023.357 | V77: 970.79 | W77: 37.55119667 | X77: 670.3378033 | Y77: 985.8058033 | Z77: 933.2388033 | AA77: 96.98206229 | AB77: 108.0681277 | AC77: 93.78165485 | AD77: 99.61061493 | AG77: 75 | AH77: 25 | AI77: 1094.863 | AJ77: 919.078 | AK77: 1081.715 | AL77: 37.55119667 | AM77: 1057.311803 | AN77: 881.5268033 | AO77: 1044.163803 | AP77: 75.08209111 | AQ77: 76.28002147 | AR77: 80.10323006 | AS77: 77.15511421 | AV77: 75 | AW77: 25 | AX77: 901.605 | AY77: 655.808 | AZ77: 980.864 | BA77: 37.55119667 | BB77: 864.0538033 | BC77: 618.2568033 | BD77: 943.3128033 | BE77: 84.18477784 | BF77: 71.83279959 | BG77: 78.44344532 | BH77: 78.15367425 | BK77: 75 | BL77: 25 | BM77: 528.065 | BN77: 482.156 | BO77: 509.2 | BP77: 37.55119667 | BQ77: 490.5138033 | BR77: 444.6048033 | BS77: 471.6488033 | BT77: 43.17364592 | BU77: 41.78020812 | BV77: 46.30350912 | BW77: 43.75245439 | BZ77: 75 | CA77: 25 | CB77: 338.676 | CC77: 219.493 | CD77: 310.488 | CE77: 37.55119667 | CF77: 301.1248033 | CG77: 181.9418033 | CH77: 272.9368033 | CI77: 14.49502386 | CJ77: 10.98936072 | CK77: 13.49284818 | CL77: 12.99241092 | CO77: 75 | CP77: 25 | CQ77: 1044.748 | CR77: 918.875 | CS77: 708.37 | CT77: 37.55119667 | CU77: 1007.196803 | CV77: 881.3238033 | CW77: 670.8188033 | CX77: 100.9711267 | CY77: 94.65569899 | CZ77: 95.89897325 | DA77: 97.17526632 | DD77: 75 | DE77: 25 | DF77: 1234.697 | DG77: 1046.127 | DH77: 830.081 | DI77: 37.55119667 | DJ77: 1197.145803 | DK77: 1008.575803 | DL77: 792.5298033 | DM77: 112.0989457 | DN77: 105.2210203 | DO77: 97.41902556 | DP77: 104.9129972
C78: 76 | D78: 25.33333333 | E78: 1133.386 | F78: 1093.586 | G78: 1130.363 | H78: 37.46055 | I78: 1095.92545 | J78: 1056.12545 | K78: 1092.90245 | L78: 94.16835915 | M78: 102.2358265 | N78: 96.53636957 | O78: 97.64685174 | R78: 76 | S78: 25.33333333 | T78: 713.704 | U78: 991.253 | V78: 993.078 | W78: 37.46055 | X78: 676.24345 | Y78: 953.79245 | Z78: 955.61745 | AA78: 97.83647 | AB78: 104.5586909 | AC78: 96.03049674 | AD78: 99.4752192 | AG78: 76 | AH78: 25.33333333 | AI78: 1106.242 | AJ78: 915.752 | AK78: 1069.436 | AL78: 37.46055 | AM78: 1068.78145 | AN78: 878.29145 | AO78: 1031.97545 | AP78: 75.89657654 | AQ78: 76.00006081 | AR78: 79.16819816 | AS78: 77.02161184 | AV78: 76 | AW78: 25.33333333 | AX78: 897.883 | AY78: 652.774 | AZ78: 976.063 | BA78: 37.46055 | BB78: 860.42245 | BC78: 615.31345 | BD78: 938.60245 | BE78: 83.83097501 | BF78: 71.49082307 | BG78: 78.05174456 | BH78: 77.79118088 | BK78: 76 | BL78: 25.33333333 | BM78: 517.54 | BN78: 474.078 | BO78: 502.093 | BP78: 37.46055 | BQ78: 480.07945 | BR78: 436.61745 | BS78: 464.63245 | BT78: 42.25524347 | BU78: 41.02962405 | BV78: 45.61468774 | BW78: 42.96651842 | BZ78: 76 | CA78: 25.33333333 | CB78: 336.826 | CC78: 206.293 | CD78: 311.389 | CE78: 37.46055 | CF78: 299.36545 | CG78: 168.83245 | CH78: 273.92845 | CI78: 14.41033516 | CJ78: 10.19755031 | CK78: 13.54187102 | CL78: 12.7165855 | CO78: 76 | CP78: 25.33333333 | CQ78: 1038.227 | CR78: 920.806 | CS78: 720.693 | CT78: 37.46055 | CU78: 1000.76645 | CV78: 883.34545 | CW78: 683.23245 | CX78: 100.326486 | CY78: 94.87282733 | CZ78: 97.67360444 | DA78: 97.62430594 | DD78: 76 | DE78: 25.33333333 | DF78: 1224.144 | DG78: 1015.156 | DH78: 827.24 | DI78: 37.46055 | DJ78: 1186.68345 | DK78: 977.69545 | DL78: 789.77945 | DM78: 111.1192665 | DN78: 101.9993861 | DO78: 97.08094775 | DP78: 103.3998668
C79: 77 | D79: 25.66666667 | E79: 1107.807 | F79: 1091.23 | G79: 1164.55 | H79: 37.48569667 | I79: 1070.321303 | J79: 1053.744303 | K79: 1127.064303 | L79: 91.9683003 | M79: 102.005325 | N79: 99.55389533 | O79: 97.84250688 | R79: 77 | S79: 25.66666667 | T79: 706.432 | U79: 1013.258 | V79: 971.816 | W79: 37.48569667 | X79: 668.9463033 | Y79: 975.7723033 | Z79: 934.3303033 | AA79: 96.78074507 | AB79: 106.9682137 | AC79: 93.89134025 | AD79: 99.21343301 | AG79: 77 | AH79: 25.66666667 | AI79: 1082.547 | AJ79: 917.181 | AK79: 1083.926 | AL79: 37.48569667 | AM79: 1045.061303 | AN79: 879.6953033 | AO79: 1046.440303 | AP79: 74.21215553 | AQ79: 76.12153864 | AR79: 80.27787221 | AS79: 76.87052213 | AV79: 77 | AW79: 25.66666667 | AX79: 905.569 | AY79: 642.813 | AZ79: 976.297 | BA79: 37.48569667 | BB79: 868.0833033 | BC79: 605.3273033 | BD79: 938.8113033 | BE79: 84.57737209 | BF79: 70.3305724 | BG79: 78.06911226 | BH79: 77.65901892 | BK79: 77 | BL79: 25.66666667 | BM79: 514.611 | BN79: 469.95 | BO79: 500.089 | BP79: 37.48569667 | BQ79: 477.1253033 | BR79: 432.4643033 | BS79: 462.6033033 | BT79: 41.99522779 | BU79: 40.63934636 | BV79: 45.4154789 | BW79: 42.68335102 | BZ79: 77 | CA79: 25.66666667 | CB79: 332.123 | CC79: 213.772 | CD79: 309.567 | CE79: 37.48569667 | CF79: 294.6373033 | CG79: 176.2863033 | CH79: 272.0813033 | CI79: 14.18273983 | CJ79: 10.64776616 | CK79: 13.45055586 | CL79: 12.76035395 | CO79: 77 | CP79: 25.66666667 | CQ79: 1047.016 | CR79: 920.003 | CS79: 713.01 | CT79: 37.48569667 | CU79: 1009.530303 | CV79: 882.5173033 | CW79: 675.5243033 | CX79: 101.2050593 | CY79: 94.78388295 | CZ79: 96.57166254 | DA79: 97.52020158 | DD79: 77 | DE79: 25.66666667 | DF79: 1228.886 | DG79: 1042.224 | DH79: 833.99 | DI79: 37.48569667 | DJ79: 1191.400303 | DK79: 1004.738303 | DL79: 796.5043033 | DM79: 111.5609456 | DN79: 104.820668 | DO79: 97.90757743 | DP79: 104.7630637
C80: 78 | D80: 26 | E80: 1105.573 | F80: 1097.655 | G80: 1119.139 | H80: 37.23205667 | I80: 1068.340943 | J80: 1060.422943 | K80: 1081.906943 | L80: 91.79813613 | M80: 102.6518356 | N80: 95.56513348 | O80: 96.67170174 | R80: 78 | S80: 26 | T80: 692.018 | U80: 1026.097 | V80: 982.614 | W80: 37.23205667 | X80: 654.7859433 | Y80: 988.8649433 | Z80: 945.3819433 | AA80: 94.73207512 | AB80: 108.4034833 | AC80: 95.00192533 | AD80: 99.37916125 | AG80: 78 | AH80: 26 | AI80: 1095.165 | AJ80: 914.119 | AK80: 1093.145 | AL80: 37.23205667 | AM80: 1057.932943 | AN80: 876.8869433 | AO80: 1055.912943 | AP80: 75.12619966 | AQ80: 75.87852645 | AR80: 81.00456763 | AS80: 77.33643125 | AV80: 78 | AW80: 26 | AX80: 894.281 | AY80: 638.965 | AZ80: 974.153 | BA80: 37.23205667 | BB80: 857.0489433 | BC80: 601.7329433 | BD80: 936.9209433 | BE80: 83.5022942 | BF80: 69.912958 | BG80: 77.91191483 | BH80: 77.10905568 | BK80: 78 | BL80: 26 | BM80: 509.697 | BN80: 463.973 | BO80: 487.818 | BP80: 37.23205667 | BQ80: 472.4649433 | BR80: 426.7409433 | BS80: 450.5859433 | BT80: 41.58503601 | BU80: 40.10151328 | BV80: 44.23569018 | BW80: 41.97407982 | BZ80: 78 | CA80: 26 | CB80: 342.767 | CC80: 204.399 | CD80: 310.661 | CE80: 37.23205667 | CF80: 305.5349433 | CG80: 167.1669433 | CH80: 273.4289433 | CI80: 14.70731154 | CJ80: 10.09695302 | CK80: 13.51717751 | CL80: 12.77381402 | CO80: 78 | CP80: 26 | CQ80: 1069.206 | CR80: 915.619 | CS80: 724.157 | CT80: 37.23205667 | CU80: 1031.973943 | CV80: 878.3869433 | CW80: 686.9249433 | CX80: 103.4550263 | CY80: 94.34027515 | CZ80: 98.20147623 | DA80: 98.66559256 | DD80: 78 | DE80: 26 | DF80: 1236.237 | DG80: 1035.478 | DH80: 824.386 | DI80: 37.23205667 | DJ80: 1199.004943 | DK80: 998.2459433 | DL80: 787.1539433 | DM80: 112.2730327 | DN80: 104.1433438 | DO80: 96.75821629 | DP80: 104.391531
C81: 79 | D81: 26.33333333 | E81: 1109.209 | F81: 1090.946 | G81: 1120.022 | H81: 37.34076 | I81: 1071.86824 | J81: 1053.60524 | K81: 1082.68124 | L81: 92.1012222 | M81: 101.9918633 | N81: 95.63352732 | O81: 96.57553761 | R81: 79 | S81: 26.33333333 | T81: 679.507 | U81: 1018.86 | V81: 971.443 | W81: 37.34076 | X81: 642.16624 | Y81: 981.51924 | Z81: 934.10224 | AA81: 92.90630183 | AB81: 107.5982168 | AC81: 93.86842205 | AD81: 98.12431355 | AG81: 79 | AH81: 26.33333333 | AI81: 1083.678 | AJ81: 912.221 | AK81: 1074.495 | AL81: 37.34076 | AM81: 1046.33724 | AN81: 874.88024 | AO81: 1037.15424 | AP81: 74.30276266 | AQ81: 75.70488298 | AR81: 79.56549004 | AS81: 76.52437856 | AV81: 79 | AW81: 26.33333333 | AX81: 888.028 | AY81: 649.48 | AZ81: 969.597 | BA81: 37.34076 | BB81: 850.68724 | BC81: 612.13924 | BD81: 932.25624 | BE81: 82.88247333 | BF81: 71.12202423 | BG81: 77.5240102 | BH81: 77.17616925 | BK81: 79 | BL81: 26.33333333 | BM81: 504.869 | BN81: 459.153 | BO81: 494.549 | BP81: 37.34076 | BQ81: 467.52824 | BR81: 421.81224 | BS81: 457.20824 | BT81: 41.15052126 | BU81: 39.63835533 | BV81: 44.88582556 | BW81: 41.89156738 | BZ81: 79 | CA81: 26.33333333 | CB81: 329.812 | CC81: 199.552 | CD81: 302.023 | CE81: 37.34076 | CF81: 292.47124 | CG81: 162.21124 | CH81: 264.68224 | CI81: 14.07847363 | CJ81: 9.797626471 | CK81: 13.08477727 | CL81: 12.32029246 | CO81: 79 | CP81: 26.33333333 | CQ81: 1027.722 | CR81: 926.224 | CS81: 718.809 | CT81: 37.34076 | CU81: 990.38124 | CV81: 888.88324 | CW81: 681.46824 | CX81: 99.28537238 | CY81: 95.46759555 | CZ81: 97.42139635 | DA81: 97.39145476 | DD81: 79 | DE81: 26.33333333 | DF81: 1197.611 | DG81: 1033.029 | DH81: 821.108 | DI81: 37.34076 | DJ81: 1160.27024 | DK81: 995.68824 | DL81: 783.76724 | DM81: 108.645973 | DN81: 103.876508 | DO81: 96.34191733 | DP81: 102.9547994
C82: 80 | D82: 26.66666667 | E82: 1114.297 | F82: 1097.033 | G82: 1114.746 | H82: 36.74772 | I82: 1077.54928 | J82: 1060.28528 | K82: 1077.99828 | L82: 92.58937056 | M82: 102.6385094 | N82: 95.21988019 | O82: 96.81592005 | R82: 80 | S82: 26.66666667 | T82: 660.929 | U82: 1021.795 | V82: 964.537 | W82: 36.74772 | X82: 624.18128 | Y82: 985.04728 | Z82: 927.78928 | AA82: 90.30430251 | AB82: 107.9849752 | AC82: 93.2340294 | AD82: 97.1744357 | AG82: 80 | AH82: 26.66666667 | AI82: 1093.753 | AJ82: 908.779 | AK82: 1066.615 | AL82: 36.74772 | AM82: 1057.00528 | AN82: 872.03128 | AO82: 1029.86728 | AP82: 75.0603242 | AQ82: 75.4583576 | AR82: 79.00646948 | AS82: 76.50838376 | AV82: 80 | AW82: 26.66666667 | AX82: 885.339 | AY82: 648.213 | AZ82: 971.515 | BA82: 36.74772 | BB82: 848.59128 | BC82: 611.46528 | BD82: 934.76728 | BE82: 82.6782639 | BF82: 71.0437195 | BG82: 77.73282178 | BH82: 77.15160173 | BK82: 80 | BL82: 26.66666667 | BM82: 496.622 | BN82: 456.799 | BO82: 481.351 | BP82: 36.74772 | BQ82: 459.87428 | BR82: 420.05128 | BS82: 444.60328 | BT82: 40.47684122 | BU82: 39.47287516 | BV82: 43.64834997 | BW82: 41.19935545 | BZ82: 80 | CA82: 26.66666667 | CB82: 333.97 | CC82: 197.987 | CD82: 307.742 | CE82: 36.74772 | CF82: 297.22228 | CG82: 161.23928 | CH82: 270.99428 | CI82: 14.30717096 | CJ82: 9.738919682 | CK82: 13.39681799 | CL82: 12.48096954 | CO82: 80 | CP82: 26.66666667 | CQ82: 1024.016 | CR82: 932.553 | CS82: 714.114 | CT82: 36.74772 | CU82: 987.26828 | CV82: 895.80528 | CW82: 677.36628 | CX82: 98.97329923 | CY82: 96.2110346 | CZ82: 96.834988 | DA82: 97.33977394 | DD82: 80 | DE82: 26.66666667 | DF82: 1214.703 | DG82: 1049.815 | DH82: 830.433 | DI82: 36.74772 | DJ82: 1177.95528 | DK82: 1013.06728 | DL82: 793.68528 | DM82: 110.3019737 | DN82: 105.6895996 | DO82: 97.5610586 | DP82: 104.517544
C83: 81 | D83: 27 | E83: 1114.262 | F83: 1096.819 | G83: 1108.527 | H83: 36.63030333 | I83: 1077.631697 | J83: 1060.188697 | K83: 1071.896697 | L83: 92.59645229 | M83: 102.6291599 | N83: 94.68092568 | O83: 96.63551262 | R83: 81 | S83: 27 | T83: 651.891 | U83: 1039.61 | V83: 969.5 | W83: 36.63030333 | X83: 615.2606967 | Y83: 1002.979697 | Z83: 932.8696967 | AA83: 89.0137046 | AB83: 109.9508012 | AC83: 93.74456313 | AD83: 97.56968964 | AG83: 81 | AH83: 27 | AI83: 1052.826 | AJ83: 909.315 | AK83: 1069.51 | AL83: 36.63030333 | AM83: 1016.195697 | AN83: 872.6846967 | AO83: 1032.879697 | AP83: 72.16234382 | AQ83: 75.51489886 | AR83: 79.23756762 | AS83: 75.6382701 | AV83: 81 | AW83: 27 | AX83: 874.262 | AY83: 640.587 | AZ83: 969.149 | BA83: 36.63030333 | BB83: 837.6316967 | BC83: 603.9566967 | BD83: 932.5186967 | BE83: 81.6104715 | BF83: 70.17132706 | BG83: 77.54583542 | BH83: 76.44254466 | BK83: 81 | BL83: 27 | BM83: 489.821 | BN83: 451.669 | BO83: 475.388 | BP83: 36.63030333 | BQ83: 453.1906967 | BR83: 415.0386967 | BS83: 438.7576967 | BT83: 39.888571 | BU83: 39.00183488 | BV83: 43.07446741 | BW83: 40.65495776 | BZ83: 81 | CA83: 27 | CB83: 322.724 | CC83: 202.567 | CD83: 307.181 | CE83: 36.63030333 | CF83: 286.0936967 | CG83: 165.9366967 | CH83: 270.5506967 | CI83: 13.7714825 | CJ83: 10.02264561 | CK83: 13.3748891 | CL83: 12.3896724 | CO83: 81 | CP83: 27 | CQ83: 1060.843 | CR83: 923.733 | CS83: 722.905 | CT83: 36.63030333 | CU83: 1024.212697 | CV83: 887.1026967 | CW83: 686.2746967 | CX83: 102.6769641 | CY83: 95.27636212 | CZ83: 98.10851821 | DA83: 98.68728146 | DD83: 81 | DE83: 27 | DF83: 1215.006 | DG83: 1064.384 | DH83: 828.117 | DI83: 36.63030333 | DJ83: 1178.375697 | DK83: 1027.753697 | DL83: 791.4866967 | DM83: 110.3413409 | DN83: 107.2217797 | DO83: 97.29080523 | DP83: 104.9513086
C84: 82 | D84: 27.33333333 | E84: 1124.782 | F84: 1091.664 | G84: 1137.284 | H84: 36.93298333 | I84: 1087.849017 | J84: 1054.731017 | K84: 1100.351017 | L84: 93.4743845 | M84: 102.1008416 | N84: 97.19430348 | O84: 97.58984318 | R84: 82 | S84: 27.33333333 | T84: 675.641 | U84: 980.57 | V84: 982.742 | W84: 36.93298333 | X84: 638.7080167 | Y84: 943.6370167 | Z84: 945.8090167 | AA84: 92.40597852 | AB84: 103.4454101 | AC84: 95.04484215 | AD84: 96.96541025 | AG84: 82 | AH84: 27.33333333 | AI84: 1087.504 | AJ84: 907.56 | AK84: 1058.854 | AL84: 36.93298333 | AM84: 1050.571017 | AN84: 870.6270167 | AO84: 1021.921017 | AP84: 74.60341267 | AQ84: 75.33684429 | AR84: 78.39687034 | AS84: 76.11237577 | AV84: 82 | AW84: 27.33333333 | AX84: 872.962 | AY84: 643.539 | AZ84: 966.251 | BA84: 36.93298333 | BB84: 836.0290167 | BC84: 606.6060167 | BD84: 929.3180167 | BE84: 81.45432236 | BF84: 70.47914101 | BG84: 77.27967517 | BH84: 76.40437952 | BK84: 82 | BL84: 27.33333333 | BM84: 478.741 | BN84: 448.189 | BO84: 470.094 | BP84: 36.93298333 | BQ84: 441.8080167 | BR84: 411.2560167 | BS84: 433.1610167 | BT84: 38.88669951 | BU84: 38.64637053 | BV84: 42.52502062 | BW84: 40.01936355 | BZ84: 82 | CA84: 27.33333333 | CB84: 322.243 | CC84: 198.374 | CD84: 301.892 | CE84: 36.93298333 | CF84: 285.3100167 | CG84: 161.4410167 | CH84: 264.9590167 | CI84: 13.73375907 | CJ84: 9.751104661 | CK84: 13.09845994 | CL84: 12.19444123 | CO84: 82 | CP84: 27.33333333 | CQ84: 999.049 | CR84: 947.485 | CS84: 717.641 | CT84: 36.93298333 | CU84: 962.1160167 | CV84: 910.5520167 | CW84: 680.7080167 | CX84: 96.45179364 | CY84: 97.79485959 | CZ84: 97.31271628 | DA84: 97.1864565 | DD84: 82 | DE84: 27.33333333 | DF84: 1216.698 | DG84: 1049.965 | DH84: 824.359 | DI84: 36.93298333 | DJ84: 1179.765017 | DK84: 1013.032017 | DL84: 787.4260167 | DM84: 110.4714347 | DN84: 105.6859207 | DO84: 96.79165998 | DP84: 104.3163385
C85: 83 | D85: 27.66666667 | E85: 1142.52 | F85: 1090.342 | G85: 1116.797 | H85: 37.47950333 | I85: 1105.040497 | J85: 1052.862497 | K85: 1079.317497 | L85: 94.95157756 | M85: 101.9199637 | N85: 95.33640696 | O85: 97.40264941 | R85: 83 | S85: 27.66666667 | T85: 700.994 | U85: 1009.346 | V85: 971.289 | W85: 37.47950333 | X85: 663.5144967 | Y85: 971.8664967 | Z85: 933.8094967 | AA85: 95.99489082 | AB85: 106.5400429 | AC85: 93.83900412 | AD85: 98.79131263 | AG85: 83 | AH85: 27.66666667 | AI85: 1076.246 | AJ85: 913.102 | AK85: 1068.441 | AL85: 37.47950333 | AM85: 1038.766497 | AN85: 875.6224967 | AO85: 1030.961497 | AP85: 73.76514714 | AQ85: 75.76911172 | AR85: 79.09041253 | AS85: 76.2082238 | AV85: 83 | AW85: 27.66666667 | AX85: 873.169 | AY85: 653.06 | AZ85: 966.433 | BA85: 37.47950333 | BB85: 835.6894967 | BC85: 615.5804967 | BD85: 928.9534967 | BE85: 81.42124292 | BF85: 71.52185016 | BG85: 77.24936264 | BH85: 76.73081857 | BK85: 83 | BL85: 27.66666667 | BM85: 475.337 | BN85: 446.925 | BO85: 471.493 | BP85: 37.47950333 | BQ85: 437.8574967 | BR85: 409.4454967 | BS85: 434.0134967 | BT85: 38.53898585 | BU85: 38.47623313 | BV85: 42.60871173 | BW85: 39.87464357 | BZ85: 83 | CA85: 27.66666667 | CB85: 318.074 | CC85: 204.805 | CD85: 301.915 | CE85: 37.47950333 | CF85: 280.5944967 | CG85: 167.3254967 | CH85: 264.4354967 | CI85: 13.50677154 | CJ85: 10.1065297 | CK85: 13.07257932 | CL85: 12.22862685 | CO85: 83 | CP85: 27.66666667 | CQ85: 1018.758 | CR85: 940.608 | CS85: 711.806 | CT85: 37.47950333 | CU85: 981.2784967 | CV85: 903.1284967 | CW85: 674.3264967 | CX85: 98.37282555 | CY85: 96.99756072 | CZ85: 96.40042638 | DA85: 97.25693755 | DD85: 83 | DE85: 27.66666667 | DF85: 1198.204 | DG85: 1062.213 | DH85: 822.995 | DI85: 37.47950333 | DJ85: 1160.724497 | DK85: 1024.733497 | DL85: 785.5154967 | DM85: 108.6885089 | DN85: 106.9066933 | DO85: 96.55681582 | DP85: 104.0506727
C86: 84 | D86: 28 | E86: 1135.785 | F86: 1094.287 | G86: 1114.858 | H86: 37.20298 | I86: 1098.58202 | J86: 1057.08402 | K86: 1077.65502 | L86: 94.39662726 | M86: 102.3286187 | N86: 95.18955994 | O86: 97.3049353 | R86: 84 | S86: 28 | T86: 703.263 | U86: 995.866 | V86: 960.578 | W86: 37.20298 | X86: 666.06002 | Y86: 958.66302 | Z86: 923.37502 | AA86: 96.36316798 | AB86: 105.092623 | AC86: 92.79043811 | AD86: 98.08207636 | AG86: 84 | AH86: 28 | AI86: 1053.115 | AJ86: 904.153 | AK86: 1054.48 | AL86: 37.20298 | AM86: 1015.91202 | AN86: 866.95002 | AO86: 1017.27702 | AP86: 72.14219931 | AQ86: 75.01866749 | AR86: 78.04060523 | AS86: 75.06715734 | AV86: 84 | AW86: 28 | AX86: 866.242 | AY86: 650.908 | AZ86: 955.409 | BA86: 37.20298 | BB86: 829.03902 | BC86: 613.70502 | BD86: 918.20602 | BE86: 80.77328686 | BF86: 71.30394598 | BG86: 76.35563036 | BH86: 76.14428773 | BK86: 84 | BL86: 28 | BM86: 469.711 | BN86: 441.364 | BO86: 469.134 | BP86: 37.20298 | BQ86: 432.50802 | BR86: 404.16102 | BS86: 431.93102 | BT86: 38.06813995 | BU86: 37.9796426 | BV86: 42.40426729 | BW86: 39.48401661 | BZ86: 84 | CA86: 28 | CB86: 322.738 | CC86: 203.574 | CD86: 301 | CE86: 37.20298 | CF86: 285.53502 | CG86: 166.37102 | CH86: 263.79702 | CI86: 13.74458989 | CJ86: 10.04887892 | CK86: 13.04101571 | CL86: 12.27816151 | CO86: 84 | CP86: 28 | CQ86: 1001.633 | CR86: 930.676 | CS86: 719.66 | CT86: 37.20298 | CU86: 964.43002 | CV86: 893.47302 | CW86: 682.45702 | CX86: 96.68377166 | CY86: 95.96054585 | CZ86: 97.56275045 | DA86: 96.73568932 | DD86: 84 | DE86: 28 | DF86: 1209.347 | DG86: 1063.348 | DH86: 826.221 | DI86: 37.20298 | DJ86: 1172.14402 | DK86: 1026.14502 | DL86: 789.01802 | DM86: 109.757816 | DN86: 107.0539523 | DO86: 96.98735156 | DP86: 104.5997066
C87: 85 | D87: 28.33333333 | E87: 1134.073 | F87: 1097.587 | G87: 1143.261 | H87: 37.12142 | I87: 1096.95158 | J87: 1060.46558 | K87: 1106.13958 | L87: 94.25653027 | M87: 102.6559629 | N87: 97.70560885 | O87: 98.20603402 | R87: 85 | S87: 28.33333333 | T87: 735.799 | U87: 992.229 | V87: 969.697 | W87: 37.12142 | X87: 698.67758 | Y87: 955.10758 | Z87: 932.57558 | AA87: 101.0821592 | AB87: 104.7028609 | AC87: 93.71500719 | AD87: 99.83334244 | AG87: 85 | AH87: 28.33333333 | AI87: 1039.899 | AJ87: 903.219 | AK87: 1077.05 | AL87: 37.12142 | AM87: 1002.77758 | AN87: 866.09758 | AO87: 1039.92858 | AP87: 71.20949316 | AQ87: 74.9449044 | AR87: 79.77832408 | AS87: 75.31090721 | AV87: 85 | AW87: 28.33333333 | AX87: 866.537 | AY87: 668.428 | AZ87: 954.056 | BA87: 37.12142 | BB87: 829.41558 | BC87: 631.30658 | BD87: 916.93458 | BE87: 80.8099751 | BF87: 73.34900125 | BG87: 76.24990071 | BH87: 76.80295902 | BK87: 85 | BL87: 28.33333333 | BM87: 466.768 | BN87: 439.112 | BO87: 463.199 | BP87: 37.12142 | BQ87: 429.64658 | BR87: 401.99058 | BS87: 426.07758 | BT87: 37.81628405 | BU87: 37.77568296 | BV87: 41.82961341 | BW87: 39.14052681 | BZ87: 85 | CA87: 28.33333333 | CB87: 320.653 | CC87: 210.518 | CD87: 298.385 | CE87: 37.12142 | CF87: 283.53158 | CG87: 173.39658 | CH87: 261.26358 | CI87: 13.64815177 | CJ87: 10.47322567 | CK87: 12.91577309 | CL87: 12.34571684 | CO87: 85 | CP87: 28.33333333 | CQ87: 1063.802 | CR87: 935.936 | CS87: 713.387 | CT87: 37.12142 | CU87: 1026.68058 | CV87: 898.81458 | CW87: 676.26558 | CX87: 102.9243685 | CY87: 96.53423862 | CZ87: 96.67763403 | DA87: 98.71208038 | DD87: 85 | DE87: 28.33333333 | DF87: 1215.664 | DG87: 1071.93 | DH87: 818.031 | DI87: 37.12142 | DJ87: 1178.54258 | DK87: 1034.80858 | DL87: 780.90958 | DM87: 110.3569676 | DN87: 107.9577898 | DO87: 95.99064921 | DP87: 104.7684689
C88: 86 | D88: 28.66666667 | E88: 1134.464 | F88: 1085.565 | G88: 1100.79 | H88: 37.63396667 | I88: 1096.830033 | J88: 1047.931033 | K88: 1063.156033 | L88: 94.24608627 | M88: 101.4425846 | N88: 93.90886052 | O88: 96.53251047 | R88: 86 | S88: 28.66666667 | T88: 766.682 | U88: 996.192 | V88: 957.115 | W88: 37.63396667 | X88: 729.0480333 | Y88: 958.5580333 | Z88: 919.4810333 | AA88: 105.4760472 | AB88: 105.0811139 | AC88: 92.39912936 | AD88: 100.9854302 | AG88: 86 | AH88: 28.66666667 | AI88: 1051.887 | AJ88: 900.134 | AK88: 1057.98 | AL88: 37.63396667 | AM88: 1014.253033 | AN88: 862.5000333 | AO88: 1020.346033 | AP88: 72.02439093 | AQ88: 74.63360253 | AR88: 78.27604519 | AS88: 74.97801288 | AV88: 86 | AW88: 28.66666667 | AX88: 854.178 | AY88: 635.528 | AZ88: 949.91 | BA88: 37.63396667 | BB88: 816.5440333 | BC88: 597.8940333 | BD88: 912.2760333 | BE88: 79.55590008 | BF88: 69.46693031 | BG88: 75.86250806 | BH88: 74.96177948 | BK88: 86 | BL88: 28.66666667 | BM88: 446.477 | BN88: 437.723 | BO88: 461.305 | BP88: 37.63396667 | BQ88: 408.8430333 | BR88: 400.0890333 | BS88: 423.6710333 | BT88: 35.98521436 | BU88: 37.59699165 | BV88: 41.59335382 | BW88: 38.39185328 | BZ88: 86 | CA88: 28.66666667 | CB88: 311.941 | CC88: 205.627 | CD88: 296.641 | CE88: 37.63396667 | CF88: 274.3070333 | CG88: 167.9930333 | CH88: 259.0070333 | CI88: 13.20411653 | CJ88: 10.1468492 | CK88: 12.80421891 | CL88: 12.05172821 | CO88: 86 | CP88: 28.66666667 | CQ88: 1007.37 | CR88: 934.762 | CS88: 718.149 | CT88: 37.63396667 | CU88: 969.7360333 | CV88: 897.1280333 | CW88: 680.5150333 | CX88: 97.21569764 | CY88: 96.35310059 | CZ88: 97.28512775 | DA88: 96.95130866 | DD88: 86 | DE88: 28.66666667 | DF88: 1214.078 | DG88: 1075.664 | DH88: 819.376 | DI88: 37.63396667 | DJ88: 1176.444033 | DK88: 1038.030033 | DL88: 781.7420333 | DM88: 110.1604628 | DN88: 108.2938722 | DO88: 96.0929757 | DP88: 104.8491036
C89: 87 | D89: 29 | E89: 1124.981 | F89: 1091.48 | G89: 1097.78 | H89: 36.62517667 | I89: 1088.355823 | J89: 1054.854823 | K89: 1061.154823 | L89: 93.51793231 | M89: 102.1128264 | N89: 93.7320931 | O89: 96.45428393 | R89: 87 | S89: 29 | T89: 770.68 | U89: 992.284 | V89: 969.077 | W89: 36.62517667 | X89: 734.0548233 | Y89: 955.6588233 | Z89: 932.4518233 | AA89: 106.2004116 | AB89: 104.7632905 | AC89: 93.70257082 | AD89: 101.5554243 | AG89: 87 | AH89: 29 | AI89: 1065.464 | AJ89: 894.552 | AK89: 1050.593 | AL89: 36.62517667 | AM89: 1028.838823 | AN89: 857.9268233 | AO89: 1013.967823 | AP89: 73.06016071 | AQ89: 74.23787485 | AR89: 77.78673956 | AS89: 75.02825837 | AV89: 87 | AW89: 29 | AX89: 844.395 | AY89: 634.353 | AZ89: 949.473 | BA89: 36.62517667 | BB89: 807.7698233 | BC89: 597.7278233 | BD89: 912.8478233 | BE89: 78.70102864 | BF89: 69.44761903 | BG89: 75.91005663 | BH89: 74.68623477 | BK89: 87 | BL89: 29 | BM89: 457.312 | BN89: 430.831 | BO89: 451 | BP89: 36.62517667 | BQ89: 420.6868233 | BR89: 394.2058233 | BS89: 414.3748233 | BT89: 37.02767145 | BU89: 37.04413722 | BV89: 40.68071047 | BW89: 38.25083971 | BZ89: 87 | CA89: 29 | CB89: 316.862 | CC89: 207.671 | CD89: 294.994 | CE89: 36.62517667 | CF89: 280.2368233 | CG89: 171.0458233 | CH89: 258.3688233 | CI89: 13.48955448 | CJ89: 10.33123899 | CK89: 12.77266849 | CL89: 12.19782065 | CO89: 87 | CP89: 29 | CQ89: 1012.135 | CR89: 951.164 | CS89: 726.383 | CT89: 36.62517667 | CU89: 975.5098233 | CV89: 914.5388233 | CW89: 689.7578233 | CX89: 97.79451807 | CY89: 98.22304952 | CZ89: 98.60645933 | DA89: 98.20800897 | DD89: 87 | DE89: 29 | DF89: 1199.017 | DG89: 1078.752 | DH89: 811.801 | DI89: 36.62517667 | DJ89: 1162.391823 | DK89: 1042.126823 | DL89: 775.1758233 | DM89: 108.8446349 | DN89: 108.7212753 | DO89: 95.28584671 | DP89: 104.283919
C90: 88 | D90: 29.33333333 | E90: 1144.881 | F90: 1086.435 | G90: 1139.8 | H90: 36.90568667 | I90: 1107.975313 | J90: 1049.529313 | K90: 1102.894313 | L90: 95.20375426 | M90: 101.5973025 | N90: 97.41895356 | O90: 98.07333677 | R90: 88 | S90: 29.33333333 | T90: 781.813 | U90: 970.472 | V90: 958.929 | W90: 36.90568667 | X90: 744.9073133 | Y90: 933.5663133 | Z90: 922.0233133 | AA90: 107.7705108 | AB90: 102.3414177 | AC90: 92.6546044 | AD90: 100.9221776 | AG90: 88 | AH90: 29.33333333 | AI90: 1031.065 | AJ90: 900.485 | AK90: 1046.35 | AL90: 36.90568667 | AM90: 994.1593133 | AN90: 863.5793133 | AO90: 1009.444313 | AP90: 70.59749064 | AQ90: 74.72699447 | AR90: 77.43971761 | AS90: 74.25473424 | AV90: 88 | AW90: 29.33333333 | AX90: 847.747 | AY90: 633.34 | AZ90: 944.578 | BA90: 36.90568667 | BB90: 810.8413133 | BC90: 596.4343133 | BD90: 907.6723133 | BE90: 79.00028396 | BF90: 69.29733125 | BG90: 75.47967464 | BH90: 74.59242995 | BK90: 88 | BL90: 29.33333333 | BM90: 453.15 | BN90: 427.81 | BO90: 440.516 | BP90: 36.90568667 | BQ90: 416.2443133 | BR90: 390.9043133 | BS90: 403.6103133 | BT90: 36.63665421 | BU90: 36.73388916 | BV90: 39.62391867 | BW90: 37.66482068 | BZ90: 88 | CA90: 29.33333333 | CB90: 316.724 | CC90: 199.984 | CD90: 293.364 | CE90: 36.90568667 | CF90: 279.8183133 | CG90: 163.0783133 | CH90: 256.4583133 | CI90: 13.46940898 | CJ90: 9.849998062 | CK90: 12.67822091 | CL90: 11.99920931 | CO90: 88 | CP90: 29.33333333 | CQ90: 1004.281 | CR90: 933.736 | CS90: 708.98 | CT90: 36.90568667 | CU90: 967.3753133 | CV90: 896.8303133 | CW90: 672.0743133 | CX90: 96.97903629 | CY90: 96.32112495 | CZ90: 96.07845856 | DA90: 96.45953993 | DD90: 88 | DE90: 29.33333333 | DF90: 1206.972 | DG90: 1083.28 | DH90: 823.425 | DI90: 36.90568667 | DJ90: 1170.066313 | DK90: 1046.374313 | DL90: 786.5193133 | DM90: 109.5632626 | DN90: 109.1644004 | DO90: 96.68020656 | DP90: 105.1359565
C91: 89 | D91: 29.66666667 | E91: 1117.763 | F91: 1089.252 | G91: 1109.462 | H91: 36.78874 | I91: 1080.97426 | J91: 1052.46326 | K91: 1072.67326 | L91: 92.88366498 | M91: 101.8813165 | N91: 94.74951973 | O91: 96.50483375 | R91: 89 | S91: 29.66666667 | T91: 746.521 | U91: 969.327 | V91: 952.174 | W91: 36.78874 | X91: 709.73226 | Y91: 932.53826 | Z91: 915.38526 | AA91: 102.6815106 | AB91: 102.2287183 | AC91: 91.98754295 | AD91: 98.96592393 | AG91: 89 | AH91: 29.66666667 | AI91: 1055.378 | AJ91: 894.211 | AK91: 1052.189 | AL91: 36.78874 | AM91: 1018.58926 | AN91: 857.42226 | AO91: 1015.40026 | AP91: 72.33231614 | AQ91: 74.19421412 | AR91: 77.89662922 | AS91: 74.80771983 | AV91: 89 | AW91: 29.66666667 | AX91: 851.948 | AY91: 633.203 | AZ91: 943.131 | BA91: 36.78874 | BB91: 815.15926 | BC91: 596.41426 | BD91: 906.34226 | BE91: 79.42098159 | BF91: 69.29500133 | BG91: 75.36907086 | BH91: 74.69501793 | BK91: 89 | BL91: 29.66666667 | BM91: 443.255 | BN91: 423.583 | BO91: 447.284 | BP91: 36.78874 | BQ91: 406.46626 | BR91: 386.79426 | BS91: 410.49526 | BT91: 35.77601745 | BU91: 36.34766103 | BV91: 40.29983937 | BW91: 37.47450595 | BZ91: 89 | CA91: 29.66666667 | CB91: 313.137 | CC91: 200.524 | CD91: 287.652 | CE91: 36.78874 | CF91: 276.34826 | CG91: 163.73526 | CH91: 250.86326 | CI91: 13.30237356 | CJ91: 9.889677914 | CK91: 12.40162499 | CL91: 11.86455882 | CO91: 89 | CP91: 29.66666667 | CQ91: 1030.155 | CR91: 933.771 | CS91: 727.825 | CT91: 36.78874 | CU91: 993.36626 | CV91: 896.98226 | CW91: 691.03626 | CX91: 99.58461959 | CY91: 96.33744428 | CZ91: 98.7892222 | DA91: 98.23709536 | DD91: 89 | DE91: 29.66666667 | DF91: 1185.109 | DG91: 1065.248 | DH91: 815.368 | DI91: 36.78874 | DJ91: 1148.32026 | DK91: 1028.45926 | DL91: 778.57926 | DM91: 107.5269947 | DN91: 107.2953885 | DO91: 95.70420256 | DP91: 103.5088619
C92: 90 | D92: 30 | E92: 1137.552 | F92: 1093.534 | G92: 1119.057 | H92: 37.05819333 | I92: 1100.493807 | J92: 1056.475807 | K92: 1081.998807 | L92: 94.56089922 | M92: 102.269742 | N92: 95.57324779 | O92: 97.467963 | R92: 90 | S92: 30 | T92: 744.504 | U92: 967.393 | V92: 962.928 | W92: 37.05819333 | X92: 707.4458067 | Y92: 930.3348067 | Z92: 925.8698067 | AA92: 102.3507147 | AB92: 101.9871665 | AC92: 93.04114053 | AD92: 99.1263406 | AG92: 90 | AH92: 30 | AI92: 1039.68 | AJ92: 892.545 | AK92: 1023.767 | AL92: 37.05819333 | AM92: 1002.621807 | AN92: 855.4868067 | AO92: 986.7088067 | AP92: 71.19843134 | AQ92: 74.02673604 | AR92: 75.69555878 | AS92: 73.64024205 | AV92: 90 | AW92: 30 | AX92: 842.996 | AY92: 636.694 | AZ92: 934.439 | BA92: 37.05819333 | BB92: 805.9378067 | BC92: 599.6358067 | BD92: 897.3808067 | BE92: 78.52253522 | BF92: 69.66930003 | BG92: 74.62385965 | BH92: 74.2718983 | BK92: 90 | BL92: 30 | BM92: 432.539 | BN92: 424.284 | BO92: 439.453 | BP92: 37.05819333 | BQ92: 395.4808067 | BR92: 387.2258067 | BS92: 402.3948067 | BT92: 34.80910873 | BU92: 36.38821414 | BV92: 39.50458788 | BW92: 36.90063692 | BZ92: 90 | CA92: 30 | CB92: 314.37 | CC92: 200.968 | CD92: 290.981 | CE92: 37.05819333 | CF92: 277.3118067 | CG92: 163.9098067 | CH92: 253.9228067 | CI92: 13.3487551 | CJ92: 9.900220606 | CK92: 12.55287612 | CL92: 11.93395061 | CO92: 90 | CP92: 30 | CQ92: 995.222 | CR92: 934.147 | CS92: 731.264 | CT92: 37.05819333 | CU92: 958.1638067 | CV92: 897.0888067 | CW92: 694.2058067 | CX92: 96.05558597 | CY92: 96.34888758 | CZ92: 99.24233453 | DA92: 97.21560269 | DD92: 90 | DE92: 30 | DF92: 1200.74 | DG92: 1081.386 | DH92: 809.981 | DI92: 37.05819333 | DJ92: 1163.681807 | DK92: 1044.327807 | DL92: 772.9228067 | DM92: 108.965427 | DN92: 108.9508959 | DO92: 95.00890231 | DP92: 104.3084084
C93: 91 | D93: 30.33333333 | E93: 1189.69 | F93: 1088.569 | G93: 1113.788 | H93: 37.29314333 | I93: 1152.396857 | J93: 1051.275857 | K93: 1076.494857 | L93: 99.02071448 | M93: 101.7663726 | N93: 95.0870824 | O93: 98.62472317 | R93: 91 | S93: 30.33333333 | T93: 715.035 | U93: 977.268 | V93: 961.463 | W93: 37.29314333 | X93: 677.7418567 | Y93: 939.9748567 | Z93: 924.1698567 | AA93: 98.05325409 | AB93: 103.0439489 | AC93: 92.87031166 | AD93: 97.98917154 | AG93: 91 | AH93: 30.33333333 | AI93: 1060.186 | AJ93: 890.236 | AK93: 1064.291 | AL93: 37.29314333 | AM93: 1022.892857 | AN93: 852.9428567 | AO93: 1026.997857 | AP93: 72.63792423 | AQ93: 73.80660369 | AR93: 78.78634111 | AS93: 75.07695635 | AV93: 91 | AW93: 30.33333333 | AX93: 839.441 | AY93: 628.601 | AZ93: 930.568 | BA93: 37.29314333 | BB93: 802.1478567 | BC93: 591.3078567 | BD93: 893.2748567 | BE93: 78.15328032 | BF93: 68.70170863 | BG93: 74.2824195 | BH93: 73.71246949 | BK93: 91 | BL93: 30.33333333 | BM93: 435.514 | BN93: 419.33 | BO93: 434.974 | BP93: 37.29314333 | BQ93: 398.2208567 | BR93: 382.0368567 | BS93: 397.6808567 | BT93: 35.05028023 | BU93: 35.9006004 | BV93: 39.04180196 | BW93: 36.66422753 | BZ93: 91 | CA93: 30.33333333 | CB93: 309.425 | CC93: 203.026 | CD93: 291.447 | CE93: 37.29314333 | CF93: 272.1318567 | CG93: 165.7328567 | CH93: 254.1538567 | CI93: 13.09941165 | CJ93: 10.01033359 | CK93: 12.56429826 | CL93: 11.89134783 | CO93: 91 | CP93: 30.33333333 | CQ93: 1005.338 | CR93: 949.941 | CS93: 721.427 | CT93: 37.29314333 | CU93: 968.0448567 | CV93: 912.6478567 | CW93: 684.1338567 | CX93: 97.04615777 | CY93: 98.01995643 | CZ93: 97.80246781 | DA93: 97.62286067 | DD93: 91 | DE93: 30.33333333 | DF93: 1202.845 | DG93: 1087.425 | DH93: 824.581 | DI93: 37.29314333 | DJ93: 1165.551857 | DK93: 1050.131857 | DL93: 787.2878567 | DM93: 109.1405357 | DN93: 109.5564112 | DO93: 96.77467713 | DP93: 105.157208
C94: 92 | D94: 30.66666667 | E94: 1134.271 | F94: 1093.106 | G94: 1137.598 | H94: 37.57080333 | I94: 1096.700197 | J94: 1055.535197 | K94: 1100.027197 | L94: 94.23492994 | M94: 102.1786884 | N94: 97.16570037 | O94: 97.8597729 | R94: 92 | S94: 30.66666667 | T94: 705.843 | U94: 968.391 | V94: 955.289 | W94: 37.57080333 | X94: 668.2721967 | Y94: 930.8201967 | Z94: 917.7181967 | AA94: 96.68321774 | AB94: 102.040377 | AC94: 92.22198098 | AD94: 96.98185858 | AG94: 92 | AH94: 30.66666667 | AI94: 1069.999 | AJ94: 896.985 | AK94: 1058.829 | AL94: 37.57080333 | AM94: 1032.428197 | AN94: 859.4141967 | AO94: 1021.258197 | AP94: 73.31505019 | AQ94: 74.36657981 | AR94: 78.34602198 | AS94: 75.34255066 | AV94: 92 | AW94: 30.66666667 | AX94: 837.287 | AY94: 630.165 | AZ94: 934.681 | BA94: 37.57080333 | BB94: 799.7161967 | BC94: 592.5941967 | BD94: 897.1101967 | BE94: 77.91636364 | BF94: 68.85116336 | BG94: 74.60135643 | BH94: 73.78962781 | BK94: 92 | BL94: 30.66666667 | BM94: 421.471 | BN94: 421.198 | BO94: 414.498 | BP94: 37.57080333 | BQ94: 383.9001967 | BR94: 383.6271967 | BS94: 376.9271967 | BT94: 33.789816 | BU94: 36.05004714 | BV94: 37.00433832 | BW94: 35.61473382 | BZ94: 92 | CA94: 30.66666667 | CB94: 313.814 | CC94: 198.037 | CD94: 286.341 | CE94: 37.57080333 | CF94: 276.2431967 | CG94: 160.4661967 | CH94: 248.7701967 | CI94: 13.29731621 | CJ94: 9.692225127 | CK94: 12.29815274 | CL94: 11.76256469 | CO94: 92 | CP94: 30.66666667 | CQ94: 1000.509 | CR94: 934.455 | CS94: 723.849 | CT94: 37.57080333 | CU94: 962.9381967 | CV94: 896.8841967 | CW94: 686.2781967 | CX94: 96.5342169 | CY94: 96.32691211 | CZ94: 98.10901856 | DA94: 96.99004919 | DD94: 92 | DE94: 30.66666667 | DF94: 1199.6 | DG94: 1081.845 | DH94: 831.689 | DI94: 37.57080333 | DJ94: 1162.029197 | DK94: 1044.274197 | DL94: 794.1181967 | DM94: 108.810679 | DN94: 108.9453029 | DO94: 97.6142734 | DP94: 105.1234185
C95: 93 | D95: 31 | E95: 1105.509 | F95: 1091.144 | G95: 1121.495 | H95: 36.17635667 | I95: 1069.332643 | J95: 1054.967643 | K95: 1085.318643 | L95: 91.88334882 | M95: 102.1237477 | N95: 95.86648987 | O95: 96.62452879 | R95: 93 | S95: 31 | T95: 720.605 | U95: 977.732 | V95: 959.378 | W95: 36.17635667 | X95: 684.4286433 | Y95: 941.5556433 | Z95: 923.2016433 | AA95: 99.02067434 | AB95: 103.2172413 | AC95: 92.7730154 | AD95: 98.336977 | AG95: 93 | AH95: 31 | AI95: 1028.199 | AJ95: 889.196 | AK95: 1016.75 | AL95: 36.17635667 | AM95: 992.0226433 | AN95: 853.0196433 | AO95: 980.5736433 | AP95: 70.44576089 | AQ95: 73.81324818 | AR95: 75.22489852 | AS95: 73.16130253 | AV95: 93 | AW95: 31 | AX95: 841.562 | AY95: 623.798 | AZ95: 916.982 | BA95: 36.17635667 | BB95: 805.3856433 | BC95: 587.6216433 | BD95: 880.8056433 | BE95: 78.46873794 | BF95: 68.27342217 | BG95: 73.24551207 | BH95: 73.32922406 | BK95: 93 | BL95: 31 | BM95: 418.249 | BN95: 414.988 | BO95: 427.58 | BP95: 36.17635667 | BQ95: 382.0726433 | BR95: 378.8116433 | BS95: 391.4036433 | BT95: 33.62895989 | BU95: 35.59752207 | BV95: 38.42554468 | BW95: 35.88400888 | BZ95: 93 | CA95: 31 | CB95: 309.639 | CC95: 197.885 | CD95: 291.034 | CE95: 36.17635667 | CF95: 273.4626433 | CG95: 161.7086433 | CH95: 254.8576433 | CI95: 13.16347075 | CJ95: 9.767269423 | CK95: 12.59909051 | CL95: 11.84327689 | CO95: 93 | CP95: 31 | CQ95: 1000.386 | CR95: 929.669 | CS95: 724.541 | CT95: 36.17635667 | CU95: 964.2096433 | CV95: 893.4926433 | CW95: 688.3646433 | CX95: 96.66167898 | CY95: 95.96265343 | CZ95: 98.40729299 | DA95: 97.0105418 | DD95: 93 | DE95: 31 | DF95: 1199.39 | DG95: 1073.62 | DH95: 826.574 | DI95: 36.17635667 | DJ95: 1163.213643 | DK95: 1037.443643 | DL95: 790.3976433 | DM95: 108.9215888 | DN95: 108.2326963 | DO95: 97.15693706 | DP95: 104.7704074
C96: 94 | D96: 31.33333333 | E96: 1198.491 | F96: 1089.091 | G96: 1116.934 | H96: 37.24155667 | I96: 1161.249443 | J96: 1051.849443 | K96: 1079.692443 | L96: 99.78138079 | M96: 101.8218974 | N96: 95.3695261 | O96: 98.99093476 | R96: 94 | S96: 31.33333333 | T96: 724.439 | U96: 957.557 | V96: 961.318 | W96: 37.24155667 | X96: 687.1974433 | Y96: 920.3154433 | Z96: 924.0764433 | AA96: 99.42125436 | AB96: 100.8888023 | AC96: 92.86092451 | AD96: 97.72366039 | AG96: 94 | AH96: 31.33333333 | AI96: 1024.911 | AJ96: 899.125 | AK96: 1043.367 | AL96: 37.24155667 | AM96: 987.6694433 | AN96: 861.8834433 | AO96: 1006.125443 | AP96: 70.13663036 | AQ96: 74.58024794 | AR96: 77.18510985 | AS96: 73.96732939 | AV96: 94 | AW96: 31.33333333 | AX96: 831.27 | AY96: 636.317 | AZ96: 931.148 | BA96: 37.24155667 | BB96: 794.0284433 | BC96: 599.0754433 | BD96: 893.9064433 | BE96: 77.36220573 | BF96: 69.60419364 | BG96: 74.33494061 | BH96: 73.76711333 | BK96: 94 | BL96: 31.33333333 | BM96: 419.645 | BN96: 414.333 | BO96: 420.689 | BP96: 37.24155667 | BQ96: 382.4034433 | BR96: 377.0914433 | BS96: 383.4474433 | BT96: 33.65807598 | BU96: 35.43587218 | BV96: 37.64445508 | BW96: 35.57946775 | BZ96: 94 | CA96: 31.33333333 | CB96: 309.888 | CC96: 196.215 | CD96: 291.766 | CE96: 37.24155667 | CF96: 272.6464433 | CG96: 158.9734433 | CH96: 254.5244433 | CI96: 13.12418193 | CJ96: 9.602062204 | CK96: 12.5826185 | CL96: 11.76962088 | CO96: 94 | CP96: 31.33333333 | CQ96: 1015.865 | CR96: 925.167 | CS96: 717.548 | CT96: 37.24155667 | CU96: 978.6234433 | CV96: 887.9254433 | CW96: 680.3064433 | CX96: 98.10665738 | CY96: 95.36472653 | CZ96: 97.25530812 | DA96: 96.90889734 | DD96: 94 | DE96: 31.33333333 | DF96: 1186.694 | DG96: 1067.878 | DH96: 832.006 | DI96: 37.24155667 | DJ96: 1149.452443 | DK96: 1030.636443 | DL96: 794.7644433 | DM96: 107.6330106 | DN96: 107.5225261 | DO96: 97.69371107 | DP96: 104.2830826
C97: 95 | D97: 31.66666667 | E97: 1118.633 | F97: 1086.247 | G97: 1182.451 | H97: 37.02192 | I97: 1081.61108 | J97: 1049.22508 | K97: 1145.42908 | L97: 92.9383843 | M97: 101.5678519 | N97: 101.176061 | O97: 98.56076573 | R97: 95 | S97: 31.66666667 | T97: 761.157 | U97: 948.26 | V97: 960.689 | W97: 37.02192 | X97: 724.13508 | Y97: 911.23808 | Z97: 923.66708 | AA97: 104.7652588 | AB97: 99.89370403 | AC97: 92.81978737 | AD97: 99.15958339 | AG97: 95 | AH97: 31.66666667 | AI97: 1066.308 | AJ97: 883.794 | AK97: 1031.357 | AL97: 37.02192 | AM97: 1029.28608 | AN97: 846.77208 | AO97: 994.33508 | AP97: 73.09192141 | AQ97: 73.27263584 | AR97: 76.28060982 | AS97: 74.21505569 | AV97: 95 | AW97: 31.66666667 | AX97: 836.98 | AY97: 640.942 | AZ97: 920.576 | BA97: 37.02192 | BB97: 799.95808 | BC97: 603.92008 | BD97: 883.55408 | BE97: 77.93993034 | BF97: 70.16707271 | BG97: 73.47406493 | BH97: 73.860356 | BK97: 95 | BL97: 31.66666667 | BM97: 419.643 | BN97: 409.905 | BO97: 418.675 | BP97: 37.02192 | BQ97: 382.62108 | BR97: 372.88308 | BS97: 381.65308 | BT97: 33.67723175 | BU97: 35.0404057 | BV97: 37.46829578 | BW97: 35.39531108 | BZ97: 95 | CA97: 31.66666667 | CB97: 308.45 | CC97: 199.143 | CD97: 285.826 | CE97: 37.02192 | CF97: 271.42808 | CG97: 162.12108 | CH97: 248.80408 | CI97: 13.06553447 | CJ97: 9.79218077 | CK97: 12.29982779 | CL97: 11.71918101 | CO97: 95 | CP97: 31.66666667 | CQ97: 1008.799 | CR97: 919.622 | CS97: 717.779 | CT97: 37.02192 | CU97: 971.77708 | CV97: 882.60008 | CW97: 680.75708 | CX97: 97.42031185 | CY97: 94.79277331 | CZ97: 97.31973028 | DA97: 96.51093848 | DD97: 95 | DE97: 31.66666667 | DF97: 1192.584 | DG97: 1078.51 | DH97: 827.909 | DI97: 37.02192 | DJ97: 1155.56208 | DK97: 1041.48808 | DL97: 790.88708 | DM97: 108.2051079 | DN97: 108.6546376 | DO97: 97.2170994 | DP97: 104.6922816
C98: 96 | D98: 32 | E98: 1172.933 | F98: 1098.974 | G98: 1121.365 | H98: 37.41362333 | I98: 1135.519377 | J98: 1061.560377 | K98: 1083.951377 | L98: 97.57050216 | M98: 102.7619422 | N98: 95.74571883 | O98: 98.69272108 | R98: 96 | S98: 32 | T98: 752.291 | U98: 953.537 | V98: 961.488 | W98: 37.41362333 | X98: 714.8773767 | Y98: 916.1233767 | Z98: 924.0743767 | AA98: 103.4258876 | AB98: 100.4292506 | AC98: 92.86071683 | AD98: 98.90528498 | AG98: 96 | AH98: 32 | AI98: 1024.764 | AJ98: 897.032 | AK98: 1044.935 | AL98: 37.41362333 | AM98: 987.3503767 | AN98: 859.6183767 | AO98: 1007.521377 | AP98: 70.11397272 | AQ98: 74.38424785 | AR98: 77.29219915 | AS98: 73.93013991 | AV98: 96 | AW98: 32 | AX98: 831.003 | AY98: 622.892 | AZ98: 923.348 | BA98: 37.41362333 | BB98: 793.5893767 | BC98: 585.4783767 | BD98: 885.9343767 | BE98: 77.31942746 | BF98: 68.02440453 | BG98: 73.67200423 | BH98: 73.00527874 | BK98: 96 | BL98: 32 | BM98: 411.081 | BN98: 404.533 | BO98: 410.254 | BP98: 37.41362333 | BQ98: 373.6673767 | BR98: 367.1193767 | BS98: 372.8403767 | BT98: 32.88915195 | BU98: 34.4987815 | BV98: 36.60312007 | BW98: 34.66368451 | BZ98: 96 | CA98: 32 | CB98: 307.336 | CC98: 198.473 | CD98: 283.063 | CE98: 37.41362333 | CF98: 269.9223767 | CG98: 161.0593767 | CH98: 245.6493767 | CI98: 12.99305553 | CJ98: 9.728053446 | CK98: 12.14387252 | CL98: 11.6216605 | CO98: 96 | CP98: 32 | CQ98: 1031.622 | CR98: 925.703 | CS98: 720.577 | CT98: 37.41362333 | CU98: 994.2083767 | CV98: 888.2893767 | CW98: 683.1633767 | CX98: 99.66904149 | CY98: 95.4038136 | CZ98: 97.66372985 | DA98: 97.57886165 | DD98: 96 | DE98: 32 | DF98: 1191.587 | DG98: 1064.551 | DH98: 817.272 | DI98: 37.41362333 | DJ98: 1154.173377 | DK98: 1027.137377 | DL98: 779.8583767 | DM98: 108.0750718 | DN98: 107.1574813 | DO98: 95.86143362 | DP98: 103.6979956
C99: 97 | D99: 32.33333333 | E99: 1149.631 | F99: 1097.823 | G99: 1124.174 | H99: 37.98924333 | I99: 1111.641757 | J99: 1059.833757 | K99: 1086.184757 | L99: 95.51879664 | M99: 102.5948007 | N99: 95.94299389 | O99: 98.01886375 | R99: 97 | S99: 32.33333333 | T99: 784.633 | U99: 953.091 | V99: 955.466 | W99: 37.98924333 | X99: 746.6437567 | Y99: 915.1017567 | Z99: 917.4767567 | AA99: 108.0217332 | AB99: 100.3172563 | AC99: 92.19771855 | AD99: 100.1789027 | AG99: 97 | AH99: 32.33333333 | AI99: 1047.311 | AJ99: 883.683 | AK99: 1039.189 | AL99: 37.98924333 | AM99: 1009.321757 | AN99: 845.6937567 | AO99: 1001.199757 | AP99: 71.67420987 | AQ99: 73.17932668 | AR99: 76.80723483 | AS99: 73.88692379 | AV99: 97 | AW99: 32.33333333 | AX99: 817.034 | AY99: 636.954 | AZ99: 925.337 | BA99: 37.98924333 | BB99: 779.0447567 | BC99: 598.9647567 | BD99: 887.3477567 | BE99: 75.90234487 | BF99: 69.5913334 | BG99: 73.78953724 | BH99: 73.09440517 | BK99: 97 | BL99: 32.33333333 | BM99: 409.808 | BN99: 399.96 | BO99: 411.673 | BP99: 37.98924333 | BQ99: 371.8187567 | BR99: 361.9707567 | BS99: 373.6837567 | BT99: 32.72644162 | BU99: 34.01495763 | BV99: 36.68591781 | BW99: 34.47577235 | BZ99: 97 | CA99: 32.33333333 | CB99: 308.136 | CC99: 195.789 | CD99: 284.379 | CE99: 37.98924333 | CF99: 270.1467567 | CG99: 157.7997567 | CH99: 246.3897567 | CI99: 13.00385634 | CJ99: 9.53117104 | CK99: 12.18047379 | CL99: 11.57183373 | CO99: 97 | CP99: 32.33333333 | CQ99: 999.315 | CR99: 925.899 | CS99: 718.43 | CT99: 37.98924333 | CU99: 961.3257567 | CV99: 887.9097567 | CW99: 680.4407567 | CX99: 96.37257035 | CY99: 95.36304175 | CZ99: 97.2745093 | DA99: 96.33670714 | DD99: 97 | DE99: 32.33333333 | DF99: 1201.615 | DG99: 1061.7 | DH99: 828.125 | DI99: 37.98924333 | DJ99: 1163.625757 | DK99: 1023.710757 | DL99: 790.1357567 | DM99: 108.9601785 | DN99: 106.7999945 | DO99: 97.12474554 | DP99: 104.2949729
C100: 98 | D100: 32.66666667 | E100: 1191.445 | F100: 1097.048 | G100: 1123.718 | H100: 36.88443 | I100: 1154.56057 | J100: 1060.16357 | K100: 1086.83357 | L100: 99.20663346 | M100: 102.6267276 | N100: 96.00030375 | O100: 99.27788825 | R100: 98 | S100: 32.66666667 | T100: 786.476 | U100: 948.384 | V100: 967.025 | W100: 36.88443 | X100: 749.59157 | Y100: 911.49957 | Z100: 930.14057 | AA100: 108.4482122 | AB100: 99.92236966 | AC100: 93.47031176 | AD100: 100.6136312 | AG100: 98 | AH100: 32.66666667 | AI100: 1063.204 | AJ100: 884.474 | AK100: 1018.514 | AL100: 36.88443 | AM100: 1026.31957 | AN100: 847.58957 | AO100: 981.62957 | AP100: 72.88126286 | AQ100: 73.34337465 | AR100: 75.30590414 | AS100: 73.84351388 | AV100: 98 | AW100: 32.66666667 | AX100: 817.744 | AY100: 636.833 | AZ100: 913.513 | BA100: 36.88443 | BB100: 780.85957 | BC100: 599.94857 | BD100: 876.62857 | BE100: 76.07916216 | BF100: 69.70563876 | BG100: 72.89815749 | BH100: 72.89431947 | BK100: 98 | BL100: 32.66666667 | BM100: 407.517 | BN100: 402.9 | BO100: 397.716 | BP100: 36.88443 | BQ100: 370.63257 | BR100: 366.01557 | BS100: 360.83157 | BT100: 32.6220368 | BU100: 34.39505506 | BV100: 35.42417106 | BW100: 34.14708764 | BZ100: 98 | CA100: 32.66666667 | CB100: 301.799 | CC100: 192.657 | CD100: 279.203 | CE100: 36.88443 | CF100: 264.91457 | CG100: 155.77257 | CH100: 242.31857 | CI100: 12.75199841 | CJ100: 9.408728121 | CK100: 11.97921144 | CL100: 11.37997932 | CO100: 98 | CP100: 32.66666667 | CQ100: 1005.81 | CR100: 931.081 | CS100: 717.267 | CT100: 36.88443 | CU100: 968.92557 | CV100: 894.19657 | CW100: 680.38257 | CX100: 97.13444898 | CY100: 96.03825637 | CZ100: 97.26619105 | DA100: 96.81296546 | DD100: 98 | DE100: 32.66666667 | DF100: 1200.032 | DG100: 1065.796 | DH100: 820.251 | DI100: 36.88443 | DJ100: 1163.14757 | DK100: 1028.91157 | DL100: 783.36657 | DM100: 108.9154018 | DN100: 107.3425764 | DO100: 96.29266633 | DP100: 104.1835482
C101: 99 | D101: 33 | E101: 1237.27 | F101: 1095.267 | G101: 1110.614 | H101: 37.92786 | I101: 1199.34214 | J101: 1057.33914 | K101: 1072.68614 | L101: 103.0545293 | M101: 102.353315 | N101: 94.75065742 | O101: 100.0528339 | R101: 99 | S101: 33 | T101: 777.888 | U101: 946.438 | V101: 954.068 | W101: 37.92786 | X101: 739.96014 | Y101: 908.51014 | Z101: 916.14014 | AA101: 107.0547715 | AB101: 99.59465592 | AC101: 92.06340124 | AD101: 99.5709429 | AG101: 99 | AH101: 33 | AI101: 1009.132 | AJ101: 889.087 | AK101: 1043.097 | AL101: 37.92786 | AM101: 971.20414 | AN101: 851.15914 | AO101: 1005.16914 | AP101: 68.96739211 | AQ101: 73.65225564 | AR101: 77.11174685 | AS101: 73.2437982 | AV101: 99 | AW101: 33 | AX101: 835.184 | AY101: 618.427 | AZ101: 919.245 | BA101: 37.92786 | BB101: 797.25614 | BC101: 580.49914 | BD101: 881.31714 | BE101: 77.67668028 | BF101: 67.44588682 | BG101: 73.28804681 | BH101: 72.80353797 | BK101: 99 | BL101: 33 | BM101: 400.434 | BN101: 386.356 | BO101: 382.729 | BP101: 37.92786 | BQ101: 362.50614 | BR101: 348.42814 | BS101: 344.80114 | BT101: 31.90677128 | BU101: 32.74233678 | BV101: 33.8504044 | BW101: 32.83317082 | BZ101: 99 | CA101: 33 | CB101: 301.415 | CC101: 196.96 | CD101: 281.154 | CE101: 37.92786 | CF101: 263.48714 | CG101: 159.03214 | CH101: 243.22614 | CI101: 12.68328726 | CJ101: 9.605607507 | CK101: 12.02407788 | CL101: 11.43765755 | CO101: 99 | CP101: 33 | CQ101: 1007.853 | CR101: 938.986 | CS101: 717.754 | CT101: 37.92786 | CU101: 969.92514 | CV101: 901.05814 | CW101: 679.82614 | CX101: 97.23465552 | CY101: 96.77520084 | CZ101: 97.18664488 | DA101: 97.06550041 | DD101: 99 | DE101: 33 | DF101: 1182.211 | DG101: 1071.685 | DH101: 828.461 | DI101: 37.92786 | DJ101: 1144.28314 | DK101: 1033.75714 | DL101: 790.53314 | DM101: 107.1489648 | DN101: 107.8480969 | DO101: 97.17359253 | DP101: 104.0568847
C102: 100 | D102: 33.33333333 | E102: 1118.511 | F102: 1088.881 | G102: 1113.04 | H102: 37.21448333 | I102: 1081.296517 | J102: 1051.666517 | K102: 1075.825517 | L102: 92.91135517 | M102: 101.8041896 | N102: 95.02795942 | O102: 96.58116806 | R102: 100 | S102: 33.33333333 | T102: 762.44 | U102: 934.253 | V102: 957.863 | W102: 37.21448333 | X102: 725.2255167 | Y102: 897.0385167 | Z102: 920.6485167 | AA102: 104.9230192 | AB102: 98.33708891 | AC102: 92.51645037 | AD102: 98.59218617 | AG102: 100 | AH102: 33.33333333 | AI102: 1063.442 | AJ102: 881.136 | AK102: 1021.227 | AL102: 37.21448333 | AM102: 1026.227517 | AN102: 843.9215167 | AO102: 984.0125167 | AP102: 72.87472594 | AQ102: 73.02597172 | AR102: 75.48871236 | AS102: 73.79647001 | AV102: 100 | AW102: 33.33333333 | AX102: 809.485 | AY102: 625.724 | AZ102: 912.254 | BA102: 37.21448333 | BB102: 772.2705167 | BC102: 588.5095167 | BD102: 875.0395167 | BE102: 75.24233054 | BF102: 68.37658064 | BG102: 72.76601594 | BH102: 72.12830904 | BK102: 100 | BL102: 33.33333333 | BM102: 396.948 | BN102: 397.597 | BO102: 392.887 | BP102: 37.21448333 | BQ102: 359.7335167 | BR102: 360.3825167 | BS102: 355.6725167 | BT102: 31.66273277 | BU102: 33.86570823 | BV102: 34.9176877 | BW102: 33.4820429 | BZ102: 100 | CA102: 33.33333333 | CB102: 301.799 | CC102: 189.9 | CD102: 278.858 | CE102: 37.21448333 | CF102: 264.5845167 | CG102: 152.6855167 | CH102: 241.6435167 | CI102: 12.73611088 | CJ102: 9.222268814 | CK102: 11.94583964 | CL102: 11.30140644 | CO102: 100 | CP102: 33.33333333 | CQ102: 999.531 | CR102: 922.09 | CS102: 728.613 | CT102: 37.21448333 | CU102: 962.3165167 | CV102: 884.8755167 | CW102: 691.3985167 | CX102: 96.47189369 | CY102: 95.03715914 | CZ102: 98.84100972 | DA102: 96.78335418 | DD102: 100 | DE102: 33.33333333 | DF102: 1189.785 | DG102: 1079.385 | DH102: 821.908 | DI102: 37.21448333 | DJ102: 1152.570517 | DK102: 1042.170517 | DL102: 784.6935167 | DM102: 107.9249824 | DN102: 108.7258337 | DO102: 96.45577673 | DP102: 104.3688643
C103: 101 | D103: 33.66666667 | E103: 1238.722 | F103: 1105.764 | G103: 1113.52 | H103: 37.69380333 | I103: 1201.028197 | J103: 1068.070197 | K103: 1075.826197 | L103: 103.1994052 | M103: 103.3921106 | N103: 95.02801948 | O103: 100.5398451 | R103: 101 | S103: 33.66666667 | T103: 699.014 | U103: 946.969 | V103: 953.537 | W103: 37.69380333 | X103: 661.3201967 | Y103: 909.2751967 | Z103: 915.8431967 | AA103: 95.67742739 | AB103: 99.67852461 | AC103: 92.03356125 | AD103: 95.79650442 | AG103: 101 | AH103: 33.66666667 | AI103: 1020.256 | AJ103: 874.052 | AK103: 1012.159 | AL103: 37.69380333 | AM103: 982.5621967 | AN103: 836.3581967 | AO103: 974.4651967 | AP103: 69.77395328 | AQ103: 72.37150471 | AR103: 74.75628784 | AS103: 72.30058194 | AV103: 101 | AW103: 33.66666667 | AX103: 806.269 | AY103: 616.807 | AZ103: 908.165 | BA103: 37.69380333 | BB103: 768.5751967 | BC103: 579.1131967 | BD103: 870.4711967 | BE103: 74.88229544 | BF103: 67.28485958 | BG103: 72.3861263 | BH103: 71.51776044 | BK103: 101 | BL103: 33.66666667 | BM103: 391.233 | BN103: 387.502 | BO103: 387.794 | BP103: 37.69380333 | BQ103: 353.5391967 | BR103: 349.8081967 | BS103: 350.1001967 | BT103: 31.11752614 | BU103: 32.87202286 | BV103: 34.37063242 | BW103: 32.78672714 | BZ103: 101 | CA103: 33.66666667 | CB103: 300.049 | CC103: 188.955 | CD103: 277.121 | CE103: 37.69380333 | CF103: 262.3551967 | CG103: 151.2611967 | CH103: 239.4271967 | CI103: 12.62879973 | CJ103: 9.136239292 | CK103: 11.83627409 | CL103: 11.20043771 | CO103: 101 | CP103: 33.66666667 | CQ103: 1001.806 | CR103: 937.304 | CS103: 717.964 | CT103: 37.69380333 | CU103: 964.1121967 | CV103: 899.6101967 | CW103: 680.2701967 | CX103: 96.65190999 | CY103: 96.61968922 | CZ103: 97.25012637 | DA103: 96.84057519 | DD103: 101 | DE103: 33.66666667 | DF103: 1178.453 | DG103: 1026.815 | DH103: 818.147 | DI103: 37.69380333 | DJ103: 1140.759197 | DK103: 989.1211967 | DL103: 780.4531967 | DM103: 106.818988 | DN103: 103.1913924 | DO103: 95.93454984 | DP103: 101.9816434
C104: 102 | D104: 34 | E104: 1120.21 | F104: 1106.404 | G104: 1121.23 | H104: 36.80384 | I104: 1083.40616 | J104: 1069.60016 | K104: 1084.42616 | L104: 93.09262813 | M104: 103.5402152 | N104: 95.78765657 | O104: 97.47349998 | R104: 102 | S104: 34 | T104: 687.971 | U104: 930.614 | V104: 956.438 | W104: 36.80384 | X104: 651.16716 | Y104: 893.81016 | Z104: 919.63416 | AA104: 94.20852256 | AB104: 97.98318304 | AC104: 92.41451713 | AD104: 94.86874091 | AG104: 102 | AH104: 34 | AI104: 1042.698 | AJ104: 888.132 | AK104: 1048.681 | AL104: 36.80384 | AM104: 1005.89416 | AN104: 851.32816 | AO104: 1011.87716 | AP104: 71.43080852 | AQ104: 73.66688123 | AR104: 77.62635392 | AS104: 74.24134789 | AV104: 102 | AW104: 34 | AX104: 798.424 | AY104: 615.503 | AZ104: 912.509 | BA104: 36.80384 | BB104: 761.62016 | BC104: 578.69916 | BD104: 875.70516 | BE104: 74.2046661 | BF104: 67.23675431 | BG104: 72.82136911 | BH104: 71.42092984 | BK104: 102 | BL104: 34 | BM104: 389.463 | BN104: 388.678 | BO104: 397.09 | BP104: 36.80384 | BQ104: 352.65916 | BR104: 351.87416 | BS104: 360.28616 | BT104: 31.04006778 | BU104: 33.06616466 | BV104: 35.37062615 | BW104: 33.15895286 | BZ104: 102 | CA104: 34 | CB104: 298.503 | CC104: 192.245 | CD104: 272.607 | CE104: 36.80384 | CF104: 261.69916 | CG104: 155.44116 | CH104: 235.80316 | CI104: 12.59722058 | CJ104: 9.388710819 | CK104: 11.65711696 | CL104: 11.21434945 | CO104: 102 | CP104: 34 | CQ104: 991.225 | CR104: 929.901 | CS104: 718.575 | CT104: 36.80384 | CU104: 954.42116 | CV104: 893.09716 | CW104: 681.77116 | CX104: 95.68038695 | CY104: 95.92017783 | CZ104: 97.46470122 | DA104: 96.35508867 | DD104: 102 | DE104: 34 | DF104: 1192.524 | DG104: 1074.873 | DH104: 833.665 | DI104: 36.80384 | DJ104: 1155.72016 | DK104: 1038.06916 | DL104: 796.86116 | DM104: 108.2199103 | DN104: 108.2979542 | DO104: 97.95144282 | DP104: 104.8231024
C105: 103 | D105: 34.33333333 | E105: 1227.717 | F105: 1112.976 | G105: 1119.671 | H105: 37.00046667 | I105: 1190.716533 | J105: 1075.975533 | K105: 1082.670533 | L105: 102.3133664 | M105: 104.1573688 | N105: 95.63258159 | O105: 100.7011056 | R105: 103 | S105: 34.33333333 | T105: 666.897 | U105: 944.748 | V105: 956.464 | W105: 37.00046667 | X105: 629.8965333 | Y105: 907.7475333 | Z105: 919.4635333 | AA105: 91.1311648 | AB105: 99.51105581 | AC105: 92.39737077 | AD105: 94.34653046 | AG105: 103 | AH105: 34.33333333 | AI105: 1063.199 | AJ105: 890.956 | AK105: 1013.585 | AL105: 37.00046667 | AM105: 1026.198533 | AN105: 853.9555333 | AO105: 976.5845333 | AP105: 72.87266777 | AQ105: 73.89423234 | AR105: 74.91887317 | AS105: 73.89525776 | AV105: 103 | AW105: 34.33333333 | AX105: 806.377 | AY105: 612.789 | AZ105: 905.783 | BA105: 37.00046667 | BB105: 769.3765333 | BC105: 575.7885333 | BD105: 868.7825333 | BE105: 74.96036969 | BF105: 66.89858017 | BG105: 72.24570144 | BH105: 71.3682171 | BK105: 103 | BL105: 34.33333333 | BM105: 381.283 | BN105: 392.584 | BO105: 395.451 | BP105: 37.00046667 | BQ105: 344.2825333 | BR105: 355.5835333 | BS105: 358.4505333 | BT105: 30.30278065 | BU105: 33.41474027 | BV105: 35.19041588 | BW105: 32.96931227 | BZ105: 103 | CA105: 34.33333333 | CB105: 300.72 | CC105: 190.613 | CD105: 275.975 | CE105: 37.00046667 | CF105: 263.7195333 | CG105: 153.6125333 | CH105: 238.9745333 | CI105: 12.69447381 | CJ105: 9.278261007 | CK105: 11.81389632 | CL105: 11.26221038 | CO105: 103 | CP105: 34.33333333 | CQ105: 999.41 | CR105: 915.245 | CS105: 710.471 | CT105: 37.00046667 | CU105: 962.4095333 | CV105: 878.2445333 | CW105: 673.4705333 | CX105: 96.48121858 | CY105: 94.32498007 | CZ105: 96.2780595 | DA105: 95.69475272 | DD105: 103 | DE105: 34.33333333 | DF105: 1181.053 | DG105: 1068.222 | DH105: 815.744 | DI105: 37.00046667 | DJ105: 1144.052533 | DK105: 1031.221533 | DL105: 778.7435333 | DM105: 107.1273711 | DN105: 107.5835664 | DO105: 95.7243953 | DP105: 103.4784443
C106: 104 | D106: 34.66666667 | E106: 1195.319 | F106: 1098.122 | G106: 1109.916 | H106: 36.85950333 | I106: 1158.459497 | J106: 1061.262497 | K106: 1073.056497 | L106: 99.54165216 | M106: 102.7331067 | N106: 94.78337113 | O106: 99.01937665 | R106: 104 | S106: 34.66666667 | T106: 677.978 | U106: 946.468 | V106: 951.537 | W106: 36.85950333 | X106: 641.1184967 | Y106: 909.6084967 | Z106: 914.6774967 | AA106: 92.7547181 | AB106: 99.71506234 | AC106: 91.91641945 | AD106: 94.79539996 | AG106: 104 | AH106: 34.66666667 | AI106: 1010.475 | AJ106: 875.65 | AK106: 1016.363 | AL106: 36.85950333 | AM106: 973.6154967 | AN106: 838.7904967 | AO106: 979.5034967 | AP106: 69.13862798 | AQ106: 72.58197579 | AR106: 75.14280201 | AS106: 72.28780192 | AV106: 104 | AW106: 34.66666667 | AX106: 824.697 | AY106: 609.651 | AZ106: 900.028 | BA106: 36.85950333 | BB106: 787.8374967 | BC106: 572.7914967 | BD106: 863.1684967 | BE106: 76.75902169 | BF106: 66.55036639 | BG106: 71.77885271 | BH106: 71.69608026 | BK106: 104 | BL106: 34.66666667 | BM106: 381.113 | BN106: 387.54 | BO106: 365.607 | BP106: 36.85950333 | BQ106: 344.2534967 | BR106: 350.6804967 | BS106: 328.7474967 | BT106: 30.30022493 | BU106: 32.95399425 | BV106: 32.27435881 | BW106: 31.84285933 | BZ106: 104 | CA106: 34.66666667 | CB106: 302.038 | CC106: 189.793 | CD106: 273.115 | CE106: 36.85950333 | CF106: 265.1784967 | CG106: 152.9334967 | CH106: 236.2554967 | CI106: 12.76470286 | CJ106: 9.237246909 | CK106: 11.67947858 | CL106: 11.22714278 | CO106: 104 | CP106: 34.66666667 | CQ106: 1006.628 | CR106: 919.318 | CS106: 720.21 | CT106: 36.85950333 | CU106: 969.7684967 | CV106: 882.4584967 | CW106: 683.3504967 | CX106: 97.21895208 | CY106: 94.77756701 | CZ106: 97.69048017 | DA106: 96.56233309 | DD106: 104 | DE106: 34.66666667 | DF106: 1168.839 | DG106: 1056.153 | DH106: 822.94 | DI106: 36.85950333 | DJ106: 1131.979497 | DK106: 1019.293497 | DL106: 786.0804967 | DM106: 105.99687 | DN106: 106.339158 | DO106: 96.62626652 | DP106: 102.9874315
C107: 105 | D107: 35 | E107: 1195.702 | F107: 1092.677 | G107: 1114.633 | H107: 36.79913667 | I107: 1158.902863 | J107: 1055.877863 | K107: 1077.833863 | L107: 99.57974883 | M107: 102.2118594 | N107: 95.20535722 | O107: 98.9989885 | R107: 105 | S107: 35 | T107: 664.23 | U107: 943.478 | V107: 955.772 | W107: 36.79913667 | X107: 627.4308633 | Y107: 906.6788633 | Z107: 918.9728633 | AA107: 90.77444054 | AB107: 99.39390376 | AC107: 92.34806309 | AD107: 94.1721358 | AG107: 105 | AH107: 35 | AI107: 1056.986 | AJ107: 888.741 | AK107: 1029.095 | AL107: 36.79913667 | AM107: 1020.186863 | AN107: 851.9418633 | AO107: 992.2958633 | AP107: 72.44576555 | AQ107: 73.71998603 | AR107: 76.12417092 | AS107: 74.09664083 | AV107: 105 | AW107: 35 | AX107: 803.623 | AY107: 617.005 | AZ107: 908.456 | BA107: 36.79913667 | BB107: 766.8238633 | BC107: 580.2058633 | BD107: 871.6568633 | BE107: 74.71166301 | BF107: 67.41181217 | BG107: 72.48472326 | BH107: 71.53606615 | BK107: 105 | BL107: 35 | BM107: 373.782 | BN107: 385.045 | BO107: 368.567 | BP107: 36.79913667 | BQ107: 336.9828633 | BR107: 348.2458633 | BS107: 331.7678633 | BT107: 29.66028422 | BU107: 32.72520796 | BV107: 32.57087938 | BW107: 31.65212385 | BZ107: 105 | CA107: 35 | CB107: 300.9 | CC107: 187.07 | CD107: 270.84 | CE107: 36.79913667 | CF107: 264.1008633 | CG107: 150.2708633 | CH107: 234.0408633 | CI107: 12.71282961 | CJ107: 9.076422747 | CK107: 11.56999642 | CL107: 11.11974959 | CO107: 105 | CP107: 35 | CQ107: 1003.731 | CR107: 913.922 | CS107: 716.509 | CT107: 36.79913667 | CU107: 966.9318633 | CV107: 877.1228633 | CW107: 679.7098633 | CX107: 96.93458058 | CY107: 94.20451078 | CZ107: 97.17002219 | DA107: 96.10303785 | DD107: 105 | DE107: 35 | DF107: 1181.658 | DG107: 1070.983 | DH107: 821.764 | DI107: 36.79913667 | DJ107: 1144.858863 | DK107: 1034.183863 | DL107: 784.9648633 | DM107: 107.2028747 | DN107: 107.8926154 | DO107: 96.48913109 | DP107: 103.8615404
C108: 106 | D108: 35.33333333 | E108: 1206.843 | F108: 1098.558 | G108: 1134.003 | H108: 37.05675333 | I108: 1169.786247 | J108: 1061.501247 | K108: 1096.946247 | L108: 100.5149131 | M108: 102.7562183 | N108: 96.89355922 | O108: 100.0548969 | R108: 106 | S108: 35.33333333 | T108: 661.222 | U108: 942.685 | V108: 956.224 | W108: 37.05675333 | X108: 624.1652467 | Y108: 905.6282467 | Z108: 919.1672467 | AA108: 90.30198286 | AB108: 99.2787308 | AC108: 92.36759677 | AD108: 93.98277014 | AG108: 106 | AH108: 35.33333333 | AI108: 1057.446 | AJ108: 882.632 | AK108: 1019.337 | AL108: 37.05675333 | AM108: 1020.389247 | AN108: 845.5752467 | AO108: 982.2802467 | AP108: 72.46013725 | AQ108: 73.1690718 | AR108: 75.35582093 | AS108: 73.66167666 | AV108: 106 | AW108: 35.33333333 | AX108: 804.319 | AY108: 606.565 | AZ108: 905.858 | BA108: 37.05675333 | BB108: 767.2622467 | BC108: 569.5082467 | BD108: 868.8012467 | BE108: 74.7543747 | BF108: 66.16889863 | BG108: 72.24725759 | BH108: 71.05684364 | BK108: 106 | BL108: 35.33333333 | BM108: 367.234 | BN108: 378.297 | BO108: 380.277 | BP108: 37.05675333 | BQ108: 330.1772467 | BR108: 341.2402467 | BS108: 343.2202467 | BT108: 29.06127298 | BU108: 32.06687921 | BV108: 33.69520225 | BW108: 31.60778481 | BZ108: 106 | CA108: 35.33333333 | CB108: 298.204 | CC108: 186.57 | CD108: 274.155 | CE108: 37.05675333 | CF108: 261.1472467 | CG108: 149.5132467 | CH108: 237.0982467 | CI108: 12.57065353 | CJ108: 9.030662384 | CK108: 11.7211406 | CL108: 11.1074855 | CO108: 106 | CP108: 35.33333333 | CQ108: 995.792 | CR108: 921.588 | CS108: 716.709 | CT108: 37.05675333 | CU108: 958.7352467 | CV108: 884.5312467 | CW108: 679.6522467 | CX108: 96.11287263 | CY108: 95.00018394 | CZ108: 97.16178542 | DA108: 96.091614 | DD108: 106 | DE108: 35.33333333 | DF108: 1207.917 | DG108: 1073.783 | DH108: 807.946 | DI108: 37.05675333 | DJ108: 1170.860247 | DK108: 1036.726247 | DL108: 770.8892467 | DM108: 109.6376054 | DN108: 108.157853 | DO108: 94.75893388 | DP108: 104.1847974
C109: 107 | D109: 35.66666667 | E109: 1197.371 | F109: 1109.172 | G109: 1115.683 | H109: 37.71736667 | I109: 1159.653633 | J109: 1071.454633 | K109: 1077.965633 | L109: 99.64425941 | M109: 103.7197333 | N109: 95.2169965 | O109: 99.5269964 | R109: 107 | S109: 35.66666667 | T109: 675.003 | U109: 935.483 | V109: 951.258 | W109: 37.71736667 | X109: 637.2856333 | Y109: 897.7656333 | Z109: 913.5406333 | AA109: 92.20019321 | AB109: 98.41679846 | AC109: 91.80217546 | AD109: 94.13972238 | AG109: 107 | AH109: 35.66666667 | AI109: 1035.714 | AJ109: 868.888 | AK109: 1005.945 | AL109: 37.71736667 | AM109: 997.9966333 | AN109: 831.1706333 | AO109: 968.2276333 | AP109: 70.86998737 | AQ109: 71.92261598 | AR109: 74.27777195 | AS109: 72.35679177 | AV109: 107 | AW109: 35.66666667 | AX109: 816.06 | AY109: 609.654 | AZ109: 897.018 | BA109: 37.71736667 | BB109: 778.3426333 | BC109: 571.9366333 | BD109: 859.3006333 | BE109: 75.83393698 | BF109: 66.45104322 | BG109: 71.45721124 | BH109: 71.24739714 | BK109: 107 | BL109: 35.66666667 | BM109: 367.555 | BN109: 374.267 | BO109: 380.739 | BP109: 37.71736667 | BQ109: 329.8376333 | BR109: 336.5496333 | BS109: 343.0216333 | BT109: 29.03138117 | BU109: 31.62609495 | BV109: 33.67570365 | BW109: 31.44439325 | BZ109: 107 | CA109: 35.66666667 | CB109: 299.471 | CC109: 188.135 | CD109: 270.572 | CE109: 37.71736667 | CF109: 261.7536333 | CG109: 150.4176333 | CH109: 232.8546333 | CI109: 12.59984272 | CJ109: 9.085287716 | CK109: 11.51135419 | CL109: 11.06549488 | CO109: 107 | CP109: 35.66666667 | CQ109: 991.099 | CR109: 924.732 | CS109: 715.966 | CT109: 37.71736667 | CU109: 953.3816333 | CV109: 887.0146333 | CW109: 678.2486333 | CX109: 95.57617477 | CY109: 95.26690396 | CZ109: 96.96112754 | DA109: 95.93473542 | DD109: 107 | DE109: 35.66666667 | DF109: 1194.376 | DG109: 1063.96 | DH109: 816.342 | DI109: 37.71736667 | DJ109: 1156.658633 | DK109: 1026.242633 | DL109: 778.6246333 | DM109: 108.3077875 | DN109: 107.064136 | DO109: 95.70977992 | DP109: 103.6939011
C110: 108 | D110: 36 | E110: 1214.602 | F110: 1099.317 | G110: 1123.493 | H110: 37.08600667 | I110: 1177.515993 | J110: 1062.230993 | K110: 1086.406993 | L110: 101.1790984 | M110: 102.8268598 | N110: 95.96262412 | O110: 99.98952744 | R110: 108 | S110: 36 | T110: 677.318 | U110: 943.317 | V110: 953.87 | W110: 37.08600667 | X110: 640.2319933 | Y110: 906.2309933 | Z110: 916.7839933 | AA110: 92.62646198 | AB110: 99.34480639 | AC110: 92.1281024 | AD110: 94.69979026 | AG110: 108 | AH110: 36 | AI110: 1043.581 | AJ110: 878.66 | AK110: 1020.342 | AL110: 37.08600667 | AM110: 1006.494993 | AN110: 841.5739933 | AO110: 983.2559933 | AP110: 71.47347504 | AQ110: 72.82283651 | AR110: 75.43067553 | AS110: 73.24232903 | AV110: 108 | AW110: 36 | AX110: 807.975 | AY110: 603.921 | AZ110: 894.017 | BA110: 37.08600667 | BB110: 770.8889933 | BC110: 566.8349933 | BD110: 856.9309933 | BE110: 75.1077287 | BF110: 65.85830396 | BG110: 71.26015812 | BH110: 70.74206359 | BK110: 108 | BL110: 36 | BM110: 366.404 | BN110: 380.542 | BO110: 375.692 | BP110: 37.08600667 | BQ110: 329.3179933 | BR110: 343.4559933 | BS110: 338.6059933 | BT110: 28.98564392 | BU110: 32.27509639 | BV110: 33.24220392 | BW110: 31.50098141 | BZ110: 108 | CA110: 36 | CB110: 298.835 | CC110: 186.063 | CD110: 268.702 | CE110: 37.08600667 | CF110: 261.7489933 | CG110: 148.9769933 | CH110: 231.6159933 | CI110: 12.59961937 | CJ110: 8.998272459 | CK110: 11.45012104 | CL110: 11.01600429 | CO110: 108 | CP110: 36 | CQ110: 995.424 | CR110: 909.455 | CS110: 720.777 | CT110: 37.08600667 | CU110: 958.3379933 | CV110: 872.3689933 | CW110: 683.6909933 | CX110: 96.07304812 | CY110: 93.69393692 | CZ110: 97.73915692 | DA110: 95.83538066 | DD110: 108 | DE110: 36 | DF110: 1190.633 | DG110: 1058.611 | DH110: 815.949 | DI110: 37.08600667 | DJ110: 1153.546993 | DK110: 1021.524993 | DL110: 778.8629933 | DM110: 108.0164182 | DN110: 106.5719619 | DO110: 95.73907951 | DP110: 103.4424865
C111: 109 | D111: 36.33333333 | E111: 1175.021 | F111: 1109.547 | G111: 1122.652 | H111: 37.05527 | I111: 1137.96573 | J111: 1072.49173 | K111: 1085.59673 | L111: 97.78070722 | M111: 103.8201271 | N111: 95.89105334 | O111: 99.16396255 | R111: 109 | S111: 36.33333333 | T111: 705.699 | U111: 940.612 | V111: 946.951 | W111: 37.05527 | X111: 668.64373 | Y111: 903.55673 | Z111: 909.89573 | AA111: 96.73696985 | AB111: 99.05164254 | AC111: 91.43589722 | AD111: 95.7415032 | AG111: 109 | AH111: 36.33333333 | AI111: 1041.183 | AJ111: 866.49 | AK111: 1015.304 | AL111: 37.05527 | AM111: 1004.12773 | AN111: 829.43473 | AO111: 978.24873 | AP111: 71.30537035 | AQ111: 71.7724053 | AR111: 75.04654234 | AS111: 72.708106 | AV111: 109 | AW111: 36.33333333 | AX111: 808.576 | AY111: 602.987 | AZ111: 901.704 | BA111: 37.05527 | BB111: 771.52073 | BC111: 565.93173 | BD111: 864.64873 | BE111: 75.16927881 | BF111: 65.75335738 | BG111: 71.90194508 | BH111: 70.94152709 | BK111: 109 | BL111: 36.33333333 | BM111: 360.656 | BN111: 367.684 | BO111: 364.2 | BP111: 37.05527 | BQ111: 323.60073 | BR111: 330.62873 | BS111: 327.14473 | BT111: 28.48242647 | BU111: 31.06969841 | BV111: 32.11700927 | BW111: 30.55637805 | BZ111: 109 | CA111: 36.33333333 | CB111: 299.523 | CC111: 187.508 | CD111: 265.398 | CE111: 37.05527 | CF111: 262.46773 | CG111: 150.45273 | CH111: 228.34273 | CI111: 12.63421667 | CJ111: 9.087407569 | CK111: 11.28830466 | CL111: 11.00330963 | CO111: 109 | CP111: 36.33333333 | CQ111: 990.093 | CR111: 907.199 | CS111: 724.372 | CT111: 37.05527 | CU111: 953.03773 | CV111: 870.14373 | CW111: 687.31673 | CX111: 95.54169858 | CY111: 93.4549398 | CZ111: 98.2574853 | DA111: 95.75137456 | DD111: 109 | DE111: 36.33333333 | DF111: 1190.145 | DG111: 1055.744 | DH111: 811.744 | DI111: 37.05527 | DJ111: 1153.08973 | DK111: 1018.68873 | DL111: 774.68873 | DM111: 107.9736007 | DN111: 106.2760649 | DO111: 95.22597242 | DP111: 103.158546
C112: 110 | D112: 36.66666667 | E112: 1153.645 | F112: 1109.86 | G112: 1126.413 | H112: 37.26371 | I112: 1116.38129 | J112: 1072.59629 | K112: 1089.14929 | L112: 95.92604521 | M112: 103.8302488 | N112: 96.20485193 | O112: 98.65371531 | R112: 110 | S112: 36.66666667 | T112: 697.647 | U112: 938.021 | V112: 953.854 | W112: 37.26371 | X112: 660.38329 | Y112: 900.75729 | Z112: 916.59029 | AA112: 95.5418791 | AB112: 98.74475629 | AC112: 92.10863705 | AD112: 95.46509081 | AG112: 110 | AH112: 36.66666667 | AI112: 1026.456 | AJ112: 876.691 | AK112: 995.74 | AL112: 37.26371 | AM112: 989.19229 | AN112: 839.42729 | AO112: 958.47629 | AP112: 70.24477113 | AQ112: 72.6370786 | AR112: 73.52969575 | AS112: 72.13718183 | AV112: 110 | AW112: 36.66666667 | AX112: 784.763 | AY112: 597.637 | AZ112: 899.34 | BA112: 37.26371 | BB112: 747.49929 | BC112: 560.37329 | BD112: 862.07629 | BE112: 72.82886947 | BF112: 65.10754434 | BG112: 71.68802764 | BH112: 69.87481382 | BK112: 110 | BL112: 36.66666667 | BM112: 355.456 | BN112: 371.598 | BO112: 362.738 | BP112: 37.26371 | BQ112: 318.19229 | BR112: 334.33429 | BS112: 325.47429 | BT112: 28.00639079 | BU112: 31.41791567 | BV112: 31.95301599 | BW112: 30.45910748 | BZ112: 110 | CA112: 36.66666667 | CB112: 292.475 | CC112: 186.481 | CD112: 263.61 | CE112: 37.26371 | CF112: 255.21129 | CG112: 149.21729 | CH112: 226.34629 | CI112: 12.28491874 | CJ112: 9.012786478 | CK112: 11.18960906 | CL112: 10.82910476 | CO112: 110 | CP112: 36.66666667 | CQ112: 995.903 | CR112: 931.258 | CS112: 716.168 | CT112: 37.26371 | CU112: 958.63929 | CV112: 893.99429 | CW112: 678.90429 | CX112: 96.10325301 | CY112: 96.01653115 | CZ112: 97.05485897 | DA112: 96.39154771 | DD112: 110 | DE112: 36.66666667 | DF112: 1188.697 | DG112: 1065.36 | DH112: 819.575 | DI112: 37.26371 | DJ112: 1151.43329 | DK112: 1028.09629 | DL112: 782.31129 | DM112: 107.8184942 | DN112: 107.2575212 | DO112: 96.16294963 | DP112: 103.7463217
C113: 111 | D113: 37 | E113: 1179.644 | F113: 1096.99 | G113: 1116.43 | H113: 37.7413 | I113: 1141.9027 | J113: 1059.2487 | K113: 1078.6887 | L113: 98.11899483 | M113: 102.5381656 | N113: 95.28086518 | O113: 98.64600855 | R113: 111 | S113: 37 | T113: 709.116 | U113: 941.017 | V113: 958.67 | W113: 37.7413 | X113: 671.3747 | Y113: 903.2757 | Z113: 920.9287 | AA113: 97.13207677 | AB113: 99.02083486 | AC113: 92.54460614 | AD113: 96.23250592 | AG113: 111 | AH113: 37 | AI113: 1024.955 | AJ113: 870.862 | AK113: 1000.401 | AL113: 37.7413 | AM113: 987.2137 | AN113: 833.1207 | AO113: 962.6597 | AP113: 70.104267 | AQ113: 72.09135859 | AR113: 73.85062686 | AS113: 72.01541748 | AV113: 111 | AW113: 37 | AX113: 785.669 | AY113: 604.123 | AZ113: 887.205 | BA113: 37.7413 | BB113: 747.9277 | BC113: 566.3817 | BD113: 849.4637 | BE113: 72.87060947 | BF113: 65.80563761 | BG113: 70.63919738 | BH113: 69.77181482 | BK113: 111 | BL113: 37 | BM113: 343.714 | BN113: 365.553 | BO113: 349.73 | BP113: 37.7413 | BQ113: 305.9727 | BR113: 327.8117 | BS113: 311.9887 | BT113: 26.93085683 | BU113: 30.8049777 | BV113: 30.62908569 | BW113: 29.45497341 | BZ113: 111 | CA113: 37 | CB113: 290.924 | CC113: 185.442 | CD113: 267.616 | CE113: 37.7413 | CF113: 253.1827 | CG113: 147.7007 | CH113: 229.8747 | CI113: 12.18726999 | CJ113: 8.92118381 | CK113: 11.36403882 | CL113: 10.8241642 | CO113: 111 | CP113: 37 | CQ113: 995.28 | CR113: 916.858 | CS113: 712.247 | CT113: 37.7413 | CU113: 957.5387 | CV113: 879.1167 | CW113: 674.5057 | CX113: 95.99291925 | CY113: 94.41865228 | CZ113: 96.42604495 | DA113: 95.61253883 | DD113: 111 | DE113: 37 | DF113: 1194.829 | DG113: 1077.901 | DH113: 808.177 | DI113: 37.7413 | DJ113: 1157.0877 | DK113: 1040.1597 | DL113: 770.4357 | DM113: 108.3479647 | DN113: 108.5160526 | DO113: 94.7031832 | DP113: 103.8557335
C114: 112 | D114: 37.33333333 | E114: 1200.99 | F114: 1090.613 | G114: 1123.663 | H114: 37.02654 | I114: 1163.96346 | J114: 1053.58646 | K114: 1086.63646 | L114: 100.0145851 | M114: 101.9900453 | N114: 95.98289297 | O114: 99.32917446 | R114: 112 | S114: 37.33333333 | T114: 701.194 | U114: 945.822 | V114: 962.491 | W114: 37.02654 | X114: 664.16746 | Y114: 908.79546 | Z114: 925.46446 | AA114: 96.08935921 | AB114: 99.62593388 | AC114: 93.00040703 | AD114: 96.23856671 | AG114: 112 | AH114: 37.33333333 | AI114: 1021.053 | AJ114: 868.277 | AK114: 989.029 | AL114: 37.02654 | AM114: 984.02646 | AN114: 831.25046 | AO114: 952.00246 | AP114: 69.87793392 | AQ114: 71.92952352 | AR114: 73.03305461 | AS114: 71.61350402 | AV114: 112 | AW114: 37.33333333 | AX114: 797.784 | AY114: 604.257 | AZ114: 889.051 | BA114: 37.02654 | BB114: 760.75746 | BC114: 567.23046 | BD114: 852.02446 | BE114: 74.12061322 | BF114: 65.90425166 | BG114: 70.85214354 | BH114: 70.29233614 | BK114: 112 | BL114: 37.33333333 | BM114: 346.512 | BN114: 363.712 | BO114: 356.207 | BP114: 37.02654 | BQ114: 309.48546 | BR114: 326.68546 | BS114: 319.18046 | BT114: 27.24004009 | BU114: 30.69914316 | BV114: 31.3351274 | BW114: 29.75810355 | BZ114: 112 | CA114: 37.33333333 | CB114: 292.766 | CC114: 184.984 | CD114: 260.456 | CE114: 37.02654 | CF114: 255.73946 | CG114: 147.95746 | CH114: 223.42946 | CI114: 12.31034287 | CJ114: 8.936692221 | CK114: 11.04541324 | CL114: 10.76414944 | CO114: 112 | CP114: 37.33333333 | CQ114: 997.591 | CR114: 910.331 | CS114: 720.791 | CT114: 37.02654 | CU114: 960.56446 | CV114: 873.30446 | CW114: 683.76446 | CX114: 96.29625063 | CY114: 93.79440766 | CZ114: 97.74965957 | DA114: 95.94677262 | DD114: 112 | DE114: 37.33333333 | DF114: 1181.008 | DG114: 1068.526 | DH114: 818.638 | DI114: 37.02654 | DJ114: 1143.98146 | DK114: 1031.49946 | DL114: 781.61146 | DM114: 107.1207159 | DN114: 107.6125614 | DO114: 96.07692541 | DP114: 103.6034009
C115: 113 | D115: 37.66666667 | E115: 1190.735 | F115: 1110.562 | G115: 1106.018 | H115: 37.51719333 | I115: 1153.217807 | J115: 1073.044807 | K115: 1068.500807 | L115: 99.09125534 | M115: 103.8736664 | N115: 94.3809658 | O115: 99.11529585 | R115: 113 | S115: 37.66666667 | T115: 672.793 | U115: 942.623 | V115: 961.325 | W115: 37.51719333 | X115: 635.2758067 | Y115: 905.1058067 | Z115: 923.8078067 | AA115: 91.90941872 | AB115: 99.22145876 | AC115: 92.83392907 | AD115: 94.65493551 | AG115: 113 | AH115: 37.66666667 | AI115: 995.72 | AJ115: 856.375 | AK115: 990.641 | AL115: 37.51719333 | AM115: 958.2028067 | AN115: 818.8578067 | AO115: 953.1238067 | AP115: 68.04413817 | AQ115: 70.85716604 | AR115: 73.11907894 | AS115: 70.67346105 | AV115: 113 | AW115: 37.66666667 | AX115: 786.932 | AY115: 603.359 | AZ115: 884.093 | BA115: 37.51719333 | BB115: 749.4148067 | BC115: 565.8418067 | BD115: 846.5758067 | BE115: 73.0154983 | BF115: 65.74290955 | BG115: 70.39904766 | BH115: 69.71915184 | BK115: 113 | BL115: 37.66666667 | BM115: 340.017 | BN115: 361.439 | BO115: 354.687 | BP115: 37.51719333 | BQ115: 302.4998067 | BR115: 323.9218067 | BS115: 317.1698067 | BT115: 26.62518252 | BU115: 30.43943834 | BV115: 31.13773412 | BW115: 29.40078499 | BZ115: 113 | CA115: 37.66666667 | CB115: 293.794 | CC115: 183.093 | CD115: 262.642 | CE115: 37.51719333 | CF115: 256.2768067 | CG115: 145.5758067 | CH115: 225.1248067 | CI115: 12.33620873 | CJ115: 8.792839368 | CK115: 11.12922406 | CL115: 10.75275739 | CO115: 113 | CP115: 37.66666667 | CQ115: 981.666 | CR115: 906.94 | CS115: 716.662 | CT115: 37.51719333 | CU115: 944.1488067 | CV115: 869.4228067 | CW115: 679.1448067 | CX115: 94.65058713 | CY115: 93.37751139 | CZ115: 97.08924277 | DA115: 95.03911376 | DD115: 113 | DE115: 37.66666667 | DF115: 1186.448 | DG115: 1029.984 | DH115: 811.389 | DI115: 37.51719333 | DJ115: 1148.930807 | DK115: 992.4668067 | DL115: 773.8718067 | DM115: 107.5841653 | DN115: 103.5404277 | DO115: 95.1255549 | DP115: 102.0833826
C116: 114 | D116: 38 | E116: 1204.935 | F116: 1084.604 | G116: 1107.966 | H116: 36.98918667 | I116: 1167.945813 | J116: 1047.614813 | K116: 1070.976813 | L116: 100.3567723 | M116: 101.4119737 | N116: 94.59967214 | O116: 98.78947269 | R116: 114 | S116: 38 | T116: 683.736 | U116: 943.409 | V116: 958.363 | W116: 36.98918667 | X116: 646.7468133 | Y116: 906.4198133 | Z116: 921.3738133 | AA116: 93.56900271 | AB116: 99.36550563 | AC116: 92.58933581 | AD116: 95.17461471 | AG116: 114 | AH116: 38 | AI116: 1021.546 | AJ116: 862.144 | AK116: 987.883 | AL116: 36.98918667 | AM116: 984.5568133 | AN116: 825.1548133 | AO116: 950.8938133 | AP116: 69.9155955 | AQ116: 71.40205679 | AR116: 72.94800457 | AS116: 71.42188562 | AV116: 114 | AW116: 38 | AX116: 779.444 | AY116: 605.546 | AZ116: 893.016 | BA116: 36.98918667 | BB116: 742.4548133 | BC116: 568.5568133 | BD116: 856.0268133 | BE116: 72.33738602 | BF116: 66.05835538 | BG116: 71.18496886 | BH116: 69.86023675 | BK116: 114 | BL116: 38 | BM116: 344.135 | BN116: 352.133 | BO116: 336.392 | BP116: 36.98918667 | BQ116: 307.1458133 | BR116: 315.1438133 | BS116: 299.4028133 | BT116: 27.03411097 | BU116: 29.61455659 | BV116: 29.39348261 | BW116: 28.68071672 | BZ116: 114 | CA116: 38 | CB116: 291.821 | CC116: 183.19 | CD116: 266.759 | CE116: 36.98918667 | CF116: 254.8318133 | CG116: 146.2008133 | CH116: 229.7698133 | CI116: 12.26665215 | CJ116: 8.830590031 | CK116: 11.35885366 | CL116: 10.81869861 | CO116: 114 | CP116: 38 | CQ116: 986.573 | CR116: 920.571 | CS116: 720.969 | CT116: 36.98918667 | CU116: 949.5838133 | CV116: 883.5818133 | CW116: 683.9798133 | CX116: 95.19544465 | CY116: 94.89821316 | CZ116: 97.78044607 | DA116: 95.95803463 | DD116: 114 | DE116: 38 | DF116: 1190.185 | DG116: 1052.087 | DH116: 813.319 | DI116: 36.98918667 | DJ116: 1153.195813 | DK116: 1015.097813 | DL116: 776.3298133 | DM116: 107.9835342 | DN116: 105.9014377 | DO116: 95.42769699 | DP116: 103.104223
C117: 115 | D117: 38.33333333 | E117: 1212.824 | F117: 1099.445 | G117: 1128.579 | H117: 37.47561 | I117: 1175.34839 | J117: 1061.96939 | K117: 1091.10339 | L117: 100.9928452 | M117: 102.8015359 | N117: 96.37745811 | O117: 100.0572797 | R117: 115 | S117: 38.33333333 | T117: 656.67 | U117: 939.065 | V117: 967.198 | W117: 37.47561 | X117: 619.19439 | Y117: 901.58939 | Z117: 929.72239 | AA117: 89.5828172 | AB117: 98.83597455 | AC117: 93.42828864 | AD117: 93.9490268 | AG117: 115 | AH117: 38.33333333 | AI117: 1018.657 | AJ117: 869.211 | AK117: 986.453 | AL117: 37.47561 | AM117: 981.18139 | AN117: 831.73539 | AO117: 948.97739 | AP117: 69.67589909 | AQ117: 71.97148534 | AR117: 72.80098578 | AS117: 71.48279007 | AV117: 115 | AW117: 38.33333333 | AX117: 778.293 | AY117: 617.288 | AZ117: 884.855 | BA117: 37.47561 | BB117: 740.81739 | BC117: 579.81239 | BD117: 847.37939 | BE117: 72.17785183 | BF117: 67.36609607 | BG117: 70.46587157 | BH117: 70.00327316 | BK117: 115 | BL117: 38.33333333 | BM117: 333.503 | BN117: 355.077 | BO117: 341.451 | BP117: 37.47561 | BQ117: 296.02739 | BR117: 317.60139 | BS117: 303.97539 | BT117: 26.0554986 | BU117: 29.84549891 | BV117: 29.84238939 | BW117: 28.58112897 | BZ117: 115 | CA117: 38.33333333 | CB117: 290.577 | CC117: 184.434 | CD117: 256.779 | CE117: 37.47561 | CF117: 253.10139 | CG117: 146.95839 | CH117: 219.30339 | CI117: 12.18335603 | CJ117: 8.876347977 | CK117: 10.84143769 | CL117: 10.6337139 | CO117: 115 | CP117: 38.33333333 | CQ117: 1014.078 | CR117: 909.768 | CS117: 724.343 | CT117: 37.47561 | CU117: 976.60239 | CV117: 872.29239 | CW117: 686.86739 | CX117: 97.90404749 | CY117: 93.68570959 | CZ117: 98.19324851 | DA117: 96.5943352 | DD117: 115 | DE117: 38.33333333 | DF117: 1192.451 | DG117: 1005.984 | DH117: 809.037 | DI117: 37.47561 | DJ117: 1154.97539 | DK117: 968.50839 | DL117: 771.56139 | DM117: 108.1501711 | DN117: 101.0409338 | DO117: 94.8415548 | DP117: 101.3442199
C118: 116 | D118: 38.66666667 | E118: 1169.393 | F118: 1098.148 | G118: 1103.503 | H118: 37.4642 | I118: 1131.9288 | J118: 1060.6838 | K118: 1066.0388 | L118: 97.26197869 | M118: 102.6770872 | N118: 94.16349608 | O118: 98.03418734 | R118: 116 | S118: 38.66666667 | T118: 661.954 | U118: 937.141 | V118: 957.106 | W118: 37.4642 | X118: 624.4898 | Y118: 899.6768 | Z118: 919.6418 | AA118: 90.34893807 | AB118: 98.62630849 | AC118: 92.41528488 | AD118: 93.79684381 | AG118: 116 | AH118: 38.66666667 | AI118: 998.821 | AJ118: 852.022 | AK118: 996.935 | AL118: 37.4642 | AM118: 961.3568 | AN118: 814.5578 | AO118: 959.4708 | AP118: 68.26811033 | AQ118: 70.48507911 | AR118: 73.60598978 | AS118: 70.78639307 | AV118: 116 | AW118: 38.66666667 | AX118: 795.016 | AY118: 608.397 | AZ118: 880.363 | BA118: 37.4642 | BB118: 757.5518 | BC118: 570.9328 | BD118: 842.8988 | BE118: 73.80828571 | BF118: 66.33441182 | BG118: 70.09327733 | BH118: 70.07865828 | BK118: 116 | BL118: 38.66666667 | BM118: 329.577 | BN118: 349.5 | BO118: 343.609 | BP118: 37.4642 | BQ118: 292.1128 | BR118: 312.0358 | BS118: 306.1448 | BT118: 25.7109474 | BU118: 29.32249172 | BV118: 30.0553684 | BW118: 28.36293584 | BZ118: 116 | CA118: 38.66666667 | CB118: 290.791 | CC118: 181.529 | CD118: 260.315 | CE118: 37.4642 | CF118: 253.3268 | CG118: 144.0648 | CH118: 222.8508 | CI118: 12.19420642 | CJ118: 8.701573936 | CK118: 11.01680673 | CL118: 10.63752903 | CO118: 116 | CP118: 38.66666667 | CQ118: 991.921 | CR118: 916.671 | CS118: 723.916 | CT118: 37.4642 | CU118: 954.4568 | CV118: 879.2068 | CW118: 686.4518 | CX118: 95.68395985 | CY118: 94.42832917 | CZ118: 98.13383656 | DA118: 96.08204186 | DD118: 116 | DE118: 38.66666667 | DF118: 1189.515 | DG118: 1033.994 | DH118: 813.048 | DI118: 37.4642 | DJ118: 1152.0508 | DK118: 996.5298 | DL118: 775.5838 | DM118: 107.8763169 | DN118: 103.9643049 | DO118: 95.33599585 | DP118: 102.3922059
C119: 117 | D119: 39 | E119: 1180.628 | F119: 1084.133 | G119: 1126.895 | H119: 37.25797 | I119: 1143.37003 | J119: 1046.87503 | K119: 1089.63703 | L119: 98.24507646 | M119: 101.3403606 | N119: 96.24793413 | O119: 98.61112373 | R119: 117 | S119: 39 | T119: 663.214 | U119: 931.641 | V119: 963.108 | W119: 37.25797 | X119: 625.95603 | Y119: 894.38303 | Z119: 925.85003 | AA119: 90.56106695 | AB119: 98.04598343 | AC119: 93.03915316 | AD119: 93.88206785 | AG119: 117 | AH119: 39 | AI119: 1010.582 | AJ119: 860.42 | AK119: 969.75 | AL119: 37.25797 | AM119: 973.32403 | AN119: 823.16203 | AO119: 932.49203 | AP119: 69.11793027 | AQ119: 71.22961785 | AR119: 71.53630817 | AS119: 70.62795209 | AV119: 117 | AW119: 39 | AX119: 791.989 | AY119: 624.043 | AZ119: 873.29 | BA119: 37.25797 | BB119: 754.73103 | BC119: 586.78503 | BD119: 836.03203 | BE119: 73.53345803 | BF119: 68.17621939 | BG119: 69.52225455 | BH119: 70.41064399 | BK119: 117 | BL119: 39 | BM119: 323.862 | BN119: 348.024 | BO119: 335.974 | BP119: 37.25797 | BQ119: 286.60403 | BR119: 310.76603 | BS119: 298.71603 | BT119: 25.22608095 | BU119: 29.20316945 | BV119: 29.32605854 | BW119: 27.91843632 | BZ119: 117 | CA119: 39 | CB119: 295.801 | CC119: 183.62 | CD119: 256.548 | CE119: 37.25797 | CF119: 258.54303 | CG119: 146.36203 | CH119: 219.29003 | CI119: 12.44529626 | CJ119: 8.840327585 | CK119: 10.84077723 | CL119: 10.70880036 | CO119: 117 | CP119: 39 | CQ119: 1010.762 | CR119: 911.3 | CS119: 720.748 | CT119: 37.25797 | CU119: 973.50403 | CV119: 874.04203 | CW119: 683.49003 | CX119: 97.59343799 | CY119: 93.87362395 | CZ119: 97.71042759 | DA119: 96.39249651 | DD119: 117 | DE119: 39 | DF119: 1183.701 | DG119: 1026.744 | DH119: 805.77 | DI119: 37.25797 | DJ119: 1146.44303 | DK119: 989.48603 | DL119: 768.51203 | DM119: 107.3512137 | DN119: 103.2294541 | DO119: 94.46672262 | DP119: 101.6824635
C120: 118 | D120: 39.33333333 | E120: 1191.732 | F120: 1099.448 | G120: 1131.165 | H120: 36.95558667 | I120: 1154.776413 | J120: 1062.492413 | K120: 1094.209413 | L120: 99.22517999 | M120: 102.8521659 | N120: 96.65181399 | O120: 99.57638664 | R120: 118 | S120: 39.33333333 | T120: 668.084 | U120: 936.345 | V120: 955.411 | W120: 36.95558667 | X120: 631.1284133 | Y120: 899.3894133 | Z120: 918.4554133 | AA120: 91.30938877 | AB120: 98.59480397 | AC120: 92.29606427 | AD120: 94.06675234 | AG120: 118 | AH120: 39.33333333 | AI120: 1016.451 | AJ120: 866.65 | AK120: 977.834 | AL120: 36.95558667 | AM120: 979.4954133 | AN120: 829.6944133 | AO120: 940.8784133 | AP120: 69.55617409 | AQ120: 71.79487614 | AR120: 72.1796712 | AS120: 71.17690715 | AV120: 118 | AW120: 39.33333333 | AX120: 791.907 | AY120: 603.808 | AZ120: 879.32 | BA120: 36.95558667 | BB120: 754.9514133 | BC120: 566.8524133 | BD120: 842.3644133 | BE120: 73.55492999 | BF120: 65.86032792 | BG120: 70.04883912 | BH120: 69.82136567 | BK120: 118 | BL120: 39.33333333 | BM120: 326.079 | BN120: 342.062 | BO120: 337.424 | BP120: 36.95558667 | BQ120: 289.1234133 | BR120: 305.1064133 | BS120: 300.4684133 | BT120: 25.44782999 | BU120: 28.67132643 | BV120: 29.4980965 | BW120: 27.87241764 | BZ120: 118 | CA120: 39.33333333 | CB120: 289.244 | CC120: 179.531 | CD120: 258.289 | CE120: 36.95558667 | CF120: 252.2884133 | CG120: 142.5754133 | CH120: 221.3334133 | CI120: 12.14422237 | CJ120: 8.611614361 | CK120: 10.94179351 | CL120: 10.56587675 | CO120: 118 | CP120: 39.33333333 | CQ120: 989.276 | CR120: 908.086 | CS120: 722.26 | CT120: 36.95558667 | CU120: 952.3204133 | CV120: 871.1304133 | CW120: 685.3044133 | CX120: 95.46978784 | CY120: 93.56091129 | CZ120: 97.96980836 | DA120: 95.66683583 | DD120: 118 | DE120: 39.33333333 | DF120: 1183.444 | DG120: 1036.892 | DH120: 803.205 | DI120: 36.95558667 | DJ120: 1146.488413 | DK120: 999.9364133 | DL120: 766.2494133 | DM120: 107.3554633 | DN120: 104.3197044 | DO120: 94.18859817 | DP120: 101.9545886
C121: 119 | D121: 39.66666667 | E121: 1192.643 | F121: 1092.291 | G121: 1119.5 | H121: 36.79432 | I121: 1155.84868 | J121: 1055.49668 | K121: 1082.70568 | L121: 99.31731544 | M121: 102.1749599 | N121: 95.63568611 | O121: 99.0426538 | R121: 119 | S121: 39.66666667 | T121: 713.185 | U121: 927.71 | V121: 964.169 | W121: 36.79432 | X121: 676.39068 | Y121: 890.91568 | Z121: 927.37468 | AA121: 97.85777071 | AB121: 97.66587812 | AC121: 93.19236603 | AD121: 96.23867162 | AG121: 119 | AH121: 39.66666667 | AI121: 1028.626 | AJ121: 853.445 | AK121: 967.27 | AL121: 36.79432 | AM121: 991.83168 | AN121: 816.65068 | AO121: 930.47568 | AP121: 70.43220016 | AQ121: 70.6661796 | AR121: 71.38162348 | AS121: 70.82666775 | AV121: 119 | AW121: 39.66666667 | AX121: 786.061 | AY121: 602.523 | AZ121: 874.13 | BA121: 36.79432 | BB121: 749.26668 | BC121: 565.72868 | BD121: 837.33568 | BE121: 73.00106631 | BF121: 65.72976581 | BG121: 69.6306627 | BH121: 69.45383161 | BK121: 119 | BL121: 39.66666667 | BM121: 316.578 | BN121: 341.453 | BO121: 329.97 | BP121: 36.79432 | BQ121: 279.78368 | BR121: 304.65868 | BS121: 293.17568 | BT121: 24.62577292 | BU121: 28.62925223 | BV121: 28.78214187 | BW121: 27.34572234 | BZ121: 119 | CA121: 39.66666667 | CB121: 291.841 | CC121: 177.441 | CD121: 257.172 | CE121: 36.79432 | CF121: 255.04668 | CG121: 140.64668 | CH121: 220.37768 | CI121: 12.27699503 | CJ121: 8.495118064 | CK121: 10.89454607 | CL121: 10.55555305 | CO121: 119 | CP121: 39.66666667 | CQ121: 987.889 | CR121: 902.302 | CS121: 719.055 | CT121: 36.79432 | CU121: 951.09468 | CV121: 865.50768 | CW121: 682.26068 | CX121: 95.3469085 | CY121: 92.95702002 | CZ121: 97.53468206 | DA121: 95.27953686 | DD121: 119 | DE121: 39.66666667 | DF121: 1176.449 | DG121: 1039.931 | DH121: 790.583 | DI121: 36.79432 | DJ121: 1139.65468 | DK121: 1003.13668 | DL121: 753.78868 | DM121: 106.7155627 | DN121: 104.6535765 | DO121: 92.65690499 | DP121: 101.3420147
C122: 120 | D122: 40 | E122: 1170.702 | F122: 1092.95 | G122: 1121.433 | H122: 37.38685667 | I122: 1133.315143 | J122: 1055.563143 | K122: 1084.046143 | L122: 97.38110147 | M122: 102.1813937 | N122: 95.7540896 | O122: 98.43886159 | R122: 120 | S122: 40 | T122: 728.463 | U122: 929.399 | V122: 968.351 | W122: 37.38685667 | X122: 691.0761433 | Y122: 892.0121433 | Z122: 930.9641433 | AA122: 99.98241073 | AB122: 97.78607698 | AC122: 93.55307308 | AD122: 97.10718693 | AG122: 120 | AH122: 40 | AI122: 995.729 | AJ122: 848.963 | AK122: 957.643 | AL122: 37.38685667 | AM122: 958.3421433 | AN122: 811.5761433 | AO122: 920.2561433 | AP122: 68.05403278 | AQ122: 70.22707126 | AR122: 70.59762973 | AS122: 69.62624459 | AV122: 120 | AW122: 40 | AX122: 774.885 | AY122: 597.18 | AZ122: 875.36 | BA122: 37.38685667 | BB122: 737.4981433 | BC122: 559.7931433 | BD122: 837.9731433 | BE122: 71.85445757 | BF122: 65.04013941 | BG122: 69.6836725 | BH122: 68.85942316 | BK122: 120 | BL122: 40 | BM122: 311.626 | BN122: 332.184 | BO122: 336.998 | BP122: 37.38685667 | BQ122: 274.2391433 | BR122: 294.7971433 | BS122: 299.6111433 | BT122: 24.13775839 | BU122: 27.70254822 | BV122: 29.41393513 | BW122: 27.08474725 | BZ122: 120 | CA122: 40 | CB122: 286.969 | CC122: 179.812 | CD122: 258.31 | CE122: 37.38685667 | CF122: 249.5821433 | CG122: 142.4251433 | CH122: 220.9231433 | CI122: 12.01395263 | CJ122: 8.60253799 | CK122: 10.92151149 | CL122: 10.51266737 | CO122: 120 | CP122: 40 | CQ122: 1033.263 | CR122: 923.405 | CS122: 721.258 | CT122: 37.38685667 | CU122: 995.8761433 | CV122: 886.0181433 | CW122: 683.8711433 | CX122: 99.83623451 | CY122: 95.15987921 | CZ122: 97.76491082 | DA122: 97.58700818 | DD122: 120 | DE122: 40 | DF122: 1190.266 | DG122: 1043.687 | DH122: 808.643 | DI122: 37.38685667 | DJ122: 1152.879143 | DK122: 1006.300143 | DL122: 771.2561433 | DM122: 107.9538817 | DN122: 104.983609 | DO122: 94.8040334 | DP122: 102.580508
C123: 121 | D123: 40.33333333 | E123: 1223.631 | F123: 1095.279 | G123: 1119.211 | H123: 36.84581333 | I123: 1186.785187 | J123: 1058.433187 | K123: 1082.365187 | L123: 101.975562 | M123: 102.4592217 | N123: 95.60561024 | O123: 100.0134647 | R123: 121 | S123: 40.33333333 | T123: 761.156 | U123: 928.958 | V123: 977.084 | W123: 36.84581333 | X123: 724.3101867 | Y123: 892.1121867 | Z123: 940.2381867 | AA123: 104.7905926 | AB123: 97.79704415 | AC123: 94.48502654 | AD123: 99.02422109 | AG123: 121 | AH123: 40.33333333 | AI123: 1023.635 | AJ123: 857.075 | AK123: 980.097 | AL123: 36.84581333 | AM123: 986.7891867 | AN123: 820.2291867 | AO123: 943.2511867 | AP123: 70.07412136 | AQ123: 70.9758339 | AR123: 72.36169897 | AS123: 71.13721807 | AV123: 121 | AW123: 40.33333333 | AX123: 780.131 | AY123: 598.331 | AZ123: 867.453 | BA123: 36.84581333 | BB123: 743.2851867 | BC123: 561.4851867 | BD123: 830.6071867 | BE123: 72.41828931 | BF123: 65.23673119 | BG123: 69.07113865 | BH123: 68.90871972 | BK123: 121 | BL123: 40.33333333 | BM123: 306.317 | BN123: 338.974 | BO123: 337.495 | BP123: 36.84581333 | BQ123: 269.4711867 | BR123: 302.1281867 | BS123: 300.6491867 | BT123: 23.71809625 | BU123: 28.39145781 | BV123: 29.51584369 | BW123: 27.20846592 | BZ123: 121 | CA123: 40.33333333 | CB123: 288.537 | CC123: 177.253 | CD123: 258.342 | CE123: 36.84581333 | CF123: 251.6911867 | CG123: 140.4071867 | CH123: 221.4961867 | CI123: 12.1154741 | CJ123: 8.480652567 | CK123: 10.94984034 | CL123: 10.51532234 | CO123: 121 | CP123: 40.33333333 | CQ123: 983.038 | CR123: 923.273 | CS123: 711.324 | CT123: 36.84581333 | CU123: 946.1921867 | CV123: 886.4271867 | CW123: 674.4781867 | CX123: 94.85543526 | CY123: 95.20381117 | CZ123: 96.4221117 | DA123: 95.49378604 | DD123: 121 | DE123: 40.33333333 | DF123: 1168.152 | DG123: 999.131 | DH123: 795.087 | DI123: 36.84581333 | DJ123: 1131.306187 | DK123: 962.2851867 | DL123: 758.2411867 | DM123: 105.9338222 | DN123: 100.3916898 | DO123: 93.2042142 | DP123: 99.84324207
C124: 122 | D124: 40.66666667 | E124: 1145.466 | F124: 1097.193 | G124: 1132.345 | H124: 37.13449667 | I124: 1108.331503 | J124: 1060.058503 | K124: 1095.210503 | L124: 95.2343602 | M124: 102.6165568 | N124: 96.74024054 | O124: 98.19705252 | R124: 122 | S124: 40.66666667 | T124: 767.508 | U124: 936.545 | V124: 968.152 | W124: 37.13449667 | X124: 730.3735033 | Y124: 899.4105033 | Z124: 931.0175033 | AA124: 105.6678114 | AB124: 98.59711594 | AC124: 93.55843525 | AD124: 99.27445421 | AG124: 122 | AH124: 40.66666667 | AI124: 1009.552 | AJ124: 845.698 | AK124: 951.933 | AL124: 37.13449667 | AM124: 972.4175033 | AN124: 808.5635033 | AO124: 914.7985033 | AP124: 69.05355577 | AQ124: 69.96638237 | AR124: 70.17894581 | AS124: 69.73296132 | AV124: 122 | AW124: 40.66666667 | AX124: 763.969 | AY124: 602.285 | AZ124: 865.169 | BA124: 37.13449667 | BB124: 726.8345033 | BC124: 565.1505033 | BD124: 828.0345033 | BE124: 70.81549893 | BF124: 65.66258976 | BG124: 68.85720098 | BH124: 68.44509656 | BK124: 122 | BL124: 40.66666667 | BM124: 315.177 | BN124: 327.964 | BO124: 323.208 | BP124: 37.13449667 | BQ124: 278.0425033 | BR124: 290.8295033 | BS124: 286.0735033 | BT124: 24.47251944 | BU124: 27.32970289 | BV124: 28.0848949 | BW124: 26.62903908 | BZ124: 122 | CA124: 40.66666667 | CB124: 287.908 | CC124: 175.765 | CD124: 255.643 | CE124: 37.13449667 | CF124: 250.7735033 | CG124: 138.6305033 | CH124: 218.5085033 | CI124: 12.07130025 | CJ124: 8.373340153 | CK124: 10.80214183 | CL124: 10.41559408 | CO124: 122 | CP124: 40.66666667 | CQ124: 987.889 | CR124: 921.845 | CS124: 713.063 | CT124: 37.13449667 | CU124: 950.7545033 | CV124: 884.7105033 | CW124: 675.9285033 | CX124: 95.31280591 | CY124: 95.01943642 | CZ124: 96.62944619 | DA124: 95.65389617 | DD124: 122 | DE124: 40.66666667 | DF124: 1177.998 | DG124: 1055.717 | DH124: 795.449 | DI124: 37.13449667 | DJ124: 1140.863503 | DK124: 1018.582503 | DL124: 758.3145033 | DM124: 106.8287551 | DN124: 106.2649827 | DO124: 93.2132264 | DP124: 102.1023214
C125: 123 | D125: 41 | E125: 1216.049 | F125: 1075.207 | G125: 1110.798 | H125: 36.95683333 | I125: 1179.092167 | J125: 1038.250167 | K125: 1073.841167 | L125: 101.3145325 | M125: 100.5054503 | N125: 94.85268124 | O125: 98.89088801 | R125: 123 | S125: 41 | T125: 770.421 | U125: 933.495 | V125: 973.967 | W125: 36.95683333 | X125: 733.4641667 | Y125: 896.5381667 | Z125: 937.0101667 | AA125: 106.1149575 | AB125: 98.28223847 | AC125: 94.16064112 | AD125: 99.51927902 | AG125: 123 | AH125: 41 | AI125: 978.92 | AJ125: 854.156 | AK125: 963.118 | AL125: 36.95683333 | AM125: 941.9631667 | AN125: 817.1991667 | AO125: 926.1611667 | AP125: 66.89092478 | AQ125: 70.71364109 | AR125: 71.05063475 | AS125: 69.55173354 | AV125: 123 | AW125: 41 | AX125: 764.632 | AY125: 594.327 | AZ125: 860.408 | BA125: 36.95683333 | BB125: 727.6751667 | BC125: 557.3701667 | BD125: 823.4511667 | BE125: 70.89740477 | BF125: 64.75862338 | BG125: 68.4760626 | BH125: 68.04403025 | BK125: 123 | BL125: 41 | BM125: 301.427 | BN125: 333.766 | BO125: 326.187 | BP125: 36.95683333 | BQ125: 264.4701667 | BR125: 296.8091667 | BS125: 289.2301667 | BT125: 23.27792053 | BU125: 27.89162119 | BV125: 28.39479622 | BW125: 26.52144598 | BZ125: 123 | CA125: 41 | CB125: 282.514 | CC125: 180.719 | CD125: 260.287 | CE125: 36.95683333 | CF125: 245.5571667 | CG125: 143.7621667 | CH125: 223.3301667 | CI125: 11.82020528 | CJ125: 8.683294756 | CK125: 11.0405046 | CL125: 10.51466821 | CO125: 123 | CP125: 41 | CQ125: 1020.586 | CR125: 893.344 | CS125: 710.22 | CT125: 36.95683333 | CU125: 983.6291667 | CV125: 856.3871667 | CW125: 673.2631667 | CX125: 98.60847939 | CY125: 91.97746113 | CZ125: 96.24841476 | DA125: 95.61145176 | DD125: 123 | DE125: 41 | DF125: 1175.368 | DG125: 1005.331 | DH125: 799.358 | DI125: 36.95683333 | DJ125: 1138.411167 | DK125: 968.3741667 | DL125: 762.4011667 | DM125: 106.599122 | DN125: 101.0269307 | DO125: 93.71556556 | DP125: 100.4472061
C126: 124 | D126: 41.33333333 | E126: 1221.909 | F126: 1087.222 | G126: 1132.444 | H126: 37.49787667 | I126: 1184.411123 | J126: 1049.724123 | K126: 1094.946123 | L126: 101.7715685 | M126: 101.6161606 | N126: 96.71688778 | O126: 100.0348723 | R126: 124 | S126: 41.33333333 | T126: 773.142 | U126: 951.681 | V126: 967.727 | W126: 37.49787667 | X126: 735.6441233 | Y126: 914.1831233 | Z126: 930.2291233 | AA126: 106.4303458 | AB126: 100.2165519 | AC126: 93.47921053 | AD126: 100.0420361 | AG126: 124 | AH126: 41.33333333 | AI126: 1003.208 | AJ126: 858.278 | AK126: 952.931 | AL126: 37.49787667 | AM126: 965.7101233 | AN126: 820.7801233 | AO126: 915.4331233 | AP126: 68.57724962 | AQ126: 71.02350739 | AR126: 70.22763081 | AS126: 69.94279594 | AV126: 124 | AW126: 41.33333333 | AX126: 777.06 | AY126: 591.489 | AZ126: 856.659 | BA126: 37.49787667 | BB126: 739.5621233 | BC126: 553.9911233 | BD126: 819.1611233 | BE126: 72.05555118 | BF126: 64.36602577 | BG126: 68.11931372 | BH126: 68.18029689 | BK126: 124 | BL126: 41.33333333 | BM126: 301.878 | BN126: 328.472 | BO126: 319.734 | BP126: 37.49787667 | BQ126: 264.3801233 | BR126: 290.9741233 | BS126: 282.2361233 | BT126: 23.26999517 | BU126: 27.34329305 | BV126: 27.7081651 | BW126: 26.10715111 | BZ126: 124 | CA126: 41.33333333 | CB126: 281.433 | CC126: 177.301 | CD126: 255.947 | CE126: 37.49787667 | CF126: 243.9351233 | CG126: 139.8031233 | CH126: 218.4491233 | CI126: 11.74212617 | CJ126: 8.44416689 | CK126: 10.79920634 | CL126: 10.3284998 | CO126: 124 | CP126: 41.33333333 | CQ126: 983.509 | CR126: 910.328 | CS126: 714.178 | CT126: 37.49787667 | CU126: 946.0111233 | CV126: 872.8301233 | CW126: 676.6801233 | CX126: 94.83728372 | CY126: 93.74346308 | CZ126: 96.73689635 | DA126: 95.10588105 | DD126: 124 | DE126: 41.33333333 | DF126: 1174.365 | DG126: 1036.951 | DH126: 791.738 | DI126: 37.49787667 | DJ126: 1136.867123 | DK126: 999.4531233 | DL126: 754.2401233 | DM126: 106.4545401 | DN126: 104.2692845 | DO126: 92.71239712 | DP126: 101.1454072
C127: 125 | D127: 41.66666667 | E127: 1141.69 | F127: 1086.169 | G127: 1092.518 | H127: 37.05712 | I127: 1104.63288 | J127: 1049.11188 | K127: 1055.46088 | L127: 94.91655274 | M127: 101.5568938 | N127: 93.22914554 | O127: 96.56753069 | R127: 125 | S127: 41.66666667 | T127: 753.043 | U127: 928.86 | V127: 972.175 | W127: 37.05712 | X127: 715.98588 | Y127: 891.80288 | Z127: 935.11788 | AA127: 103.5862618 | AB127: 97.76313667 | AC127: 93.97048425 | AD127: 98.43996091 | AG127: 125 | AH127: 41.66666667 | AI127: 1000.415 | AJ127: 840.989 | AK127: 950.339 | AL127: 37.05712 | AM127: 963.35788 | AN127: 803.93188 | AO127: 913.28188 | AP127: 68.41021153 | AQ127: 69.56560009 | AR127: 70.06259776 | AS127: 69.34613646 | AV127: 125 | AW127: 41.66666667 | AX127: 774.536 | AY127: 589.499 | AZ127: 856.234 | BA127: 37.05712 | BB127: 737.47888 | BC127: 552.44188 | BD127: 819.17688 | BE127: 71.85258074 | BF127: 64.18602535 | BG127: 68.12062401 | BH127: 68.0530767 | BK127: 125 | BL127: 41.66666667 | BM127: 295.162 | BN127: 329.106 | BO127: 317.393 | BP127: 37.05712 | BQ127: 258.10488 | BR127: 292.04888 | BS127: 280.33588 | BT127: 22.71766589 | BU127: 27.44428962 | BV127: 27.52161117 | BW127: 25.89452223 | BZ127: 125 | CA127: 41.66666667 | CB127: 283.389 | CC127: 179.476 | CD127: 255.282 | CE127: 37.05712 | CF127: 246.33188 | CG127: 142.41888 | CH127: 218.22488 | CI127: 11.85749709 | CJ127: 8.602159682 | CK127: 10.78812069 | CL127: 10.41592582 | CO127: 125 | CP127: 41.66666667 | CQ127: 1000.907 | CR127: 905.737 | CS127: 711.544 | CT127: 37.05712 | CU127: 963.84988 | CV127: 868.67988 | CW127: 674.48688 | CX127: 96.62561283 | CY127: 93.29771978 | CZ127: 96.42335448 | DA127: 95.4488957 | DD127: 125 | DE127: 41.66666667 | DF127: 1171.5 | DG127: 1017.51 | DH127: 794.724 | DI127: 37.05712 | DJ127: 1134.44288 | DK127: 980.45288 | DL127: 757.66688 | DM127: 106.2275375 | DN127: 102.2870587 | DO127: 93.13361951 | DP127: 100.5494052
C128: 126 | D128: 42 | E128: 1231.523 | F128: 1081.091 | G128: 1109.089 | H128: 37.05883667 | I128: 1194.464163 | J128: 1044.032163 | K128: 1072.030163 | L128: 102.6353848 | M128: 101.0651634 | N128: 94.69271483 | O128: 99.46442101 | R128: 126 | S128: 42 | T128: 753.414 | U128: 962.003 | V128: 973.881 | W128: 37.05883667 | X128: 716.3551633 | Y128: 924.9441633 | Z128: 936.8221633 | AA128: 103.6396884 | AB128: 101.3962218 | AC128: 94.14174857 | AD128: 99.72588627 | AG128: 126 | AH128: 42 | AI128: 1002.991 | AJ128: 844.833 | AK128: 974.192 | AL128: 37.05883667 | AM128: 965.9321633 | AN128: 807.7741633 | AO128: 937.1331633 | AP128: 68.59301718 | AQ128: 69.89807943 | AR128: 71.89235362 | AS128: 70.12781674 | AV128: 126 | AW128: 42 | AX128: 762.69 | AY128: 585.673 | AZ128: 841.885 | BA128: 37.05883667 | BB128: 725.6311633 | BC128: 548.6141633 | BD128: 804.8261633 | BE128: 70.69825749 | BF128: 63.74129817 | BG128: 66.92725564 | BH128: 67.12227044 | BK128: 126 | BL128: 42 | BM128: 295.559 | BN128: 325.755 | BO128: 321.362 | BP128: 37.05883667 | BQ128: 258.5001633 | BR128: 288.6961633 | BS128: 284.3031633 | BT128: 22.75245762 | BU128: 27.12922959 | BV128: 27.91109407 | BW128: 25.93092709 | BZ128: 126 | CA128: 42 | CB128: 282.738 | CC128: 179.82 | CD128: 258.032 | CE128: 37.05883667 | CF128: 245.6791633 | CG128: 142.7611633 | CH128: 220.9731633 | CI128: 11.82607774 | CJ128: 8.622833738 | CK128: 10.92398426 | CL128: 10.45763192 | CO128: 126 | CP128: 42 | CQ128: 1023.368 | CR128: 891.393 | CS128: 719.844 | CT128: 37.05883667 | CU128: 986.3091633 | CV128: 854.3341633 | CW128: 682.7851633 | CX128: 98.87714812 | CY128: 91.75696503 | CZ128: 97.6096612 | DA128: 96.08125811 | DD128: 126 | DE128: 42 | DF128: 1173.92 | DG128: 1022.711 | DH128: 820.418 | DI128: 37.05883667 | DJ128: 1136.861163 | DK128: 985.6521633 | DL128: 783.3591633 | DM128: 106.453982 | DN128: 102.8294809 | DO128: 96.29175589 | DP128: 101.8584062
C129: 127 | D129: 42.33333333 | E129: 1182.559 | F129: 1071.835 | G129: 1126.809 | H129: 36.93221333 | I129: 1145.626787 | J129: 1034.902787 | K129: 1089.876787 | L129: 98.43899026 | M129: 100.1814148 | N129: 96.2691119 | O129: 98.29650564 | R129: 127 | S129: 42.33333333 | T129: 727.508 | U129: 959.533 | V129: 968.475 | W129: 36.93221333 | X129: 690.5757867 | Y129: 922.6007867 | Z129: 931.5427867 | AA129: 99.91002092 | AB129: 101.1393311 | AC129: 93.61122125 | AD129: 98.22019111 | AG129: 127 | AH129: 42.33333333 | AI129: 1000.906 | AJ129: 834.981 | AK129: 950.97 | AL129: 36.93221333 | AM129: 963.9737867 | AN129: 798.0487867 | AO129: 914.0377867 | AP129: 68.45394845 | AQ129: 69.05652596 | AR129: 70.12058729 | AS129: 69.2103539 | AV129: 127 | AW129: 42.33333333 | AX129: 753.192 | AY129: 598.374 | AZ129: 846.276 | BA129: 36.93221333 | BB129: 716.2597867 | BC129: 561.4417867 | BD129: 809.3437867 | BE129: 69.78520409 | BF129: 65.23168872 | BG129: 67.30292948 | BH129: 67.43994076 | BK129: 127 | BL129: 42.33333333 | BM129: 297.666 | BN129: 320.994 | BO129: 311.029 | BP129: 36.93221333 | BQ129: 260.7337867 | BR129: 284.0617867 | BS129: 274.0967867 | BT129: 22.94905486 | BU129: 26.69372998 | BV129: 26.90909628 | BW129: 25.51729371 | BZ129: 127 | CA129: 42.33333333 | CB129: 278.509 | CC129: 176.799 | CD129: 256.526 | CE129: 36.93221333 | CF129: 241.5767867 | CG129: 139.8667867 | CH129: 219.5937867 | CI129: 11.62860465 | CJ129: 8.448012182 | CK129: 10.85579368 | CL129: 10.3108035 | CO129: 127 | CP129: 42.33333333 | CQ129: 985.37 | CR129: 894.814 | CS129: 710.409 | CT129: 36.93221333 | CU129: 948.4377867 | CV129: 857.8817867 | CW129: 673.4767867 | CX129: 95.08055587 | CY129: 92.1379859 | CZ129: 96.27895347 | DA129: 94.49916508 | DD129: 127 | DE129: 42.33333333 | DF129: 1168.785 | DG129: 1031.079 | DH129: 777.846 | DI129: 36.93221333 | DJ129: 1131.852787 | DK129: 994.1467867 | DL129: 740.9137867 | DM129: 105.9850051 | DN129: 103.7156938 | DO129: 91.0743026 | DP129: 100.2583338
C130: 128 | D130: 42.66666667 | E130: 1222.5 | F130: 1077.787 | G130: 1106.035 | H130: 37.07181667 | I130: =E130-H130 -> 1185.428183 | J130: =F130-H130 -> 1040.715183 | K130: =G130-H130 -> 1068.963183 | L130: =I130/($I$2)*100 -> 101.8589603 | M130: =J130/($J$2)*100 -> 100.7440706 | N130: =K130/($K$2)*100 -> 94.42180765 | O130: =AVERAGE(L130:N130) -> 99.00827953 | R130: 128 | S130: 42.66666667 | T130: 720.981 | U130: 968.305 | V130: 968.776 | W130: 37.07181667 | X130: =T130-W130 -> 683.9091833 | Y130: =U130-W130 -> 931.2331833 | Z130: =V130-W130 -> 931.7041833 | AA130: =X130/($X$2)*100 -> 98.94552073 | AB130: =Y130/($Y$2)*100 -> 102.0856503 | AC130: =Z130/($Z$2)*100 -> 93.62744008 | AD130: =AVERAGE(AA130:AC130) -> 98.21953705 | AG130: 128 | AH130: 42.66666667 | AI130: 968.778 | AJ130: 843.813 | AK130: 943.166 | AL130: 37.07181667 | AM130: =AI130-AL130 -> 931.7061833 | AN130: =AJ130-AL130 -> 806.7411833 | AO130: =AK130-AL130 -> 906.0941833 | AP130: =AM130/($AM$2)*100 -> 66.1625533 | AQ130: =AN130/($AN$2)*100 -> 69.80869391 | AR130: =AO130/($AO$2)*100 -> 69.5111922 | AS130: =AVERAGE(AP130:AR130) -> 68.49414647 | AV130: 128 | AW130: 42.66666667 | AX130: 752.842 | AY130: 591.851 | AZ130: 841.354 | BA130: 37.07181667 | BB130: =AX130-BA130 -> 715.7701833 | BC130: =AY130-BA130 -> 554.7791833 | BD130: =AZ130-BA130 -> 804.2821833 | BE130: =BB130/($BB$2)*100 -> 69.73750203 | BF130: =BC130/($BC$2)*100 -> 64.45758733 | BG130: =BD130/($BD$2)*100 -> 66.88201968 | BH130: =AVERAGE(BE130:BG130) -> 67.02570301 | BK130: 128 | BL130: 42.66666667 | BM130: 285.739 | BN130: 319.843 | BO130: 314.761 | BP130: 37.07181667 | BQ130: =BM130-BP130 -> 248.6671833 | BR130: =BN130-BP130 -> 282.7711833 | BS130: =BO130-BP130 -> 277.6891833 | BT130: =BQ130/($BQ$2)*100 -> 21.88698636 | BU130: =BR130/($BR$2)*100 -> 26.57244996 | BV130: =BS130/($BS$2)*100 -> 27.26177516 | BW130: =AVERAGE(BT130:BV130) -> 25.24040383 | BZ130: 128 | CA130: 42.66666667 | CB130: 278.051 | CC130: 178 | CD130: 255.348 | CE130: 37.07181667 | CF130: =CB130-CE130 -> 240.9791833 | CG130: =CC130-CE130 -> 140.9281833 | CH130: =CD130-CE130 -> 218.2761833 | CI130: =CF130/($CF$2)*100 -> 11.59983825 | CJ130: =CG130/($CG$2)*100 -> 8.512120982 | CK130: =CH130/($CH$2)*100 -> 10.79065691 | CL130: =AVERAGE(CI130:CK130) -> 10.30087205 | CO130: 128 | CP130: 42.66666667 | CQ130: 1000.784 | CR130: 898.837 | CS130: 715.557 | CT130: 37.07181667 | CU130: =CQ130-CT130 -> 963.7121833 | CV130: =CR130-CT130 -> 861.7651833 | CW130: =CS130-CT130 -> 678.4851833 | CX130: =CU130/($CU$2)*100 -> 96.61180879 | CY130: =CV130/($CV$2)*100 -> 92.55506941 | CZ130: =CW130/($CW$2)*100 -> 96.99494428 | DA130: =AVERAGE(CX130:CZ130) -> 95.38727416 | DD130: 128 | DE130: 42.66666667 | DF130: 1166.741 | DG130: 1015.374 | DH130: 792.712 | DI130: 37.07181667 | DJ130: =DF130-DI130 -> 1129.669183 | DK130: =DG130-DI130 -> 978.3021833 | DL130: =DH130-DI130 -> 755.6401833 | DM130: =DJ130/($DJ$2)*100 -> 105.7805357 | DN130: =DK130/($DK$2)*100 -> 102.0626844 | DO130: =DL130/($DL$2)*100 -> 92.88449473 | DP130: =AVERAGE(DM130:DO130) -> 100.2425716
C131: 129 | D131: 43 | E131: 1182.887 | F131: 1079.867 | G131: 1142.491 | H131: 37.32223667 | I131: 1145.564763 | J131: 1042.544763 | K131: 1105.168763 | L131: 98.43366085 | M131: 100.921179 | N131: 97.61985635 | O131: 98.99156539 | R131: 129 | S131: 43 | T131: 696.733 | U131: 952.595 | V131: 963.201 | W131: 37.32223667 | X131: 659.4107633 | Y131: 915.2727633 | Z131: 925.8787633 | AA131: 95.40117744 | AB131: 100.3360028 | AC131: 93.04204059 | AD131: 96.25974027 | AG131: 129 | AH131: 43 | AI131: 995.08 | AJ131: 847.383 | AK131: 952.465 | AL131: 37.32223667 | AM131: 957.7577633 | AN131: 810.0607633 | AO131: 915.1427633 | AP131: 68.01253464 | AQ131: 70.09594284 | AR131: 70.20535579 | AS131: 69.43794442 | AV131: 129 | AW131: 43 | AX131: 750.366 | AY131: 606.184 | AZ131: 843.269 | BA131: 37.32223667 | BB131: 713.0437633 | BC131: 568.8617633 | BD131: 805.9467633 | BE131: 69.47186688 | BF131: 66.0937863 | BG131: 67.02044183 | BH131: 67.52869834 | BK131: 129 | BL131: 43 | BM131: 288.085 | BN131: 314.993 | BO131: 312.236 | BP131: 37.32223667 | BQ131: 250.7627633 | BR131: 277.6707633 | BS131: 274.9137633 | BT131: 22.07143342 | BU131: 26.09315553 | BV131: 26.98930191 | BW131: 25.05129695 | BZ131: 129 | CA131: 43 | CB131: 280.418 | CC131: 175.324 | CD131: 253.982 | CE131: 37.32223667 | CF131: 243.0957633 | CG131: 138.0017633 | CH131: 216.6597633 | CI131: 11.70172251 | CJ131: 8.335363995 | CK131: 10.7107479 | CL131: 10.24927814 | CO131: 129 | CP131: 43 | CQ131: 1014.497 | CR131: 895.948 | CS131: 712.373 | CT131: 37.32223667 | CU131: 977.1747633 | CV131: 858.6257633 | CW131: 675.0507633 | CX131: 97.96142772 | CY131: 92.21789028 | CZ131: 96.50396616 | DA131: 95.56109472 | DD131: 129 | DE131: 43 | DF131: 1170.879 | DG131: 1037.363 | DH131: 796.337 | DI131: 37.32223667 | DJ131: 1133.556763 | DK131: 1000.040763 | DL131: 759.0147633 | DM131: 106.1445629 | DN131: 104.3305908 | DO131: 93.29930347 | DP131: 101.2581524
C132: 130 | D132: 43.33333333 | E132: 1206.434 | F132: 1089.629 | G132: 1129.51 | H132: 37.39105667 | I132: 1169.042943 | J132: 1052.237943 | K132: 1092.118943 | L132: 100.4510441 | M132: 101.8595053 | N132: 96.46716221 | O132: 99.59257053 | R132: 130 | S132: 43.33333333 | T132: 705.784 | U132: 987.737 | V132: 977.787 | W132: 37.39105667 | X132: 668.3929433 | Y132: 950.3459433 | Z132: 940.3959433 | AA132: 96.70068694 | AB132: 104.1808705 | AC132: 94.50087959 | AD132: 98.46081234 | AG132: 130 | AH132: 43.33333333 | AI132: 995.763 | AJ132: 843.044 | AK132: 938.883 | AL132: 37.39105667 | AM132: 958.3719433 | AN132: 805.6529433 | AO132: 901.4919433 | AP132: 68.05614894 | AQ132: 69.71452664 | AR132: 69.15813046 | AS132: 68.97626868 | AV132: 130 | AW132: 43.33333333 | AX132: 742.494 | AY132: 581.632 | AZ132: 843.319 | BA132: 37.39105667 | BB132: 705.1029433 | BC132: 544.2409433 | BD132: 805.9279433 | BE132: 68.69819264 | BF132: 63.23319113 | BG132: 67.01887681 | BH132: 66.31675353 | BK132: 130 | BL132: 43.33333333 | BM132: 284.394 | BN132: 315.802 | BO132: 312.054 | BP132: 37.39105667 | BQ132: 247.0029433 | BR132: 278.4109433 | BS132: 274.6629433 | BT132: 21.74050464 | BU132: 26.1627114 | BV132: 26.96467798 | BW132: 24.95596467 | BZ132: 130 | CA132: 43.33333333 | CB132: 279.468 | CC132: 175.622 | CD132: 254.193 | CE132: 37.39105667 | CF132: 242.0769433 | CG132: 138.2309433 | CH132: 216.8019433 | CI132: 11.65268032 | CJ132: 8.349206563 | CK132: 10.71777668 | CL132: 10.23988786 | CO132: 130 | CP132: 43.33333333 | CQ132: 1007.682 | CR132: 898.799 | CS132: 711.581 | CT132: 37.39105667 | CU132: 970.2909433 | CV132: 861.4079433 | CW132: 674.1899433 | CX132: 97.27132717 | CY132: 92.51670122 | CZ132: 96.38090498 | DA132: 95.38964446 | DD132: 130 | DE132: 43.33333333 | DF132: 1164.069 | DG132: 1009.636 | DH132: 800.664 | DI132: 37.39105667 | DJ132: 1126.677943 | DK132: 972.2449433 | DL132: 763.2729433 | DM132: 105.5004405 | DN132: 101.4307547 | DO132: 93.82272574 | DP132: 100.251307
C133: 131 | D133: 43.66666667 | E133: 1208.876 | F133: 1083.781 | G133: 1138.762 | H133: 35.90253 | I133: 1172.97347 | J133: 1047.87847 | K133: 1102.85947 | L133: 100.7887781 | M133: 101.4374963 | N133: 97.41587584 | O133: 99.88071676 | R133: 131 | S133: 43.66666667 | T133: 711.365 | U133: 960.003 | V133: 978.322 | W133: 35.90253 | X133: 675.46247 | Y133: 924.10047 | Z133: 942.41947 | AA133: 97.72348063 | AB133: 101.3037327 | AC133: 94.70422484 | AD133: 97.91047938 | AG133: 131 | AH133: 43.66666667 | AI133: 992.461 | AJ133: 831.174 | AK133: 953.423 | AL133: 35.90253 | AM133: 956.55847 | AN133: 795.27147 | AO133: 917.52047 | AP133: 67.92737012 | AQ133: 68.8162 | AR133: 70.38776202 | AS133: 69.04377738 | AV133: 131 | AW133: 43.66666667 | AX133: 748.616 | AY133: 608.205 | AZ133: 839.946 | BA133: 35.90253 | BB133: 712.71347 | BC133: 572.30247 | BD133: 804.04347 | BE133: 69.4396864 | BF133: 66.49354833 | BG133: 66.8621689 | BH133: 67.59846787 | BK133: 131 | BL133: 43.66666667 | BM133: 287.902 | BN133: 311.809 | BO133: 296.574 | BP133: 35.90253 | BQ133: 251.99947 | BR133: 275.90647 | BS133: 260.67147 | BT133: 22.18028487 | BU133: 25.92736212 | BV133: 25.59108324 | BW133: 24.56624341 | BZ133: 131 | CA133: 43.66666667 | CB133: 275.342 | CC133: 177.504 | CD133: 254.086 | CE133: 35.90253 | CF133: 239.43947 | CG133: 141.60147 | CH133: 218.18347 | CI133: 11.5257222 | CJ133: 8.552787778 | CK133: 10.78607355 | CL133: 10.28819451 | CO133: 131 | CP133: 43.66666667 | CQ133: 985.255 | CR133: 914.548 | CS133: 714.256 | CT133: 35.90253 | CU133: 949.35247 | CV133: 878.64547 | CW133: 678.35347 | CX133: 95.17225256 | CY133: 94.36804136 | CZ133: 96.97611479 | DA133: 95.50546957 | DD133: 131 | DE133: 43.66666667 | DF133: 1154.22 | DG133: 1029.68 | DH133: 813.126 | DI133: 35.90253 | DJ133: 1118.31747 | DK133: 993.77747 | DL133: 777.22347 | DM133: 104.7175782 | DN133: 103.6771644 | DO133: 95.5375467 | DP133: 101.3107631
C134: 132 | D134: 44 | E134: 1214.989 | F134: 1045.175 | G134: 1123.529 | H134: 36.87110333 | I134: 1178.117897 | J134: 1008.303897 | K134: 1086.657897 | L134: 101.2308175 | M134: 97.60656961 | N134: 95.98478648 | O134: 98.27405786 | R134: 132 | S134: 44 | T134: 743.487 | U134: 986.766 | V134: 991.809 | W134: 36.87110333 | X134: 706.6158967 | Y134: 949.8948967 | Z134: 954.9378967 | AA134: 102.2306463 | AB134: 104.1314249 | AC134: 95.96220807 | AD134: 100.7747598 | AG134: 132 | AH134: 44 | AI134: 989.873 | AJ134: 837.908 | AK134: 939.193 | AL134: 36.87110333 | AM134: 953.0018967 | AN134: 801.0368967 | AO134: 902.3218967 | AP134: 67.67480984 | AQ134: 69.31509223 | AR134: 69.2218005 | AS134: 68.73723419 | AV134: 132 | AW134: 44 | AX134: 748.77 | AY134: 586.92 | AZ134: 841.601 | BA134: 36.87110333 | BB134: 711.8988967 | BC134: 550.0488967 | BD134: 804.7298967 | BE134: 69.3603225 | BF134: 63.90799413 | BG134: 66.91925036 | BH134: 66.729189 | BK134: 132 | BL134: 44 | BM134: 274.954 | BN134: 309.622 | BO134: 303.6 | BP134: 36.87110333 | BQ134: 238.0828967 | BR134: 272.7508967 | BS134: 266.7288967 | BT134: 20.95538721 | BU134: 25.63082797 | BV134: 26.18576325 | BW134: 24.25732614 | BZ134: 132 | CA134: 44 | CB134: 278.017 | CC134: 174.226 | CD134: 252.867 | CE134: 36.87110333 | CF134: 241.1458967 | CG134: 137.3548967 | CH134: 215.9958967 | CI134: 11.60786321 | CJ134: 8.296292979 | CK134: 10.67792912 | CL134: 10.19402844 | CO134: 132 | CP134: 44 | CQ134: 1018.408 | CR134: 888.136 | CS134: 705.966 | CT134: 36.87110333 | CU134: 981.5368967 | CV134: 851.2648967 | CW134: 669.0948967 | CX134: 98.39873006 | CY134: 91.42732048 | CZ134: 95.65252685 | DA134: 95.1595258 | DD134: 132 | DE134: 44 | DF134: 1161.808 | DG134: 989.023 | DH134: 784.852 | DI134: 36.87110333 | DJ134: 1124.936897 | DK134: 952.1518967 | DL134: 747.9808967 | DM134: 105.3374114 | DN134: 99.33452072 | DO134: 91.94300301 | DP134: 98.87164506
C135: 133 | D135: 44.33333333 | E135: 1197.854 | F135: 1060.144 | G135: 1142.034 | H135: 36.80518 | I135: 1161.04882 | J135: 1023.33882 | K135: 1105.22882 | L135: 99.76414205 | M135: 99.06199123 | N135: 97.62516117 | O135: 98.81709815 | R135: 133 | S135: 44.33333333 | T135: 753.812 | U135: 985.492 | V135: 988.87 | W135: 36.80518 | X135: 717.00682 | Y135: 948.68682 | Z135: 952.06482 | AA135: 103.7339678 | AB135: 103.9989905 | AC135: 95.6734911 | AD135: 101.1354831 | AG135: 133 | AH135: 44.33333333 | AI135: 991.599 | AJ135: 846.766 | AK135: 937.096 | AL135: 36.80518 | AM135: 954.79382 | AN135: 809.96082 | AO135: 900.29082 | AP135: 67.80205835 | AQ135: 70.08729457 | AR135: 69.06598605 | AS135: 68.98511299 | AV135: 133 | AW135: 44.33333333 | AX135: 742.449 | AY135: 603.445 | AZ135: 840.541 | BA135: 36.80518 | BB135: 705.64382 | BC135: 566.63982 | BD135: 803.73582 | BE135: 68.75089027 | BF135: 65.83562754 | BG135: 66.83658552 | BH135: 67.14103444 | BK135: 133 | BL135: 44.33333333 | BM135: 279.155 | BN135: 303.744 | BO135: 298.484 | BP135: 36.80518 | BQ135: 242.34982 | BR135: 266.93882 | BS135: 261.67882 | BT135: 21.3309498 | BU135: 25.08465804 | BV135: 25.68997852 | BW135: 24.03519546 | BZ135: 133 | CA135: 44.33333333 | CB135: 272.015 | CC135: 174.132 | CD135: 253.019 | CE135: 36.80518 | CF135: 235.20982 | CG135: 137.32682 | CH135: 216.21382 | CI135: 11.32212264 | CJ135: 8.294597137 | CK135: 10.68870234 | CL135: 10.10180737 | CO135: 133 | CP135: 44.33333333 | CQ135: 1005.243 | CR135: 891.276 | CS135: 721.502 | CT135: 36.80518 | CU135: 968.43782 | CV135: 854.47082 | CW135: 684.69682 | CX135: 97.08555221 | CY135: 91.77164219 | CZ135: 97.88294798 | DA135: 95.58004746 | DD135: 133 | DE135: 44.33333333 | DF135: 1155.97 | DG135: 949.526 | DH135: 790.813 | DI135: 36.80518 | DJ135: 1119.16482 | DK135: 912.72082 | DL135: 754.00782 | DM135: 104.7969228 | DN135: 95.22082088 | DO135: 92.68384203 | DP135: 97.56719524
C136: 134 | D136: 44.66666667 | E136: 1209.192 | F136: 1050.31 | G136: 1128.202 | H136: 37.01143 | I136: 1172.18057 | J136: 1013.29857 | K136: 1091.19057 | L136: 100.7206475 | M136: 98.09006762 | N136: 96.38515874 | O136: 98.39862461 | R136: 134 | S136: 44.66666667 | T136: 763.135 | U136: 978.157 | V136: 975.109 | W136: 37.01143 | X136: 726.12357 | Y136: 941.14557 | Z136: 938.09757 | AA136: 105.0529464 | AB136: 103.1722873 | AC136: 94.26991485 | AD136: 100.8317162 | AG136: 134 | AH136: 44.66666667 | AI136: 990.563 | AJ136: 840.135 | AK136: 944.209 | AL136: 37.01143 | AM136: 953.55157 | AN136: 803.12357 | AO136: 907.19757 | AP136: 67.71384338 | AQ136: 69.49565564 | AR136: 69.59583873 | AS136: 68.93511258 | AV136: 134 | AW136: 44.66666667 | AX136: 739.923 | AY136: 584.778 | AZ136: 837.998 | BA136: 37.01143 | BB136: 702.91157 | BC136: 547.76657 | BD136: 800.98657 | BE136: 68.4846871 | BF136: 63.64281967 | BG136: 66.60796502 | BH136: 66.24515726 | BK136: 134 | BL136: 44.66666667 | BM136: 272.723 | BN136: 310.026 | BO136: 288.848 | BP136: 37.01143 | BQ136: 235.71157 | BR136: 273.01457 | BS136: 251.83657 | BT136: 20.7466697 | BU136: 25.65560576 | BV136: 24.7237284 | BW136: 23.70866796 | BZ136: 134 | CA136: 44.66666667 | CB136: 276.561 | CC136: 175.318 | CD136: 250.932 | CE136: 37.01143 | CF136: 239.54957 | CG136: 138.30657 | CH136: 213.92057 | CI136: 11.531022 | CJ136: 8.353774445 | CK136: 10.5753337 | CL136: 10.15337672 | CO136: 134 | CP136: 44.66666667 | CQ136: 992.929 | CR136: 893.119 | CS136: 712.319 | CT136: 37.01143 | CU136: 955.91757 | CV136: 856.10757 | CW136: 675.30757 | CX136: 95.83040153 | CY136: 91.94743197 | CZ136: 96.54067875 | DA136: 94.77283742 | DD136: 134 | DE136: 44.66666667 | DF136: 1166.861 | DG136: 1017.764 | DH136: 784.188 | DI136: 37.01143 | DJ136: 1129.84957 | DK136: 980.75257 | DL136: 747.17657 | DM136: 105.7974268 | DN136: 102.3183242 | DO136: 91.8441339 | DP136: 99.98662832
C137: 135 | D137: 45 | E137: 1209.774 | F137: 1105.085 | G137: 1104.61 | H137: 36.54830333 | I137: 1173.225697 | J137: 1068.536697 | K137: 1068.061697 | L137: 100.8104509 | M137: 103.4372691 | N137: 94.34217909 | O137: 99.52996635 | R137: 135 | S137: 45 | T137: 760.207 | U137: 955.656 | V137: 980.636 | W137: 36.54830333 | X137: 723.6586967 | Y137: 919.1076967 | Z137: 944.0876967 | AA137: 104.6963373 | AB137: 100.7564041 | AC137: 94.87186581 | AD137: 100.1082024 | AG137: 135 | AH137: 45 | AI137: 982.011 | AJ137: 830.374 | AK137: 936.404 | AL137: 36.54830333 | AM137: 945.4626967 | AN137: 793.8256967 | AO137: 899.8556967 | AP137: 67.13943428 | AQ137: 68.69109476 | AR137: 69.03260548 | AS137: 68.28771151 | AV137: 135 | AW137: 45 | AX137: 744.157 | AY137: 600.583 | AZ137: 837.236 | BA137: 36.54830333 | BB137: 707.6086967 | BC137: 564.0346967 | BD137: 800.6876967 | BE137: 68.94232824 | BF137: 65.53294862 | BG137: 66.58311149 | BH137: 67.01946278 | BK137: 135 | BL137: 45 | BM137: 268.061 | BN137: 300.166 | BO137: 298.515 | BP137: 36.54830333 | BQ137: 231.5126967 | BR137: 263.6176967 | BS137: 261.9666967 | BT137: 20.37709668 | BU137: 24.77256689 | BV137: 25.71824044 | BW137: 23.62263467 | BZ137: 135 | CA137: 45 | CB137: 271.926 | CC137: 173.201 | CD137: 250.804 | CE137: 36.54830333 | CF137: 235.3776967 | CG137: 136.6526967 | CH137: 214.2556967 | CI137: 11.3302036 | CJ137: 8.253879807 | CK137: 10.59190095 | CL137: 10.05866145 | CO137: 135 | CP137: 45 | CQ137: 1035.698 | CR137: 902.025 | CS137: 715.257 | CT137: 36.54830333 | CU137: 999.1496967 | CV137: 865.4766967 | CW137: 678.7086967 | CX137: 100.1644071 | CY137: 92.95369236 | CZ137: 97.02689732 | DA137: 96.71499892 | DD137: 135 | DE137: 45 | DF137: 1149.198 | DG137: 1009.045 | DH137: 778.326 | DI137: 36.54830333 | DJ137: 1112.649697 | DK137: 972.4966967 | DL137: 741.7776967 | DM137: 104.1868564 | DN137: 101.4570192 | DO137: 91.18049579 | DP137: 98.94145712
C138: 136 | D138: 45.33333333 | E138: 1207.863 | F138: 1085.457 | G138: 1182.692 | H138: 36.53932 | I138: 1171.32368 | J138: 1048.91768 | K138: 1146.15268 | L138: 100.6470184 | M138: 101.5380947 | N138: 101.2399768 | O138: 101.1416967 | R138: 136 | S138: 45.33333333 | T138: 733.57 | U138: 966.703 | V138: 991.893 | W138: 36.53932 | X138: 697.03068 | Y138: 930.16368 | Z138: 955.35368 | AA138: 100.8438917 | AB138: 101.9684069 | AC138: 96.00399036 | AD138: 99.60542965 | AG138: 136 | AH138: 45.33333333 | AI138: 955.513 | AJ138: 836.778 | AK138: 932.509 | AL138: 36.53932 | AM138: 918.97368 | AN138: 800.23868 | AO138: 895.96968 | AP138: 65.25838958 | AQ138: 69.24602118 | AR138: 68.73448895 | AS138: 67.7462999 | AV138: 136 | AW138: 45.33333333 | AX138: 734.273 | AY138: 592.442 | AZ138: 838.049 | BA138: 36.53932 | BB138: 697.73368 | BC138: 555.90268 | BD138: 801.50968 | BE138: 67.98020518 | BF138: 64.58812194 | BG138: 66.65146549 | BH138: 66.40659754 | BK138: 136 | BL138: 45.33333333 | BM138: 268.809 | BN138: 298.538 | BO138: 298.651 | BP138: 36.53932 | BQ138: 232.26968 | BR138: 261.99868 | BS138: 262.11168 | BT138: 20.44372422 | BU138: 24.62042537 | BV138: 25.73247399 | BW138: 23.59887453 | BZ138: 136 | CA138: 45.33333333 | CB138: 269.233 | CC138: 172.481 | CD138: 251.127 | CE138: 36.53932 | CF138: 232.69368 | CG138: 135.94168 | CH138: 214.58768 | CI138: 11.20100505 | CJ138: 8.210934104 | CK138: 10.60831281 | CL138: 10.00675066 | CO138: 136 | CP138: 45.33333333 | CQ138: 1033.794 | CR138: 916.488 | CS138: 708.051 | CT138: 36.53932 | CU138: 997.25468 | CV138: 879.94868 | CW138: 671.51168 | CX138: 99.97443233 | CY138: 94.50800837 | CZ138: 95.99802558 | DA138: 96.82682209 | DD138: 136 | DE138: 45.33333333 | DF138: 1150.443 | DG138: 986.894 | DH138: 787.562 | DI138: 36.53932 | DJ138: 1113.90368 | DK138: 950.35468 | DL138: 751.02268 | DM138: 104.3042775 | DN138: 99.14702369 | DO138: 92.31690386 | DP138: 98.58940168
C139: 137 | D139: 45.66666667 | E139: 1196.953 | F139: 1081.727 | G139: 1092.641 | H139: 36.97158667 | I139: 1159.981413 | J139: 1044.755413 | K139: 1055.669413 | L139: 99.67242419 | M139: 101.1351759 | N139: 93.24756535 | O139: 98.01838849 | R139: 137 | S139: 45.66666667 | T139: 738.713 | U139: 958.964 | V139: 979.156 | W139: 36.97158667 | X139: 701.7414133 | Y139: 921.9924133 | Z139: 942.1844133 | AA139: 101.5254236 | AB139: 101.0726387 | AC139: 94.68060387 | AD139: 99.09288874 | AG139: 137 | AH139: 45.66666667 | AI139: 983.722 | AJ139: 834.784 | AK139: 947.635 | AL139: 36.97158667 | AM139: 946.7504133 | AN139: 797.8124133 | AO139: 910.6634133 | AP139: 67.23087794 | AQ139: 69.03607217 | AR139: 69.86172158 | AS139: 68.70955723 | AV139: 137 | AW139: 45.66666667 | AX139: 731.462 | AY139: 592.709 | AZ139: 835.519 | BA139: 36.97158667 | BB139: 694.4904133 | BC139: 555.7374133 | BD139: 798.5474133 | BE139: 67.66421365 | BF139: 64.56892026 | BG139: 66.40513108 | BH139: 66.212755 | BK139: 137 | BL139: 45.66666667 | BM139: 265.121 | BN139: 299.136 | BO139: 292.28 | BP139: 36.97158667 | BQ139: 228.1494133 | BR139: 262.1644133 | BS139: 255.3084133 | BT139: 20.08106993 | BU139: 24.63599959 | BV139: 25.06457212 | BW139: 23.26054721 | BZ139: 137 | CA139: 45.66666667 | CB139: 268.369 | CC139: 173.129 | CD139: 252.733 | CE139: 36.97158667 | CF139: 231.3974133 | CG139: 136.1574133 | CH139: 215.7614133 | CI139: 11.13860762 | CJ139: 8.223964487 | CK139: 10.66633725 | CL139: 10.00963645 | CO139: 137 | CP139: 45.66666667 | CQ139: 1009.371 | CR139: 923.129 | CS139: 704.129 | CT139: 36.97158667 | CU139: 972.3994133 | CV139: 886.1574133 | CW139: 667.1574133 | CX139: 97.48270055 | CY139: 95.17483705 | CZ139: 95.37554794 | DA139: 96.01102852 | DD139: 137 | DE139: 45.66666667 | DF139: 1146.816 | DG139: 1006.318 | DH139: 795 | DI139: 36.97158667 | DJ139: 1109.844413 | DK139: 969.3464133 | DL139: 758.0284133 | DM139: 103.9241738 | DN139: 101.1283617 | DO139: 93.17805976 | DP139: 99.41019843
C140: 138 | D140: 46 | E140: 1210.334 | F140: 1088.985 | G140: 1195.481 | H140: 36.53968 | I140: 1173.79432 | J140: 1052.44532 | K140: 1158.94132 | L140: 100.8593104 | M140: 101.8795799 | N140: 102.3696008 | O140: 101.7028304 | R140: 138 | S140: 46 | T140: 710.258 | U140: 974.684 | V140: 986.414 | W140: 36.53968 | X140: 673.71832 | Y140: 938.14432 | Z140: 949.87432 | AA140: 97.47114328 | AB140: 102.8432778 | AC140: 95.45336661 | AD140: 98.58926258 | AG140: 138 | AH140: 46 | AI140: 985.429 | AJ140: 838.554 | AK140: 932.027 | AL140: 36.53968 | AM140: 948.88932 | AN140: 802.01432 | AO140: 895.48732 | AP140: 67.38276651 | AQ140: 69.39967034 | AR140: 68.69748461 | AS140: 68.49330716 | AV140: 138 | AW140: 46 | AX140: 729.708 | AY140: 586.315 | AZ140: 832.468 | BA140: 36.53968 | BB140: 693.16832 | BC140: 549.77532 | BD140: 795.92832 | BE140: 67.53540207 | BF140: 63.87620835 | BG140: 66.18733408 | BH140: 65.86631483 | BK140: 138 | BL140: 46 | BM140: 259.914 | BN140: 299.098 | BO140: 287.953 | BP140: 36.53968 | BQ140: 223.37432 | BR140: 262.55832 | BS140: 251.41332 | BT140: 19.66077964 | BU140: 24.67301561 | BV140: 24.68217638 | BW140: 23.00532388 | BZ140: 138 | CA140: 46 | CB140: 267.178 | CC140: 172.964 | CD140: 247.595 | CE140: 36.53968 | CF140: 230.63832 | CG140: 136.42432 | CH140: 211.05532 | CI140: 11.1020677 | CJ140: 8.240085761 | CK140: 10.43368778 | CL140: 9.925280413 | CO140: 138 | CP140: 46 | CQ140: 1045.567 | CR140: 917.11 | CS140: 714.081 | CT140: 36.53968 | CU140: 1009.02732 | CV140: 880.57032 | CW140: 677.54132 | CX140: 101.1546354 | CY140: 94.57477358 | CZ140: 96.86001138 | DA140: 97.52980677 | DD140: 138 | DE140: 46 | DF140: 1152.794 | DG140: 982.029 | DH140: 790.128 | DI140: 36.53968 | DJ140: 1116.25432 | DK140: 945.48932 | DL140: 753.58832 | DM140: 104.5243879 | DN140: 98.63943849 | DO140: 92.63227642 | DP140: 98.59870095
C141: 139 | D141: 46.33333333 | E141: 1210.314 | F141: 1081.262 | G141: 1134.8 | H141: 36.59222667 | I141: 1173.721773 | J141: 1044.669773 | K141: 1098.207773 | L141: 100.8530767 | M141: 101.1268857 | N141: 97.00499021 | O141: 99.66165089 | R141: 139 | S141: 46.33333333 | T141: 698.414 | U141: 992.956 | V141: 986.392 | W141: 36.59222667 | X141: 661.8217733 | Y141: 956.3637733 | Z141: 949.7997733 | AA141: 95.7499937 | AB141: 104.84057 | AC141: 95.44587538 | AD141: 98.67881303 | AG141: 139 | AH141: 46.33333333 | AI141: 961.666 | AJ141: 831.168 | AK141: 924.087 | AL141: 36.59222667 | AM141: 925.0737733 | AN141: 794.5757733 | AO141: 887.4947733 | AP141: 65.69157094 | AQ141: 68.75600018 | AR141: 68.08433483 | AS141: 67.51063532 | AV141: 139 | AW141: 46.33333333 | AX141: 726.734 | AY141: 593.268 | AZ141: 828.431 | BA141: 36.59222667 | BB141: 690.1417733 | BC141: 556.6757733 | BD141: 791.8387733 | BE141: 67.24052558 | BF141: 64.67794458 | BG141: 65.84725799 | BH141: 65.92190938 | BK141: 139 | BL141: 46.33333333 | BM141: 263.694 | BN141: 291.941 | BO141: 292.066 | BP141: 36.59222667 | BQ141: 227.1017733 | BR141: 255.3487733 | BS141: 255.4737733 | BT141: 19.98885961 | BU141: 23.99552324 | BV141: 25.08080612 | BW141: 23.02172966 | BZ141: 139 | CA141: 46.33333333 | CB141: 266.753 | CC141: 174.909 | CD141: 253.709 | CE141: 36.59222667 | CF141: 230.1607733 | CG141: 138.3167733 | CH141: 217.1167733 | CI141: 11.07908038 | CJ141: 8.354390731 | CK141: 10.73334055 | CL141: 10.05560389 | CO141: 139 | CP141: 46.33333333 | CQ141: 1008.305 | CR141: 899.523 | CS141: 703.535 | CT141: 36.59222667 | CU141: 971.7127733 | CV141: 862.9307733 | CW141: 666.9427733 | CX141: 97.41386513 | CY141: 92.68025579 | CZ141: 95.34486342 | DA141: 95.14632811 | DD141: 139 | DE141: 46.33333333 | DF141: 1154.14 | DG141: 1011.688 | DH141: 789.835 | DI141: 36.59222667 | DJ141: 1117.547773 | DK141: 975.0957733 | DL141: 753.2427733 | DM141: 104.645505 | DN141: 101.7281714 | DO141: 92.58980127 | DP141: 99.65449253
C142: 140 | D142: 46.66666667 | E142: 1201.628 | F142: 1081.202 | G142: 1147.582 | H142: 36.73078667 | I142: 1164.897213 | J142: 1044.471213 | K142: 1110.851213 | L142: 100.0948186 | M142: 101.1076646 | N142: 98.12178869 | O142: 99.77475731 | R142: 140 | S142: 46.66666667 | T142: 673.894 | U142: 973.212 | V142: 987.676 | W142: 36.73078667 | X142: 637.1632133 | Y142: 936.4812133 | Z142: 950.9452133 | AA142: 92.18248193 | AB142: 102.6609612 | AC142: 95.56098124 | AD142: 96.80147478 | AG142: 140 | AH142: 46.66666667 | AI142: 969.794 | AJ142: 835.652 | AK142: 921.263 | AL142: 36.73078667 | AM142: 933.0632133 | AN142: 798.9212133 | AO142: 884.5322133 | AP142: 66.25891906 | AQ142: 69.13201853 | AR142: 67.85706147 | AS142: 67.74933302 | AV142: 140 | AW142: 46.66666667 | AX142: 725.93 | AY142: 584.215 | AZ142: 831.414 | BA142: 36.73078667 | BB142: 689.1992133 | BC142: 547.4842133 | BD142: 794.6832133 | BE142: 67.14869194 | BF142: 63.61001377 | BG142: 66.08379424 | BH142: 65.61416665 | BK142: 140 | BL142: 46.66666667 | BM142: 259.509 | BN142: 291.473 | BO142: 294.324 | BP142: 36.73078667 | BQ142: 222.7782133 | BR142: 254.7422133 | BS142: 257.5932133 | BT142: 19.60831201 | BU142: 23.93852385 | BV142: 25.28887939 | BW142: 22.94523842 | BZ142: 140 | CA142: 46.66666667 | CB142: 270.19 | CC142: 172.346 | CD142: 249.293 | CE142: 36.73078667 | CF142: 233.4592133 | CG142: 135.6152133 | CH142: 212.5622133 | CI142: 11.23785497 | CJ142: 8.191215381 | CK142: 10.50818225 | CL142: 9.979084202 | CO142: 140 | CP142: 46.66666667 | CQ142: 1010.904 | CR142: 900.557 | CS142: 705.257 | CT142: 36.73078667 | CU142: 974.1732133 | CV142: 863.8262133 | CW142: 668.5262133 | CX142: 97.66052338 | CY142: 92.77642759 | CZ142: 95.57122897 | DA142: 95.33605998 | DD142: 140 | DE142: 46.66666667 | DF142: 1149.149 | DG142: 985.224 | DH142: 786.888 | DI142: 36.73078667 | DJ142: 1112.418213 | DK142: 948.4932133 | DL142: 750.1572133 | DM142: 104.1651806 | DN142: 98.95282369 | DO142: 92.21051932 | DP142: 98.44284121
C143: 141 | D143: 47 | E143: 1210.44 | F143: 1076.619 | G143: 1135.997 | H143: 37.17313 | I143: 1173.26687 | J143: 1039.44587 | K143: 1098.82387 | L143: 100.8139888 | M143: 100.6211976 | N143: 97.0594102 | O143: 99.49819886 | R143: 141 | S143: 47 | T143: 645.7 | U143: 971.315 | V143: 993.028 | W143: 37.17313 | X143: 608.52687 | Y143: 934.14187 | Z143: 955.85487 | AA143: 88.03947878 | AB143: 102.4045126 | AC143: 96.0543552 | AD143: 95.49944888 | AG143: 141 | AH143: 47 | AI143: 977.354 | AJ143: 828.51 | AK143: 926.027 | AL143: 37.17313 | AM143: 940.18087 | AN143: 791.33687 | AO143: 888.85387 | AP143: 66.76435988 | AQ143: 68.47573234 | AR143: 68.1885982 | AS143: 67.80956347 | AV143: 141 | AW143: 47 | AX143: 723.824 | AY143: 573.127 | AZ143: 838.689 | BA143: 37.17313 | BB143: 686.65087 | BC143: 535.95387 | BD143: 801.51587 | BE143: 66.9004068 | BF143: 62.27034903 | BG143: 66.65198024 | BH143: 65.27424536 | BK143: 141 | BL143: 47 | BM143: 255.531 | BN143: 286.553 | BO143: 286.558 | BP143: 37.17313 | BQ143: 218.35787 | BR143: 249.37987 | BS143: 249.38487 | BT143: 19.21924582 | BU143: 23.43461607 | BV143: 24.48303594 | BW143: 22.37896594 | BZ143: 141 | CA143: 47 | CB143: 266.82 | CC143: 171.132 | CD143: 246.535 | CE143: 37.17313 | CF143: 229.64687 | CG143: 133.95887 | CH143: 209.36187 | CI143: 11.054343 | CJ143: 8.091171554 | CK143: 10.34997073 | CL143: 9.831828427 | CO143: 141 | CP143: 47 | CQ143: 1029.522 | CR143: 901.587 | CS143: 708.233 | CT143: 37.17313 | CU143: 992.34887 | CV143: 864.41387 | CW143: 671.05987 | CX143: 99.4826266 | CY143: 92.83954294 | CZ143: 95.93343568 | DA143: 96.08520174 | DD143: 141 | DE143: 47 | DF143: 1155.918 | DG143: 1007.442 | DH143: 795.455 | DI143: 37.17313 | DJ143: 1118.74487 | DK143: 970.26887 | DL143: 758.28187 | DM143: 104.7575993 | DN143: 101.2245982 | DO143: 93.20921506 | DP143: 99.73047086
C144: 142 | D144: 47.33333333 | E144: 1196.942 | F144: 1075.904 | G144: 1140.935 | H144: 36.87271 | I144: 1160.06929 | J144: 1039.03129 | K144: 1104.06229 | L144: 99.67997507 | M144: 100.5810652 | N144: 97.52212126 | O144: 99.26105383 | R144: 142 | S144: 47.33333333 | T144: 631.235 | U144: 977.091 | V144: 996.144 | W144: 36.87271 | X144: 594.36229 | Y144: 940.21829 | Z144: 959.27129 | AA144: 85.99019829 | AB144: 103.0706351 | AC144: 96.39767303 | AD144: 95.15283546 | AG144: 142 | AH144: 47.33333333 | AI144: 968.419 | AJ144: 827.346 | AK144: 930.159 | AL144: 36.87271 | AM144: 931.54629 | AN144: 790.47329 | AO144: 893.28629 | AP144: 66.15119892 | AQ144: 68.40100528 | AR144: 68.52863217 | AS144: 67.69361212 | AV144: 142 | AW144: 47.33333333 | AX144: 725.153 | AY144: 601.233 | AZ144: 817.845 | BA144: 36.87271 | BB144: 688.28029 | BC144: 564.36029 | BD144: 780.97229 | BE144: 67.05916122 | BF144: 65.57077802 | BG144: 64.94362942 | BH144: 65.85785622 | BK144: 142 | BL144: 47.33333333 | BM144: 251.611 | BN144: 285.578 | BO144: 288.056 | BP144: 36.87271 | BQ144: 214.73829 | BR144: 248.70529 | BS144: 251.18329 | BT144: 18.90066056 | BU144: 23.37122473 | BV144: 24.65959349 | BW144: 22.31049293 | BZ144: 142 | CA144: 47.33333333 | CB144: 268.092 | CC144: 170.857 | CD144: 250.597 | CE144: 36.87271 | CF144: 231.21929 | CG144: 133.98429 | CH144: 213.72429 | CI144: 11.13003342 | CJ144: 8.092706932 | CK144: 10.56563044 | CL144: 9.929456932 | CO144: 142 | CP144: 47.33333333 | CQ144: 1027.112 | CR144: 901.116 | CS144: 704.115 | CT144: 36.87271 | CU144: 990.23929 | CV144: 864.24329 | CW144: 667.24229 | CX144: 99.27114194 | CY144: 92.82122235 | CZ144: 95.38768175 | DA144: 95.82668201 | DD144: 142 | DE144: 47.33333333 | DF144: 1154.489 | DG144: 978.097 | DH144: 793.477 | DI144: 36.87271 | DJ144: 1117.61629 | DK144: 941.22429 | DL144: 756.60429 | DM144: 104.6519208 | DN144: 98.19448353 | DO144: 93.00300425 | DP144: 98.61646952
C145: 143 | D145: 47.66666667 | E145: 1217.336 | F145: 1073.365 | G145: 1153.678 | H145: 36.63959667 | I145: 1180.696403 | J145: 1036.725403 | K145: 1117.038403 | L145: 101.4523779 | M145: 100.357849 | N145: 98.66830486 | O145: 100.1595106 | R145: 143 | S145: 47.66666667 | T145: 639.432 | U145: 999.087 | V145: 987.778 | W145: 36.63959667 | X145: 602.7924033 | Y145: 962.4474033 | Z145: 951.1384033 | AA145: 87.20983676 | AB145: 105.5074828 | AC145: 95.580395 | AD145: 96.09923819 | AG145: 143 | AH145: 47.66666667 | AI145: 968.255 | AJ145: 829.028 | AK145: 934.218 | AL145: 36.63959667 | AM145: 931.6154033 | AN145: 792.3884033 | AO145: 897.5784033 | AP145: 66.15610681 | AQ145: 68.56672331 | AR145: 68.85790248 | AS145: 67.8602442 | AV145: 143 | AW145: 47.66666667 | AX145: 725.268 | AY145: 573.904 | AZ145: 816.006 | BA145: 36.63959667 | BB145: 688.6284033 | BC145: 537.2644033 | BD145: 779.3664033 | BE145: 67.09307791 | BF145: 62.42261469 | BG145: 64.81008806 | BH145: 64.77526022 | BK145: 143 | BL145: 47.66666667 | BM145: 251.695 | BN145: 279.735 | BO145: 271.713 | BP145: 36.63959667 | BQ145: 215.0554033 | BR145: 243.0954033 | BS145: 235.0734033 | BT145: 18.92857199 | BU145: 22.84405492 | BV145: 23.07802627 | BW145: 21.61688439 | BZ145: 143 | CA145: 47.66666667 | CB145: 267.16 | CC145: 168.857 | CD145: 246.98 | CE145: 36.63959667 | CF145: 230.5204033 | CG145: 132.2174033 | CH145: 210.3404033 | CI145: 11.09639163 | CJ145: 7.985986242 | CK145: 10.39834531 | CL145: 9.826907726 | CO145: 143 | CP145: 47.66666667 | CQ145: 1003.021 | CR145: 916.495 | CS145: 694.661 | CT145: 36.63959667 | CU145: 966.3814033 | CV145: 879.8554033 | CW145: 658.0214033 | CX145: 96.87939716 | CY145: 94.49799029 | CZ145: 94.06948142 | DA145: 95.14895629 | DD145: 143 | DE145: 47.66666667 | DF145: 1146.051 | DG145: 984.758 | DH145: 792.028 | DI145: 36.63959667 | DJ145: 1109.411403 | DK145: 948.1184033 | DL145: 755.3884033 | DM145: 103.8836274 | DN145: 98.91372113 | DO145: 92.85354553 | DP145: 98.55029803
C146: 144 | D146: 48 | E146: 1187.419 | F146: 1068.941 | G146: 1117.734 | H146: 36.43803333 | I146: 1150.980967 | J146: 1032.502967 | K146: 1081.295967 | L146: 98.89905289 | M146: 99.94910564 | N146: 95.51116575 | O146: 98.11977476 | R146: 144 | S146: 48 | T146: 652.732 | U146: 984.606 | V146: 1010.58 | W146: 36.43803333 | X146: 616.2939667 | Y146: 948.1679667 | Z146: 974.1419667 | AA146: 89.16319438 | AB146: 103.9421116 | AC146: 97.8920351 | AD146: 96.99911371 | AG146: 144 | AH146: 48 | AI146: 949.742 | AJ146: 825.948 | AK146: 914.147 | AL146: 36.43803333 | AM146: 913.3039667 | AN146: 789.5099667 | AO146: 877.7089667 | AP146: 64.85577047 | AQ146: 68.31764727 | AR146: 67.33361477 | AS146: 66.8356775 | AV146: 144 | AW146: 48 | AX146: 724.806 | AY146: 572.491 | AZ146: 821.593 | BA146: 36.43803333 | BB146: 688.3679667 | BC146: 536.0529667 | BD146: 785.1549667 | BE146: 67.06770356 | BF146: 62.28186268 | BG146: 65.29144996 | BH146: 64.88033873 | BK146: 144 | BL146: 48 | BM146: 250.765 | BN146: 276.118 | BO146: 283.317 | BP146: 36.43803333 | BQ146: 214.3269667 | BR146: 239.6799667 | BS146: 246.8789667 | BT146: 18.86445704 | BU146: 22.523101 | BV146: 24.23702213 | BW146: 21.87486006 | BZ146: 144 | CA146: 48 | CB146: 270.677 | CC146: 171.591 | CD146: 249.93 | CE146: 36.43803333 | CF146: 234.2389667 | CG146: 135.1529667 | CH146: 213.4919667 | CI146: 11.27538939 | CJ146: 8.16329549 | CK146: 10.55414535 | CL146: 9.997610075 | CO146: 144 | CP146: 48 | CQ146: 1014.743 | CR146: 898.525 | CS146: 700.052 | CT146: 36.43803333 | CU146: 978.3049667 | CV146: 862.0869667 | CW146: 663.6139667 | CX146: 98.07473021 | CY146: 92.5896295 | CZ146: 94.86898358 | DA146: 95.1777811 | DD146: 144 | DE146: 48 | DF146: 1150.049 | DG146: 973.132 | DH146: 804.226 | DI146: 36.43803333 | DJ146: 1113.610967 | DK146: 936.6939667 | DL146: 767.7879667 | DM146: 104.2768683 | DN146: 97.72185149 | DO146: 94.3777196 | DP146: 98.79214645
C147: 145 | D147: 48.33333333 | E147: 1181.468 | F147: 1074.216 | G147: 1169.85 | H147: 37.06561 | I147: 1144.40239 | J147: 1037.15039 | K147: 1132.78439 | L147: 98.3337829 | M147: 100.3989889 | N147: 100.0591521 | O147: 99.59730798 | R147: 145 | S147: 48.33333333 | T147: 653.921 | U147: 1009.111 | V147: 1002.296 | W147: 37.06561 | X147: 616.85539 | Y147: 972.04539 | Z147: 965.23039 | AA147: 89.24441909 | AB147: 106.559654 | AC147: 96.99650611 | AD147: 97.60019306 | AG147: 145 | AH147: 48.33333333 | AI147: 968.932 | AJ147: 824.798 | AK147: 911.164 | AL147: 37.06561 | AM147: 931.86639 | AN147: 787.73239 | AO147: 874.09839 | AP147: 66.17392994 | AQ147: 68.16383052 | AR147: 67.05662867 | AS147: 67.13146304 | AV147: 145 | AW147: 48.33333333 | AX147: 717.134 | AY147: 573.591 | AZ147: 818.725 | BA147: 37.06561 | BB147: 680.06839 | BC147: 536.52539 | BD147: 781.65939 | BE147: 66.25907565 | BF147: 62.33675167 | BG147: 65.00076688 | BH147: 64.53219807 | BK147: 145 | BL147: 48.33333333 | BM147: 246.394 | BN147: 270.189 | BO147: 283.517 | BP147: 37.06561 | BQ147: 209.32839 | BR147: 233.12339 | BS147: 246.45139 | BT147: 18.42449637 | BU147: 21.90696924 | BV147: 24.19504535 | BW147: 21.50883699 | BZ147: 145 | CA147: 48.33333333 | CB147: 269.378 | CC147: 170.088 | CD147: 246.416 | CE147: 37.06561 | CF147: 232.31239 | CG147: 133.02239 | CH147: 209.35039 | CI147: 11.18265118 | CJ147: 8.034607772 | CK147: 10.34940321 | CL147: 9.855554053 | CO147: 145 | CP147: 48.33333333 | CQ147: 1005.795 | CR147: 905.675 | CS147: 705.658 | CT147: 37.06561 | CU147: 968.72939 | CV147: 868.60939 | CW147: 668.59239 | CX147: 97.114782 | CY147: 93.29014903 | CZ147: 95.58068946 | DA147: 95.32854016 | DD147: 145 | DE147: 48.33333333 | DF147: 1148.991 | DG147: 987.307 | DH147: 790.919 | DI147: 37.06561 | DJ147: 1111.92539 | DK147: 950.24139 | DL147: 753.85339 | DM147: 104.1190334 | DN147: 99.13520456 | DO147: 92.66485924 | DP147: 98.63969906
C148: 146 | D148: 48.66666667 | E148: 1204.968 | F148: 1073.83 | G148: 1111.737 | H148: 37.65724 | I148: 1167.31076 | J148: 1036.17276 | K148: 1074.07976 | L148: 100.3022048 | M148: 100.3043517 | N148: 94.87375626 | O148: 98.49343756 | R148: 146 | S148: 48.66666667 | T148: 687.604 | U148: 1005.475 | V148: 1000.548 | W148: 37.65724 | X148: 649.94676 | Y148: 967.81776 | Z148: 962.89076 | AA148: 94.03195948 | AB148: 106.0962036 | AC148: 96.76139546 | AD148: 98.96318619 | AG148: 146 | AH148: 48.66666667 | AI148: 966.51 | AJ148: 824.577 | AK148: 932.971 | AL148: 37.65724 | AM148: 928.85276 | AN148: 786.91976 | AO148: 895.31376 | AP148: 65.95992529 | AQ148: 68.09351226 | AR148: 68.68416992 | AS148: 67.57920249 | AV148: 146 | AW148: 48.66666667 | AX148: 712.418 | AY148: 573.067 | AZ148: 814.487 | BA148: 37.65724 | BB148: 674.76076 | BC148: 535.40976 | BD148: 776.82976 | BE148: 65.74195317 | BF148: 62.20713105 | BG148: 64.59914738 | BH148: 64.18274387 | BK148: 146 | BL148: 48.66666667 | BM148: 249.163 | BN148: 269.55 | BO148: 280.42 | BP148: 37.65724 | BQ148: 211.50576 | BR148: 231.89276 | BS148: 242.76276 | BT148: 18.61614236 | BU148: 21.79132502 | BV148: 23.83291888 | BW148: 21.41346209 | BZ148: 146 | CA148: 48.66666667 | CB148: 265.018 | CC148: 168.671 | CD148: 246.653 | CE148: 37.65724 | CF148: 227.36076 | CG148: 131.01376 | CH148: 208.99576 | CI148: 10.94429819 | CJ148: 7.913285683 | CK148: 10.33187179 | CL148: 9.729818557 | CO148: 146 | CP148: 48.66666667 | CQ148: 1010.948 | CR148: 903.219 | CS148: 695.312 | CT148: 37.65724 | CU148: 973.29076 | CV148: 865.56176 | CW148: 657.65476 | CX148: 97.57205774 | CY148: 92.96282831 | CZ148: 94.01706679 | DA148: 94.85065095 | DD148: 146 | DE148: 48.66666667 | DF148: 1143.234 | DG148: 972.844 | DH148: 775.171 | DI148: 37.65724 | DJ148: 1105.57676 | DK148: 935.18676 | DL148: 737.51376 | DM148: 103.5245571 | DN148: 97.56461014 | DO148: 90.6563659 | DP148: 97.24851106
C149: 147 | D149: 49 | E149: 1156.551 | F149: 1077.656 | G149: 1180.016 | H149: 36.72106 | I149: 1119.82994 | J149: 1040.93494 | K149: 1143.29494 | L149: 96.2223735 | M149: 100.7653437 | N149: 100.9875519 | O149: 99.32508968 | R149: 147 | S149: 49 | T149: 705.484 | U149: 998.942 | V149: 1007.297 | W149: 36.72106 | X149: 668.76294 | Y149: 962.22094 | Z149: 970.57594 | AA149: 96.75421672 | AB149: 105.482657 | AC149: 97.53368322 | AD149: 99.92351897 | AG149: 147 | AH149: 49 | AI149: 970.648 | AJ149: 818.723 | AK149: 930.179 | AL149: 36.72106 | AM149: 933.92694 | AN149: 782.00194 | AO149: 893.45794 | AP149: 66.32025423 | AQ149: 67.66796488 | AR149: 68.54180033 | AS149: 67.51000648 | AV149: 147 | AW149: 49 | AX149: 728.498 | AY149: 570.953 | AZ149: 811.282 | BA149: 36.72106 | BB149: 691.77694 | BC149: 534.23194 | BD149: 774.56094 | BE149: 67.3998399 | BF149: 62.07028483 | BG149: 64.41047819 | BH149: 64.62686764 | BK149: 147 | BL149: 49 | BM149: 240.704 | BN149: 267.249 | BO149: 276.57 | BP149: 36.72106 | BQ149: 203.98294 | BR149: 230.52794 | BS149: 239.84894 | BT149: 17.95400489 | BU149: 21.66307075 | BV149: 23.54685839 | BW149: 21.05464468 | BZ149: 147 | CA149: 49 | CB149: 268.18 | CC149: 167.178 | CD149: 247.145 | CE149: 36.72106 | CF149: 231.45894 | CG149: 130.45694 | CH149: 210.42394 | CI149: 11.14156928 | CJ149: 7.879653523 | CK149: 10.40247501 | CL149: 9.807899271 | CO149: 147 | CP149: 49 | CQ149: 1014.534 | CR149: 932.214 | CS149: 712.928 | CT149: 36.72106 | CU149: 977.81294 | CV149: 895.49294 | CW149: 676.20694 | CX149: 98.0254047 | CY149: 96.17748874 | CZ149: 96.66925097 | DA149: 96.95738147 | DD149: 147 | DE149: 49 | DF149: 1154.836 | DG149: 975.984 | DH149: 794.916 | DI149: 36.72106 | DJ149: 1118.11494 | DK149: 939.26294 | DL149: 758.19494 | DM149: 104.6986136 | DN149: 97.98986307 | DO149: 93.19852948 | DP149: 98.62900205
C150: 148 | D150: 49.33333333 | E150: 1191.886 | F150: 1075.462 | G150: 1158.389 | H150: 36.41138333 | I150: 1155.474617 | J150: 1039.050617 | K150: 1121.977617 | L150: 99.28517372 | M150: 100.582936 | N150: 99.10458692 | O150: 99.65756556 | R150: 148 | S150: 49.33333333 | T150: 714.26 | U150: 1004.5 | V150: 1004.047 | W150: 36.41138333 | X150: 677.8486167 | Y150: 968.0886167 | Z150: 967.6356167 | AA150: 98.06869974 | AB150: 106.125896 | AC150: 97.23820859 | AD150: 100.4776015 | AG150: 148 | AH150: 49.33333333 | AI150: 961.334 | AJ150: 819.419 | AK150: 900.595 | AL150: 36.41138333 | AM150: 924.9226167 | AN150: 783.0076167 | AO150: 864.1836167 | AP150: 65.68083696 | AQ150: 67.75498781 | AR150: 66.2960149 | AS150: 66.57727989 | AV150: 148 | AW150: 49.33333333 | AX150: 726.443 | AY150: 569.72 | AZ150: 805.002 | BA150: 36.41138333 | BB150: 690.0316167 | BC150: 533.3086167 | BD150: 768.5906167 | BE150: 67.22979301 | BF150: 61.96300756 | BG150: 63.91400159 | BH150: 64.36893406 | BK150: 148 | BL150: 49.33333333 | BM150: 239.955 | BN150: 263.699 | BO150: 278.311 | BP150: 36.41138333 | BQ150: 203.5436167 | BR150: 227.2876167 | BS150: 241.8996167 | BT150: 17.91533689 | BU150: 21.3585725 | BV150: 23.74818091 | BW150: 21.00736343 | BZ150: 148 | CA150: 49.33333333 | CB150: 268.878 | CC150: 166.333 | CD150: 244.848 | CE150: 36.41138333 | CF150: 232.4666167 | CG150: 129.9216167 | CH150: 208.4366167 | CI150: 11.19007507 | CJ150: 7.847319771 | CK150: 10.3042301 | CL150: 9.780541647 | CO150: 148 | CP150: 49.33333333 | CQ150: 1004.495 | CR150: 918.152 | CS150: 704.453 | CT150: 36.41138333 | CU150: 968.0836167 | CV150: 881.7406167 | CW150: 668.0416167 | CX150: 97.05004345 | CY150: 94.70046546 | CZ150: 95.50195196 | DA150: 95.75082029 | DD150: 148 | DE150: 49.33333333 | DF150: 1144.919 | DG150: 963.902 | DH150: 775.878 | DI150: 36.41138333 | DJ150: 1108.507617 | DK150: 927.4906167 | DL150: 739.4666167 | DM150: 103.7989982 | DN150: 96.76169968 | DO150: 90.89641415 | DP150: 97.15237068
C151: 149 | D151: 49.66666667 | E151: 1128.502 | F151: 1068.927 | G151: 1163.608 | H151: 37.24626667 | I151: 1091.255733 | J151: 1031.680733 | K151: 1126.361733 | L151: 93.76710963 | M151: 99.86951121 | N151: 99.49183713 | O151: 97.70948599 | R151: 149 | S151: 49.66666667 | T151: 711.07 | U151: 1006.899 | V151: 1003.667 | W151: 37.24626667 | X151: 673.8237333 | Y151: 969.6527333 | Z151: 966.4207333 | AA151: 97.4863941 | AB151: 106.297361 | AC151: 97.11612433 | AD151: 100.2999598 | AG151: 149 | AH151: 49.66666667 | AI151: 943.51 | AJ151: 812.259 | AK151: 910.62 | AL151: 37.24626667 | AM151: 906.2637333 | AN151: 775.0127333 | AO151: 873.3737333 | AP151: 64.35582766 | AQ151: 67.06317688 | AR151: 67.00103649 | AS151: 66.14001368 | AV151: 149 | AW151: 49.66666667 | AX151: 708.093 | AY151: 572.847 | AZ151: 806.264 | BA151: 37.24626667 | BB151: 670.8467333 | BC151: 535.6007333 | BD151: 769.0177333 | BE151: 65.36060948 | BF151: 62.22931948 | BG151: 63.94951951 | BH151: 63.84648282 | BK151: 149 | BL151: 49.66666667 | BM151: 237.535 | BN151: 259.978 | BO151: 277.703 | BP151: 37.24626667 | BQ151: 200.2887333 | BR151: 222.7317333 | BS151: 240.4567333 | BT151: 17.62885121 | BU151: 20.93044903 | BV151: 23.60652771 | BW151: 20.72194265 | BZ151: 149 | CA151: 49.66666667 | CB151: 267.156 | CC151: 168.154 | CD151: 247.943 | CE151: 37.24626667 | CF151: 229.9097333 | CG151: 130.9077333 | CH151: 210.6967333 | CI151: 11.06699626 | CJ151: 7.906881628 | CK151: 10.41596076 | CL151: 9.796612883 | CO151: 149 | CP151: 49.66666667 | CQ151: 1017.978 | CR151: 928.526 | CS151: 698.58 | CT151: 37.24626667 | CU151: 980.7317333 | CV151: 891.2797333 | CW151: 661.3337333 | CX151: 98.31801271 | CY151: 95.72498307 | CZ151: 94.54300579 | DA151: 96.19533386 | DD151: 149 | DE151: 49.66666667 | DF151: 1146.946 | DG151: 974.331 | DH151: 810.556 | DI151: 37.24626667 | DJ151: 1109.699733 | DK151: 937.0847333 | DL151: 773.3097333 | DM151: 103.9106262 | DN151: 97.76261874 | DO151: 95.05646395 | DP151: 98.90990297
C152: 150 | D152: 50 | E152: 1128.848 | F152: 1072.585 | G152: 1180.712 | H152: 37.05420667 | I152: 1091.793793 | J152: 1035.530793 | K152: 1143.657793 | L152: 93.81334291 | M152: 100.2422075 | N152: 101.0196028 | O152: 98.35838441 | R152: 150 | S152: 50 | T152: 701.775 | U152: 1017.393 | V152: 1004.823 | W152: 37.05420667 | X152: 664.7207933 | Y152: 980.3387933 | Z152: 967.7687933 | AA152: 96.16941348 | AB152: 107.4688113 | AC152: 97.25159158 | AD152: 100.2966055 | AG152: 150 | AH152: 50 | AI152: 954.219 | AJ152: 822.788 | AK152: 917.467 | AL152: 37.05420667 | AM152: 917.1647933 | AN152: 785.7337933 | AO152: 880.4127933 | AP152: 65.12993647 | AQ152: 67.99088853 | AR152: 67.54103936 | AS152: 66.88728812 | AV152: 150 | AW152: 50 | AX152: 718.685 | AY152: 566.595 | AZ152: 792.291 | BA152: 37.05420667 | BB152: 681.6307933 | BC152: 529.5407933 | BD152: 755.2367933 | BE152: 66.41130064 | BF152: 61.52523915 | BG152: 62.80353229 | BH152: 63.58002403 | BK152: 150 | BL152: 50 | BM152: 233.759 | BN152: 258.624 | BO152: 276.686 | BP152: 37.05420667 | BQ152: 196.7047933 | BR152: 221.5697933 | BS152: 239.6317933 | BT152: 17.31340289 | BU152: 20.82125971 | BV152: 23.52554029 | BW152: 20.55340096 | BZ152: 150 | CA152: 50 | CB152: 268.189 | CC152: 167.806 | CD152: 242.541 | CE152: 37.05420667 | CF152: 231.1347933 | CG152: 130.7517933 | CH152: 205.4867933 | CI152: 11.12596607 | CJ152: 7.897462787 | CK152: 10.15840323 | CL152: 9.727277363 | CO152: 150 | CP152: 50 | CQ152: 993.471 | CR152: 916.321 | CS152: 701.06 | CT152: 37.05420667 | CU152: 956.4167933 | CV152: 879.2667933 | CW152: 664.0057933 | CX152: 95.8804485 | CY152: 94.43477256 | CZ152: 94.92499837 | DA152: 95.08007314 | DD152: 150 | DE152: 50 | DF152: 1146.571 | DG152: 959.515 | DH152: 781.679 | DI152: 37.05420667 | DJ152: 1109.516793 | DK152: 922.4607933 | DL152: 744.6247933 | DM152: 103.893496 | DN152: 96.23695663 | DO152: 91.53046544 | DP152: 97.22030602
C153: 151 | D153: 50.33333333 | E153: 1215.741 | F153: 1071.754 | G153: 1123.107 | H153: 37.40557 | I153: 1178.33543 | J153: 1034.34843 | K153: 1085.70143 | L153: 101.2495092 | M153: 100.1277515 | N153: 95.90030152 | O153: 99.09252076 | R153: 151 | S153: 50.33333333 | T153: 682.143 | U153: 1014.403 | V153: 1007.471 | W153: 37.40557 | X153: 644.73743 | Y153: 976.99743 | Z153: 970.06543 | AA153: 93.27829235 | AB153: 107.1025172 | AC153: 97.4823818 | AD153: 99.28773044 | AG153: 151 | AH153: 50.33333333 | AI153: 954.054 | AJ153: 804.392 | AK153: 906.401 | AL153: 37.40557 | AM153: 916.64843 | AN153: 766.98643 | AO153: 868.99543 | AP153: 65.09326834 | AQ153: 66.36864713 | AR153: 66.6651541 | AS153: 66.04235652 | AV153: 151 | AW153: 50.33333333 | AX153: 705.996 | AY153: 571.45 | AZ153: 798.881 | BA153: 37.40557 | BB153: 668.59043 | BC153: 534.04443 | BD153: 761.47543 | BE153: 65.1407778 | BF153: 62.04849879 | BG153: 63.32232113 | BH153: 63.50386591 | BK153: 151 | BL153: 50.33333333 | BM153: 230.468 | BN153: 253.514 | BO153: 271.804 | BP153: 37.40557 | BQ153: 193.06243 | BR153: 216.10843 | BS153: 234.39843 | BT153: 16.99281231 | BU153: 20.30804686 | BV153: 23.01176164 | BW153: 20.10420694 | BZ153: 151 | CA153: 50.33333333 | CB153: 267.98 | CC153: 164.572 | CD153: 242.041 | CE153: 37.40557 | CF153: 230.57443 | CG153: 127.16643 | CH153: 204.63543 | CI153: 11.09899227 | CJ153: 7.680905348 | CK153: 10.11631541 | CL153: 9.632071009 | CO153: 151 | CP153: 50.33333333 | CQ153: 1017.457 | CR153: 919.554 | CS153: 709.424 | CT153: 37.40557 | CU153: 980.05143 | CV153: 882.14843 | CW153: 672.01843 | CX153: 98.24981254 | CY153: 94.74426532 | CZ153: 96.07046959 | DA153: 96.35484915 | DD153: 151 | DE153: 50.33333333 | DF153: 1147.722 | DG153: 976.304 | DH153: 780.186 | DI153: 37.40557 | DJ153: 1110.31643 | DK153: 938.89843 | DL153: 742.78043 | DM153: 103.9683728 | DN153: 97.95183508 | DO153: 91.30375337 | DP153: 97.7413204
C154: 152 | D154: 50.66666667 | E154: 1205.071 | F154: 1071.578 | G154: 1174.974 | H154: 37.74179333 | I154: 1167.329207 | J154: 1033.836207 | K154: 1137.232207 | L154: 100.3037898 | M154: 100.0781669 | N154: 100.452029 | O154: 100.2779952 | R154: 152 | S154: 50.66666667 | T154: 665.503 | U154: 1012.783 | V154: 1007.408 | W154: 37.74179333 | X154: 627.7612067 | Y154: 975.0412067 | Z154: 969.6662067 | AA154: 90.82223342 | AB154: 106.8880678 | AC154: 97.44226364 | AD154: 98.3841883 | AG154: 152 | AH154: 50.66666667 | AI154: 944.698 | AJ154: 803.127 | AK154: 899.932 | AL154: 37.74179333 | AM154: 906.9562067 | AN154: 765.3852067 | AO154: 862.1902067 | AP154: 64.40500175 | AQ154: 66.23009054 | AR154: 66.14309006 | AS154: 65.59272745 | AV154: 152 | AW154: 50.66666667 | AX154: 708.491 | AY154: 553.286 | AZ154: 797.403 | BA154: 37.74179333 | BB154: 670.7492067 | BC154: 515.5442067 | BD154: 759.6612067 | BE154: 65.35110745 | BF154: 59.8990314 | BG154: 63.17145503 | BH154: 62.80719796 | BK154: 152 | BL154: 50.66666667 | BM154: 233.217 | BN154: 252.256 | BO154: 264.276 | BP154: 37.74179333 | BQ154: 195.4752067 | BR154: 214.5142067 | BS154: 226.5342067 | BT154: 17.20517812 | BU154: 20.15823521 | BV154: 22.23970172 | BW154: 19.86770502 | BZ154: 152 | CA154: 50.66666667 | CB154: 269.71 | CC154: 165.333 | CD154: 247.103 | CE154: 37.74179333 | CF154: 231.9682067 | CG154: 127.5912067 | CH154: 209.3612067 | CI154: 11.16608348 | CJ154: 7.706562036 | CK154: 10.34993794 | CL154: 9.740861151 | CO154: 152 | CP154: 50.66666667 | CQ154: 1005.951 | CR154: 910.418 | CS154: 709.129 | CT154: 37.74179333 | CU154: 968.2092067 | CV154: 872.6762067 | CW154: 671.3872067 | CX154: 97.0626338 | CY154: 93.72693217 | CZ154: 95.98023111 | DA154: 95.58993236 | DD154: 152 | DE154: 50.66666667 | DF154: 1150.329 | DG154: 959.846 | DH154: 777.253 | DI154: 37.74179333 | DJ154: 1112.587207 | DK154: 922.1042067 | DL154: 739.5112067 | DM154: 104.1810049 | DN154: 96.19975525 | DO154: 90.90189523 | DP154: 97.09421846
C155: 153 | D155: 51 | E155: 1202.241 | F155: 1071.798 | G155: 1131.984 | H155: 37.55115 | I155: 1164.68985 | J155: 1034.24685 | K155: 1094.43285 | L155: 100.0770008 | M155: 100.1179183 | N155: 96.67155021 | O155: 98.95548976 | R155: 153 | S155: 51 | T155: 665.1 | U155: 1025.427 | V155: 1000.462 | W155: 37.55115 | X155: 627.54885 | Y155: 987.87585 | Z155: 962.91085 | AA155: 90.79151042 | AB155: 108.2950548 | AC155: 96.76341432 | AD155: 98.61665984 | AG155: 153 | AH155: 51 | AI155: 943.013 | AJ155: 805.15 | AK155: 907.812 | AL155: 37.55115 | AM155: 905.46185 | AN155: 767.59885 | AO155: 870.26085 | AP155: 64.29888412 | AQ155: 66.42164088 | AR155: 66.76223104 | AS155: 65.82758535 | AV155: 153 | AW155: 51 | AX155: 705.145 | AY155: 567.853 | AZ155: 793.797 | BA155: 37.55115 | BB155: 667.59385 | BC155: 530.30185 | BD155: 756.24585 | BE155: 65.04368099 | BF155: 61.6136633 | BG155: 62.88744283 | BH155: 63.18159571 | BK155: 153 | BL155: 51 | BM155: 230.227 | BN155: 245.046 | BO155: 263.339 | BP155: 37.55115 | BQ155: 192.67585 | BR155: 207.49485 | BS155: 225.78785 | BT155: 16.95878662 | BU155: 19.49861529 | BV155: 22.16642913 | BW155: 19.54127701 | BZ155: 153 | CA155: 51 | CB155: 266.755 | CC155: 163.646 | CD155: 242.123 | CE155: 37.55115 | CF155: 229.20385 | CG155: 126.09485 | CH155: 204.57185 | CI155: 11.03301767 | CJ155: 7.61618147 | CK155: 10.11317228 | CL155: 9.587457139 | CO155: 153 | CP155: 51 | CQ155: 1031.598 | CR155: 917.823 | CS155: 694.925 | CT155: 37.55115 | CU155: 994.04685 | CV155: 880.27185 | CW155: 657.37385 | CX155: 99.6528485 | CY155: 94.54271738 | CZ155: 93.97690844 | DA155: 96.05749144 | DD155: 153 | DE155: 51 | DF155: 1146.653 | DG155: 958.261 | DH155: 773.795 | DI155: 37.55115 | DJ155: 1109.10185 | DK155: 920.70985 | DL155: 736.24385 | DM155: 103.8546413 | DN155: 96.05428713 | DO155: 90.50026654 | DP155: 96.80306499
C156: 154 | D156: 51.33333333 | E156: 1216.292 | F156: 1077.627 | G156: 1164.436 | H156: 37.18902 | I156: 1179.10298 | J156: 1040.43798 | K156: 1127.24698 | L156: 101.3154616 | M156: 100.7172366 | N156: 99.57003121 | O156: 100.5342431 | R156: 154 | S156: 51.33333333 | T156: 647.313 | U156: 1008.385 | V156: 1006.133 | W156: 37.18902 | X156: 610.12398 | Y156: 971.19598 | Z156: 968.94398 | AA156: 88.27054291 | AB156: 106.4665381 | AC156: 97.3696867 | AD156: 97.36892258 | AG156: 154 | AH156: 51.33333333 | AI156: 943.405 | AJ156: 808.325 | AK156: 898.38 | AL156: 37.18902 | AM156: 906.21598 | AN156: 771.13598 | AO156: 861.19098 | AP156: 64.35243659 | AQ156: 66.72771479 | AR156: 66.06643419 | AS156: 65.71552852 | AV156: 154 | AW156: 51.33333333 | AX156: 699.93 | AY156: 568.713 | AZ156: 784.41 | BA156: 37.18902 | BB156: 662.74098 | BC156: 531.52398 | BD156: 747.22098 | BE156: 64.57086578 | BF156: 61.75565772 | BG156: 62.13695805 | BH156: 62.82116052 | BK156: 154 | BL156: 51.33333333 | BM156: 227.551 | BN156: 245.855 | BO156: 259.056 | BP156: 37.18902 | BQ156: 190.36198 | BR156: 208.66598 | BS156: 221.86698 | BT156: 16.75512629 | BU156: 19.60866821 | BV156: 21.7815028 | BW156: 19.38176577 | BZ156: 154 | CA156: 51.33333333 | CB156: 263.75 | CC156: 164.296 | CD156: 244.259 | CE156: 37.18902 | CF156: 226.56098 | CG156: 127.10698 | CH156: 207.06998 | CI156: 10.90579977 | CJ156: 7.677314543 | CK156: 10.23666933 | CL156: 9.606594547 | CO156: 154 | CP156: 51.33333333 | CQ156: 1027.664 | CR156: 946.786 | CS156: 698.797 | CT156: 37.18902 | CU156: 990.47498 | CV156: 909.59698 | CW156: 661.60798 | CX156: 99.29476978 | CY156: 97.69228701 | CZ156: 94.58221157 | DA156: 97.18975612 | DD156: 154 | DE156: 51.33333333 | DF156: 1143.736 | DG156: 959.554 | DH156: 773.173 | DI156: 37.18902 | DJ156: 1106.54698 | DK156: 922.36498 | DL156: 735.98398 | DM156: 103.6154071 | DN156: 96.22696078 | DO156: 90.46832291 | DP156: 96.77023026
C157: 155 | D157: 51.66666667 | E157: 1136.318 | F157: 1079.561 | G157: 1166.759 | H157: 37.79789667 | I157: 1098.520103 | J157: 1041.763103 | K157: 1128.961103 | L157: 94.39130702 | M157: 100.8455121 | N157: 99.72144019 | O157: 98.31941979 | R157: 155 | S157: 51.66666667 | T157: 664.356 | U157: 1015.316 | V157: 1005.66 | W157: 37.79789667 | X157: 626.5581033 | Y157: 977.5181033 | Z157: 967.8621033 | AA157: 90.64817276 | AB157: 107.1595956 | AC157: 97.26096835 | AD157: 98.35624555 | AG157: 155 | AH157: 51.66666667 | AI157: 945.552 | AJ157: 807.915 | AK157: 893.831 | AL157: 37.79789667 | AM157: 907.7541033 | AN157: 770.1171033 | AO157: 856.0331033 | AP157: 64.46166219 | AQ157: 66.63954965 | AR157: 65.67074668 | AS157: 65.59065284 | AV157: 155 | AW157: 51.66666667 | AX157: 688.141 | AY157: 575.903 | AZ157: 783.574 | BA157: 37.79789667 | BB157: 650.3431033 | BC157: 538.1051033 | BD157: 745.7761033 | BE157: 63.36294043 | BF157: 62.52029228 | BG157: 62.01680586 | BH157: 62.63334619 | BK157: 155 | BL157: 51.66666667 | BM157: 226.184 | BN157: 239.334 | BO157: 257.229 | BP157: 37.79789667 | BQ157: 188.3861033 | BR157: 201.5361033 | BS157: 219.4311033 | BT157: 16.58121518 | BU157: 18.93866256 | BV157: 21.54236377 | BW157: 19.02074717 | BZ157: 155 | CA157: 51.66666667 | CB157: 261.995 | CC157: 164.432 | CD157: 244.391 | CE157: 37.79789667 | CF157: 224.1971033 | CG157: 126.6341033 | CH157: 206.5931033 | CI157: 10.79201157 | CJ157: 7.648752596 | CK157: 10.21309455 | CL157: 9.551286239 | CO157: 155 | CP157: 51.66666667 | CQ157: 1049.17 | CR157: 933.841 | CS157: 699.744 | CT157: 37.79789667 | CU157: 1011.372103 | CV157: 896.0431033 | CW157: 661.9461033 | CX157: 101.3896991 | CY157: 96.23657724 | CZ157: 94.63054903 | DA157: 97.41894178 | DD157: 155 | DE157: 51.66666667 | DF157: 1151.159 | DG157: 959.811 | DH157: 778.457 | DI157: 37.79789667 | DJ157: 1113.361103 | DK157: 922.0131033 | DL157: 740.6591033 | DM157: 104.2534714 | DN157: 96.19025078 | DO157: 91.04299651 | DP157: 97.16223958
C158: 156 | D158: 52 | E158: 1101.264 | F158: 1080.621 | G158: 1178.547 | H158: 37.12610667 | I158: 1064.137893 | J158: 1043.494893 | K158: 1141.420893 | L158: 91.43698536 | M158: 101.0131541 | N158: 100.8220168 | O158: 97.75738544 | R158: 156 | S158: 52 | T158: 669.546 | U158: 1035.613 | V158: 1002.207 | W158: 37.12610667 | X158: 632.4198933 | Y158: 998.4868933 | Z158: 965.0808933 | AA158: 91.49623545 | AB158: 109.4582814 | AC158: 96.98148311 | AD158: 99.31199999 | AG158: 156 | AH158: 52 | AI158: 944.455 | AJ158: 793.016 | AK158: 899.522 | AL158: 37.12610667 | AM158: 907.3288933 | AN158: 755.8898933 | AO158: 862.3958933 | AP158: 64.43146707 | AQ158: 65.40844484 | AR158: 66.15886935 | AS158: 65.33292709 | AV158: 156 | AW158: 52 | AX158: 693.565 | AY158: 558.234 | AZ158: 781.719 | BA158: 37.12610667 | BB158: 656.4388933 | BC158: 521.1078933 | BD158: 744.5928933 | BE158: 63.95685336 | BF158: 60.54545403 | BG158: 61.91841318 | BH158: 62.14024019 | BK158: 156 | BL158: 52 | BM158: 223.941 | BN158: 235.712 | BO158: 250.902 | BP158: 37.12610667 | BQ158: 186.8148933 | BR158: 198.5858933 | BS158: 213.7758933 | BT158: 16.44292169 | BU158: 18.66142671 | BV158: 20.98717087 | BW158: 18.69717309 | BZ158: 156 | CA158: 52 | CB158: 268.032 | CC158: 165.433 | CD158: 240.069 | CE158: 37.12610667 | CF158: 230.9058933 | CG158: 128.3068933 | CH158: 202.9428933 | CI158: 11.11494768 | CJ158: 7.749789809 | CK158: 10.03264351 | CL158: 9.632460333 | CO158: 156 | CP158: 52 | CQ158: 1024.065 | CR158: 926.771 | CS158: 712.774 | CT158: 37.12610667 | CU158: 986.9388933 | CV158: 889.6448933 | CW158: 675.6478933 | CX158: 98.94027833 | CY158: 95.54939843 | CZ158: 96.58933073 | DA158: 97.02633583 | DD158: 156 | DE158: 52 | DF158: 1145.644 | DG158: 970.493 | DH158: 774.239 | DI158: 37.12610667 | DJ158: 1108.517893 | DK158: 933.3668933 | DL158: 737.1128933 | DM158: 103.7999605 | DN158: 97.37475011 | DO158: 90.60709073 | DP158: 97.26060044
